{"text_format":"1","workbook":"xlsx","n_sheets":18,"sheets":["dropdowns","Menu Worksheet Instructions","SFA Notes","All Meals","Vegetable Subgroups","Optional VegBar","Day1","Day2","Day3","Day4","Day5","Day6","Day7","Weekly Report","Weekly Menu","Monday (2)","Nutrient Instructions","Simplified Nutrient Assessment"],"not_rendered":{"charts":0,"images":2,"macros":0,"external_links":3,"defined_names":22,"comments":0,"pivot_tables":0},"unopened":[],"bounds":{"document_bytes":16777216,"sheet_cells":100000,"rows_first":2000,"rows_last":500,"rows_between":2000,"halvings":0,"cell_chars":16384,"cell_head_chars":4096},"cells_cut":0,"cells_raw":0,"read":"whole","date_system":"1900"}

{"sheet":"dropdowns","index":0,"n_rows":25,"n_cols":9,"rows_kept":25,"cut":false,"hidden":true,"merged":[]}
[]
[0.125,null,0.25,0.125,null,"Total offerings",null,null,"+"]
[0.25,null,0.5,0.25,null,"Total oz equivalents",null,null,"-"]
[0.375,null,0.75,0.375,null,null,null,null,"*"]
[0.5,null,1,0.5,null,null,null,null,"/"]
[0.625,null,1.25,0.625]
[0.75,null,1.5,0.75]
[0.875,null,1.75,0.875]
[1,null,2,1]
[1.125,null,null,1.125]
[1.25,null,null,1.25]
[1.375,null,null,1.375]
[1.5,null,null,1.5]
[1.625,null,null,1.625]
[1.75,null,null,1.75]
[1.875,null,null,1.875]
[2,null,null,2]
[null,null,null,2.125]
[null,null,null,2.25]
[null,null,null,2.375]
[null,null,null,2.5]
[null,null,null,2.625]
[null,null,null,2.75]
[null,null,null,2.875]
[null,null,null,3]

{"sheet":"Menu Worksheet Instructions","index":1,"n_rows":123,"n_cols":1,"rows_kept":123,"cut":false,"hidden":false,"merged":[[118,0,120,0]]}
[]
["Simplified Directions for Lunch Menu worksheet"]
["2016-08-16"]
["Materials needed:"]
["REMEMBER TO PERIODICALLY SAVE THE WORKSHEET AS IT IS BEING COMPLETED!!!!"]
["Materials needed:"]
["1 week menu (7 days)"]
["Portion sizes for all reimbursable menu items"]
["Contribution information for each menu item (CN Label, USDA Food Fact Sheet)"]
["Standardized Recipes"]
["Production Records  "]
["Click here for Team Nutrition resources like the Food Buying Guide"]
["Click here to go to the Food Buying Guide Calculator"]
[]
[]
["Complete a Menu worksheet for the grade groups (K-5, 6-8, and 9-12) as appropriate. Separate Menu worksheets have been developed for breakfast and lunch. "]
["Each Excel file has twelve tabs including the Simplified Nutrient Assessment (and two instruction pages).\n The name of each tab is located at the bottom of the workbook."]
["Click on the tab at the bottom of each tab to transfer to a different tab."]
["***It is very important to follow these steps in order; otherwise, the worksheet will not provide accurate results. The accuracy of the menu certification results are based on the accuracy of the information entered by the user. "]
[]
["Crediting Considerations"]
["Some vegetables and fruits do not credit on a volume as served basis (e.g. 1 cup credits as 1 cup)"]
["Tomato paste - refer to manufacturing information"]
["Dried fruit- twice the volume as served (1/2 cup credits as 1 cup)"]
["Raw leafy greens- half the volume as served (2 cups credits as 1 cup)"]
["Conversion must be made first, and CREDITABLE amounts entered into the menu worksheet. "]
["Example: if a salad with 2 cups of romaine lettuce is offered, “1” cup of vegetable (dark green) must be entered."]
[]
["SFA Notes"]
["This tab is for SFAs to provide notes and any additional information the State agency may instruct to include"]
[]
["Entering Meals into the “All Meals” Spreadsheet (column 1)"]
["Column 1:  “Meal Name.” "]
["***IMPORTANT: For purposes of Menu worksheet, SFAs must list reimbursable meals offered on the menu. Each reimbursable meal consists of all required food components: any grain/meat/meat alternates in a main dish and/or side dish, total amount of fruit offered with this meal, total amount of vegetables in a main dish and/or side dish, and amount of milk. The vegetable subgroups and types of milk will be recorded on a different tab.  "]
[" To simplify the menu entry process, type the name of the complete reimbursable meal by main dish name only."]
["To assist the State Agency reviewer, enter the name of the main dish to match the menu submitted for certification.\n (e.g. if vegetable pizza is called “Garden Power Flatbread,” insert “Garden Power Flatbread” into the menu worksheet)."]
["Once the meal name for Meal #1 has been entered, the meal components and corresponding serving sizes must be entered. "]
["ALL unique reimbursable meals offered over the course of the entire week must be entered.  If a cheese pizza is available every day, enter it once."]
["Each row should contain one meal until all meals offered over the week are entered"]
["Component Data Entry (columns 2 through 6)"]
["Each food component column lists the appropriate unit of measure (e.g. ounce equivalent for grains, cup for fruit). "]
["Each component is color coded (e.g. Fruit and Fruit juice are purple). This color scheme is consistent throughout."]
["Total fruit, fruit juice, vegetable and vegetable juice columns include a dropdown menu. Clicking on the gray box with the black downward arrow opens a list of serving sizes."]
["Total grains, whole grain-rich grains, grain based desserts, meat/meat alternates and milk do not have dropdown menus, the user will need to enter in the appropriate food quantities within the blank cells. "]
["***Do NOT enter text (such as “4 oz”) in these cells. Attempts to do so will result in an error message."]
["To assist in calculations there is an optional fraction calculator as well as a decimal to fraction converter to the left of the component entry section in the \"All Meals\" tab"]
["Meat/Meat Alternate (column 2)"]
["Meat/Meat Alternate (oz equivalent): Enter the amount of meat/meat alternates offered in the main dish and/or side dishes. "]
["Type in a value in ounce equivalents (to the nearest quarter ounce, or 0.25 ounce equivalents). Do NOT enter text (such as “4 oz”) in these cells. Attempts to do so will result in an error message"]
["Grains (columns 3, 3a, & 3b)"]
["SFAs must use ounce equivalents for all grains (based on 16 gram creditable grain)"]
["*For SY 2016-17, SFAs with State approval to offer non-whole grain-rich products may count these products as “whole grain-rich” for purposes of certification but should note this in the “SFA notes” section to ensure the State is aware of this temporary flexibility."]
["Column 3: Total Grains including whole grain-rich and desserts (oz equivalent): Enter the total number of ounce equivalents/servings of grains in the reimbursable meal."]
["Consider grains in the main dish (bun, breading, pasta), side dishes (e.g. rice, breadstick), and any other additional grains available to the student such as sliced bread and/or desserts. "]
["All grains both whole grain-rich and non whole grain-rich should be added together in this cell. "]
["Unlike the vegetable component, all grains in the meal MUST be included in the “Total grains” column (e.g. “extra” bread offered at the end of the serving line or rolls offered on the salad bar)."]
["All grains are measured in ounce equivalents and may be credited in quarter ounce equivalents. "]
["Do NOT enter text (such as “4 oz”) in these cells. Attempts to do so will result in an error message."]
["Column 3a: Whole grain-rich Only (oz equivalent): Enter the quantity of whole grain-rich grain contained in the meal. If the food item is not whole grain-rich, either leave the cell blank or type in a zero (“0”)."]
["Example:  The SFA serves a pizza with crust that is 2 oz equivalent of grains.  If the grains are deemed whole grain-rich, the SFA would enter “2” in the whole grain-rich box.  "]
["Column 3b: Grain Based Desserts (oz equivalents): Enter the quantity of grain based desserts offered in the meal. "]
["Ensure all three columns related to Grains are entered in ounce equivalents (e.g. a 0.75 oz eq cookie) and NOT in servings (e.g. 1 serving of dessert). If grain based desserts are not offered, either leave the cell blank or type in a zero (“0”). "]
["Fruit (columns 4 & 4a)"]
["Column 4: Total Fruit including juice (cups): Using the drop down menu, select the quantity of fruit offered with the reimbursable meal. Options range from 1/8 cup (smallest creditable amount) to 2 cups. "]
["Total fruit includes both whole fruit and fruit juice."]
["***IMPORTANT  scroll up or down through the options until “1” is highlighted.  The “enter” key must be pressed before moving to the next column. "]
["Column 4a: Fruit Juice Only (cups): If juice is part of the reimbursable meal, it will be reported in this column.  Juice is also included in the “Total Fruit including juice (cups) column,” however, the two boxes will NOT be added together. Select the portion size of juice. If juice is not offered with the reimbursable meal, leave the dropdown box blank. "]
["Vegetables (columns 5 & 5a)"]
["Column 5: Vegetables (cups): Include only vegetables offered that will be credited toward the reimbursable meal. Do not consider subgroups here just enter minimum amount of vegetables associated with this meal."]
["If several vegetable choices are offered, enter the minimum that the child is instructed to take. "]
["In the dropdown box, options range from 1/8 cup (the smallest creditable amount) to 2 cups. If more than 2 cups of vegetables are offered in this single meal, report 2 cups."]
["Column 5a: Vegetable Juice Only (cups): If juice is part of the reimbursable meal, it will be reported in this column.  Juice is also included in the “Total Vegetable including juice (cups) column,” however, the two boxes will NOT be added together. Select the portion size of juice. If juice is not offered with the reimbursable meal, leave the dropdown box blank. "]
["Milk (column 6)"]
["Column 6: Milk (cups): Enter the amount of milk offered. Milk is measured in cups and may be credited in 1/8 cup increments. "]
[]
["Optional Weekly Vegetable Tab (Optional VegBar)"]
["This tab is OPTIONAL depending on the weekly menu offerings.  This tab is for menus that offer the same vegetables in the same quantities at least two days a week. "]
["Vegetables entered in this tab must be accessible to all students."]
["The vegetable subgroups offered on salad/vegetable/garden bars may be entered here to reduce the burden of entering the SAME information for multiple days."]
["Each vegetable and the quantity (cups) offered must be selected under the appropriate subgroup. If the vegetable offered is not listed then select the \"unspecified\" entry for the appropriate subgroup. The name of the vegetable offered must be typed in the appropriate subgroup columns located below the selection section."]
["The quantity of each vegetable offered must be the planned serving size per student. "]
["NOTE:  The worksheet allows for one vegetable bar to be recorded in the Optional VegBar tab. If  a  vegetable bar that differs by day is offered, all offerings and quantities for each vegetable subgroup must be entered by subgroup on the day that vegetable bar was offered."]
[]
["Selecting Meals and Vegetables for each day of the week"]
["Step 1: Using the dropdown boxes in the “Reimbursable Meal” column, select the meal offered for each day(one meal per box). Only select the meals served on that day. "]
["Do NOT account for multiple serving lines. List all meals available to a child each day.  "]
["Once the meal is selected, columns in that row will automatically fill in from the data entered in the “All Meals” tab."]
["The worksheet will automatically check the daily requirements for each component and indicate with a \"yes\" or \"no\" whether the meal meets the daily minimum requirements."]
["Weekly requirement assessment is done in the \"Weekly Report\" tab."]
[]
["Step 2: Milk type: Scroll (go to the bottom of the screen and slide the bar to the right) to the right side of the screen until the table entitled “Milk Type” is viewable."]
["There are 5 types of milk listed. Click the small checkbox to the right of each type of milk offered on Mondays. Depending on varieties selected, the last column in this section will turn green (Yes) or red (No)."]
["Step 3: Vegetable Subgroups: Report the specific vegetables offered in the daily menu. Scroll to the right until the “Vegetable Subgroup Tracker” table is in view. "]
["If the vegetables offered for each day include ALL vegetables entered in the Optional VegBar tab then select the check box under the Vegetable Subgroup Data Entry section. If different vegetables were offered or vegetables IN ADDITION to ALL vegetables entered in the Optional VegBar tab then proceed with the instructions below. NOTE:  The worksheet allows for one vegetable bar to be recorded in the Optional VegBar tab. If  a  vegetable bar that differs by day is offered, all offerings and quantities for each vegetable subgroup must be entered by subgroup on the day that vegetable bar was offered.\n"]
["Beginning with “Dark Green,” use dropdown boxes to select dark green vegetables offered in ANY of the meals offered that day. \nLeave this column blank if dark green vegetables are not offered."]
["For each dark green vegetable selected, the appropriate quantity provided each day must also be selected. In the second green column, use the dropdown box to select the correct amount of cups."]
["If the same dark green vegetable is offered in different food items on a day (e.g. 1 cup romaine in a chef salad, ½ cup romaine in a side salad), do NOT combine amounts. "]
["Once all types and quantities of dark green vegetables offered on each day are selected, locate the first row, labeled “Largest amount of dark green vegetables to select\""]
["This is to enter the  quantity of dark green vegetables available to a single child. "]
["For example, if two different main dishes are offered, such as a spinach pizza and a broccoli casserole, the amounts of spinach and broccoli would NOT be added together as the student cannot take both of those food items. This would also apply if more than one side dish with dark green vegetables is offered and students are instructed to take one choice. "]
[" It is very important the total amount is accurate. The “largest amount” information will help determine the weekly subgroup offerings and if the requirements are met."]
[" Once dark green vegetables have been entered, the same process must be repeated for each of the other four subgroups."]
[" If the vegetable offered is not listed then select the \"unspecified\" entry for the appropriate subgroup. The name of the vegetable offered must be typed in the appropriate subgroup columns located below the selection section."]
["To assist in calculations there is an optional fraction calculator as well as a decimal to fraction converter under the \"Milk Type\" box."]
["Once all vegetable subgroups are entered for one day, select the next day tab and repeat the above steps."]
[]
["Weekly Report"]
["Click on the “Weekly Report” tab. "]
["There are columns for Monday Friday, a Weekly Total, the Weekly Requirement, and a Weekly Requirement Check."]
["On the left side of the sheet, in rows, are the food components. "]
["The weekly requirement check, similar to the daily requirement check, shows up as green (Yes) if the menu offered at least the minimum fruit requirement. Red (No) indicates if less than the requirement was offered."]
["For fruit and vegetables, there is also a weekly juice check to ensure no more than half of the weekly fruit offering is in the form of juice."]
["For vegetables, amounts of each subgroup offered each day are shown."]
["For grains, shows the daily minimum and maximum grain offered each day. These are added to report the total weekly minimum and maximum grains offered. "]
["There is also a third row that calculates the amount (in oz eq) of grain based desserts offered. "]
["The fourth and final row for grains calculates the amount of whole grain-rich grains offered, and the percentage of wholegrain-rich grains offered over the course of the week."]
["The weekly meat/meat alternate and milk offerings are calculated and compared to the requirements."]
["There is a section to the right of the requirement checks for SFAs and State agencies to provide comments."]
["The menu worksheet portion of the Certification Tool is complete. For the 6 cent certification, the SFA must submit a nutrient analysis or the Simplified Nutrient Assessment. SFAs completing the Simplified Nutrient Assessment can click on the link below or go to the \"Nutrient Instructions\" tab to complete the Assessment."]
[]
[]
["Click here to go to the Nutrient Instructions Tab"]
["Click here to go to the Simplified Nutrient Assessment"]

{"sheet":"SFA Notes","index":2,"n_rows":1,"n_cols":1,"rows_kept":1,"cut":false,"hidden":false,"merged":[[0,0,1,14],[2,0,43,14]]}
["SFA Certification Worksheet Notes\nLunch"]

{"sheet":"All Meals","index":3,"n_rows":62,"n_cols":26,"rows_kept":62,"cut":false,"hidden":false,"merged":[[16,25,17,25],[3,22,3,25],[8,13,9,13],[8,19,9,19],[5,5,5,6],[5,22,12,22],[14,25,15,25],[7,13,7,16],[13,22,13,25],[0,0,0,19],[5,7,5,19],[8,10,9,10],[7,7,7,10],[7,1,9,2],[16,22,17,22],[2,1,2,5],[8,4,9,4],[14,22,15,22],[3,1,3,19],[8,7,9,7],[6,1,6,2],[7,4,7,6],[1,1,1,5],[10,25,12,25],[2,6,2,19],[5,2,5,4],[1,6,1,19],[8,16,9,16],[8,5,9,5],[8,6,9,6],[8,3,9,3]]}
["Meal Pattern\nReimbursable Lunches\nGrades K-8\n"]
[null,"SFA Name:"]
[null,"K-8 Menu #:"]
[null,"Enter each reimbursable lunch offered during the reference week and select or enter the quantity of each component. \nEach reimbursable meal consists of all required food components: any grain/meat/meat alternates in a main dish and/or side dish, total amount of fruit offered with this meal, total amount of vegetables in a main dish and/or side dish, and amount of milk. The vegetable subgroups and types of milk will be recorded on a different tab.  \n",null,null,null,null,null,null,null,null,null,null,null,null,null,null,null,null,null,null,null,null,"OPTIONAL Tools to Assist in Fraction and Decimal Calculations"]
[1,2,3,4,5,6,7,8,9,10,11,12,13,14,15,16,17,18,19,20]
[null,null,"Click here to go the Food Buying Guide Calculator",null,null,"Click here to go the Instructions",null,"Click here to the Weekly Report",null,null,null,null,null,null,null,null,null,null,null,null,null,null,"\n\nFraction Calculator: \nUse this calculator to add the number of cups.",1,{"$f":"INDEX(Cups,X6)","v":0}]
[null,1,null,2,3,"3a","3b",4,null,null,"4a",null,null,5,null,null,"5a",null,null,6]
[null,"Meal Name\nEnter the name of each reimbursable meal as found on the weekly menu.  Select the first blank if the component was not offered with the meal. \n** DO NOT DELETE ROWS**",null,"Meat/Meat Alternate \n(oz equivalents)","Grains\n(oz equivalents)\n",null,null,"Fruit (cups)\n**NOTE: Enter the CREDITABLE amount of dried fruit",null,null,null,null,null,"Vegetables\n(cups)",null,null,null,null,null,"Fluid Milk\n(cups)",null,null,null,1,{"$f":"INDEX(Cups,X8)","v":0}]
[null,null,null,"Enter the total meat/meat alternate ounces offered with this meal"," Enter the total grains ounce equivalents including whole grain rich and desserts offered with this meal","Of the grains offered with this meal, enter the number of ounce equivalents that are whole grain rich","Of the grains offered with this meal enter number of ounce equivalents that are grain based desserts","Select the number of cups of fruit including fruit juice offered with this meal","F_i","F_num","ONLY select the cups of fruit juice","J_i","J_num","Select the number of cups of vegetables including vegetable juice offered with this meal","V_i","V_num","ONLY select the cups of vegetable juice","jv_i","jv_num","Enter the number of cups of fluid milk offered with this meal",null,null,null,1,{"$f":"INDEX(Cups,X9)","v":0}]
[null,null,null,null,null,null,null,null,null,null,null,null,null,null,null,null,null,null,null,null,null,null,null,1,{"$f":"INDEX(Cups,X10)","v":0}]
[null,null,"Example: Chicken nuggets w/ roll and honey sauce",2,2.5,2,0.5,null,9,{"$f":"IF(I11=1,\"\",INDEX(Cups,I11))","v":1},null,5,{"$f":"IF(L11=1,\"\",INDEX(Cups,L11))","v":0.5},null,9,{"$f":"IF(O11=1, \"\", INDEX(Cups,O11))","v":1},null,1,{"$f":"IF(R11=1, \"\", INDEX(Cups,R11))","v":""},1,null,null,null,1,{"$f":"INDEX(Cups,X11)","v":0},{"$f":"SUM(Y6:Y11)","v":0}]
[1,null,null,null,null,null,null,null,null,null,null,null,null,null,null,null,null,null,1.375]
[2,1,null,null,null,null,null,null,1,{"$f":"IF(I13=1,\"\", INDEX(Cups,I13))","v":""},null,1,"",null,1,"",null,1,""]
[3,2,null,null,null,null,null,null,1,{"$f":"IF(I14=1,\"\", INDEX(Cups,I14))","v":""},null,1,"",null,1,"",null,1,"",null,null,null,"Decimal/Fraction Converter\n(Rounded down to the nearest 1/8)"]
[4,3,null,null,null,null,null,null,1,"",null,1,"",null,1,"",null,1,"",null,null,null,"Enter the decimal you wish to convert to a fraction in the box:"]
[5,4,null,null,null,null,null,null,1,"",null,1,"",null,1,"",null,1,""]
[6,5,null,null,null,null,null,null,1,"",null,1,"",null,1,"",null,1,"",null,null,null,"The decimal entered above has been converted to the following fraction:",null,null,{"$f":"FLOOR(Z15, 0.125)","v":0}]
[7,6,null,null,null,null,null,null,1,"",null,1,"",null,1,"",null,1,""]
[8,7,null,null,null,null,null,null,1,"",null,1,"",null,1,"",null,1,""]
[9,8,null,null,null,null,null,null,1,"",null,1,"",null,1,"",null,1,""]
[10,9,null,null,null,null,null,null,1,"",null,1,"",null,1,"",null,1,""]
[11,10,null,null,null,null,null,null,1,"",null,1,"",null,1,"",null,1,""]
[12,11,null,null,null,null,null,null,1,"",null,1,"",null,1,"",null,1,""]
[13,12,null,null,null,null,null,null,1,"",null,1,"",null,1,"",null,1,""]
[14,13,null,null,null,null,null,null,1,"",null,1,"",null,1,"",null,1,""]
[15,14,null,null,null,null,null,null,1,"",null,1,"",null,1,"",null,1,""]
[16,15,null,null,null,null,null,null,1,"",null,1,"",null,1,"",null,1,""]
[17,16,null,null,null,null,null,null,1,"",null,1,"",null,1,"",null,1,""]
[18,17,null,null,null,null,null,null,1,"",null,1,"",null,1,"",null,1,""]
[19,18,null,null,null,null,null,null,1,"",null,1,"",null,1,"",null,1,""]
[20,19,null,null,null,null,null,null,1,"",null,1,"",null,1,"",null,1,""]
[21,20,null,null,null,null,null,null,1,"",null,1,"",null,1,"",null,1,""]
[22,21,null,null,null,null,null,null,1,"",null,1,"",null,1,"",null,1,""]
[23,22,null,null,null,null,null,null,1,"",null,1,"",null,1,"",null,1,""]
[24,23,null,null,null,null,null,null,1,"",null,1,"",null,1,"",null,1,""]
[25,24,null,null,null,null,null,null,1,"",null,1,"",null,1,"",null,1,""]
[26,25,null,null,null,null,null,null,1,"",null,1,"",null,1,"",null,1,""]
[27,26,null,null,null,null,null,null,1,"",null,1,"",null,1,"",null,1,""]
[28,27,null,null,null,null,null,null,1,"",null,1,"",null,1,"",null,1,""]
[29,28,null,null,null,null,null,null,1,"",null,1,"",null,1,"",null,1,""]
[30,29,null,null,null,null,null,null,1,"",null,1,"",null,1,"",null,1,""]
[31,30,null,null,null,null,null,null,1,"",null,1,"",null,1,"",null,1,""]
[32,31,null,null,null,null,null,null,1,"",null,1,"",null,1,"",null,1,{"$f":"IF(R43=1, \"\", INDEX(Cups,R43))","v":""}]
[33,32,null,null,null,null,null,null,1,"",null,1,{"$f":"IF(L44=1,\"\",INDEX(Cups,L44))","v":""},null,1,{"$f":"IF(O44=1, \"\", INDEX(Cups,O44))","v":""},null,1,""]
[34,33,null,null,null,null,null,null,1,{"$f":"IF(I45=1,\"\", INDEX(Cups,I45))","v":""},null,1,"",null,1,"",null,1,""]
[35,34,null,null,null,null,null,null,1,"",null,1,"",null,1,"",null,1,""]
[36,35,null,null,null,null,null,null,1,"",null,1,"",null,1,"",null,1,""]
[37,36,null,null,null,null,null,null,1,"",null,1,"",null,1,"",null,1,""]
[38,37,null,null,null,null,null,null,1,"",null,1,"",null,1,"",null,1,""]
[39,38,null,null,null,null,null,null,1,"",null,1,"",null,1,"",null,1,""]
[40,39,null,null,null,null,null,null,1,"",null,1,"",null,1,"",null,1,""]
[41,40,null,null,null,null,null,null,1,"",null,1,"",null,1,"",null,1,""]
[42,41,null,null,null,null,null,null,1,"",null,1,"",null,1,"",null,1,""]
[43,42,null,null,null,null,null,null,1,"",null,1,"",null,1,"",null,1,""]
[44,43,null,null,null,null,null,null,1,"",null,1,"",null,1,"",null,1,""]
[45,44,null,null,null,null,null,null,1,"",null,1,"",null,1,"",null,1,""]
[46,45,null,null,null,null,null,null,1,"",null,1,"",null,1,"",null,1,""]
[47,46,null,null,null,null,null,null,1,"",null,1,"",null,1,"",null,1,""]
[48,47,null,null,null,null,null,null,1,"",null,1,"",null,1,"",null,1,""]
[49,48,null,null,null,null,null,null,1,"",null,1,"",null,1,"",null,1,""]
[50,49,null,null,null,null,null,null,1,"",null,1,"",null,1,"",null,1,""]
[null,50,null,null,null,null,null,null,1,"",null,1,{"$f":"IF(L62=1,\"\",INDEX(Cups,L62))","v":""},null,1,"",null,1,""]

{"sheet":"Vegetable Subgroups","index":4,"n_rows":39,"n_cols":5,"rows_kept":39,"cut":false,"hidden":true,"merged":[[0,0,0,4],[1,0,1,4]]}
["Vegetable Subgroups \nLunch, Grades 9-12"]
["Classify each vegetable offered during the week in a creditable amount in the appropriate subgroup column. You may inlcude vegetables offered as part of an entrée in creditable amounts. Some of the commonly offered vegetables in each subgroup are entered below.\nType any additional vegetables offered during the week in the empty rows in each subgroup column."]
["DARK GREEN vegetables offered during the week ","RED/ORANGE vegetables offered during the week","BEANS/PEAS (Legumes) offered during the week","STARCHY vegetables offered during the week","OTHER\n (any other type of vegetable)\noffered during the week"]
[]
["Arugula lettuce","Carrot juice ","Black beans ","Corn","Artichokes "]
["Bok choy","Carrots","Chickpeas ","Fresh Cow/field/blackeye/pigeon (peas)","Asparagus"]
["Boston or bibb lettuce","Chili pepper, hot","Kidney beans ","Green peas, immature","Avocado "]
["Broccoli","Peppers, red, sweet, bell ","Lentils ","Jicama","Bamboo Shoots"]
["Chard","Pumpkin","Lima beans, mature","Lima beans, immature ","Beans, green/snap/yellow"]
["Cilantro","Squash, winter ","Pinto beans","Parsnips","Beets"]
["Collard greens","Sweet potatoes","Refried beans","Plantains ","Brussels sprouts "]
["Grape leaves","Tomato juice ","Soybeans","Potatoes","Cabbage, green/red"]
["Kale","Tomato paste","Split peas ","Water chestnuts","Cactus (nopales)"]
["Mustard greens","Tomato sauce","White beans","Starchy unspecified","Cauliflower/broccoflower "]
["Romaine","Tomatoes","Beans/peas unspecified",null,"Celery"]
["Seaweed","Red/orange unspecified",null,null,"Chili pepper, hot, green"]
["Spinach",null,null,null,"Chives"]
["Turnip greens",null,null,null,"Cucumber "]
["Watercress",null,null,null,"Eggplant"]
["Dark green unspecified",null,null,null,"Garlic"]
[null,null,null,null,"Kohlrabi/celeriac/Fennel"]
[null,null,null,null,"Lettuce, iceberg"]
[null,null,null,null,"Mung bean/alfalfa sprouts"]
[null,null,null,null,"Mushrooms"]
[null,null,null,null,"Okra"]
[null,null,null,null,"Olives"]
[null,null,null,null,"Onions/leeks"]
[null,null,null,null,"Peppers, green, sweet, bell"]
[null,null,null,null,"Pickles"]
[null,null,null,null,"Radishes"]
[null,null,null,null,"Snowpeas"]
[null,null,null,null,"Squash, Summer/yellow/spaghetti/chayote"]
[null,null,null,null,"Tomatillos"]
[null,null,null,null,"Turnips/rutabagas"]
[null,null,null,null,"Zucchini"]
[null,null,null,null,"**Extra dark green used as other**"]
[null,null,null,null,"**Extra red/orange used as other**"]
[null,null,null,null,"**Extra beans/peas used as other**"]
[null,null,null,null,"Other unspecified"]

{"sheet":"Optional VegBar","index":5,"n_rows":18,"n_cols":36,"rows_kept":18,"cut":false,"hidden":false,"merged":[[0,31,0,35],[22,1,22,4],[22,7,22,10],[22,13,22,16],[22,19,22,22],[22,25,22,28],[20,25,20,28],[21,1,21,4],[21,7,21,10],[21,13,21,16],[21,19,21,22],[21,25,21,28],[20,1,20,4],[20,7,20,10],[20,13,20,16],[20,19,20,22],[19,1,19,4],[19,7,19,10],[19,13,19,16],[19,19,19,22],[19,25,19,28],[18,1,18,4],[18,7,18,10],[18,13,18,16],[18,19,18,22],[17,1,17,4],[17,7,17,10],[17,13,17,16],[17,19,17,22],[17,25,17,28],[18,25,18,28],[2,16,3,16],[2,19,3,19],[2,22,3,22],[2,25,3,25],[2,28,3,28],[16,1,16,28],[2,4,3,4],[2,7,3,7],[2,10,3,10],[2,13,3,13],[12,32,14,32],[4,1,4,4],[4,7,4,10],[4,13,4,16],[4,19,4,22],[4,25,4,28],[12,35,14,35],[15,32,17,32],[15,35,17,35],[5,32,10,32],[0,1,0,28],[1,1,1,28],[1,31,1,33],[3,32,3,35],[11,32,11,35],[2,1,3,1]]}
[null,"OPTIONAL Weekly Vegetable Bar Data Entry\nGrades K-8",null,null,null,null,null,null,null,null,null,null,null,null,null,null,null,null,null,null,null,null,null,null,null,null,null,null,null,null,null,"Click here for help categorizing vegetables"]
[null,"Use this tab ONLY if there is a vegetable bar offered for the week with the SAME vegetable subgroup offerings multiple times over the week.  \nThe vegetable bar must be accessible to ALL students for the days in which it is offered.\nSelect the name and quantity of each vegetable offered on the vegetable bar in the appropriate subgroup. The quantity is the planned offering amount (serving size) for each student. ",null,null,null,null,null,null,null,null,null,null,null,null,null,null,null,null,null,null,null,null,null,null,null,null,null,null,null,null,null,"Go to Instructions"]
[null,"DARK GREEN vegetables offered  ",null,null,"Quantity (cups)",null,null,"Red/Orange vegetables offered  ",null,null,"Quantity (cups)",null,null,"Beans/Peas (legumes) offered  ",null,null,"Quantity (cups)",null,null,"Starchy vegetables offered  ",null,null,"Quantity (cups)",null,null,"Other vegetables offered  ",null,null,"Quantity (cups)"]
[null,null,"G_T",null,null,"G_I","G_num",null,"R_T",null,null,"R_i","r_num",null,"B_t",null,null,"B_i","B_num",null,"S_T",null,null,"s_i","s_num",null,"O_T",null,null,"o_i","O_num",null,"OPTIONAL Tools to Assist in Fraction and Decimal Calculations"]
[null,{"$f":"IF(OR(COUNTIF(C6:C15, 12)>0, COUNTIF(C6:C15,2)>0, COUNTIF(C6:C15,4)>0, COUNTIF(C6:C15,10)>0, COUNTIF(C6:C15,15)>0, COUNTIF(C6:C15,17)>0,), \"Remember to enter CREDITABLE amounts of leafy greens!\", \"\")","v":""},null,null,null,null,null,{"$f":"IF(COUNTIF(I6:I15,10)>0,\"Remember to enter the CREDITABLE amount of tomato paste!\",\"\")","v":""},null,null,null,null,null,{"$f":"IF(SUM(O6:O15)>10, \"If crediting as a vegetable do not also credit as a meat/meat alternate\", \"\")","v":""}]
[null,null,1,{"$f":"INDEX(GREEN,C6)","v":0},null,1,{"$f":"IF(D6=0,\"\",INDEX(Cups,F6))","v":""},null,1,{"$f":"INDEX(RED,I6)","v":0},null,1,{"$f":"IF(J6=0, \"\", INDEX(Cups,L6))","v":""},null,1,{"$f":"INDEX(BEANS,O6)","v":0},null,1,{"$f":"IF(P6=0,\"\",INDEX(Cups,R6))","v":""},null,1,{"$f":"INDEX(STARCHY,U6)","v":0},null,1,{"$f":"IF(V6=0,\"\",INDEX(Cups,X6))","v":""},null,1,{"$f":"INDEX(OTHER,AA6)","v":0},null,1,{"$f":"IF(AB6=0, \"\", INDEX(Cups,AD6))","v":""},null,"\n\nFraction Calculator: \nUse this calculator to add the number of cups.",1,{"$f":"INDEX(Cups,AH6)","v":0}]
[null,null,1,0,null,1,"",null,1,0,null,1,"",null,1,0,null,1,"",null,1,0,null,1,{"$f":"IF(V7=0,\"\",INDEX(Cups,X7))","v":""},null,1,0,null,1,"",null,null,1,{"$f":"INDEX(Cups,AH7)","v":0}]
[null,null,1,0,null,1,"",null,1,0,null,1,"",null,1,0,null,1,"",null,1,0,null,1,"",null,1,0,null,1,"",null,null,1,{"$f":"INDEX(Cups,AH8)","v":0}]
[null,null,1,0,null,1,"",null,1,0,null,1,"",null,1,0,null,1,"",null,1,0,null,1,"",null,1,0,null,1,"",null,null,1,{"$f":"INDEX(Cups,AH9)","v":0}]
[null,null,1,0,null,1,"",null,1,0,null,1,"",null,1,0,null,1,"",null,1,0,null,1,"",null,1,0,null,1,"",null,null,1,{"$f":"INDEX(Cups,AH10)","v":0}]
[null,null,1,0,null,1,"",null,1,0,null,1,"",null,1,0,null,1,"",null,1,0,null,1,"",null,1,0,null,1,"",null,null,null,null,{"$f":"SUM(AI6:AI10)","v":0}]
[null,null,1,0,null,1,"",null,1,0,null,1,"",null,1,0,null,1,"",null,1,0,null,1,"",null,1,0,null,1,"",null,"Decimal/Fraction Converter\n(Rounded down to the nearest 1/8)"]
[null,null,1,0,null,1,"",null,1,0,null,1,"",null,1,0,null,1,"",null,1,0,null,1,"",null,1,0,null,1,"",null,"Enter the decimal you wish to convert to a fraction in the box:"]
[null,null,1,0,null,1,"",null,1,0,null,1,"",null,1,0,null,1,"",null,1,0,null,1,"",null,1,0,null,1,""]
[null,null,1,0,null,1,"",null,1,0,null,1,"",null,1,0,null,1,"",null,1,0,null,1,"",null,1,0,null,1,""]
[null,"Sum of Dark Green Offerings:",null,null,{"$f":"G16","v":0},null,{"$f":"SUM(G6:G15)","v":0},"Sum of Red/Orange Offerings:",null,null,{"$f":"M16","v":0},null,{"$f":"SUM(M6:M15)","v":0},"Sum of Beans/Peas (legumes) Offerings:",null,null,{"$f":"S16","v":0},null,{"$f":"SUM(S6:S15)","v":0},"Sum of Starchy Offerings:",null,null,{"$f":"Y16","v":0},null,{"$f":"SUM(Y6:Y15)","v":0},"Sum of Other Offerings:",null,null,{"$f":"AE16","v":0},null,{"$f":"SUM(AE6:AE15)","v":0},null,"The decimal entered above has been converted to the following fraction:",null,null,{"$f":"FLOOR(AJ13, 0.125)","v":0}]
[null,{"$f":"IF(OR(COUNTIF(C6:C15,18)>0, COUNTIF(I6:I15, 13)>0, COUNTIF(O6:O15, 12)>0, COUNTIF(U6:U15, 11)>0, COUNTIF(AA6:AA15,35)>0, COUNTIF(AA6:AA15,36)>0,COUNTIF(AA6:AA15,37)>0, COUNTIF(AA6:AA15,38)>0, COUNTIF(AA6:AA15,39)>0), \"You entered an unspecified or extra other vegetable above, please enter the name of the vegetable in the appropriate subgroup below\", \"\")","v":""}]
[null,"Unspecified Dark Green Vegetables",null,null,null,null,null,"Unspecified Red/Orange Vegetables",null,null,null,null,null,"Unspecified Beans/Peas",null,null,null,null,null,"Unspecified Starchy Vegetables",null,null,null,null,null,"Unspecified Other Vegetables"]

{"sheet":"Day1","index":6,"n_rows":26,"n_cols":57,"rows_kept":26,"cut":false,"hidden":false,"merged":[[3,2,5,3],[2,2,2,25],[3,10,3,12],[1,27,1,48],[1,51,1,55],[4,6,5,6],[4,9,5,9],[3,13,3,15],[4,15,5,15],[3,6,3,9],[24,51,24,54],[4,33,5,33],[4,39,5,39],[4,12,5,12],[4,25,6,25],[0,19,0,25],[0,27,0,54],[4,27,5,27],[1,19,1,21],[0,2,0,17],[3,18,3,25],[2,27,2,39],[3,27,3,54],[1,3,1,17],[3,16,3,17],[4,13,5,13],[1,24,1,25],[4,30,5,30],[4,16,5,16],[4,10,5,10],[6,28,7,28],[4,54,5,54],[4,36,5,36],[4,14,5,14],[6,27,7,27],[4,45,5,45],[6,37,7,37],[6,38,7,38],[6,39,7,39],[4,42,5,42],[6,30,7,30],[3,4,3,5],[4,4,5,4],[4,5,5,5],[4,17,5,17],[4,11,5,11],[4,7,5,7],[4,8,5,8],[4,18,4,21],[5,18,5,21],[6,18,6,21],[8,18,8,21],[7,18,7,21],[8,33,8,36],[6,36,7,36],[6,34,7,34],[6,33,7,33],[6,35,7,35],[6,32,7,32],[6,29,7,29],[23,33,23,36],[21,33,21,36],[6,31,7,31],[21,19,22,21],[21,24,22,25],[10,19,11,25],[18,19,18,25],[19,19,20,21],[19,24,20,25],[8,27,8,30],[13,24,13,25],[14,24,14,25],[12,19,17,21],[15,24,15,25],[16,24,16,25],[17,24,17,25],[12,24,12,25],[25,51,25,54],[19,27,19,54],[24,33,24,36],[20,51,20,54],[21,51,21,54],[22,51,22,54],[23,51,23,54],[21,45,21,48],[25,45,25,48],[20,39,20,42],[4,55,5,55],[4,56,5,56],[6,47,7,47],[6,48,7,48],[6,49,7,49],[6,50,7,50],[4,48,5,48],[4,51,5,51],[8,51,8,54],[6,52,7,52],[6,53,7,53],[6,54,7,54],[6,42,7,42],[6,43,7,43],[6,44,7,44],[6,45,7,45],[6,51,7,51],[21,39,21,42],[22,39,22,42],[6,40,7,40],[6,41,7,41],[6,46,7,46],[20,45,20,48],[8,39,8,42],[23,39,23,42],[24,39,24,42],[25,39,25,42],[24,45,24,48],[22,45,22,48],[23,45,23,48],[22,33,22,36],[20,33,20,36],[25,27,25,30],[8,45,8,48],[25,33,25,36],[20,27,20,30],[21,27,21,30],[22,27,22,30],[23,27,23,30],[24,27,24,30]]}
[null,null,"Day1 Daily Lunch Requirement Check\nGrades K-8",null,null,null,null,null,null,null,null,null,null,null,null,null,null,null,null,"Scroll to the right to enter vegetable subgroup information",null,null,null,null,null,null,null,"Day1 Vegetable Subgroup Data Entry\nGrades K-8"]
[null,null,null,"The daily worksheet will perform daily requirement checks for the reimbursable meals offered each day. Requirements met are flagged \"Yes\" and the cell turns green. Requirements NOT met are flagged \"No\" and the cell turns red. \nNOTE: The top row is frozen to display the column headers as the daily meals are entered.\nGrains, whole grain rich, and meat/meat alternate oz equivalents are rounded down to the nearest quarter ounce.\nOnce you are finished selecting the meals offered each day, make sure to scroll to the right to enter milk type and vegetable subgroup information.",null,null,null,null,null,null,null,null,null,null,null,null,null,null,null,"Go to Instructions",null,null,null,null,"Go to Weekly Report",null,null,"Creditable Amount of Each Vegetable Subgroup Offered on Day1\nIn the first drop down box, select the largest amount of each vegetable subgroup offered to a student, then in the drop down boxes below, select the name and amount of each vegetable offered in the subgroup. \nIf you want to clear an entry, select the first blank in the drop down box.\nFor additional information on completing the data entry for the vegetable subgroup section, please refer to the Instructions tab. ",null,null,null,null,null,null,null,null,null,null,null,null,null,null,null,null,null,null,null,null,null,null,null,"Click here for help categorizing vegetables\n(Scroll to page 5)"]
[null,null,"Day1",null,null,null,null,null,null,null,null,null,null,null,null,null,null,null,null,null,null,null,null,null,null,null,null,"Check this box if you offered the weekly vegetable bar on Day1 with NO CHANGES:",null,null,null,null,null,null,null,null,null,null,null,null,null,null,null,false]
[null,null,"1.  Meal Name\nSelect the reimbursable lunches offered for the day\nNote: You may not delete lines, if you want to clear a meal select the first blank in the drop down list",null,"2.  Meat/Meat Alternate (M/MA)",null,"3. Grains",null,null,null,"4. Fruit",null,null,"5. Vegetables",null,null,"6. Milk",null,"Milk Type\nCheck the type of milk below if it is offered to students on Day1. \nAll types of milk included.",null,null,null,null,null,null,null,null,"If you offered any vegetables in addition to the weekly vegetable bar, select the largest amount of the vegetable offered to a student and select the name of each vegetable under the appropriate subgroup.\nNOTE:  If you offered a vegetable bar on Day1 that differs from the weekly offerings, all offerings and quantities for each vegetable subgroup must be selected in the section below.",null,null,null,null,null,null,null,null,null,null,null,null,null,null,null,null,null,null,null,null,null,null,null,null,null,null,null,"o_i","O_num"]
[null,null,null,null,"M/MA\noz equivalents","Daily M/MA Requirement Check\n1 oz equivalents","a. Grains\n oz equivalents\n","Daily Grain Requirement Check\n1 oz equivalents","b. Whole Grain Rich\n oz equivalents\n ","c. Grain Based Dessert\n oz equivalents\n ","a. Fruit\ncups","Daily Fruit Requirement Check\n1/2 cup","b. Fruit Juice \ncups","a. Vegetables\n cups","Daily Vegetable Requirement Check\n3/4 cup","b. Vegetable Juice \ncups","Milk\ncups","Daily Milk Requirement Check\n1 cup","Skim/fat-free, unflavored",null,null,null,null,false,null,{"$f":"IF(AND(X5=FALSE,X6=FALSE,X7=FALSE),\"\",IF(AND(X5=TRUE,X6=TRUE),\"Yes\",IF(AND(X5=TRUE,X7=TRUE),\"Yes\",IF(AND(X6=TRUE,X7=TRUE),\"Yes\",\"No\"))))","v":""},null,"DARK GREEN vegetables offered on Day1",null,null,"Quantity (cups)",null,null,"Red/Orange vegetables offered on Day1",null,null,"Quantity (cups)",null,null,"Beans/Peas (legumes) offered on Day1",null,null,"Quantity (cups)",null,null,"Starchy vegetables offered on Day1",null,null,"Quantity (cups)",null,null,"Other vegetables offered on Day1",null,null,"Quantity (cups)",1,{"$f":"INDEX(Cups,BD5)","v":0}]
[null,null,null,null,null,null,null,null,null,null,null,null,null,null,null,null,null,null,"Skim/fat-free, flavored",null,null,null,null,false,null,null,null,null,"G_T",null,null,"G_I","G_num",null,"R_T",null,null,"R_i","r_num",null,"B_t",null,null,"B_i","B_num",null,"S_T",null,null,"s_i","s_num",null,"O_T"]
[2,{"$f":"INDEX(meals,A7)","v":0},1,null,{"$f":"IF(B7=0,\"\",FLOOR(VLOOKUP(A7,'All Meals'!$A$12:$V$61,4),0.25))","v":""},{"$f":"IF(B7=0,\"\",IF(E7=\"\",\"No\",IF(E7>=1,\"Yes\",\"No\")))","v":""},{"$f":"IF(B7=0,\"\",FLOOR(VLOOKUP(A7,'All Meals'!$A$12:$V$61,5),0.25))","v":""},{"$f":"IF(B7=0,\"\",IF(G7=\"\",\"No\",IF(G7>=1,\"Yes\",\"No\")))","v":""},{"$f":"IF(B7=0,\"\",FLOOR(VLOOKUP(A7,'All Meals'!$A$12:$V$61,6),0.25))","v":""},{"$f":"IF(B7=0,\"\",FLOOR(VLOOKUP(A7,'All Meals'!$A$12:$V$61,7),0.25))","v":""},{"$f":"IF(B7=0, \"\",VLOOKUP(A7,'All Meals'!$A$12:$V$61,10))","v":""},{"$f":"IF(B7=0,\"\",IF(K7=\"\",\"No\",IF(K7>=0.5,\"Yes\",\"No\")))","v":""},{"$f":"IF(B7=0, \"\",VLOOKUP(A7,'All Meals'!$A$12:$V$61,13))","v":""},{"$f":"IF(B7=0, \"\",VLOOKUP(A7,'All Meals'!$A$12:$V$61,16))","v":""},{"$f":"IF(B7=0,\"\",IF(N7=\"\",\"No\",IF(N7>=0.75,\"Yes\",\"No\")))","v":""},{"$f":"IF(B7=0, \"\",VLOOKUP(A7,'All Meals'!$A$12:$V$61,19))","v":""},{"$f":"IF(B7=0, \"\",VLOOKUP(A7,'All Meals'!$A$12:$V$61,20))","v":""},{"$f":"IF(B7=0,\"\",IF(Q7=\"\",\"No\",IF(Q7>=1,\"Yes\",\"No\")))","v":""},"Low-fat (1% or less), unflavored",null,null,null,null,false,null,null,null,"Largest amount of dark green vegetables to select on Day1",null,null,null,1,{"$f":"INDEX(Cups,AF7)","v":0},"Largest amount of red/orange vegetables to select on Day1",null,null,null,1,{"$f":"INDEX(Cups,AL7)","v":0},"Largest amount of beans/peas to select on Day1",null,null,null,1,{"$f":"INDEX(Cups,AR7)","v":0},"Largest amount of starchy vegetables to select on Day1",null,null,null,1,{"$f":"INDEX(Cups,AX7)","v":0},"Largest amount of other vegetables to select on Day1"]
[1,{"$f":"INDEX(meals,A8)","v":0},2,null,{"$f":"IF(B8=0,\"\",FLOOR(VLOOKUP(A8,'All Meals'!$A$12:$V$61,4),0.25))","v":""},{"$f":"IF(B8=0,\"\",IF(E8=\"\",\"No\",IF(E8>=1,\"Yes\",\"No\")))","v":""},{"$f":"IF(B8=0,\"\",FLOOR(VLOOKUP(A8,'All Meals'!$A$12:$V$61,5),0.25))","v":""},{"$f":"IF(B8=0,\"\",IF(G8=\"\",\"No\",IF(G8>=1,\"Yes\",\"No\")))","v":""},{"$f":"IF(B8=0,\"\",FLOOR(VLOOKUP(A8,'All Meals'!$A$12:$V$61,6),0.25))","v":""},{"$f":"IF(B8=0,\"\",FLOOR(VLOOKUP(A8,'All Meals'!$A$12:$V$61,7),0.25))","v":""},{"$f":"IF(B8=0, \"\",VLOOKUP(A8,'All Meals'!$A$12:$V$61,10))","v":""},{"$f":"IF(B8=0,\"\",IF(K8=\"\",\"No\",IF(K8>=0.5,\"Yes\",\"No\")))","v":""},{"$f":"IF(B8=0, \"\",VLOOKUP(A8,'All Meals'!$A$12:$V$61,13))","v":""},{"$f":"IF(B8=0, \"\",VLOOKUP(A8,'All Meals'!$A$12:$V$61,16))","v":""},{"$f":"IF(B8=0,\"\",IF(N8=\"\",\"No\",IF(N8>=1,\"Yes\",\"No\")))","v":""},{"$f":"IF(B8=0, \"\",VLOOKUP(A8,'All Meals'!$A$12:$V$61,19))","v":""},{"$f":"IF(B8=0, \"\",VLOOKUP(A8,'All Meals'!$A$12:$V$61,20))","v":""},"","Low-fat (1% or less), flavored",null,null,null,null,false,null,{"$f":"IF(X8=TRUE,\"No\",\"\")","v":""}]
[1,{"$f":"INDEX(meals,A9)","v":0},3,null,{"$f":"IF(B9=0,\"\",FLOOR(VLOOKUP(A9,'All Meals'!$A$12:$V$61,4),0.25))","v":""},"",{"$f":"IF(B9=0,\"\",FLOOR(VLOOKUP(A9,'All Meals'!$A$12:$V$61,5),0.25))","v":""},"",{"$f":"IF(B9=0,\"\",FLOOR(VLOOKUP(A9,'All Meals'!$A$12:$V$61,6),0.25))","v":""},{"$f":"IF(B9=0,\"\",FLOOR(VLOOKUP(A9,'All Meals'!$A$12:$V$61,7),0.25))","v":""},{"$f":"IF(B9=0, \"\",VLOOKUP(A9,'All Meals'!$A$12:$V$61,10))","v":""},"",{"$f":"IF(B9=0, \"\",VLOOKUP(A9,'All Meals'!$A$12:$V$61,13))","v":""},{"$f":"IF(B9=0, \"\",VLOOKUP(A9,'All Meals'!$A$12:$V$61,16))","v":""},"",{"$f":"IF(B9=0, \"\",VLOOKUP(A9,'All Meals'!$A$12:$V$61,19))","v":""},{"$f":"IF(B9=0, \"\",VLOOKUP(A9,'All Meals'!$A$12:$V$61,20))","v":""},"","Reduced fat (2% fat) or whole, unflavored and flavored",null,null,null,null,false,null,{"$f":"IF(X9=TRUE,\"No\",\"\")","v":""},null,{"$f":"IF(OR(COUNTIF(AC10:AC19, 12)>0, COUNTIF(AC10:AC19,2)>0, COUNTIF(AC10:AC19,4)>0, COUNTIF(AC10:AC19,10)>0, COUNTIF(AC10:AC19,15)>0, COUNTIF(AC10:AC19,17)>0,), \"Remember to enter CREDITABLE amounts of leafy greens!\", \"\")","v":""},null,null,null,null,null,{"$f":"IF(COUNTIF(AI10:AI19,10)>0,\"Remember to enter the CREDITABLE amount of tomato paste!\",\"\")","v":""},null,null,null,null,null,{"$f":"IF(SUM(AO10:AO19)>10, \"If crediting as a vegetable do not also credit as a meat/meat alternate\", \"\")","v":""}]
[1,{"$f":"INDEX(meals,A10)","v":0},4,null,{"$f":"IF(B10=0,\"\",FLOOR(VLOOKUP(A10,'All Meals'!$A$12:$V$61,4),0.25))","v":""},"",{"$f":"IF(B10=0,\"\",FLOOR(VLOOKUP(A10,'All Meals'!$A$12:$V$61,5),0.25))","v":""},"",{"$f":"IF(B10=0,\"\",FLOOR(VLOOKUP(A10,'All Meals'!$A$12:$V$61,6),0.25))","v":""},{"$f":"IF(B10=0,\"\",FLOOR(VLOOKUP(A10,'All Meals'!$A$12:$V$61,7),0.25))","v":""},{"$f":"IF(B10=0, \"\",VLOOKUP(A10,'All Meals'!$A$12:$V$61,10))","v":""},"",{"$f":"IF(B10=0, \"\",VLOOKUP(A10,'All Meals'!$A$12:$V$61,13))","v":""},{"$f":"IF(B10=0, \"\",VLOOKUP(A10,'All Meals'!$A$12:$V$61,16))","v":""},"",{"$f":"IF(B10=0, \"\",VLOOKUP(A10,'All Meals'!$A$12:$V$61,19))","v":""},{"$f":"IF(B10=0, \"\",VLOOKUP(A10,'All Meals'!$A$12:$V$61,20))","v":""},"",null,null,null,null,null,null,null,null,null,null,1,{"$f":"INDEX(GREEN,AC10)","v":0},null,1,{"$f":"IF(AD10=0,\"\",INDEX(Cups,AF10))","v":""},null,1,{"$f":"INDEX(RED,AI10)","v":0},null,1,{"$f":"IF(AJ10=0, \"\", INDEX(Cups,AL10))","v":""},null,1,{"$f":"INDEX(BEANS,AO10)","v":0},null,1,{"$f":"IF(AP10=0,\"\",INDEX(Cups,AR10))","v":""},null,1,{"$f":"INDEX(STARCHY,AU10)","v":0},null,1,{"$f":"IF(AV10=0,\"\",INDEX(Cups,AX10))","v":""},null,1,{"$f":"INDEX(OTHER,BA10)","v":0},null,1,{"$f":"IF(BB10=0,\"\",INDEX(Cups,BD10))","v":""}]
[1,0,5,null,{"$f":"IF(B11=0,\"\",FLOOR(VLOOKUP(A11,'All Meals'!$A$12:$V$61,4),0.25))","v":""},"",{"$f":"IF(B11=0,\"\",FLOOR(VLOOKUP(A11,'All Meals'!$A$12:$V$61,5),0.25))","v":""},"",{"$f":"IF(B11=0,\"\",FLOOR(VLOOKUP(A11,'All Meals'!$A$12:$V$61,6),0.25))","v":""},{"$f":"IF(B11=0,\"\",FLOOR(VLOOKUP(A11,'All Meals'!$A$12:$V$61,7),0.25))","v":""},{"$f":"IF(B11=0, \"\",VLOOKUP(A11,'All Meals'!$A$12:$V$61,10))","v":""},"",{"$f":"IF(B11=0, \"\",VLOOKUP(A11,'All Meals'!$A$12:$V$61,13))","v":""},{"$f":"IF(B11=0, \"\",VLOOKUP(A11,'All Meals'!$A$12:$V$61,16))","v":""},"",{"$f":"IF(B11=0, \"\",VLOOKUP(A11,'All Meals'!$A$12:$V$61,19))","v":""},{"$f":"IF(B11=0, \"\",VLOOKUP(A11,'All Meals'!$A$12:$V$61,20))","v":""},"",null,"OPTIONAL Tools to Assist in Fraction and Decimal Calculations",null,null,null,null,null,null,null,null,1,0,null,1,"",null,1,0,null,1,"",null,1,0,null,1,"",null,1,0,null,1,{"$f":"IF(AV11=0,\"\",INDEX(Cups,AX11))","v":""},null,1,0,null,1,""]
[1,0,6,null,{"$f":"IF(B12=0,\"\",FLOOR(VLOOKUP(A12,'All Meals'!$A$12:$V$61,4),0.25))","v":""},"",{"$f":"IF(B12=0,\"\",FLOOR(VLOOKUP(A12,'All Meals'!$A$12:$V$61,5),0.25))","v":""},"",{"$f":"IF(B12=0,\"\",FLOOR(VLOOKUP(A12,'All Meals'!$A$12:$V$61,6),0.25))","v":""},{"$f":"IF(B12=0,\"\",FLOOR(VLOOKUP(A12,'All Meals'!$A$12:$V$61,7),0.25))","v":""},{"$f":"IF(B12=0, \"\",VLOOKUP(A12,'All Meals'!$A$12:$V$61,10))","v":""},"",{"$f":"IF(B12=0, \"\",VLOOKUP(A12,'All Meals'!$A$12:$V$61,13))","v":""},{"$f":"IF(B12=0, \"\",VLOOKUP(A12,'All Meals'!$A$12:$V$61,16))","v":""},"",{"$f":"IF(B12=0, \"\",VLOOKUP(A12,'All Meals'!$A$12:$V$61,19))","v":""},{"$f":"IF(B12=0, \"\",VLOOKUP(A12,'All Meals'!$A$12:$V$61,20))","v":""},"",null,null,null,null,null,null,null,null,null,null,1,0,null,1,"",null,1,0,null,1,"",null,1,0,null,1,"",null,1,0,null,1,"",null,1,0,null,1,""]
[1,0,7,null,{"$f":"IF(B13=0,\"\",FLOOR(VLOOKUP(A13,'All Meals'!$A$12:$V$61,4),0.25))","v":""},"",{"$f":"IF(B13=0,\"\",FLOOR(VLOOKUP(A13,'All Meals'!$A$12:$V$61,5),0.25))","v":""},"",{"$f":"IF(B13=0,\"\",FLOOR(VLOOKUP(A13,'All Meals'!$A$12:$V$61,6),0.25))","v":""},{"$f":"IF(B13=0,\"\",FLOOR(VLOOKUP(A13,'All Meals'!$A$12:$V$61,7),0.25))","v":""},{"$f":"IF(B13=0, \"\",VLOOKUP(A13,'All Meals'!$A$12:$V$61,10))","v":""},"",{"$f":"IF(B13=0, \"\",VLOOKUP(A13,'All Meals'!$A$12:$V$61,13))","v":""},{"$f":"IF(B13=0, \"\",VLOOKUP(A13,'All Meals'!$A$12:$V$61,16))","v":""},"",{"$f":"IF(B13=0, \"\",VLOOKUP(A13,'All Meals'!$A$12:$V$61,19))","v":""},{"$f":"IF(B13=0, \"\",VLOOKUP(A13,'All Meals'!$A$12:$V$61,20))","v":""},"",null,"Fraction Calculator: \nUse this calculator to add the number of cups.",null,null,1,{"$f":"INDEX(Cups,W13)","v":0},null,null,null,null,1,0,null,1,"",null,1,0,null,1,"",null,1,0,null,1,"",null,1,0,null,1,"",null,1,0,null,1,""]
[1,0,8,null,{"$f":"IF(B14=0,\"\",FLOOR(VLOOKUP(A14,'All Meals'!$A$12:$V$61,4),0.25))","v":""},"",{"$f":"IF(B14=0,\"\",FLOOR(VLOOKUP(A14,'All Meals'!$A$12:$V$61,5),0.25))","v":""},"",{"$f":"IF(B14=0,\"\",FLOOR(VLOOKUP(A14,'All Meals'!$A$12:$V$61,6),0.25))","v":""},{"$f":"IF(B14=0,\"\",FLOOR(VLOOKUP(A14,'All Meals'!$A$12:$V$61,7),0.25))","v":""},{"$f":"IF(B14=0, \"\",VLOOKUP(A14,'All Meals'!$A$12:$V$61,10))","v":""},"",{"$f":"IF(B14=0, \"\",VLOOKUP(A14,'All Meals'!$A$12:$V$61,13))","v":""},{"$f":"IF(B14=0, \"\",VLOOKUP(A14,'All Meals'!$A$12:$V$61,16))","v":""},"",{"$f":"IF(B14=0, \"\",VLOOKUP(A14,'All Meals'!$A$12:$V$61,19))","v":""},{"$f":"IF(B14=0, \"\",VLOOKUP(A14,'All Meals'!$A$12:$V$61,20))","v":""},"",null,null,null,null,1,{"$f":"INDEX(Cups,W14)","v":0},null,null,null,null,1,0,null,1,"",null,1,0,null,1,"",null,1,0,null,1,"",null,1,0,null,1,"",null,1,0,null,1,""]
[1,0,9,null,{"$f":"IF(B15=0,\"\",FLOOR(VLOOKUP(A15,'All Meals'!$A$12:$V$61,4),0.25))","v":""},"",{"$f":"IF(B15=0,\"\",FLOOR(VLOOKUP(A15,'All Meals'!$A$12:$V$61,5),0.25))","v":""},"",{"$f":"IF(B15=0,\"\",FLOOR(VLOOKUP(A15,'All Meals'!$A$12:$V$61,6),0.25))","v":""},{"$f":"IF(B15=0,\"\",FLOOR(VLOOKUP(A15,'All Meals'!$A$12:$V$61,7),0.25))","v":""},{"$f":"IF(B15=0, \"\",VLOOKUP(A15,'All Meals'!$A$12:$V$61,10))","v":""},"",{"$f":"IF(B15=0, \"\",VLOOKUP(A15,'All Meals'!$A$12:$V$61,13))","v":""},{"$f":"IF(B15=0, \"\",VLOOKUP(A15,'All Meals'!$A$12:$V$61,16))","v":""},"",{"$f":"IF(B15=0, \"\",VLOOKUP(A15,'All Meals'!$A$12:$V$61,19))","v":""},{"$f":"IF(B15=0, \"\",VLOOKUP(A15,'All Meals'!$A$12:$V$61,20))","v":""},"",null,null,null,null,1,{"$f":"INDEX(Cups,W15)","v":0},null,null,null,null,1,0,null,1,"",null,1,0,null,1,"",null,1,0,null,1,"",null,1,0,null,1,"",null,1,0,null,1,""]
[1,0,10,null,{"$f":"IF(B16=0,\"\",FLOOR(VLOOKUP(A16,'All Meals'!$A$12:$V$61,4),0.25))","v":""},"",{"$f":"IF(B16=0,\"\",FLOOR(VLOOKUP(A16,'All Meals'!$A$12:$V$61,5),0.25))","v":""},"",{"$f":"IF(B16=0,\"\",FLOOR(VLOOKUP(A16,'All Meals'!$A$12:$V$61,6),0.25))","v":""},{"$f":"IF(B16=0,\"\",FLOOR(VLOOKUP(A16,'All Meals'!$A$12:$V$61,7),0.25))","v":""},{"$f":"IF(B16=0, \"\",VLOOKUP(A16,'All Meals'!$A$12:$V$61,10))","v":""},"",{"$f":"IF(B16=0, \"\",VLOOKUP(A16,'All Meals'!$A$12:$V$61,13))","v":""},{"$f":"IF(B16=0, \"\",VLOOKUP(A16,'All Meals'!$A$12:$V$61,16))","v":""},"",{"$f":"IF(B16=0, \"\",VLOOKUP(A16,'All Meals'!$A$12:$V$61,19))","v":""},{"$f":"IF(B16=0, \"\",VLOOKUP(A16,'All Meals'!$A$12:$V$61,20))","v":""},"",null,null,null,null,1,{"$f":"INDEX(Cups,W16)","v":0},null,null,null,null,1,0,null,1,"",null,1,0,null,1,"",null,1,0,null,1,"",null,1,0,null,1,"",null,1,0,null,1,""]
[1,0,11,null,{"$f":"IF(B17=0,\"\",FLOOR(VLOOKUP(A17,'All Meals'!$A$12:$V$61,4),0.25))","v":""},"",{"$f":"IF(B17=0,\"\",FLOOR(VLOOKUP(A17,'All Meals'!$A$12:$V$61,5),0.25))","v":""},"",{"$f":"IF(B17=0,\"\",FLOOR(VLOOKUP(A17,'All Meals'!$A$12:$V$61,6),0.25))","v":""},{"$f":"IF(B17=0,\"\",FLOOR(VLOOKUP(A17,'All Meals'!$A$12:$V$61,7),0.25))","v":""},{"$f":"IF(B17=0, \"\",VLOOKUP(A17,'All Meals'!$A$12:$V$61,10))","v":""},"",{"$f":"IF(B17=0, \"\",VLOOKUP(A17,'All Meals'!$A$12:$V$61,13))","v":""},{"$f":"IF(B17=0, \"\",VLOOKUP(A17,'All Meals'!$A$12:$V$61,16))","v":""},"",{"$f":"IF(B17=0, \"\",VLOOKUP(A17,'All Meals'!$A$12:$V$61,19))","v":""},{"$f":"IF(B17=0, \"\",VLOOKUP(A17,'All Meals'!$A$12:$V$61,20))","v":""},"",null,null,null,null,1,{"$f":"INDEX(Cups,W17)","v":0},null,null,null,null,1,0,null,1,"",null,1,0,null,1,"",null,1,0,null,1,"",null,1,0,null,1,"",null,1,0,null,1,""]
[1,0,12,null,{"$f":"IF(B18=0,\"\",FLOOR(VLOOKUP(A18,'All Meals'!$A$12:$V$61,4),0.25))","v":""},"",{"$f":"IF(B18=0,\"\",FLOOR(VLOOKUP(A18,'All Meals'!$A$12:$V$61,5),0.25))","v":""},"",{"$f":"IF(B18=0,\"\",FLOOR(VLOOKUP(A18,'All Meals'!$A$12:$V$61,6),0.25))","v":""},{"$f":"IF(B18=0,\"\",FLOOR(VLOOKUP(A18,'All Meals'!$A$12:$V$61,7),0.25))","v":""},{"$f":"IF(B18=0, \"\",VLOOKUP(A18,'All Meals'!$A$12:$V$61,10))","v":""},"",{"$f":"IF(B18=0, \"\",VLOOKUP(A18,'All Meals'!$A$12:$V$61,13))","v":""},{"$f":"IF(B18=0, \"\",VLOOKUP(A18,'All Meals'!$A$12:$V$61,16))","v":""},{"$f":"IF(B18=0,\"\",IF(N18=\"\",\"No\",IF(N18>=0.75,\"Yes\",\"No\")))","v":""},{"$f":"IF(B18=0, \"\",VLOOKUP(A18,'All Meals'!$A$12:$V$61,19))","v":""},{"$f":"IF(B18=0, \"\",VLOOKUP(A18,'All Meals'!$A$12:$V$61,20))","v":""},"",null,null,null,null,null,null,{"$f":"SUM(X13:X17)","v":0},null,null,null,1,0,null,1,"",null,1,0,null,1,"",null,1,0,null,1,"",null,1,0,null,1,"",null,1,0,null,1,""]
[1,0,13,null,{"$f":"IF(B19=0,\"\",FLOOR(VLOOKUP(A19,'All Meals'!$A$12:$V$61,4),0.25))","v":""},"",{"$f":"IF(B19=0,\"\",FLOOR(VLOOKUP(A19,'All Meals'!$A$12:$V$61,5),0.25))","v":""},"",{"$f":"IF(B19=0,\"\",FLOOR(VLOOKUP(A19,'All Meals'!$A$12:$V$61,6),0.25))","v":""},{"$f":"IF(B19=0,\"\",FLOOR(VLOOKUP(A19,'All Meals'!$A$12:$V$61,7),0.25))","v":""},{"$f":"IF(B19=0, \"\",VLOOKUP(A19,'All Meals'!$A$12:$V$61,10))","v":""},"",{"$f":"IF(B19=0, \"\",VLOOKUP(A19,'All Meals'!$A$12:$V$61,13))","v":""},{"$f":"IF(B19=0, \"\",VLOOKUP(A19,'All Meals'!$A$12:$V$61,16))","v":""},{"$f":"IF(B19=0,\"\",IF(N19=\"\",\"No\",IF(N19>=0.75,\"Yes\",\"No\")))","v":""},{"$f":"IF(B19=0, \"\",VLOOKUP(A19,'All Meals'!$A$12:$V$61,19))","v":""},{"$f":"IF(B19=0, \"\",VLOOKUP(A19,'All Meals'!$A$12:$V$61,20))","v":""},"",null,"Decimal/Fraction Converter\n(Rounded down to the nearest 1/8)",null,null,null,null,null,null,null,null,1,0,null,1,"",null,1,0,null,1,"",null,1,0,null,1,"",null,1,0,null,1,"",null,1,0,null,1,""]
[1,0,14,null,{"$f":"IF(B20=0,\"\",FLOOR(VLOOKUP(A20,'All Meals'!$A$12:$V$61,4),0.25))","v":""},"",{"$f":"IF(B20=0,\"\",FLOOR(VLOOKUP(A20,'All Meals'!$A$12:$V$61,5),0.25))","v":""},"",{"$f":"IF(B20=0,\"\",FLOOR(VLOOKUP(A20,'All Meals'!$A$12:$V$61,6),0.25))","v":""},{"$f":"IF(B20=0,\"\",FLOOR(VLOOKUP(A20,'All Meals'!$A$12:$V$61,7),0.25))","v":""},{"$f":"IF(B20=0, \"\",VLOOKUP(A20,'All Meals'!$A$12:$V$61,10))","v":""},"",{"$f":"IF(B20=0, \"\",VLOOKUP(A20,'All Meals'!$A$12:$V$61,13))","v":""},{"$f":"IF(B20=0, \"\",VLOOKUP(A20,'All Meals'!$A$12:$V$61,16))","v":""},"",{"$f":"IF(B20=0, \"\",VLOOKUP(A20,'All Meals'!$A$12:$V$61,19))","v":""},{"$f":"IF(B20=0, \"\",VLOOKUP(A20,'All Meals'!$A$12:$V$61,20))","v":""},"",null,"Enter the decimal you wish to convert to a fraction in the box:",null,null,null,null,null,null,null,{"$f":"IF(OR(COUNTIF(AC10:AC19,18)>0, COUNTIF(AI10:AI19, 13)>0, COUNTIF(AO10:AO19, 12)>0, COUNTIF(AU10:AU19, 11)>0,COUNTIF(BA10:BA19,34)>0, COUNTIF(BA10:BA19,35)>0, COUNTIF(BA10:BA19,36)>0,COUNTIF(BA10:BA19,37)>0, COUNTIF(BA10:BA19,38)>0, COUNTIF(BA10:BA19,39)>0), \"You entered an unspecified or extra other vegetable above, please enter the name of the vegetable in the appropriate subgroup below\", \"\")","v":""}]
[1,0,15,null,{"$f":"IF(B21=0,\"\",FLOOR(VLOOKUP(A21,'All Meals'!$A$12:$V$61,4),0.25))","v":""},"",{"$f":"IF(B21=0,\"\",FLOOR(VLOOKUP(A21,'All Meals'!$A$12:$V$61,5),0.25))","v":""},"",{"$f":"IF(B21=0,\"\",FLOOR(VLOOKUP(A21,'All Meals'!$A$12:$V$61,6),0.25))","v":""},{"$f":"IF(B21=0,\"\",FLOOR(VLOOKUP(A21,'All Meals'!$A$12:$V$61,7),0.25))","v":""},{"$f":"IF(B21=0, \"\",VLOOKUP(A21,'All Meals'!$A$12:$V$61,10))","v":""},"",{"$f":"IF(B21=0, \"\",VLOOKUP(A21,'All Meals'!$A$12:$V$61,13))","v":""},{"$f":"IF(B21=0, \"\",VLOOKUP(A21,'All Meals'!$A$12:$V$61,16))","v":""},"",{"$f":"IF(B21=0, \"\",VLOOKUP(A21,'All Meals'!$A$12:$V$61,19))","v":""},{"$f":"IF(B21=0, \"\",VLOOKUP(A21,'All Meals'!$A$12:$V$61,20))","v":""},"",null,null,null,null,null,null,null,null,null,"Unspecified Dark Green Vegetables",null,null,null,null,null,"Unspecified Red/Orange Vegetables",null,null,null,null,null,"Unspecified Beans/Peas",null,null,null,null,null,"Unspecified Starchy Vegetables",null,null,null,null,null,"Unspecified Other Vegetables"]
[1,0,16,null,{"$f":"IF(B22=0,\"\",FLOOR(VLOOKUP(A22,'All Meals'!$A$12:$V$61,4),0.25))","v":""},"",{"$f":"IF(B22=0,\"\",FLOOR(VLOOKUP(A22,'All Meals'!$A$12:$V$61,5),0.25))","v":""},"",{"$f":"IF(B22=0,\"\",FLOOR(VLOOKUP(A22,'All Meals'!$A$12:$V$61,6),0.25))","v":""},{"$f":"IF(B22=0,\"\",FLOOR(VLOOKUP(A22,'All Meals'!$A$12:$V$61,7),0.25))","v":""},{"$f":"IF(B22=0, \"\",VLOOKUP(A22,'All Meals'!$A$12:$V$61,10))","v":""},"",{"$f":"IF(B22=0, \"\",VLOOKUP(A22,'All Meals'!$A$12:$V$61,13))","v":""},{"$f":"IF(B22=0, \"\",VLOOKUP(A22,'All Meals'!$A$12:$V$61,16))","v":""},"",{"$f":"IF(B22=0, \"\",VLOOKUP(A22,'All Meals'!$A$12:$V$61,19))","v":""},{"$f":"IF(B22=0, \"\",VLOOKUP(A22,'All Meals'!$A$12:$V$61,20))","v":""},"",null,"The decimal entered above has been converted to the following fraction:",null,null,null,null,{"$f":"FLOOR(Y20,0.125)","v":0}]
[1,0,17,null,{"$f":"IF(B23=0,\"\",FLOOR(VLOOKUP(A23,'All Meals'!$A$12:$V$61,4),0.25))","v":""},"",{"$f":"IF(B23=0,\"\",FLOOR(VLOOKUP(A23,'All Meals'!$A$12:$V$61,5),0.25))","v":""},"",{"$f":"IF(B23=0,\"\",FLOOR(VLOOKUP(A23,'All Meals'!$A$12:$V$61,6),0.25))","v":""},{"$f":"IF(B23=0,\"\",FLOOR(VLOOKUP(A23,'All Meals'!$A$12:$V$61,7),0.25))","v":""},{"$f":"IF(B23=0, \"\",VLOOKUP(A23,'All Meals'!$A$12:$V$61,10))","v":""},"",{"$f":"IF(B23=0, \"\",VLOOKUP(A23,'All Meals'!$A$12:$V$61,13))","v":""},{"$f":"IF(B23=0, \"\",VLOOKUP(A23,'All Meals'!$A$12:$V$61,16))","v":""},"",{"$f":"IF(B23=0, \"\",VLOOKUP(A23,'All Meals'!$A$12:$V$61,19))","v":""},{"$f":"IF(B23=0, \"\",VLOOKUP(A23,'All Meals'!$A$12:$V$61,20))","v":""},""]
[1,0,18,null,{"$f":"IF(B24=0,\"\",FLOOR(VLOOKUP(A24,'All Meals'!$A$12:$V$61,4),0.25))","v":""},"",{"$f":"IF(B24=0,\"\",FLOOR(VLOOKUP(A24,'All Meals'!$A$12:$V$61,5),0.25))","v":""},"",{"$f":"IF(B24=0,\"\",FLOOR(VLOOKUP(A24,'All Meals'!$A$12:$V$61,6),0.25))","v":""},{"$f":"IF(B24=0,\"\",FLOOR(VLOOKUP(A24,'All Meals'!$A$12:$V$61,7),0.25))","v":""},{"$f":"IF(B24=0, \"\",VLOOKUP(A24,'All Meals'!$A$12:$V$61,10))","v":""},"",{"$f":"IF(B24=0, \"\",VLOOKUP(A24,'All Meals'!$A$12:$V$61,13))","v":""},{"$f":"IF(B24=0, \"\",VLOOKUP(A24,'All Meals'!$A$12:$V$61,16))","v":""},"",{"$f":"IF(B24=0, \"\",VLOOKUP(A24,'All Meals'!$A$12:$V$61,19))","v":""},{"$f":"IF(B24=0, \"\",VLOOKUP(A24,'All Meals'!$A$12:$V$61,20))","v":""},""]
[1,0,19,null,{"$f":"IF(B25=0,\"\",FLOOR(VLOOKUP(A25,'All Meals'!$A$12:$V$61,4),0.25))","v":""},"",{"$f":"IF(B25=0,\"\",FLOOR(VLOOKUP(A25,'All Meals'!$A$12:$V$61,5),0.25))","v":""},"",{"$f":"IF(B25=0,\"\",FLOOR(VLOOKUP(A25,'All Meals'!$A$12:$V$61,6),0.25))","v":""},{"$f":"IF(B25=0,\"\",FLOOR(VLOOKUP(A25,'All Meals'!$A$12:$V$61,7),0.25))","v":""},{"$f":"IF(B25=0, \"\",VLOOKUP(A25,'All Meals'!$A$12:$V$61,10))","v":""},"",{"$f":"IF(B25=0, \"\",VLOOKUP(A25,'All Meals'!$A$12:$V$61,13))","v":""},{"$f":"IF(B25=0, \"\",VLOOKUP(A25,'All Meals'!$A$12:$V$61,16))","v":""},"",{"$f":"IF(B25=0, \"\",VLOOKUP(A25,'All Meals'!$A$12:$V$61,19))","v":""},{"$f":"IF(B25=0, \"\",VLOOKUP(A25,'All Meals'!$A$12:$V$61,20))","v":""},""]
[1,0,20,null,{"$f":"IF(B26=0,\"\",FLOOR(VLOOKUP(A26,'All Meals'!$A$12:$V$61,4),0.25))","v":""},"",{"$f":"IF(B26=0,\"\",FLOOR(VLOOKUP(A26,'All Meals'!$A$12:$V$61,5),0.25))","v":""},"",{"$f":"IF(B26=0,\"\",FLOOR(VLOOKUP(A26,'All Meals'!$A$12:$V$61,6),0.25))","v":""},{"$f":"IF(B26=0,\"\",FLOOR(VLOOKUP(A26,'All Meals'!$A$12:$V$61,7),0.25))","v":""},{"$f":"IF(B26=0, \"\",VLOOKUP(A26,'All Meals'!$A$12:$V$61,10))","v":""},"",{"$f":"IF(B26=0, \"\",VLOOKUP(A26,'All Meals'!$A$12:$V$61,13))","v":""},{"$f":"IF(B26=0, \"\",VLOOKUP(A26,'All Meals'!$A$12:$V$61,16))","v":""},"",{"$f":"IF(B26=0, \"\",VLOOKUP(A26,'All Meals'!$A$12:$V$61,19))","v":""},{"$f":"IF(B26=0, \"\",VLOOKUP(A26,'All Meals'!$A$12:$V$61,20))","v":""},""]

{"sheet":"Day2","index":7,"n_rows":26,"n_cols":57,"rows_kept":26,"cut":false,"hidden":false,"merged":[[3,2,5,3],[2,2,2,25],[3,13,3,15],[4,15,5,15],[3,4,3,5],[4,4,5,4],[4,5,5,5],[3,6,3,9],[4,6,5,6],[4,7,5,7],[4,8,5,8],[4,9,5,9],[25,27,25,30],[25,33,25,36],[25,39,25,42],[25,45,25,48],[21,19,22,21],[21,24,22,25],[21,45,21,48],[18,19,18,25],[25,51,25,54],[23,27,23,30],[23,33,23,36],[23,39,23,42],[23,45,23,48],[23,51,23,54],[24,27,24,30],[24,33,24,36],[24,39,24,42],[24,45,24,48],[24,51,24,54],[21,51,21,54],[22,27,22,30],[22,33,22,36],[22,39,22,42],[22,45,22,48],[22,51,22,54],[21,27,21,30],[21,33,21,36],[21,39,21,42],[19,19,20,21],[19,24,20,25],[19,27,19,54],[20,27,20,30],[20,33,20,36],[20,39,20,42],[20,45,20,48],[20,51,20,54],[8,51,8,54],[10,19,11,25],[12,19,17,21],[12,24,12,25],[13,24,13,25],[14,24,14,25],[15,24,15,25],[16,24,16,25],[17,24,17,25],[7,18,7,21],[8,18,8,21],[8,27,8,30],[8,33,8,36],[8,39,8,42],[8,45,8,48],[6,43,7,43],[6,44,7,44],[6,45,7,45],[6,46,7,46],[6,49,7,49],[6,50,7,50],[6,51,7,51],[6,52,7,52],[6,53,7,53],[6,54,7,54],[6,47,7,47],[6,48,7,48],[6,37,7,37],[6,38,7,38],[6,39,7,39],[6,40,7,40],[6,41,7,41],[6,42,7,42],[4,55,5,55],[4,56,5,56],[5,18,5,21],[6,18,6,21],[6,27,7,27],[6,28,7,28],[6,29,7,29],[6,30,7,30],[6,31,7,31],[6,34,7,34],[4,39,5,39],[4,42,5,42],[4,45,5,45],[4,48,5,48],[4,51,5,51],[4,54,5,54],[4,33,5,33],[6,32,7,32],[6,33,7,33],[4,36,5,36],[6,35,7,35],[6,36,7,36],[4,14,5,14],[4,17,5,17],[4,18,4,21],[4,25,6,25],[4,27,5,27],[4,30,5,30],[2,27,2,39],[3,10,3,12],[3,16,3,17],[3,18,3,25],[3,27,3,54],[4,16,5,16],[4,10,5,10],[4,11,5,11],[4,12,5,12],[4,13,5,13],[0,19,0,25],[0,27,0,54],[1,3,1,17],[1,19,1,21],[1,24,1,25],[1,27,1,48],[1,51,1,55],[0,2,0,17]]}
[null,null,"Day2 Daily Lunch Requirement Check\nGrades K-8",null,null,null,null,null,null,null,null,null,null,null,null,null,null,null,null,"Scroll to the right to enter vegetable subgroup information",null,null,null,null,null,null,null,"Day2 Vegetable Subgroup Data Entry\nGrades K-8"]
[null,null,null,"The daily worksheet will perform daily requirement checks for the reimbursable meals offered each day. Requirements met are flagged \"Yes\" and the cell turns green. Requirements NOT met are flagged \"No\" and the cell turns red. \nNOTE: The top row is frozen to display the column headers as the daily meals are entered.\nGrains, whole grain rich, and meat/meat alternate oz equivalents are rounded down to the nearest quarter ounce.\nOnce you are finished selecting the meals offered each day, make sure to scroll to the right to enter milk type and vegetable subgroup information.",null,null,null,null,null,null,null,null,null,null,null,null,null,null,null,"Go to Instructions",null,null,null,null,"Go to Weekly Report",null,null,"Creditable Amount of Each Vegetable Subgroup Offered on Day2\nIn the first drop down box, select the largest amount of each vegetable subgroup offered to a student, then in the drop down boxes below, select the name and amount of each vegetable offered in the subgroup. \nIf you want to clear an entry, select the first blank in the drop down box.\nFor additional information on completing the data entry for the vegetable subgroup section, please refer to the Instructions tab. ",null,null,null,null,null,null,null,null,null,null,null,null,null,null,null,null,null,null,null,null,null,null,null,"Click here for help categorizing vegetables\n(Scroll to page 5)"]
[null,null,"Day2",null,null,null,null,null,null,null,null,null,null,null,null,null,null,null,null,null,null,null,null,null,null,null,null,"Check this box if you offered the weekly vegetable bar on Day2 with NO CHANGES:",null,null,null,null,null,null,null,null,null,null,null,null,null,null,null,false]
[null,null,"1.  Meal Name\nSelect the reimbursable lunches offered for the day\nNote: You may not delete lines, if you want to clear a meal select the first blank in the drop down list",null,"2.  Meat/Meat Alternate (M/MA)",null,"3. Grains",null,null,null,"4. Fruit",null,null,"5. Vegetables",null,null,"6. Milk",null,"Milk Type\nCheck the type of milk below if it is offered to students on Day2. \nAll types of milk included.",null,null,null,null,null,null,null,null,"If you offered any vegetables in addition to the weekly vegetable bar, select the largest amount of the vegetable offered to a student and select the name of each vegetable under the appropriate subgroup.\nNOTE:  If you offered a vegetable bar on Day2 that differs from the weekly offerings, all offerings and quantities for each vegetable subgroup must be selected in the section below.",null,null,null,null,null,null,null,null,null,null,null,null,null,null,null,null,null,null,null,null,null,null,null,null,null,null,null,"o_i","O_num"]
[null,null,null,null,"M/MA\noz equivalents","Daily M/MA Requirement Check\n1 oz equivalents","a. Grains\n oz equivalents\n ","Daily Grain Requirement Check\n1 oz equivalents","b. Whole Grain Rich\n oz equivalents\n ","c. Grain Based Dessert\n oz equivalents\n ","a. Fruit\ncups","Daily Fruit Requirement Check\n1/2 cup","b. Fruit Juice \ncups","a. Vegetables\n cups","Daily Vegetable Requirement Check\n3/4 cup","b. Vegetable Juice \ncups","Milk\ncups","Daily Milk Requirement Check\n1 cup","Skim/fat-free, unflavored",null,null,null,null,false,null,{"$f":"IF(AND(X5=FALSE,X6=FALSE,X7=FALSE),\"\",IF(AND(X5=TRUE,X6=TRUE),\"Yes\",IF(AND(X5=TRUE,X7=TRUE),\"Yes\",IF(AND(X6=TRUE,X7=TRUE),\"Yes\",\"No\"))))","v":""},null,"DARK GREEN vegetables offered on Day2",null,null,"Quantity (cups)",null,null,"Red/Orange vegetables offered on Day2",null,null,"Quantity (cups)",null,null,"Beans/Peas (legumes) offered on Day2",null,null,"Quantity (cups)",null,null,"Starchy vegetables offered on Day2",null,null,"Quantity (cups)",null,null,"Other vegetables offered on Day2",null,null,"Quantity (cups)",1,{"$f":"INDEX(Cups,BD5)","v":0}]
[null,null,null,null,null,null,null,null,null,null,null,null,null,null,null,null,null,null,"Skim/fat-free, flavored",null,null,null,null,false,null,null,null,null,"G_T",null,null,"G_I","G_num",null,"R_T",null,null,"R_i","r_num",null,"B_t",null,null,"B_i","B_num",null,"S_T",null,null,"s_i","s_num",null,"O_T"]
[2,{"$f":"INDEX(meals,A7)","v":0},1,null,{"$f":"IF(B7=0,\"\",FLOOR(VLOOKUP(A7,'All Meals'!$A$12:$V$61,4),0.25))","v":""},{"$f":"IF(B7=0,\"\",IF(E7=\"\",\"No\",IF(E7>=1,\"Yes\",\"No\")))","v":""},{"$f":"IF(B7=0,\"\",FLOOR(VLOOKUP(A7,'All Meals'!$A$12:$V$61,5),0.25))","v":""},{"$f":"IF(B7=0,\"\",IF(G7=\"\",\"No\",IF(G7>=1,\"Yes\",\"No\")))","v":""},{"$f":"IF(B7=0,\"\",FLOOR(VLOOKUP(A7,'All Meals'!$A$12:$V$61,6),0.25))","v":""},{"$f":"IF(B7=0,\"\",FLOOR(VLOOKUP(A7,'All Meals'!$A$12:$V$61,7),0.25))","v":""},{"$f":"IF(B7=0, \"\",VLOOKUP(A7,'All Meals'!$A$12:$V$61,10))","v":""},{"$f":"IF(B7=0,\"\",IF(K7=\"\",\"No\",IF(K7>=0.5,\"Yes\",\"No\")))","v":""},{"$f":"IF(B7=0, \"\",VLOOKUP(A7,'All Meals'!$A$12:$V$61,13))","v":""},{"$f":"IF(B7=0, \"\",VLOOKUP(A7,'All Meals'!$A$12:$V$61,16))","v":""},{"$f":"IF(B7=0,\"\",IF(N7=\"\",\"No\",IF(N7>=0.75,\"Yes\",\"No\")))","v":""},{"$f":"IF(B7=0, \"\",VLOOKUP(A7,'All Meals'!$A$12:$V$61,19))","v":""},{"$f":"IF(B7=0, \"\",VLOOKUP(A7,'All Meals'!$A$12:$V$61,20))","v":""},{"$f":"IF(B7=0,\"\",IF(Q7=\"\",\"No\",IF(Q7>=1,\"Yes\",\"No\")))","v":""},"Low-fat (1% or less), unflavored",null,null,null,null,false,null,null,null,"Largest amount of dark green vegetables to select on Day2",null,null,null,1,{"$f":"INDEX(Cups,AF7)","v":0},"Largest amount of red/orange vegetables to select on Day2",null,null,null,1,{"$f":"INDEX(Cups,AL7)","v":0},"Largest amount of beans/peas to select on Day2",null,null,null,1,{"$f":"INDEX(Cups,AR7)","v":0},"Largest amount of starchy vegetables to select on Day2",null,null,null,1,{"$f":"INDEX(Cups,AX7)","v":0},"Largest amount of other vegetables to select on Day2"]
[1,{"$f":"INDEX(meals,A8)","v":0},2,null,{"$f":"IF(B8=0,\"\",FLOOR(VLOOKUP(A8,'All Meals'!$A$12:$V$61,4),0.25))","v":""},{"$f":"IF(B8=0,\"\",IF(E8=\"\",\"No\",IF(E8>=1,\"Yes\",\"No\")))","v":""},{"$f":"IF(B8=0,\"\",FLOOR(VLOOKUP(A8,'All Meals'!$A$12:$V$61,5),0.25))","v":""},{"$f":"IF(B8=0,\"\",IF(G8=\"\",\"No\",IF(G8>=1,\"Yes\",\"No\")))","v":""},{"$f":"IF(B8=0,\"\",FLOOR(VLOOKUP(A8,'All Meals'!$A$12:$V$61,6),0.25))","v":""},{"$f":"IF(B8=0,\"\",FLOOR(VLOOKUP(A8,'All Meals'!$A$12:$V$61,7),0.25))","v":""},{"$f":"IF(B8=0, \"\",VLOOKUP(A8,'All Meals'!$A$12:$V$61,10))","v":""},{"$f":"IF(B8=0,\"\",IF(K8=\"\",\"No\",IF(K8>=0.5,\"Yes\",\"No\")))","v":""},{"$f":"IF(B8=0, \"\",VLOOKUP(A8,'All Meals'!$A$12:$V$61,13))","v":""},{"$f":"IF(B8=0, \"\",VLOOKUP(A8,'All Meals'!$A$12:$V$61,16))","v":""},{"$f":"IF(B8=0,\"\",IF(N8=\"\",\"No\",IF(N8>=1,\"Yes\",\"No\")))","v":""},{"$f":"IF(B8=0, \"\",VLOOKUP(A8,'All Meals'!$A$12:$V$61,19))","v":""},{"$f":"IF(B8=0, \"\",VLOOKUP(A8,'All Meals'!$A$12:$V$61,20))","v":""},"","Low-fat (1% or less), flavored",null,null,null,null,false,null,{"$f":"IF(X8=TRUE,\"No\",\"\")","v":""}]
[1,{"$f":"INDEX(meals,A9)","v":0},3,null,{"$f":"IF(B9=0,\"\",FLOOR(VLOOKUP(A9,'All Meals'!$A$12:$V$61,4),0.25))","v":""},"",{"$f":"IF(B9=0,\"\",FLOOR(VLOOKUP(A9,'All Meals'!$A$12:$V$61,5),0.25))","v":""},"",{"$f":"IF(B9=0,\"\",FLOOR(VLOOKUP(A9,'All Meals'!$A$12:$V$61,6),0.25))","v":""},{"$f":"IF(B9=0,\"\",FLOOR(VLOOKUP(A9,'All Meals'!$A$12:$V$61,7),0.25))","v":""},{"$f":"IF(B9=0, \"\",VLOOKUP(A9,'All Meals'!$A$12:$V$61,10))","v":""},"",{"$f":"IF(B9=0, \"\",VLOOKUP(A9,'All Meals'!$A$12:$V$61,13))","v":""},{"$f":"IF(B9=0, \"\",VLOOKUP(A9,'All Meals'!$A$12:$V$61,16))","v":""},"",{"$f":"IF(B9=0, \"\",VLOOKUP(A9,'All Meals'!$A$12:$V$61,19))","v":""},{"$f":"IF(B9=0, \"\",VLOOKUP(A9,'All Meals'!$A$12:$V$61,20))","v":""},"","Reduced fat (2% fat) or whole, unflavored and flavored",null,null,null,null,false,null,{"$f":"IF(X9=TRUE,\"No\",\"\")","v":""},null,{"$f":"IF(OR(COUNTIF(AC10:AC19, 12)>0, COUNTIF(AC10:AC19,2)>0, COUNTIF(AC10:AC19,4)>0, COUNTIF(AC10:AC19,10)>0, COUNTIF(AC10:AC19,15)>0, COUNTIF(AC10:AC19,17)>0,), \"Remember to enter CREDITABLE amounts of leafy greens!\", \"\")","v":""},null,null,null,null,null,{"$f":"IF(COUNTIF(AI10:AI19,10)>0,\"Remember to enter the CREDITABLE amount of tomato paste!\",\"\")","v":""},null,null,null,null,null,{"$f":"IF(SUM(AO10:AO19)>10, \"If crediting as a vegetable do not also credit as a meat/meat alternate\", \"\")","v":""}]
[1,{"$f":"INDEX(meals,A10)","v":0},4,null,{"$f":"IF(B10=0,\"\",FLOOR(VLOOKUP(A10,'All Meals'!$A$12:$V$61,4),0.25))","v":""},"",{"$f":"IF(B10=0,\"\",FLOOR(VLOOKUP(A10,'All Meals'!$A$12:$V$61,5),0.25))","v":""},"",{"$f":"IF(B10=0,\"\",FLOOR(VLOOKUP(A10,'All Meals'!$A$12:$V$61,6),0.25))","v":""},{"$f":"IF(B10=0,\"\",FLOOR(VLOOKUP(A10,'All Meals'!$A$12:$V$61,7),0.25))","v":""},{"$f":"IF(B10=0, \"\",VLOOKUP(A10,'All Meals'!$A$12:$V$61,10))","v":""},"",{"$f":"IF(B10=0, \"\",VLOOKUP(A10,'All Meals'!$A$12:$V$61,13))","v":""},{"$f":"IF(B10=0, \"\",VLOOKUP(A10,'All Meals'!$A$12:$V$61,16))","v":""},"",{"$f":"IF(B10=0, \"\",VLOOKUP(A10,'All Meals'!$A$12:$V$61,19))","v":""},{"$f":"IF(B10=0, \"\",VLOOKUP(A10,'All Meals'!$A$12:$V$61,20))","v":""},"",null,null,null,null,null,null,null,null,null,null,1,{"$f":"INDEX(GREEN,AC10)","v":0},null,1,{"$f":"IF(AD10=0,\"\",INDEX(Cups,AF10))","v":""},null,1,{"$f":"INDEX(RED,AI10)","v":0},null,1,{"$f":"IF(AJ10=0, \"\", INDEX(Cups,AL10))","v":""},null,1,{"$f":"INDEX(BEANS,AO10)","v":0},null,1,{"$f":"IF(AP10=0,\"\",INDEX(Cups,AR10))","v":""},null,1,{"$f":"INDEX(STARCHY,AU10)","v":0},null,1,{"$f":"IF(AV10=0,\"\",INDEX(Cups,AX10))","v":""},null,1,{"$f":"INDEX(OTHER,BA10)","v":0},null,1,{"$f":"IF(BB10=0,\"\",INDEX(Cups,BD10))","v":""}]
[1,0,5,null,{"$f":"IF(B11=0,\"\",FLOOR(VLOOKUP(A11,'All Meals'!$A$12:$V$61,4),0.25))","v":""},"",{"$f":"IF(B11=0,\"\",FLOOR(VLOOKUP(A11,'All Meals'!$A$12:$V$61,5),0.25))","v":""},"",{"$f":"IF(B11=0,\"\",FLOOR(VLOOKUP(A11,'All Meals'!$A$12:$V$61,6),0.25))","v":""},{"$f":"IF(B11=0,\"\",FLOOR(VLOOKUP(A11,'All Meals'!$A$12:$V$61,7),0.25))","v":""},{"$f":"IF(B11=0, \"\",VLOOKUP(A11,'All Meals'!$A$12:$V$61,10))","v":""},"",{"$f":"IF(B11=0, \"\",VLOOKUP(A11,'All Meals'!$A$12:$V$61,13))","v":""},{"$f":"IF(B11=0, \"\",VLOOKUP(A11,'All Meals'!$A$12:$V$61,16))","v":""},"",{"$f":"IF(B11=0, \"\",VLOOKUP(A11,'All Meals'!$A$12:$V$61,19))","v":""},{"$f":"IF(B11=0, \"\",VLOOKUP(A11,'All Meals'!$A$12:$V$61,20))","v":""},"",null,"OPTIONAL Tools to Assist in Fraction and Decimal Calculations",null,null,null,null,null,null,null,null,1,0,null,1,"",null,1,0,null,1,"",null,1,0,null,1,"",null,1,0,null,1,{"$f":"IF(AV11=0,\"\",INDEX(Cups,AX11))","v":""},null,1,0,null,1,""]
[1,0,6,null,{"$f":"IF(B12=0,\"\",FLOOR(VLOOKUP(A12,'All Meals'!$A$12:$V$61,4),0.25))","v":""},"",{"$f":"IF(B12=0,\"\",FLOOR(VLOOKUP(A12,'All Meals'!$A$12:$V$61,5),0.25))","v":""},"",{"$f":"IF(B12=0,\"\",FLOOR(VLOOKUP(A12,'All Meals'!$A$12:$V$61,6),0.25))","v":""},{"$f":"IF(B12=0,\"\",FLOOR(VLOOKUP(A12,'All Meals'!$A$12:$V$61,7),0.25))","v":""},{"$f":"IF(B12=0, \"\",VLOOKUP(A12,'All Meals'!$A$12:$V$61,10))","v":""},"",{"$f":"IF(B12=0, \"\",VLOOKUP(A12,'All Meals'!$A$12:$V$61,13))","v":""},{"$f":"IF(B12=0, \"\",VLOOKUP(A12,'All Meals'!$A$12:$V$61,16))","v":""},"",{"$f":"IF(B12=0, \"\",VLOOKUP(A12,'All Meals'!$A$12:$V$61,19))","v":""},{"$f":"IF(B12=0, \"\",VLOOKUP(A12,'All Meals'!$A$12:$V$61,20))","v":""},"",null,null,null,null,null,null,null,null,null,null,1,0,null,1,"",null,1,0,null,1,"",null,1,0,null,1,"",null,1,0,null,1,"",null,1,0,null,1,""]
[1,0,7,null,{"$f":"IF(B13=0,\"\",FLOOR(VLOOKUP(A13,'All Meals'!$A$12:$V$61,4),0.25))","v":""},"",{"$f":"IF(B13=0,\"\",FLOOR(VLOOKUP(A13,'All Meals'!$A$12:$V$61,5),0.25))","v":""},"",{"$f":"IF(B13=0,\"\",FLOOR(VLOOKUP(A13,'All Meals'!$A$12:$V$61,6),0.25))","v":""},{"$f":"IF(B13=0,\"\",FLOOR(VLOOKUP(A13,'All Meals'!$A$12:$V$61,7),0.25))","v":""},{"$f":"IF(B13=0, \"\",VLOOKUP(A13,'All Meals'!$A$12:$V$61,10))","v":""},"",{"$f":"IF(B13=0, \"\",VLOOKUP(A13,'All Meals'!$A$12:$V$61,13))","v":""},{"$f":"IF(B13=0, \"\",VLOOKUP(A13,'All Meals'!$A$12:$V$61,16))","v":""},"",{"$f":"IF(B13=0, \"\",VLOOKUP(A13,'All Meals'!$A$12:$V$61,19))","v":""},{"$f":"IF(B13=0, \"\",VLOOKUP(A13,'All Meals'!$A$12:$V$61,20))","v":""},"",null,"Fraction Calculator: \nUse this calculator to add the number of cups.",null,null,1,{"$f":"INDEX(Cups,W13)","v":0},null,null,null,null,1,0,null,1,"",null,1,0,null,1,"",null,1,0,null,1,"",null,1,0,null,1,"",null,1,0,null,1,""]
[1,0,8,null,{"$f":"IF(B14=0,\"\",FLOOR(VLOOKUP(A14,'All Meals'!$A$12:$V$61,4),0.25))","v":""},"",{"$f":"IF(B14=0,\"\",FLOOR(VLOOKUP(A14,'All Meals'!$A$12:$V$61,5),0.25))","v":""},"",{"$f":"IF(B14=0,\"\",FLOOR(VLOOKUP(A14,'All Meals'!$A$12:$V$61,6),0.25))","v":""},{"$f":"IF(B14=0,\"\",FLOOR(VLOOKUP(A14,'All Meals'!$A$12:$V$61,7),0.25))","v":""},{"$f":"IF(B14=0, \"\",VLOOKUP(A14,'All Meals'!$A$12:$V$61,10))","v":""},"",{"$f":"IF(B14=0, \"\",VLOOKUP(A14,'All Meals'!$A$12:$V$61,13))","v":""},{"$f":"IF(B14=0, \"\",VLOOKUP(A14,'All Meals'!$A$12:$V$61,16))","v":""},"",{"$f":"IF(B14=0, \"\",VLOOKUP(A14,'All Meals'!$A$12:$V$61,19))","v":""},{"$f":"IF(B14=0, \"\",VLOOKUP(A14,'All Meals'!$A$12:$V$61,20))","v":""},"",null,null,null,null,1,{"$f":"INDEX(Cups,W14)","v":0},null,null,null,null,1,0,null,1,"",null,1,0,null,1,"",null,1,0,null,1,"",null,1,0,null,1,"",null,1,0,null,1,""]
[1,0,9,null,{"$f":"IF(B15=0,\"\",FLOOR(VLOOKUP(A15,'All Meals'!$A$12:$V$61,4),0.25))","v":""},"",{"$f":"IF(B15=0,\"\",FLOOR(VLOOKUP(A15,'All Meals'!$A$12:$V$61,5),0.25))","v":""},"",{"$f":"IF(B15=0,\"\",FLOOR(VLOOKUP(A15,'All Meals'!$A$12:$V$61,6),0.25))","v":""},{"$f":"IF(B15=0,\"\",FLOOR(VLOOKUP(A15,'All Meals'!$A$12:$V$61,7),0.25))","v":""},{"$f":"IF(B15=0, \"\",VLOOKUP(A15,'All Meals'!$A$12:$V$61,10))","v":""},"",{"$f":"IF(B15=0, \"\",VLOOKUP(A15,'All Meals'!$A$12:$V$61,13))","v":""},{"$f":"IF(B15=0, \"\",VLOOKUP(A15,'All Meals'!$A$12:$V$61,16))","v":""},"",{"$f":"IF(B15=0, \"\",VLOOKUP(A15,'All Meals'!$A$12:$V$61,19))","v":""},{"$f":"IF(B15=0, \"\",VLOOKUP(A15,'All Meals'!$A$12:$V$61,20))","v":""},"",null,null,null,null,1,{"$f":"INDEX(Cups,W15)","v":0},null,null,null,null,1,0,null,1,"",null,1,0,null,1,"",null,1,0,null,1,"",null,1,0,null,1,"",null,1,0,null,1,""]
[1,0,10,null,{"$f":"IF(B16=0,\"\",FLOOR(VLOOKUP(A16,'All Meals'!$A$12:$V$61,4),0.25))","v":""},"",{"$f":"IF(B16=0,\"\",FLOOR(VLOOKUP(A16,'All Meals'!$A$12:$V$61,5),0.25))","v":""},"",{"$f":"IF(B16=0,\"\",FLOOR(VLOOKUP(A16,'All Meals'!$A$12:$V$61,6),0.25))","v":""},{"$f":"IF(B16=0,\"\",FLOOR(VLOOKUP(A16,'All Meals'!$A$12:$V$61,7),0.25))","v":""},{"$f":"IF(B16=0, \"\",VLOOKUP(A16,'All Meals'!$A$12:$V$61,10))","v":""},"",{"$f":"IF(B16=0, \"\",VLOOKUP(A16,'All Meals'!$A$12:$V$61,13))","v":""},{"$f":"IF(B16=0, \"\",VLOOKUP(A16,'All Meals'!$A$12:$V$61,16))","v":""},"",{"$f":"IF(B16=0, \"\",VLOOKUP(A16,'All Meals'!$A$12:$V$61,19))","v":""},{"$f":"IF(B16=0, \"\",VLOOKUP(A16,'All Meals'!$A$12:$V$61,20))","v":""},"",null,null,null,null,1,{"$f":"INDEX(Cups,W16)","v":0},null,null,null,null,1,0,null,1,"",null,1,0,null,1,"",null,1,0,null,1,"",null,1,0,null,1,"",null,1,0,null,1,""]
[1,0,11,null,{"$f":"IF(B17=0,\"\",FLOOR(VLOOKUP(A17,'All Meals'!$A$12:$V$61,4),0.25))","v":""},"",{"$f":"IF(B17=0,\"\",FLOOR(VLOOKUP(A17,'All Meals'!$A$12:$V$61,5),0.25))","v":""},"",{"$f":"IF(B17=0,\"\",FLOOR(VLOOKUP(A17,'All Meals'!$A$12:$V$61,6),0.25))","v":""},{"$f":"IF(B17=0,\"\",FLOOR(VLOOKUP(A17,'All Meals'!$A$12:$V$61,7),0.25))","v":""},{"$f":"IF(B17=0, \"\",VLOOKUP(A17,'All Meals'!$A$12:$V$61,10))","v":""},"",{"$f":"IF(B17=0, \"\",VLOOKUP(A17,'All Meals'!$A$12:$V$61,13))","v":""},{"$f":"IF(B17=0, \"\",VLOOKUP(A17,'All Meals'!$A$12:$V$61,16))","v":""},"",{"$f":"IF(B17=0, \"\",VLOOKUP(A17,'All Meals'!$A$12:$V$61,19))","v":""},{"$f":"IF(B17=0, \"\",VLOOKUP(A17,'All Meals'!$A$12:$V$61,20))","v":""},"",null,null,null,null,1,{"$f":"INDEX(Cups,W17)","v":0},null,null,null,null,1,0,null,1,"",null,1,0,null,1,"",null,1,0,null,1,"",null,1,0,null,1,"",null,1,0,null,1,""]
[1,0,12,null,{"$f":"IF(B18=0,\"\",FLOOR(VLOOKUP(A18,'All Meals'!$A$12:$V$61,4),0.25))","v":""},"",{"$f":"IF(B18=0,\"\",FLOOR(VLOOKUP(A18,'All Meals'!$A$12:$V$61,5),0.25))","v":""},"",{"$f":"IF(B18=0,\"\",FLOOR(VLOOKUP(A18,'All Meals'!$A$12:$V$61,6),0.25))","v":""},{"$f":"IF(B18=0,\"\",FLOOR(VLOOKUP(A18,'All Meals'!$A$12:$V$61,7),0.25))","v":""},{"$f":"IF(B18=0, \"\",VLOOKUP(A18,'All Meals'!$A$12:$V$61,10))","v":""},"",{"$f":"IF(B18=0, \"\",VLOOKUP(A18,'All Meals'!$A$12:$V$61,13))","v":""},{"$f":"IF(B18=0, \"\",VLOOKUP(A18,'All Meals'!$A$12:$V$61,16))","v":""},{"$f":"IF(B18=0,\"\",IF(N18=\"\",\"No\",IF(N18>=0.75,\"Yes\",\"No\")))","v":""},{"$f":"IF(B18=0, \"\",VLOOKUP(A18,'All Meals'!$A$12:$V$61,19))","v":""},{"$f":"IF(B18=0, \"\",VLOOKUP(A18,'All Meals'!$A$12:$V$61,20))","v":""},"",null,null,null,null,null,null,{"$f":"SUM(X13:X17)","v":0},null,null,null,1,0,null,1,"",null,1,0,null,1,"",null,1,0,null,1,"",null,1,0,null,1,"",null,1,0,null,1,""]
[1,0,13,null,{"$f":"IF(B19=0,\"\",FLOOR(VLOOKUP(A19,'All Meals'!$A$12:$V$61,4),0.25))","v":""},"",{"$f":"IF(B19=0,\"\",FLOOR(VLOOKUP(A19,'All Meals'!$A$12:$V$61,5),0.25))","v":""},"",{"$f":"IF(B19=0,\"\",FLOOR(VLOOKUP(A19,'All Meals'!$A$12:$V$61,6),0.25))","v":""},{"$f":"IF(B19=0,\"\",FLOOR(VLOOKUP(A19,'All Meals'!$A$12:$V$61,7),0.25))","v":""},{"$f":"IF(B19=0, \"\",VLOOKUP(A19,'All Meals'!$A$12:$V$61,10))","v":""},"",{"$f":"IF(B19=0, \"\",VLOOKUP(A19,'All Meals'!$A$12:$V$61,13))","v":""},{"$f":"IF(B19=0, \"\",VLOOKUP(A19,'All Meals'!$A$12:$V$61,16))","v":""},{"$f":"IF(B19=0,\"\",IF(N19=\"\",\"No\",IF(N19>=0.75,\"Yes\",\"No\")))","v":""},{"$f":"IF(B19=0, \"\",VLOOKUP(A19,'All Meals'!$A$12:$V$61,19))","v":""},{"$f":"IF(B19=0, \"\",VLOOKUP(A19,'All Meals'!$A$12:$V$61,20))","v":""},"",null,"Decimal/Fraction Converter\n(Rounded down to the nearest 1/8)",null,null,null,null,null,null,null,null,1,0,null,1,"",null,1,0,null,1,"",null,1,0,null,1,"",null,1,0,null,1,"",null,1,0,null,1,""]
[1,0,14,null,{"$f":"IF(B20=0,\"\",FLOOR(VLOOKUP(A20,'All Meals'!$A$12:$V$61,4),0.25))","v":""},"",{"$f":"IF(B20=0,\"\",FLOOR(VLOOKUP(A20,'All Meals'!$A$12:$V$61,5),0.25))","v":""},"",{"$f":"IF(B20=0,\"\",FLOOR(VLOOKUP(A20,'All Meals'!$A$12:$V$61,6),0.25))","v":""},{"$f":"IF(B20=0,\"\",FLOOR(VLOOKUP(A20,'All Meals'!$A$12:$V$61,7),0.25))","v":""},{"$f":"IF(B20=0, \"\",VLOOKUP(A20,'All Meals'!$A$12:$V$61,10))","v":""},"",{"$f":"IF(B20=0, \"\",VLOOKUP(A20,'All Meals'!$A$12:$V$61,13))","v":""},{"$f":"IF(B20=0, \"\",VLOOKUP(A20,'All Meals'!$A$12:$V$61,16))","v":""},"",{"$f":"IF(B20=0, \"\",VLOOKUP(A20,'All Meals'!$A$12:$V$61,19))","v":""},{"$f":"IF(B20=0, \"\",VLOOKUP(A20,'All Meals'!$A$12:$V$61,20))","v":""},"",null,"Enter the decimal you wish to convert to a fraction in the box:",null,null,null,null,null,null,null,{"$f":"IF(OR(COUNTIF(AC10:AC19,18)>0, COUNTIF(AI10:AI19, 13)>0, COUNTIF(AO10:AO19, 12)>0, COUNTIF(AU10:AU19, 11)>0,COUNTIF(BA10:BA19,34)>0, COUNTIF(BA10:BA19,35)>0, COUNTIF(BA10:BA19,36)>0,COUNTIF(BA10:BA19,37)>0, COUNTIF(BA10:BA19,38)>0, COUNTIF(BA10:BA19,39)>0), \"You entered an unspecified or extra other vegetable above, please enter the name of the vegetable in the appropriate subgroup below\", \"\")","v":""}]
[1,0,15,null,{"$f":"IF(B21=0,\"\",FLOOR(VLOOKUP(A21,'All Meals'!$A$12:$V$61,4),0.25))","v":""},"",{"$f":"IF(B21=0,\"\",FLOOR(VLOOKUP(A21,'All Meals'!$A$12:$V$61,5),0.25))","v":""},"",{"$f":"IF(B21=0,\"\",FLOOR(VLOOKUP(A21,'All Meals'!$A$12:$V$61,6),0.25))","v":""},{"$f":"IF(B21=0,\"\",FLOOR(VLOOKUP(A21,'All Meals'!$A$12:$V$61,7),0.25))","v":""},{"$f":"IF(B21=0, \"\",VLOOKUP(A21,'All Meals'!$A$12:$V$61,10))","v":""},"",{"$f":"IF(B21=0, \"\",VLOOKUP(A21,'All Meals'!$A$12:$V$61,13))","v":""},{"$f":"IF(B21=0, \"\",VLOOKUP(A21,'All Meals'!$A$12:$V$61,16))","v":""},"",{"$f":"IF(B21=0, \"\",VLOOKUP(A21,'All Meals'!$A$12:$V$61,19))","v":""},{"$f":"IF(B21=0, \"\",VLOOKUP(A21,'All Meals'!$A$12:$V$61,20))","v":""},"",null,null,null,null,null,null,null,null,null,"Unspecified Dark Green Vegetables",null,null,null,null,null,"Unspecified Red/Orange Vegetables",null,null,null,null,null,"Unspecified Beans/Peas",null,null,null,null,null,"Unspecified Starchy Vegetables",null,null,null,null,null,"Unspecified Other Vegetables"]
[1,0,16,null,{"$f":"IF(B22=0,\"\",FLOOR(VLOOKUP(A22,'All Meals'!$A$12:$V$61,4),0.25))","v":""},"",{"$f":"IF(B22=0,\"\",FLOOR(VLOOKUP(A22,'All Meals'!$A$12:$V$61,5),0.25))","v":""},"",{"$f":"IF(B22=0,\"\",FLOOR(VLOOKUP(A22,'All Meals'!$A$12:$V$61,6),0.25))","v":""},{"$f":"IF(B22=0,\"\",FLOOR(VLOOKUP(A22,'All Meals'!$A$12:$V$61,7),0.25))","v":""},{"$f":"IF(B22=0, \"\",VLOOKUP(A22,'All Meals'!$A$12:$V$61,10))","v":""},"",{"$f":"IF(B22=0, \"\",VLOOKUP(A22,'All Meals'!$A$12:$V$61,13))","v":""},{"$f":"IF(B22=0, \"\",VLOOKUP(A22,'All Meals'!$A$12:$V$61,16))","v":""},"",{"$f":"IF(B22=0, \"\",VLOOKUP(A22,'All Meals'!$A$12:$V$61,19))","v":""},{"$f":"IF(B22=0, \"\",VLOOKUP(A22,'All Meals'!$A$12:$V$61,20))","v":""},"",null,"The decimal entered above has been converted to the following fraction:",null,null,null,null,{"$f":"FLOOR(Y20,0.125)","v":0}]
[1,0,17,null,{"$f":"IF(B23=0,\"\",FLOOR(VLOOKUP(A23,'All Meals'!$A$12:$V$61,4),0.25))","v":""},"",{"$f":"IF(B23=0,\"\",FLOOR(VLOOKUP(A23,'All Meals'!$A$12:$V$61,5),0.25))","v":""},"",{"$f":"IF(B23=0,\"\",FLOOR(VLOOKUP(A23,'All Meals'!$A$12:$V$61,6),0.25))","v":""},{"$f":"IF(B23=0,\"\",FLOOR(VLOOKUP(A23,'All Meals'!$A$12:$V$61,7),0.25))","v":""},{"$f":"IF(B23=0, \"\",VLOOKUP(A23,'All Meals'!$A$12:$V$61,10))","v":""},"",{"$f":"IF(B23=0, \"\",VLOOKUP(A23,'All Meals'!$A$12:$V$61,13))","v":""},{"$f":"IF(B23=0, \"\",VLOOKUP(A23,'All Meals'!$A$12:$V$61,16))","v":""},"",{"$f":"IF(B23=0, \"\",VLOOKUP(A23,'All Meals'!$A$12:$V$61,19))","v":""},{"$f":"IF(B23=0, \"\",VLOOKUP(A23,'All Meals'!$A$12:$V$61,20))","v":""},""]
[1,0,18,null,{"$f":"IF(B24=0,\"\",FLOOR(VLOOKUP(A24,'All Meals'!$A$12:$V$61,4),0.25))","v":""},"",{"$f":"IF(B24=0,\"\",FLOOR(VLOOKUP(A24,'All Meals'!$A$12:$V$61,5),0.25))","v":""},"",{"$f":"IF(B24=0,\"\",FLOOR(VLOOKUP(A24,'All Meals'!$A$12:$V$61,6),0.25))","v":""},{"$f":"IF(B24=0,\"\",FLOOR(VLOOKUP(A24,'All Meals'!$A$12:$V$61,7),0.25))","v":""},{"$f":"IF(B24=0, \"\",VLOOKUP(A24,'All Meals'!$A$12:$V$61,10))","v":""},"",{"$f":"IF(B24=0, \"\",VLOOKUP(A24,'All Meals'!$A$12:$V$61,13))","v":""},{"$f":"IF(B24=0, \"\",VLOOKUP(A24,'All Meals'!$A$12:$V$61,16))","v":""},"",{"$f":"IF(B24=0, \"\",VLOOKUP(A24,'All Meals'!$A$12:$V$61,19))","v":""},{"$f":"IF(B24=0, \"\",VLOOKUP(A24,'All Meals'!$A$12:$V$61,20))","v":""},""]
[1,0,19,null,{"$f":"IF(B25=0,\"\",FLOOR(VLOOKUP(A25,'All Meals'!$A$12:$V$61,4),0.25))","v":""},"",{"$f":"IF(B25=0,\"\",FLOOR(VLOOKUP(A25,'All Meals'!$A$12:$V$61,5),0.25))","v":""},"",{"$f":"IF(B25=0,\"\",FLOOR(VLOOKUP(A25,'All Meals'!$A$12:$V$61,6),0.25))","v":""},{"$f":"IF(B25=0,\"\",FLOOR(VLOOKUP(A25,'All Meals'!$A$12:$V$61,7),0.25))","v":""},{"$f":"IF(B25=0, \"\",VLOOKUP(A25,'All Meals'!$A$12:$V$61,10))","v":""},"",{"$f":"IF(B25=0, \"\",VLOOKUP(A25,'All Meals'!$A$12:$V$61,13))","v":""},{"$f":"IF(B25=0, \"\",VLOOKUP(A25,'All Meals'!$A$12:$V$61,16))","v":""},"",{"$f":"IF(B25=0, \"\",VLOOKUP(A25,'All Meals'!$A$12:$V$61,19))","v":""},{"$f":"IF(B25=0, \"\",VLOOKUP(A25,'All Meals'!$A$12:$V$61,20))","v":""},""]
[1,0,20,null,{"$f":"IF(B26=0,\"\",FLOOR(VLOOKUP(A26,'All Meals'!$A$12:$V$61,4),0.25))","v":""},"",{"$f":"IF(B26=0,\"\",FLOOR(VLOOKUP(A26,'All Meals'!$A$12:$V$61,5),0.25))","v":""},"",{"$f":"IF(B26=0,\"\",FLOOR(VLOOKUP(A26,'All Meals'!$A$12:$V$61,6),0.25))","v":""},{"$f":"IF(B26=0,\"\",FLOOR(VLOOKUP(A26,'All Meals'!$A$12:$V$61,7),0.25))","v":""},{"$f":"IF(B26=0, \"\",VLOOKUP(A26,'All Meals'!$A$12:$V$61,10))","v":""},"",{"$f":"IF(B26=0, \"\",VLOOKUP(A26,'All Meals'!$A$12:$V$61,13))","v":""},{"$f":"IF(B26=0, \"\",VLOOKUP(A26,'All Meals'!$A$12:$V$61,16))","v":""},"",{"$f":"IF(B26=0, \"\",VLOOKUP(A26,'All Meals'!$A$12:$V$61,19))","v":""},{"$f":"IF(B26=0, \"\",VLOOKUP(A26,'All Meals'!$A$12:$V$61,20))","v":""},""]

{"sheet":"Day3","index":8,"n_rows":26,"n_cols":57,"rows_kept":26,"cut":false,"hidden":false,"merged":[[3,2,5,3],[2,2,2,25],[3,13,3,15],[4,15,5,15],[3,4,3,5],[4,4,5,4],[4,5,5,5],[3,6,3,9],[4,6,5,6],[4,7,5,7],[4,8,5,8],[4,9,5,9],[25,27,25,30],[25,33,25,36],[25,39,25,42],[25,45,25,48],[21,19,22,21],[21,24,22,25],[21,45,21,48],[18,19,18,25],[25,51,25,54],[23,27,23,30],[23,33,23,36],[23,39,23,42],[23,45,23,48],[23,51,23,54],[24,27,24,30],[24,33,24,36],[24,39,24,42],[24,45,24,48],[24,51,24,54],[21,51,21,54],[22,27,22,30],[22,33,22,36],[22,39,22,42],[22,45,22,48],[22,51,22,54],[21,27,21,30],[21,33,21,36],[21,39,21,42],[19,19,20,21],[19,24,20,25],[19,27,19,54],[20,27,20,30],[20,33,20,36],[20,39,20,42],[20,45,20,48],[20,51,20,54],[8,51,8,54],[10,19,11,25],[12,19,17,21],[12,24,12,25],[13,24,13,25],[14,24,14,25],[15,24,15,25],[16,24,16,25],[17,24,17,25],[7,18,7,21],[8,18,8,21],[8,27,8,30],[8,33,8,36],[8,39,8,42],[8,45,8,48],[6,43,7,43],[6,44,7,44],[6,45,7,45],[6,46,7,46],[6,49,7,49],[6,50,7,50],[6,51,7,51],[6,52,7,52],[6,53,7,53],[6,54,7,54],[6,47,7,47],[6,48,7,48],[6,37,7,37],[6,38,7,38],[6,39,7,39],[6,40,7,40],[6,41,7,41],[6,42,7,42],[4,55,5,55],[4,56,5,56],[5,18,5,21],[6,18,6,21],[6,27,7,27],[6,28,7,28],[6,29,7,29],[6,30,7,30],[6,31,7,31],[6,34,7,34],[4,39,5,39],[4,42,5,42],[4,45,5,45],[4,48,5,48],[4,51,5,51],[4,54,5,54],[4,33,5,33],[6,32,7,32],[6,33,7,33],[4,36,5,36],[6,35,7,35],[6,36,7,36],[4,14,5,14],[4,17,5,17],[4,18,4,21],[4,25,6,25],[4,27,5,27],[4,30,5,30],[2,27,2,39],[3,10,3,12],[3,16,3,17],[3,18,3,25],[3,27,3,54],[4,16,5,16],[4,10,5,10],[4,11,5,11],[4,12,5,12],[4,13,5,13],[0,19,0,25],[0,27,0,54],[1,3,1,17],[1,19,1,21],[1,24,1,25],[1,27,1,48],[1,51,1,55],[0,2,0,17]]}
[null,null,"Day3 Daily Lunch Requirement Check\nGrades K-8",null,null,null,null,null,null,null,null,null,null,null,null,null,null,null,null,"Scroll to the right to enter vegetable subgroup information",null,null,null,null,null,null,null,"Day3 Vegetable Subgroup Data Entry\nGrades K-8"]
[null,null,null,"The daily worksheet will perform daily requirement checks for the reimbursable meals offered each day. Requirements met are flagged \"Yes\" and the cell turns green. Requirements NOT met are flagged \"No\" and the cell turns red. \nNOTE: The top row is frozen to display the column headers as the daily meals are entered.\nGrains, whole grain rich, and meat/meat alternate oz equivalents are rounded down to the nearest quarter ounce.\nOnce you are finished selecting the meals offered each day, make sure to scroll to the right to enter milk type and vegetable subgroup information.",null,null,null,null,null,null,null,null,null,null,null,null,null,null,null,"Go to Instructions",null,null,null,null,"Go to Weekly Report",null,null,"Creditable Amount of Each Vegetable Subgroup Offered on Day3\nIn the first drop down box, select the largest amount of each vegetable subgroup offered to a student, then in the drop down boxes below, select the name and amount of each vegetable offered in the subgroup. \nIf you want to clear an entry, select the first blank in the drop down box.\nFor additional information on completing the data entry for the vegetable subgroup section, please refer to the Instructions tab. ",null,null,null,null,null,null,null,null,null,null,null,null,null,null,null,null,null,null,null,null,null,null,null,"Click here for help categorizing vegetables\n(Scroll to page 5)"]
[null,null,"Day3",null,null,null,null,null,null,null,null,null,null,null,null,null,null,null,null,null,null,null,null,null,null,null,null,"Check this box if you offered the weekly vegetable bar on Day3 with NO CHANGES:",null,null,null,null,null,null,null,null,null,null,null,null,null,null,null,false]
[null,null,"1.  Meal Name\nSelect the reimbursable lunches offered for the day\nNote: You may not delete lines, if you want to clear a meal select the first blank in the drop down list",null,"2.  Meat/Meat Alternate (M/MA)",null,"3. Grains",null,null,null,"4. Fruit",null,null,"5. Vegetables",null,null,"6. Milk",null,"Milk Type\nCheck the type of milk below if it is offered to students on Day3. \nAll types of milk included.",null,null,null,null,null,null,null,null,"If you offered any vegetables in addition to the weekly vegetable bar, select the largest amount of the vegetable offered to a student and select the name of each vegetable under the appropriate subgroup.\nNOTE:  If you offered a vegetable bar on Day3 that differs from the weekly offerings, all offerings and quantities for each vegetable subgroup must be selected in the section below.",null,null,null,null,null,null,null,null,null,null,null,null,null,null,null,null,null,null,null,null,null,null,null,null,null,null,null,"o_i","O_num"]
[null,null,null,null,"M/MA\noz equivalents","Daily M/MA Requirement Check\n1 oz equivalents","a. Grains\n oz equivalents\n ","Daily Grain Requirement Check\n1 oz equivalents","b. Whole Grain Rich\n oz equivalents\n ","c. Grain Based Dessert\n oz equivalents\n ","a. Fruit\ncups","Daily Fruit Requirement Check\n1/2 cup","b. Fruit Juice \ncups","a. Vegetables\n cups","Daily Vegetable Requirement Check\n3/4 cup","b. Vegetable Juice \ncups","Milk\ncups","Daily Milk Requirement Check\n1 cup","Skim/fat-free, unflavored",null,null,null,null,false,null,{"$f":"IF(AND(X5=FALSE,X6=FALSE,X7=FALSE),\"\",IF(AND(X5=TRUE,X6=TRUE),\"Yes\",IF(AND(X5=TRUE,X7=TRUE),\"Yes\",IF(AND(X6=TRUE,X7=TRUE),\"Yes\",\"No\"))))","v":""},null,"DARK GREEN vegetables offered on Day3",null,null,"Quantity (cups)",null,null,"Red/Orange vegetables offered on Day3",null,null,"Quantity (cups)",null,null,"Beans/Peas (legumes) offered on Day3",null,null,"Quantity (cups)",null,null,"Starchy vegetables offered on Day3",null,null,"Quantity (cups)",null,null,"Other vegetables offered on Day3",null,null,"Quantity (cups)",1,{"$f":"INDEX(Cups,BD5)","v":0}]
[null,null,null,null,null,null,null,null,null,null,null,null,null,null,null,null,null,null,"Skim/fat-free, flavored",null,null,null,null,false,null,null,null,null,"G_T",null,null,"G_I","G_num",null,"R_T",null,null,"R_i","r_num",null,"B_t",null,null,"B_i","B_num",null,"S_T",null,null,"s_i","s_num",null,"O_T"]
[2,{"$f":"INDEX(meals,A7)","v":0},1,null,{"$f":"IF(B7=0,\"\",FLOOR(VLOOKUP(A7,'All Meals'!$A$12:$V$61,4),0.25))","v":""},{"$f":"IF(B7=0,\"\",IF(E7=\"\",\"No\",IF(E7>=1,\"Yes\",\"No\")))","v":""},{"$f":"IF(B7=0,\"\",FLOOR(VLOOKUP(A7,'All Meals'!$A$12:$V$61,5),0.25))","v":""},{"$f":"IF(B7=0,\"\",IF(G7=\"\",\"No\",IF(G7>=1,\"Yes\",\"No\")))","v":""},{"$f":"IF(B7=0,\"\",FLOOR(VLOOKUP(A7,'All Meals'!$A$12:$V$61,6),0.25))","v":""},{"$f":"IF(B7=0,\"\",FLOOR(VLOOKUP(A7,'All Meals'!$A$12:$V$61,7),0.25))","v":""},{"$f":"IF(B7=0, \"\",VLOOKUP(A7,'All Meals'!$A$12:$V$61,10))","v":""},{"$f":"IF(B7=0,\"\",IF(K7=\"\",\"No\",IF(K7>=0.5,\"Yes\",\"No\")))","v":""},{"$f":"IF(B7=0, \"\",VLOOKUP(A7,'All Meals'!$A$12:$V$61,13))","v":""},{"$f":"IF(B7=0, \"\",VLOOKUP(A7,'All Meals'!$A$12:$V$61,16))","v":""},{"$f":"IF(B7=0,\"\",IF(N7=\"\",\"No\",IF(N7>=0.75,\"Yes\",\"No\")))","v":""},{"$f":"IF(B7=0, \"\",VLOOKUP(A7,'All Meals'!$A$12:$V$61,19))","v":""},{"$f":"IF(B7=0, \"\",VLOOKUP(A7,'All Meals'!$A$12:$V$61,20))","v":""},{"$f":"IF(B7=0,\"\",IF(Q7=\"\",\"No\",IF(Q7>=1,\"Yes\",\"No\")))","v":""},"Low-fat (1% or less), unflavored",null,null,null,null,false,null,null,null,"Largest amount of dark green vegetables to select on Day3",null,null,null,1,{"$f":"INDEX(Cups,AF7)","v":0},"Largest amount of red/orange vegetables to select on Day3",null,null,null,1,{"$f":"INDEX(Cups,AL7)","v":0},"Largest amount of beans/peas to select on Day3",null,null,null,1,{"$f":"INDEX(Cups,AR7)","v":0},"Largest amount of starchy vegetables to select on Day3",null,null,null,1,{"$f":"INDEX(Cups,AX7)","v":0},"Largest amount of other vegetables to select on Day3"]
[1,{"$f":"INDEX(meals,A8)","v":0},2,null,{"$f":"IF(B8=0,\"\",FLOOR(VLOOKUP(A8,'All Meals'!$A$12:$V$61,4),0.25))","v":""},{"$f":"IF(B8=0,\"\",IF(E8=\"\",\"No\",IF(E8>=1,\"Yes\",\"No\")))","v":""},{"$f":"IF(B8=0,\"\",FLOOR(VLOOKUP(A8,'All Meals'!$A$12:$V$61,5),0.25))","v":""},{"$f":"IF(B8=0,\"\",IF(G8=\"\",\"No\",IF(G8>=1,\"Yes\",\"No\")))","v":""},{"$f":"IF(B8=0,\"\",FLOOR(VLOOKUP(A8,'All Meals'!$A$12:$V$61,6),0.25))","v":""},{"$f":"IF(B8=0,\"\",FLOOR(VLOOKUP(A8,'All Meals'!$A$12:$V$61,7),0.25))","v":""},{"$f":"IF(B8=0, \"\",VLOOKUP(A8,'All Meals'!$A$12:$V$61,10))","v":""},{"$f":"IF(B8=0,\"\",IF(K8=\"\",\"No\",IF(K8>=0.5,\"Yes\",\"No\")))","v":""},{"$f":"IF(B8=0, \"\",VLOOKUP(A8,'All Meals'!$A$12:$V$61,13))","v":""},{"$f":"IF(B8=0, \"\",VLOOKUP(A8,'All Meals'!$A$12:$V$61,16))","v":""},{"$f":"IF(B8=0,\"\",IF(N8=\"\",\"No\",IF(N8>=1,\"Yes\",\"No\")))","v":""},{"$f":"IF(B8=0, \"\",VLOOKUP(A8,'All Meals'!$A$12:$V$61,19))","v":""},{"$f":"IF(B8=0, \"\",VLOOKUP(A8,'All Meals'!$A$12:$V$61,20))","v":""},"","Low-fat (1% or less), flavored",null,null,null,null,false,null,{"$f":"IF(X8=TRUE,\"No\",\"\")","v":""}]
[1,{"$f":"INDEX(meals,A9)","v":0},3,null,{"$f":"IF(B9=0,\"\",FLOOR(VLOOKUP(A9,'All Meals'!$A$12:$V$61,4),0.25))","v":""},"",{"$f":"IF(B9=0,\"\",FLOOR(VLOOKUP(A9,'All Meals'!$A$12:$V$61,5),0.25))","v":""},"",{"$f":"IF(B9=0,\"\",FLOOR(VLOOKUP(A9,'All Meals'!$A$12:$V$61,6),0.25))","v":""},{"$f":"IF(B9=0,\"\",FLOOR(VLOOKUP(A9,'All Meals'!$A$12:$V$61,7),0.25))","v":""},{"$f":"IF(B9=0, \"\",VLOOKUP(A9,'All Meals'!$A$12:$V$61,10))","v":""},"",{"$f":"IF(B9=0, \"\",VLOOKUP(A9,'All Meals'!$A$12:$V$61,13))","v":""},{"$f":"IF(B9=0, \"\",VLOOKUP(A9,'All Meals'!$A$12:$V$61,16))","v":""},"",{"$f":"IF(B9=0, \"\",VLOOKUP(A9,'All Meals'!$A$12:$V$61,19))","v":""},{"$f":"IF(B9=0, \"\",VLOOKUP(A9,'All Meals'!$A$12:$V$61,20))","v":""},"","Reduced fat (2% fat) or whole, unflavored and flavored",null,null,null,null,false,null,{"$f":"IF(X9=TRUE,\"No\",\"\")","v":""},null,{"$f":"IF(OR(COUNTIF(AC10:AC19, 12)>0, COUNTIF(AC10:AC19,2)>0, COUNTIF(AC10:AC19,4)>0, COUNTIF(AC10:AC19,10)>0, COUNTIF(AC10:AC19,15)>0, COUNTIF(AC10:AC19,17)>0,), \"Remember to enter CREDITABLE amounts of leafy greens!\", \"\")","v":""},null,null,null,null,null,{"$f":"IF(COUNTIF(AI10:AI19,10)>0,\"Remember to enter the CREDITABLE amount of tomato paste!\",\"\")","v":""},null,null,null,null,null,{"$f":"IF(SUM(AO10:AO19)>10, \"If crediting as a vegetable do not also credit as a meat/meat alternate\", \"\")","v":""}]
[1,{"$f":"INDEX(meals,A10)","v":0},4,null,{"$f":"IF(B10=0,\"\",FLOOR(VLOOKUP(A10,'All Meals'!$A$12:$V$61,4),0.25))","v":""},"",{"$f":"IF(B10=0,\"\",FLOOR(VLOOKUP(A10,'All Meals'!$A$12:$V$61,5),0.25))","v":""},"",{"$f":"IF(B10=0,\"\",FLOOR(VLOOKUP(A10,'All Meals'!$A$12:$V$61,6),0.25))","v":""},{"$f":"IF(B10=0,\"\",FLOOR(VLOOKUP(A10,'All Meals'!$A$12:$V$61,7),0.25))","v":""},{"$f":"IF(B10=0, \"\",VLOOKUP(A10,'All Meals'!$A$12:$V$61,10))","v":""},"",{"$f":"IF(B10=0, \"\",VLOOKUP(A10,'All Meals'!$A$12:$V$61,13))","v":""},{"$f":"IF(B10=0, \"\",VLOOKUP(A10,'All Meals'!$A$12:$V$61,16))","v":""},"",{"$f":"IF(B10=0, \"\",VLOOKUP(A10,'All Meals'!$A$12:$V$61,19))","v":""},{"$f":"IF(B10=0, \"\",VLOOKUP(A10,'All Meals'!$A$12:$V$61,20))","v":""},"",null,null,null,null,null,null,null,null,null,null,1,{"$f":"INDEX(GREEN,AC10)","v":0},null,1,{"$f":"IF(AD10=0,\"\",INDEX(Cups,AF10))","v":""},null,1,{"$f":"INDEX(RED,AI10)","v":0},null,1,{"$f":"IF(AJ10=0, \"\", INDEX(Cups,AL10))","v":""},null,1,{"$f":"INDEX(BEANS,AO10)","v":0},null,1,{"$f":"IF(AP10=0,\"\",INDEX(Cups,AR10))","v":""},null,1,{"$f":"INDEX(STARCHY,AU10)","v":0},null,1,{"$f":"IF(AV10=0,\"\",INDEX(Cups,AX10))","v":""},null,1,{"$f":"INDEX(OTHER,BA10)","v":0},null,1,{"$f":"IF(BB10=0,\"\",INDEX(Cups,BD10))","v":""}]
[1,0,5,null,{"$f":"IF(B11=0,\"\",FLOOR(VLOOKUP(A11,'All Meals'!$A$12:$V$61,4),0.25))","v":""},"",{"$f":"IF(B11=0,\"\",FLOOR(VLOOKUP(A11,'All Meals'!$A$12:$V$61,5),0.25))","v":""},"",{"$f":"IF(B11=0,\"\",FLOOR(VLOOKUP(A11,'All Meals'!$A$12:$V$61,6),0.25))","v":""},{"$f":"IF(B11=0,\"\",FLOOR(VLOOKUP(A11,'All Meals'!$A$12:$V$61,7),0.25))","v":""},{"$f":"IF(B11=0, \"\",VLOOKUP(A11,'All Meals'!$A$12:$V$61,10))","v":""},"",{"$f":"IF(B11=0, \"\",VLOOKUP(A11,'All Meals'!$A$12:$V$61,13))","v":""},{"$f":"IF(B11=0, \"\",VLOOKUP(A11,'All Meals'!$A$12:$V$61,16))","v":""},"",{"$f":"IF(B11=0, \"\",VLOOKUP(A11,'All Meals'!$A$12:$V$61,19))","v":""},{"$f":"IF(B11=0, \"\",VLOOKUP(A11,'All Meals'!$A$12:$V$61,20))","v":""},"",null,"OPTIONAL Tools to Assist in Fraction and Decimal Calculations",null,null,null,null,null,null,null,null,1,0,null,1,"",null,1,0,null,1,"",null,1,0,null,1,"",null,1,0,null,1,{"$f":"IF(AV11=0,\"\",INDEX(Cups,AX11))","v":""},null,1,0,null,1,""]
[1,0,6,null,{"$f":"IF(B12=0,\"\",FLOOR(VLOOKUP(A12,'All Meals'!$A$12:$V$61,4),0.25))","v":""},"",{"$f":"IF(B12=0,\"\",FLOOR(VLOOKUP(A12,'All Meals'!$A$12:$V$61,5),0.25))","v":""},"",{"$f":"IF(B12=0,\"\",FLOOR(VLOOKUP(A12,'All Meals'!$A$12:$V$61,6),0.25))","v":""},{"$f":"IF(B12=0,\"\",FLOOR(VLOOKUP(A12,'All Meals'!$A$12:$V$61,7),0.25))","v":""},{"$f":"IF(B12=0, \"\",VLOOKUP(A12,'All Meals'!$A$12:$V$61,10))","v":""},"",{"$f":"IF(B12=0, \"\",VLOOKUP(A12,'All Meals'!$A$12:$V$61,13))","v":""},{"$f":"IF(B12=0, \"\",VLOOKUP(A12,'All Meals'!$A$12:$V$61,16))","v":""},"",{"$f":"IF(B12=0, \"\",VLOOKUP(A12,'All Meals'!$A$12:$V$61,19))","v":""},{"$f":"IF(B12=0, \"\",VLOOKUP(A12,'All Meals'!$A$12:$V$61,20))","v":""},"",null,null,null,null,null,null,null,null,null,null,1,0,null,1,"",null,1,0,null,1,"",null,1,0,null,1,"",null,1,0,null,1,"",null,1,0,null,1,""]
[1,0,7,null,{"$f":"IF(B13=0,\"\",FLOOR(VLOOKUP(A13,'All Meals'!$A$12:$V$61,4),0.25))","v":""},"",{"$f":"IF(B13=0,\"\",FLOOR(VLOOKUP(A13,'All Meals'!$A$12:$V$61,5),0.25))","v":""},"",{"$f":"IF(B13=0,\"\",FLOOR(VLOOKUP(A13,'All Meals'!$A$12:$V$61,6),0.25))","v":""},{"$f":"IF(B13=0,\"\",FLOOR(VLOOKUP(A13,'All Meals'!$A$12:$V$61,7),0.25))","v":""},{"$f":"IF(B13=0, \"\",VLOOKUP(A13,'All Meals'!$A$12:$V$61,10))","v":""},"",{"$f":"IF(B13=0, \"\",VLOOKUP(A13,'All Meals'!$A$12:$V$61,13))","v":""},{"$f":"IF(B13=0, \"\",VLOOKUP(A13,'All Meals'!$A$12:$V$61,16))","v":""},"",{"$f":"IF(B13=0, \"\",VLOOKUP(A13,'All Meals'!$A$12:$V$61,19))","v":""},{"$f":"IF(B13=0, \"\",VLOOKUP(A13,'All Meals'!$A$12:$V$61,20))","v":""},"",null,"Fraction Calculator: \nUse this calculator to add the number of cups.",null,null,1,{"$f":"INDEX(Cups,W13)","v":0},null,null,null,null,1,0,null,1,"",null,1,0,null,1,"",null,1,0,null,1,"",null,1,0,null,1,"",null,1,0,null,1,""]
[1,0,8,null,{"$f":"IF(B14=0,\"\",FLOOR(VLOOKUP(A14,'All Meals'!$A$12:$V$61,4),0.25))","v":""},"",{"$f":"IF(B14=0,\"\",FLOOR(VLOOKUP(A14,'All Meals'!$A$12:$V$61,5),0.25))","v":""},"",{"$f":"IF(B14=0,\"\",FLOOR(VLOOKUP(A14,'All Meals'!$A$12:$V$61,6),0.25))","v":""},{"$f":"IF(B14=0,\"\",FLOOR(VLOOKUP(A14,'All Meals'!$A$12:$V$61,7),0.25))","v":""},{"$f":"IF(B14=0, \"\",VLOOKUP(A14,'All Meals'!$A$12:$V$61,10))","v":""},"",{"$f":"IF(B14=0, \"\",VLOOKUP(A14,'All Meals'!$A$12:$V$61,13))","v":""},{"$f":"IF(B14=0, \"\",VLOOKUP(A14,'All Meals'!$A$12:$V$61,16))","v":""},"",{"$f":"IF(B14=0, \"\",VLOOKUP(A14,'All Meals'!$A$12:$V$61,19))","v":""},{"$f":"IF(B14=0, \"\",VLOOKUP(A14,'All Meals'!$A$12:$V$61,20))","v":""},"",null,null,null,null,1,{"$f":"INDEX(Cups,W14)","v":0},null,null,null,null,1,0,null,1,"",null,1,0,null,1,"",null,1,0,null,1,"",null,1,0,null,1,"",null,1,0,null,1,""]
[1,0,9,null,{"$f":"IF(B15=0,\"\",FLOOR(VLOOKUP(A15,'All Meals'!$A$12:$V$61,4),0.25))","v":""},"",{"$f":"IF(B15=0,\"\",FLOOR(VLOOKUP(A15,'All Meals'!$A$12:$V$61,5),0.25))","v":""},"",{"$f":"IF(B15=0,\"\",FLOOR(VLOOKUP(A15,'All Meals'!$A$12:$V$61,6),0.25))","v":""},{"$f":"IF(B15=0,\"\",FLOOR(VLOOKUP(A15,'All Meals'!$A$12:$V$61,7),0.25))","v":""},{"$f":"IF(B15=0, \"\",VLOOKUP(A15,'All Meals'!$A$12:$V$61,10))","v":""},"",{"$f":"IF(B15=0, \"\",VLOOKUP(A15,'All Meals'!$A$12:$V$61,13))","v":""},{"$f":"IF(B15=0, \"\",VLOOKUP(A15,'All Meals'!$A$12:$V$61,16))","v":""},"",{"$f":"IF(B15=0, \"\",VLOOKUP(A15,'All Meals'!$A$12:$V$61,19))","v":""},{"$f":"IF(B15=0, \"\",VLOOKUP(A15,'All Meals'!$A$12:$V$61,20))","v":""},"",null,null,null,null,1,{"$f":"INDEX(Cups,W15)","v":0},null,null,null,null,1,0,null,1,"",null,1,0,null,1,"",null,1,0,null,1,"",null,1,0,null,1,"",null,1,0,null,1,""]
[1,0,10,null,{"$f":"IF(B16=0,\"\",FLOOR(VLOOKUP(A16,'All Meals'!$A$12:$V$61,4),0.25))","v":""},"",{"$f":"IF(B16=0,\"\",FLOOR(VLOOKUP(A16,'All Meals'!$A$12:$V$61,5),0.25))","v":""},"",{"$f":"IF(B16=0,\"\",FLOOR(VLOOKUP(A16,'All Meals'!$A$12:$V$61,6),0.25))","v":""},{"$f":"IF(B16=0,\"\",FLOOR(VLOOKUP(A16,'All Meals'!$A$12:$V$61,7),0.25))","v":""},{"$f":"IF(B16=0, \"\",VLOOKUP(A16,'All Meals'!$A$12:$V$61,10))","v":""},"",{"$f":"IF(B16=0, \"\",VLOOKUP(A16,'All Meals'!$A$12:$V$61,13))","v":""},{"$f":"IF(B16=0, \"\",VLOOKUP(A16,'All Meals'!$A$12:$V$61,16))","v":""},"",{"$f":"IF(B16=0, \"\",VLOOKUP(A16,'All Meals'!$A$12:$V$61,19))","v":""},{"$f":"IF(B16=0, \"\",VLOOKUP(A16,'All Meals'!$A$12:$V$61,20))","v":""},"",null,null,null,null,1,{"$f":"INDEX(Cups,W16)","v":0},null,null,null,null,1,0,null,1,"",null,1,0,null,1,"",null,1,0,null,1,"",null,1,0,null,1,"",null,1,0,null,1,""]
[1,0,11,null,{"$f":"IF(B17=0,\"\",FLOOR(VLOOKUP(A17,'All Meals'!$A$12:$V$61,4),0.25))","v":""},"",{"$f":"IF(B17=0,\"\",FLOOR(VLOOKUP(A17,'All Meals'!$A$12:$V$61,5),0.25))","v":""},"",{"$f":"IF(B17=0,\"\",FLOOR(VLOOKUP(A17,'All Meals'!$A$12:$V$61,6),0.25))","v":""},{"$f":"IF(B17=0,\"\",FLOOR(VLOOKUP(A17,'All Meals'!$A$12:$V$61,7),0.25))","v":""},{"$f":"IF(B17=0, \"\",VLOOKUP(A17,'All Meals'!$A$12:$V$61,10))","v":""},"",{"$f":"IF(B17=0, \"\",VLOOKUP(A17,'All Meals'!$A$12:$V$61,13))","v":""},{"$f":"IF(B17=0, \"\",VLOOKUP(A17,'All Meals'!$A$12:$V$61,16))","v":""},"",{"$f":"IF(B17=0, \"\",VLOOKUP(A17,'All Meals'!$A$12:$V$61,19))","v":""},{"$f":"IF(B17=0, \"\",VLOOKUP(A17,'All Meals'!$A$12:$V$61,20))","v":""},"",null,null,null,null,1,{"$f":"INDEX(Cups,W17)","v":0},null,null,null,null,1,0,null,1,"",null,1,0,null,1,"",null,1,0,null,1,"",null,1,0,null,1,"",null,1,0,null,1,""]
[1,0,12,null,{"$f":"IF(B18=0,\"\",FLOOR(VLOOKUP(A18,'All Meals'!$A$12:$V$61,4),0.25))","v":""},"",{"$f":"IF(B18=0,\"\",FLOOR(VLOOKUP(A18,'All Meals'!$A$12:$V$61,5),0.25))","v":""},"",{"$f":"IF(B18=0,\"\",FLOOR(VLOOKUP(A18,'All Meals'!$A$12:$V$61,6),0.25))","v":""},{"$f":"IF(B18=0,\"\",FLOOR(VLOOKUP(A18,'All Meals'!$A$12:$V$61,7),0.25))","v":""},{"$f":"IF(B18=0, \"\",VLOOKUP(A18,'All Meals'!$A$12:$V$61,10))","v":""},"",{"$f":"IF(B18=0, \"\",VLOOKUP(A18,'All Meals'!$A$12:$V$61,13))","v":""},{"$f":"IF(B18=0, \"\",VLOOKUP(A18,'All Meals'!$A$12:$V$61,16))","v":""},{"$f":"IF(B18=0,\"\",IF(N18=\"\",\"No\",IF(N18>=0.75,\"Yes\",\"No\")))","v":""},{"$f":"IF(B18=0, \"\",VLOOKUP(A18,'All Meals'!$A$12:$V$61,19))","v":""},{"$f":"IF(B18=0, \"\",VLOOKUP(A18,'All Meals'!$A$12:$V$61,20))","v":""},"",null,null,null,null,null,null,{"$f":"SUM(X13:X17)","v":0},null,null,null,1,0,null,1,"",null,1,0,null,1,"",null,1,0,null,1,"",null,1,0,null,1,"",null,1,0,null,1,""]
[1,0,13,null,{"$f":"IF(B19=0,\"\",FLOOR(VLOOKUP(A19,'All Meals'!$A$12:$V$61,4),0.25))","v":""},"",{"$f":"IF(B19=0,\"\",FLOOR(VLOOKUP(A19,'All Meals'!$A$12:$V$61,5),0.25))","v":""},"",{"$f":"IF(B19=0,\"\",FLOOR(VLOOKUP(A19,'All Meals'!$A$12:$V$61,6),0.25))","v":""},{"$f":"IF(B19=0,\"\",FLOOR(VLOOKUP(A19,'All Meals'!$A$12:$V$61,7),0.25))","v":""},{"$f":"IF(B19=0, \"\",VLOOKUP(A19,'All Meals'!$A$12:$V$61,10))","v":""},"",{"$f":"IF(B19=0, \"\",VLOOKUP(A19,'All Meals'!$A$12:$V$61,13))","v":""},{"$f":"IF(B19=0, \"\",VLOOKUP(A19,'All Meals'!$A$12:$V$61,16))","v":""},{"$f":"IF(B19=0,\"\",IF(N19=\"\",\"No\",IF(N19>=0.75,\"Yes\",\"No\")))","v":""},{"$f":"IF(B19=0, \"\",VLOOKUP(A19,'All Meals'!$A$12:$V$61,19))","v":""},{"$f":"IF(B19=0, \"\",VLOOKUP(A19,'All Meals'!$A$12:$V$61,20))","v":""},"",null,"Decimal/Fraction Converter\n(Rounded down to the nearest 1/8)",null,null,null,null,null,null,null,null,1,0,null,1,"",null,1,0,null,1,"",null,1,0,null,1,"",null,1,0,null,1,"",null,1,0,null,1,""]
[1,0,14,null,{"$f":"IF(B20=0,\"\",FLOOR(VLOOKUP(A20,'All Meals'!$A$12:$V$61,4),0.25))","v":""},"",{"$f":"IF(B20=0,\"\",FLOOR(VLOOKUP(A20,'All Meals'!$A$12:$V$61,5),0.25))","v":""},"",{"$f":"IF(B20=0,\"\",FLOOR(VLOOKUP(A20,'All Meals'!$A$12:$V$61,6),0.25))","v":""},{"$f":"IF(B20=0,\"\",FLOOR(VLOOKUP(A20,'All Meals'!$A$12:$V$61,7),0.25))","v":""},{"$f":"IF(B20=0, \"\",VLOOKUP(A20,'All Meals'!$A$12:$V$61,10))","v":""},"",{"$f":"IF(B20=0, \"\",VLOOKUP(A20,'All Meals'!$A$12:$V$61,13))","v":""},{"$f":"IF(B20=0, \"\",VLOOKUP(A20,'All Meals'!$A$12:$V$61,16))","v":""},"",{"$f":"IF(B20=0, \"\",VLOOKUP(A20,'All Meals'!$A$12:$V$61,19))","v":""},{"$f":"IF(B20=0, \"\",VLOOKUP(A20,'All Meals'!$A$12:$V$61,20))","v":""},"",null,"Enter the decimal you wish to convert to a fraction in the box:",null,null,null,null,null,null,null,{"$f":"IF(OR(COUNTIF(AC10:AC19,18)>0, COUNTIF(AI10:AI19, 13)>0, COUNTIF(AO10:AO19, 12)>0, COUNTIF(AU10:AU19, 11)>0,COUNTIF(BA10:BA19,34)>0, COUNTIF(BA10:BA19,35)>0, COUNTIF(BA10:BA19,36)>0,COUNTIF(BA10:BA19,37)>0, COUNTIF(BA10:BA19,38)>0, COUNTIF(BA10:BA19,39)>0), \"You entered an unspecified or extra other vegetable above, please enter the name of the vegetable in the appropriate subgroup below\", \"\")","v":""}]
[1,0,15,null,{"$f":"IF(B21=0,\"\",FLOOR(VLOOKUP(A21,'All Meals'!$A$12:$V$61,4),0.25))","v":""},"",{"$f":"IF(B21=0,\"\",FLOOR(VLOOKUP(A21,'All Meals'!$A$12:$V$61,5),0.25))","v":""},"",{"$f":"IF(B21=0,\"\",FLOOR(VLOOKUP(A21,'All Meals'!$A$12:$V$61,6),0.25))","v":""},{"$f":"IF(B21=0,\"\",FLOOR(VLOOKUP(A21,'All Meals'!$A$12:$V$61,7),0.25))","v":""},{"$f":"IF(B21=0, \"\",VLOOKUP(A21,'All Meals'!$A$12:$V$61,10))","v":""},"",{"$f":"IF(B21=0, \"\",VLOOKUP(A21,'All Meals'!$A$12:$V$61,13))","v":""},{"$f":"IF(B21=0, \"\",VLOOKUP(A21,'All Meals'!$A$12:$V$61,16))","v":""},"",{"$f":"IF(B21=0, \"\",VLOOKUP(A21,'All Meals'!$A$12:$V$61,19))","v":""},{"$f":"IF(B21=0, \"\",VLOOKUP(A21,'All Meals'!$A$12:$V$61,20))","v":""},"",null,null,null,null,null,null,null,null,null,"Unspecified Dark Green Vegetables",null,null,null,null,null,"Unspecified Red/Orange Vegetables",null,null,null,null,null,"Unspecified Beans/Peas",null,null,null,null,null,"Unspecified Starchy Vegetables",null,null,null,null,null,"Unspecified Other Vegetables"]
[1,0,16,null,{"$f":"IF(B22=0,\"\",FLOOR(VLOOKUP(A22,'All Meals'!$A$12:$V$61,4),0.25))","v":""},"",{"$f":"IF(B22=0,\"\",FLOOR(VLOOKUP(A22,'All Meals'!$A$12:$V$61,5),0.25))","v":""},"",{"$f":"IF(B22=0,\"\",FLOOR(VLOOKUP(A22,'All Meals'!$A$12:$V$61,6),0.25))","v":""},{"$f":"IF(B22=0,\"\",FLOOR(VLOOKUP(A22,'All Meals'!$A$12:$V$61,7),0.25))","v":""},{"$f":"IF(B22=0, \"\",VLOOKUP(A22,'All Meals'!$A$12:$V$61,10))","v":""},"",{"$f":"IF(B22=0, \"\",VLOOKUP(A22,'All Meals'!$A$12:$V$61,13))","v":""},{"$f":"IF(B22=0, \"\",VLOOKUP(A22,'All Meals'!$A$12:$V$61,16))","v":""},"",{"$f":"IF(B22=0, \"\",VLOOKUP(A22,'All Meals'!$A$12:$V$61,19))","v":""},{"$f":"IF(B22=0, \"\",VLOOKUP(A22,'All Meals'!$A$12:$V$61,20))","v":""},"",null,"The decimal entered above has been converted to the following fraction:",null,null,null,null,{"$f":"FLOOR(Y20,0.125)","v":0}]
[1,0,17,null,{"$f":"IF(B23=0,\"\",FLOOR(VLOOKUP(A23,'All Meals'!$A$12:$V$61,4),0.25))","v":""},"",{"$f":"IF(B23=0,\"\",FLOOR(VLOOKUP(A23,'All Meals'!$A$12:$V$61,5),0.25))","v":""},"",{"$f":"IF(B23=0,\"\",FLOOR(VLOOKUP(A23,'All Meals'!$A$12:$V$61,6),0.25))","v":""},{"$f":"IF(B23=0,\"\",FLOOR(VLOOKUP(A23,'All Meals'!$A$12:$V$61,7),0.25))","v":""},{"$f":"IF(B23=0, \"\",VLOOKUP(A23,'All Meals'!$A$12:$V$61,10))","v":""},"",{"$f":"IF(B23=0, \"\",VLOOKUP(A23,'All Meals'!$A$12:$V$61,13))","v":""},{"$f":"IF(B23=0, \"\",VLOOKUP(A23,'All Meals'!$A$12:$V$61,16))","v":""},"",{"$f":"IF(B23=0, \"\",VLOOKUP(A23,'All Meals'!$A$12:$V$61,19))","v":""},{"$f":"IF(B23=0, \"\",VLOOKUP(A23,'All Meals'!$A$12:$V$61,20))","v":""},""]
[1,0,18,null,{"$f":"IF(B24=0,\"\",FLOOR(VLOOKUP(A24,'All Meals'!$A$12:$V$61,4),0.25))","v":""},"",{"$f":"IF(B24=0,\"\",FLOOR(VLOOKUP(A24,'All Meals'!$A$12:$V$61,5),0.25))","v":""},"",{"$f":"IF(B24=0,\"\",FLOOR(VLOOKUP(A24,'All Meals'!$A$12:$V$61,6),0.25))","v":""},{"$f":"IF(B24=0,\"\",FLOOR(VLOOKUP(A24,'All Meals'!$A$12:$V$61,7),0.25))","v":""},{"$f":"IF(B24=0, \"\",VLOOKUP(A24,'All Meals'!$A$12:$V$61,10))","v":""},"",{"$f":"IF(B24=0, \"\",VLOOKUP(A24,'All Meals'!$A$12:$V$61,13))","v":""},{"$f":"IF(B24=0, \"\",VLOOKUP(A24,'All Meals'!$A$12:$V$61,16))","v":""},"",{"$f":"IF(B24=0, \"\",VLOOKUP(A24,'All Meals'!$A$12:$V$61,19))","v":""},{"$f":"IF(B24=0, \"\",VLOOKUP(A24,'All Meals'!$A$12:$V$61,20))","v":""},""]
[1,0,19,null,{"$f":"IF(B25=0,\"\",FLOOR(VLOOKUP(A25,'All Meals'!$A$12:$V$61,4),0.25))","v":""},"",{"$f":"IF(B25=0,\"\",FLOOR(VLOOKUP(A25,'All Meals'!$A$12:$V$61,5),0.25))","v":""},"",{"$f":"IF(B25=0,\"\",FLOOR(VLOOKUP(A25,'All Meals'!$A$12:$V$61,6),0.25))","v":""},{"$f":"IF(B25=0,\"\",FLOOR(VLOOKUP(A25,'All Meals'!$A$12:$V$61,7),0.25))","v":""},{"$f":"IF(B25=0, \"\",VLOOKUP(A25,'All Meals'!$A$12:$V$61,10))","v":""},"",{"$f":"IF(B25=0, \"\",VLOOKUP(A25,'All Meals'!$A$12:$V$61,13))","v":""},{"$f":"IF(B25=0, \"\",VLOOKUP(A25,'All Meals'!$A$12:$V$61,16))","v":""},"",{"$f":"IF(B25=0, \"\",VLOOKUP(A25,'All Meals'!$A$12:$V$61,19))","v":""},{"$f":"IF(B25=0, \"\",VLOOKUP(A25,'All Meals'!$A$12:$V$61,20))","v":""},""]
[1,0,20,null,{"$f":"IF(B26=0,\"\",FLOOR(VLOOKUP(A26,'All Meals'!$A$12:$V$61,4),0.25))","v":""},"",{"$f":"IF(B26=0,\"\",FLOOR(VLOOKUP(A26,'All Meals'!$A$12:$V$61,5),0.25))","v":""},"",{"$f":"IF(B26=0,\"\",FLOOR(VLOOKUP(A26,'All Meals'!$A$12:$V$61,6),0.25))","v":""},{"$f":"IF(B26=0,\"\",FLOOR(VLOOKUP(A26,'All Meals'!$A$12:$V$61,7),0.25))","v":""},{"$f":"IF(B26=0, \"\",VLOOKUP(A26,'All Meals'!$A$12:$V$61,10))","v":""},"",{"$f":"IF(B26=0, \"\",VLOOKUP(A26,'All Meals'!$A$12:$V$61,13))","v":""},{"$f":"IF(B26=0, \"\",VLOOKUP(A26,'All Meals'!$A$12:$V$61,16))","v":""},"",{"$f":"IF(B26=0, \"\",VLOOKUP(A26,'All Meals'!$A$12:$V$61,19))","v":""},{"$f":"IF(B26=0, \"\",VLOOKUP(A26,'All Meals'!$A$12:$V$61,20))","v":""},""]

{"sheet":"Day4","index":9,"n_rows":26,"n_cols":57,"rows_kept":26,"cut":false,"hidden":false,"merged":[[3,2,5,3],[2,2,2,25],[3,13,3,15],[4,15,5,15],[3,4,3,5],[4,4,5,4],[4,5,5,5],[3,6,3,9],[4,6,5,6],[4,7,5,7],[4,8,5,8],[4,9,5,9],[25,27,25,30],[25,33,25,36],[25,39,25,42],[25,45,25,48],[21,19,22,21],[21,24,22,25],[21,45,21,48],[18,19,18,25],[25,51,25,54],[23,27,23,30],[23,33,23,36],[23,39,23,42],[23,45,23,48],[23,51,23,54],[24,27,24,30],[24,33,24,36],[24,39,24,42],[24,45,24,48],[24,51,24,54],[21,51,21,54],[22,27,22,30],[22,33,22,36],[22,39,22,42],[22,45,22,48],[22,51,22,54],[21,27,21,30],[21,33,21,36],[21,39,21,42],[19,19,20,21],[19,24,20,25],[19,27,19,54],[20,27,20,30],[20,33,20,36],[20,39,20,42],[20,45,20,48],[20,51,20,54],[8,51,8,54],[10,19,11,25],[12,19,17,21],[12,24,12,25],[13,24,13,25],[14,24,14,25],[15,24,15,25],[16,24,16,25],[17,24,17,25],[7,18,7,21],[8,18,8,21],[8,27,8,30],[8,33,8,36],[8,39,8,42],[8,45,8,48],[6,43,7,43],[6,44,7,44],[6,45,7,45],[6,46,7,46],[6,49,7,49],[6,50,7,50],[6,51,7,51],[6,52,7,52],[6,53,7,53],[6,54,7,54],[6,47,7,47],[6,48,7,48],[6,37,7,37],[6,38,7,38],[6,39,7,39],[6,40,7,40],[6,41,7,41],[6,42,7,42],[4,55,5,55],[4,56,5,56],[5,18,5,21],[6,18,6,21],[6,27,7,27],[6,28,7,28],[6,29,7,29],[6,30,7,30],[6,31,7,31],[6,34,7,34],[4,39,5,39],[4,42,5,42],[4,45,5,45],[4,48,5,48],[4,51,5,51],[4,54,5,54],[4,33,5,33],[6,32,7,32],[6,33,7,33],[4,36,5,36],[6,35,7,35],[6,36,7,36],[4,14,5,14],[4,17,5,17],[4,18,4,21],[4,25,6,25],[4,27,5,27],[4,30,5,30],[2,27,2,39],[3,10,3,12],[3,16,3,17],[3,18,3,25],[3,27,3,54],[4,16,5,16],[4,10,5,10],[4,11,5,11],[4,12,5,12],[4,13,5,13],[0,19,0,25],[0,27,0,54],[1,3,1,17],[1,19,1,21],[1,24,1,25],[1,27,1,48],[1,51,1,55],[0,2,0,17]]}
[null,null,"Day4 Daily Lunch Requirement Check\nGrades K-8",null,null,null,null,null,null,null,null,null,null,null,null,null,null,null,null,"Scroll to the right to enter vegetable subgroup information",null,null,null,null,null,null,null,"Day4 Vegetable Subgroup Data Entry\nGrades K-8"]
[null,null,null,"The daily worksheet will perform daily requirement checks for the reimbursable meals offered each day. Requirements met are flagged \"Yes\" and the cell turns green. Requirements NOT met are flagged \"No\" and the cell turns red. \nNOTE: The top row is frozen to display the column headers as the daily meals are entered.\nGrains, whole grain rich, and meat/meat alternate oz equivalents are rounded down to the nearest quarter ounce.\nOnce you are finished selecting the meals offered each day, make sure to scroll to the right to enter milk type and vegetable subgroup information.",null,null,null,null,null,null,null,null,null,null,null,null,null,null,null,"Go to Instructions",null,null,null,null,"Go to Weekly Report",null,null,"Creditable Amount of Each Vegetable Subgroup Offered on Day4\nIn the first drop down box, select the largest amount of each vegetable subgroup offered to a student, then in the drop down boxes below, select the name and amount of each vegetable offered in the subgroup. \nIf you want to clear an entry, select the first blank in the drop down box.\nFor additional information on completing the data entry for the vegetable subgroup section, please refer to the Instructions tab. ",null,null,null,null,null,null,null,null,null,null,null,null,null,null,null,null,null,null,null,null,null,null,null,"Click here for help categorizing vegetables\n(Scroll to page 5)"]
[null,null,"Day4",null,null,null,null,null,null,null,null,null,null,null,null,null,null,null,null,null,null,null,null,null,null,null,null,"Check this box if you offered the weekly vegetable bar on Day4 with NO CHANGES:",null,null,null,null,null,null,null,null,null,null,null,null,null,null,null,false]
[null,null,"1.  Meal Name\nSelect the reimbursable lunches offered for the day\nNote: You may not delete lines, if you want to clear a meal select the first blank in the drop down list",null,"2.  Meat/Meat Alternate (M/MA)",null,"3. Grains",null,null,null,"4. Fruit",null,null,"5. Vegetables",null,null,"6. Milk",null,"Milk Type\nCheck the type of milk below if it is offered to students on Day4. \nAll types of milk included.",null,null,null,null,null,null,null,null,"If you offered any vegetables in addition to the weekly vegetable bar, select the largest amount of the vegetable offered to a student and select the name of each vegetable under the appropriate subgroup.\nNOTE:  If you offered a vegetable bar on Day4 that differs from the weekly offerings, all offerings and quantities for each vegetable subgroup must be selected in the section below.",null,null,null,null,null,null,null,null,null,null,null,null,null,null,null,null,null,null,null,null,null,null,null,null,null,null,null,"o_i","O_num"]
[null,null,null,null,"M/MA\noz equivalents","Daily M/MA Requirement Check\n1 oz equivalents","a. Grains\n oz equivalents\n","Daily Grain Requirement Check\n1 oz equivalents","b. Whole Grain Rich\n oz equivalents","c. Grain Based Dessert\n oz equivalents\n ","a. Fruit\ncups","Daily Fruit Requirement Check\n1/2 cup","b. Fruit Juice \ncups","a. Vegetables\n cups","Daily Vegetable Requirement Check\n3/4 cup","b. Vegetable Juice \ncups","Milk\ncups","Daily Milk Requirement Check\n1 cup","Skim/fat-free, unflavored",null,null,null,null,false,null,{"$f":"IF(AND(X5=FALSE,X6=FALSE,X7=FALSE),\"\",IF(AND(X5=TRUE,X6=TRUE),\"Yes\",IF(AND(X5=TRUE,X7=TRUE),\"Yes\",IF(AND(X6=TRUE,X7=TRUE),\"Yes\",\"No\"))))","v":""},null,"DARK GREEN vegetables offered on Day4",null,null,"Quantity (cups)",null,null,"Red/Orange vegetables offered on Day4",null,null,"Quantity (cups)",null,null,"Beans/Peas (legumes) offered on Day4",null,null,"Quantity (cups)",null,null,"Starchy vegetables offered on Day4",null,null,"Quantity (cups)",null,null,"Other vegetables offered on Day4",null,null,"Quantity (cups)",1,{"$f":"INDEX(Cups,BD5)","v":0}]
[null,null,null,null,null,null,null,null,null,null,null,null,null,null,null,null,null,null,"Skim/fat-free, flavored",null,null,null,null,false,null,null,null,null,"G_T",null,null,"G_I","G_num",null,"R_T",null,null,"R_i","r_num",null,"B_t",null,null,"B_i","B_num",null,"S_T",null,null,"s_i","s_num",null,"O_T"]
[2,{"$f":"INDEX(meals,A7)","v":0},1,null,{"$f":"IF(B7=0,\"\",FLOOR(VLOOKUP(A7,'All Meals'!$A$12:$V$61,4),0.25))","v":""},{"$f":"IF(B7=0,\"\",IF(E7=\"\",\"No\",IF(E7>=1,\"Yes\",\"No\")))","v":""},{"$f":"IF(B7=0,\"\",FLOOR(VLOOKUP(A7,'All Meals'!$A$12:$V$61,5),0.25))","v":""},{"$f":"IF(B7=0,\"\",IF(G7=\"\",\"No\",IF(G7>=1,\"Yes\",\"No\")))","v":""},{"$f":"IF(B7=0,\"\",FLOOR(VLOOKUP(A7,'All Meals'!$A$12:$V$61,6),0.25))","v":""},{"$f":"IF(B7=0,\"\",FLOOR(VLOOKUP(A7,'All Meals'!$A$12:$V$61,7),0.25))","v":""},{"$f":"IF(B7=0, \"\",VLOOKUP(A7,'All Meals'!$A$12:$V$61,10))","v":""},{"$f":"IF(B7=0,\"\",IF(K7=\"\",\"No\",IF(K7>=0.5,\"Yes\",\"No\")))","v":""},{"$f":"IF(B7=0, \"\",VLOOKUP(A7,'All Meals'!$A$12:$V$61,13))","v":""},{"$f":"IF(B7=0, \"\",VLOOKUP(A7,'All Meals'!$A$12:$V$61,16))","v":""},{"$f":"IF(B7=0,\"\",IF(N7=\"\",\"No\",IF(N7>=0.75,\"Yes\",\"No\")))","v":""},{"$f":"IF(B7=0, \"\",VLOOKUP(A7,'All Meals'!$A$12:$V$61,19))","v":""},{"$f":"IF(B7=0, \"\",VLOOKUP(A7,'All Meals'!$A$12:$V$61,20))","v":""},{"$f":"IF(B7=0,\"\",IF(Q7=\"\",\"No\",IF(Q7>=1,\"Yes\",\"No\")))","v":""},"Low-fat (1% or less), unflavored",null,null,null,null,false,null,null,null,"Largest amount of dark green vegetables to select on Day4",null,null,null,1,{"$f":"INDEX(Cups,AF7)","v":0},"Largest amount of red/orange vegetables to select on Day4",null,null,null,1,{"$f":"INDEX(Cups,AL7)","v":0},"Largest amount of beans/peas to select on Day4",null,null,null,1,{"$f":"INDEX(Cups,AR7)","v":0},"Largest amount of starchy vegetables to select on Day4",null,null,null,1,{"$f":"INDEX(Cups,AX7)","v":0},"Largest amount of other vegetables to select on Day4"]
[1,{"$f":"INDEX(meals,A8)","v":0},2,null,{"$f":"IF(B8=0,\"\",FLOOR(VLOOKUP(A8,'All Meals'!$A$12:$V$61,4),0.25))","v":""},{"$f":"IF(B8=0,\"\",IF(E8=\"\",\"No\",IF(E8>=1,\"Yes\",\"No\")))","v":""},{"$f":"IF(B8=0,\"\",FLOOR(VLOOKUP(A8,'All Meals'!$A$12:$V$61,5),0.25))","v":""},{"$f":"IF(B8=0,\"\",IF(G8=\"\",\"No\",IF(G8>=1,\"Yes\",\"No\")))","v":""},{"$f":"IF(B8=0,\"\",FLOOR(VLOOKUP(A8,'All Meals'!$A$12:$V$61,6),0.25))","v":""},{"$f":"IF(B8=0,\"\",FLOOR(VLOOKUP(A8,'All Meals'!$A$12:$V$61,7),0.25))","v":""},{"$f":"IF(B8=0, \"\",VLOOKUP(A8,'All Meals'!$A$12:$V$61,10))","v":""},{"$f":"IF(B8=0,\"\",IF(K8=\"\",\"No\",IF(K8>=0.5,\"Yes\",\"No\")))","v":""},{"$f":"IF(B8=0, \"\",VLOOKUP(A8,'All Meals'!$A$12:$V$61,13))","v":""},{"$f":"IF(B8=0, \"\",VLOOKUP(A8,'All Meals'!$A$12:$V$61,16))","v":""},{"$f":"IF(B8=0,\"\",IF(N8=\"\",\"No\",IF(N8>=1,\"Yes\",\"No\")))","v":""},{"$f":"IF(B8=0, \"\",VLOOKUP(A8,'All Meals'!$A$12:$V$61,19))","v":""},{"$f":"IF(B8=0, \"\",VLOOKUP(A8,'All Meals'!$A$12:$V$61,20))","v":""},"","Low-fat (1% or less), flavored",null,null,null,null,false,null,{"$f":"IF(X8=TRUE,\"No\",\"\")","v":""}]
[1,{"$f":"INDEX(meals,A9)","v":0},3,null,{"$f":"IF(B9=0,\"\",FLOOR(VLOOKUP(A9,'All Meals'!$A$12:$V$61,4),0.25))","v":""},"",{"$f":"IF(B9=0,\"\",FLOOR(VLOOKUP(A9,'All Meals'!$A$12:$V$61,5),0.25))","v":""},"",{"$f":"IF(B9=0,\"\",FLOOR(VLOOKUP(A9,'All Meals'!$A$12:$V$61,6),0.25))","v":""},{"$f":"IF(B9=0,\"\",FLOOR(VLOOKUP(A9,'All Meals'!$A$12:$V$61,7),0.25))","v":""},{"$f":"IF(B9=0, \"\",VLOOKUP(A9,'All Meals'!$A$12:$V$61,10))","v":""},"",{"$f":"IF(B9=0, \"\",VLOOKUP(A9,'All Meals'!$A$12:$V$61,13))","v":""},{"$f":"IF(B9=0, \"\",VLOOKUP(A9,'All Meals'!$A$12:$V$61,16))","v":""},"",{"$f":"IF(B9=0, \"\",VLOOKUP(A9,'All Meals'!$A$12:$V$61,19))","v":""},{"$f":"IF(B9=0, \"\",VLOOKUP(A9,'All Meals'!$A$12:$V$61,20))","v":""},"","Reduced fat (2% fat) or whole, unflavored and flavored",null,null,null,null,false,null,{"$f":"IF(X9=TRUE,\"No\",\"\")","v":""},null,{"$f":"IF(OR(COUNTIF(AC10:AC19, 12)>0, COUNTIF(AC10:AC19,2)>0, COUNTIF(AC10:AC19,4)>0, COUNTIF(AC10:AC19,10)>0, COUNTIF(AC10:AC19,15)>0, COUNTIF(AC10:AC19,17)>0,), \"Remember to enter CREDITABLE amounts of leafy greens!\", \"\")","v":""},null,null,null,null,null,{"$f":"IF(COUNTIF(AI10:AI19,10)>0,\"Remember to enter the CREDITABLE amount of tomato paste!\",\"\")","v":""},null,null,null,null,null,{"$f":"IF(SUM(AO10:AO19)>10, \"If crediting as a vegetable do not also credit as a meat/meat alternate\", \"\")","v":""}]
[1,{"$f":"INDEX(meals,A10)","v":0},4,null,{"$f":"IF(B10=0,\"\",FLOOR(VLOOKUP(A10,'All Meals'!$A$12:$V$61,4),0.25))","v":""},"",{"$f":"IF(B10=0,\"\",FLOOR(VLOOKUP(A10,'All Meals'!$A$12:$V$61,5),0.25))","v":""},"",{"$f":"IF(B10=0,\"\",FLOOR(VLOOKUP(A10,'All Meals'!$A$12:$V$61,6),0.25))","v":""},{"$f":"IF(B10=0,\"\",FLOOR(VLOOKUP(A10,'All Meals'!$A$12:$V$61,7),0.25))","v":""},{"$f":"IF(B10=0, \"\",VLOOKUP(A10,'All Meals'!$A$12:$V$61,10))","v":""},"",{"$f":"IF(B10=0, \"\",VLOOKUP(A10,'All Meals'!$A$12:$V$61,13))","v":""},{"$f":"IF(B10=0, \"\",VLOOKUP(A10,'All Meals'!$A$12:$V$61,16))","v":""},"",{"$f":"IF(B10=0, \"\",VLOOKUP(A10,'All Meals'!$A$12:$V$61,19))","v":""},{"$f":"IF(B10=0, \"\",VLOOKUP(A10,'All Meals'!$A$12:$V$61,20))","v":""},"",null,null,null,null,null,null,null,null,null,null,1,{"$f":"INDEX(GREEN,AC10)","v":0},null,1,{"$f":"IF(AD10=0,\"\",INDEX(Cups,AF10))","v":""},null,1,{"$f":"INDEX(RED,AI10)","v":0},null,1,{"$f":"IF(AJ10=0, \"\", INDEX(Cups,AL10))","v":""},null,1,{"$f":"INDEX(BEANS,AO10)","v":0},null,1,{"$f":"IF(AP10=0,\"\",INDEX(Cups,AR10))","v":""},null,1,{"$f":"INDEX(STARCHY,AU10)","v":0},null,1,{"$f":"IF(AV10=0,\"\",INDEX(Cups,AX10))","v":""},null,1,{"$f":"INDEX(OTHER,BA10)","v":0},null,1,{"$f":"IF(BB10=0,\"\",INDEX(Cups,BD10))","v":""}]
[1,0,5,null,{"$f":"IF(B11=0,\"\",FLOOR(VLOOKUP(A11,'All Meals'!$A$12:$V$61,4),0.25))","v":""},"",{"$f":"IF(B11=0,\"\",FLOOR(VLOOKUP(A11,'All Meals'!$A$12:$V$61,5),0.25))","v":""},"",{"$f":"IF(B11=0,\"\",FLOOR(VLOOKUP(A11,'All Meals'!$A$12:$V$61,6),0.25))","v":""},{"$f":"IF(B11=0,\"\",FLOOR(VLOOKUP(A11,'All Meals'!$A$12:$V$61,7),0.25))","v":""},{"$f":"IF(B11=0, \"\",VLOOKUP(A11,'All Meals'!$A$12:$V$61,10))","v":""},"",{"$f":"IF(B11=0, \"\",VLOOKUP(A11,'All Meals'!$A$12:$V$61,13))","v":""},{"$f":"IF(B11=0, \"\",VLOOKUP(A11,'All Meals'!$A$12:$V$61,16))","v":""},"",{"$f":"IF(B11=0, \"\",VLOOKUP(A11,'All Meals'!$A$12:$V$61,19))","v":""},{"$f":"IF(B11=0, \"\",VLOOKUP(A11,'All Meals'!$A$12:$V$61,20))","v":""},"",null,"OPTIONAL Tools to Assist in Fraction and Decimal Calculations",null,null,null,null,null,null,null,null,1,0,null,1,"",null,1,0,null,1,"",null,1,0,null,1,"",null,1,0,null,1,{"$f":"IF(AV11=0,\"\",INDEX(Cups,AX11))","v":""},null,1,0,null,1,""]
[1,0,6,null,{"$f":"IF(B12=0,\"\",FLOOR(VLOOKUP(A12,'All Meals'!$A$12:$V$61,4),0.25))","v":""},"",{"$f":"IF(B12=0,\"\",FLOOR(VLOOKUP(A12,'All Meals'!$A$12:$V$61,5),0.25))","v":""},"",{"$f":"IF(B12=0,\"\",FLOOR(VLOOKUP(A12,'All Meals'!$A$12:$V$61,6),0.25))","v":""},{"$f":"IF(B12=0,\"\",FLOOR(VLOOKUP(A12,'All Meals'!$A$12:$V$61,7),0.25))","v":""},{"$f":"IF(B12=0, \"\",VLOOKUP(A12,'All Meals'!$A$12:$V$61,10))","v":""},"",{"$f":"IF(B12=0, \"\",VLOOKUP(A12,'All Meals'!$A$12:$V$61,13))","v":""},{"$f":"IF(B12=0, \"\",VLOOKUP(A12,'All Meals'!$A$12:$V$61,16))","v":""},"",{"$f":"IF(B12=0, \"\",VLOOKUP(A12,'All Meals'!$A$12:$V$61,19))","v":""},{"$f":"IF(B12=0, \"\",VLOOKUP(A12,'All Meals'!$A$12:$V$61,20))","v":""},"",null,null,null,null,null,null,null,null,null,null,1,0,null,1,"",null,1,0,null,1,"",null,1,0,null,1,"",null,1,0,null,1,"",null,1,0,null,1,""]
[1,0,7,null,{"$f":"IF(B13=0,\"\",FLOOR(VLOOKUP(A13,'All Meals'!$A$12:$V$61,4),0.25))","v":""},"",{"$f":"IF(B13=0,\"\",FLOOR(VLOOKUP(A13,'All Meals'!$A$12:$V$61,5),0.25))","v":""},"",{"$f":"IF(B13=0,\"\",FLOOR(VLOOKUP(A13,'All Meals'!$A$12:$V$61,6),0.25))","v":""},{"$f":"IF(B13=0,\"\",FLOOR(VLOOKUP(A13,'All Meals'!$A$12:$V$61,7),0.25))","v":""},{"$f":"IF(B13=0, \"\",VLOOKUP(A13,'All Meals'!$A$12:$V$61,10))","v":""},"",{"$f":"IF(B13=0, \"\",VLOOKUP(A13,'All Meals'!$A$12:$V$61,13))","v":""},{"$f":"IF(B13=0, \"\",VLOOKUP(A13,'All Meals'!$A$12:$V$61,16))","v":""},"",{"$f":"IF(B13=0, \"\",VLOOKUP(A13,'All Meals'!$A$12:$V$61,19))","v":""},{"$f":"IF(B13=0, \"\",VLOOKUP(A13,'All Meals'!$A$12:$V$61,20))","v":""},"",null,"Fraction Calculator: \nUse this calculator to add the number of cups.",null,null,1,{"$f":"INDEX(Cups,W13)","v":0},null,null,null,null,1,0,null,1,"",null,1,0,null,1,"",null,1,0,null,1,"",null,1,0,null,1,"",null,1,0,null,1,""]
[1,0,8,null,{"$f":"IF(B14=0,\"\",FLOOR(VLOOKUP(A14,'All Meals'!$A$12:$V$61,4),0.25))","v":""},"",{"$f":"IF(B14=0,\"\",FLOOR(VLOOKUP(A14,'All Meals'!$A$12:$V$61,5),0.25))","v":""},"",{"$f":"IF(B14=0,\"\",FLOOR(VLOOKUP(A14,'All Meals'!$A$12:$V$61,6),0.25))","v":""},{"$f":"IF(B14=0,\"\",FLOOR(VLOOKUP(A14,'All Meals'!$A$12:$V$61,7),0.25))","v":""},{"$f":"IF(B14=0, \"\",VLOOKUP(A14,'All Meals'!$A$12:$V$61,10))","v":""},"",{"$f":"IF(B14=0, \"\",VLOOKUP(A14,'All Meals'!$A$12:$V$61,13))","v":""},{"$f":"IF(B14=0, \"\",VLOOKUP(A14,'All Meals'!$A$12:$V$61,16))","v":""},"",{"$f":"IF(B14=0, \"\",VLOOKUP(A14,'All Meals'!$A$12:$V$61,19))","v":""},{"$f":"IF(B14=0, \"\",VLOOKUP(A14,'All Meals'!$A$12:$V$61,20))","v":""},"",null,null,null,null,1,{"$f":"INDEX(Cups,W14)","v":0},null,null,null,null,1,0,null,1,"",null,1,0,null,1,"",null,1,0,null,1,"",null,1,0,null,1,"",null,1,0,null,1,""]
[1,0,9,null,{"$f":"IF(B15=0,\"\",FLOOR(VLOOKUP(A15,'All Meals'!$A$12:$V$61,4),0.25))","v":""},"",{"$f":"IF(B15=0,\"\",FLOOR(VLOOKUP(A15,'All Meals'!$A$12:$V$61,5),0.25))","v":""},"",{"$f":"IF(B15=0,\"\",FLOOR(VLOOKUP(A15,'All Meals'!$A$12:$V$61,6),0.25))","v":""},{"$f":"IF(B15=0,\"\",FLOOR(VLOOKUP(A15,'All Meals'!$A$12:$V$61,7),0.25))","v":""},{"$f":"IF(B15=0, \"\",VLOOKUP(A15,'All Meals'!$A$12:$V$61,10))","v":""},"",{"$f":"IF(B15=0, \"\",VLOOKUP(A15,'All Meals'!$A$12:$V$61,13))","v":""},{"$f":"IF(B15=0, \"\",VLOOKUP(A15,'All Meals'!$A$12:$V$61,16))","v":""},"",{"$f":"IF(B15=0, \"\",VLOOKUP(A15,'All Meals'!$A$12:$V$61,19))","v":""},{"$f":"IF(B15=0, \"\",VLOOKUP(A15,'All Meals'!$A$12:$V$61,20))","v":""},"",null,null,null,null,1,{"$f":"INDEX(Cups,W15)","v":0},null,null,null,null,1,0,null,1,"",null,1,0,null,1,"",null,1,0,null,1,"",null,1,0,null,1,"",null,1,0,null,1,""]
[1,0,10,null,{"$f":"IF(B16=0,\"\",FLOOR(VLOOKUP(A16,'All Meals'!$A$12:$V$61,4),0.25))","v":""},"",{"$f":"IF(B16=0,\"\",FLOOR(VLOOKUP(A16,'All Meals'!$A$12:$V$61,5),0.25))","v":""},"",{"$f":"IF(B16=0,\"\",FLOOR(VLOOKUP(A16,'All Meals'!$A$12:$V$61,6),0.25))","v":""},{"$f":"IF(B16=0,\"\",FLOOR(VLOOKUP(A16,'All Meals'!$A$12:$V$61,7),0.25))","v":""},{"$f":"IF(B16=0, \"\",VLOOKUP(A16,'All Meals'!$A$12:$V$61,10))","v":""},"",{"$f":"IF(B16=0, \"\",VLOOKUP(A16,'All Meals'!$A$12:$V$61,13))","v":""},{"$f":"IF(B16=0, \"\",VLOOKUP(A16,'All Meals'!$A$12:$V$61,16))","v":""},"",{"$f":"IF(B16=0, \"\",VLOOKUP(A16,'All Meals'!$A$12:$V$61,19))","v":""},{"$f":"IF(B16=0, \"\",VLOOKUP(A16,'All Meals'!$A$12:$V$61,20))","v":""},"",null,null,null,null,1,{"$f":"INDEX(Cups,W16)","v":0},null,null,null,null,1,0,null,1,"",null,1,0,null,1,"",null,1,0,null,1,"",null,1,0,null,1,"",null,1,0,null,1,""]
[1,0,11,null,{"$f":"IF(B17=0,\"\",FLOOR(VLOOKUP(A17,'All Meals'!$A$12:$V$61,4),0.25))","v":""},"",{"$f":"IF(B17=0,\"\",FLOOR(VLOOKUP(A17,'All Meals'!$A$12:$V$61,5),0.25))","v":""},"",{"$f":"IF(B17=0,\"\",FLOOR(VLOOKUP(A17,'All Meals'!$A$12:$V$61,6),0.25))","v":""},{"$f":"IF(B17=0,\"\",FLOOR(VLOOKUP(A17,'All Meals'!$A$12:$V$61,7),0.25))","v":""},{"$f":"IF(B17=0, \"\",VLOOKUP(A17,'All Meals'!$A$12:$V$61,10))","v":""},"",{"$f":"IF(B17=0, \"\",VLOOKUP(A17,'All Meals'!$A$12:$V$61,13))","v":""},{"$f":"IF(B17=0, \"\",VLOOKUP(A17,'All Meals'!$A$12:$V$61,16))","v":""},"",{"$f":"IF(B17=0, \"\",VLOOKUP(A17,'All Meals'!$A$12:$V$61,19))","v":""},{"$f":"IF(B17=0, \"\",VLOOKUP(A17,'All Meals'!$A$12:$V$61,20))","v":""},"",null,null,null,null,1,{"$f":"INDEX(Cups,W17)","v":0},null,null,null,null,1,0,null,1,"",null,1,0,null,1,"",null,1,0,null,1,"",null,1,0,null,1,"",null,1,0,null,1,""]
[1,0,12,null,{"$f":"IF(B18=0,\"\",FLOOR(VLOOKUP(A18,'All Meals'!$A$12:$V$61,4),0.25))","v":""},"",{"$f":"IF(B18=0,\"\",FLOOR(VLOOKUP(A18,'All Meals'!$A$12:$V$61,5),0.25))","v":""},"",{"$f":"IF(B18=0,\"\",FLOOR(VLOOKUP(A18,'All Meals'!$A$12:$V$61,6),0.25))","v":""},{"$f":"IF(B18=0,\"\",FLOOR(VLOOKUP(A18,'All Meals'!$A$12:$V$61,7),0.25))","v":""},{"$f":"IF(B18=0, \"\",VLOOKUP(A18,'All Meals'!$A$12:$V$61,10))","v":""},"",{"$f":"IF(B18=0, \"\",VLOOKUP(A18,'All Meals'!$A$12:$V$61,13))","v":""},{"$f":"IF(B18=0, \"\",VLOOKUP(A18,'All Meals'!$A$12:$V$61,16))","v":""},{"$f":"IF(B18=0,\"\",IF(N18=\"\",\"No\",IF(N18>=0.75,\"Yes\",\"No\")))","v":""},{"$f":"IF(B18=0, \"\",VLOOKUP(A18,'All Meals'!$A$12:$V$61,19))","v":""},{"$f":"IF(B18=0, \"\",VLOOKUP(A18,'All Meals'!$A$12:$V$61,20))","v":""},"",null,null,null,null,null,null,{"$f":"SUM(X13:X17)","v":0},null,null,null,1,0,null,1,"",null,1,0,null,1,"",null,1,0,null,1,"",null,1,0,null,1,"",null,1,0,null,1,""]
[1,0,13,null,{"$f":"IF(B19=0,\"\",FLOOR(VLOOKUP(A19,'All Meals'!$A$12:$V$61,4),0.25))","v":""},"",{"$f":"IF(B19=0,\"\",FLOOR(VLOOKUP(A19,'All Meals'!$A$12:$V$61,5),0.25))","v":""},"",{"$f":"IF(B19=0,\"\",FLOOR(VLOOKUP(A19,'All Meals'!$A$12:$V$61,6),0.25))","v":""},{"$f":"IF(B19=0,\"\",FLOOR(VLOOKUP(A19,'All Meals'!$A$12:$V$61,7),0.25))","v":""},{"$f":"IF(B19=0, \"\",VLOOKUP(A19,'All Meals'!$A$12:$V$61,10))","v":""},"",{"$f":"IF(B19=0, \"\",VLOOKUP(A19,'All Meals'!$A$12:$V$61,13))","v":""},{"$f":"IF(B19=0, \"\",VLOOKUP(A19,'All Meals'!$A$12:$V$61,16))","v":""},{"$f":"IF(B19=0,\"\",IF(N19=\"\",\"No\",IF(N19>=0.75,\"Yes\",\"No\")))","v":""},{"$f":"IF(B19=0, \"\",VLOOKUP(A19,'All Meals'!$A$12:$V$61,19))","v":""},{"$f":"IF(B19=0, \"\",VLOOKUP(A19,'All Meals'!$A$12:$V$61,20))","v":""},"",null,"Decimal/Fraction Converter\n(Rounded down to the nearest 1/8)",null,null,null,null,null,null,null,null,1,0,null,1,"",null,1,0,null,1,"",null,1,0,null,1,"",null,1,0,null,1,"",null,1,0,null,1,""]
[1,0,14,null,{"$f":"IF(B20=0,\"\",FLOOR(VLOOKUP(A20,'All Meals'!$A$12:$V$61,4),0.25))","v":""},"",{"$f":"IF(B20=0,\"\",FLOOR(VLOOKUP(A20,'All Meals'!$A$12:$V$61,5),0.25))","v":""},"",{"$f":"IF(B20=0,\"\",FLOOR(VLOOKUP(A20,'All Meals'!$A$12:$V$61,6),0.25))","v":""},{"$f":"IF(B20=0,\"\",FLOOR(VLOOKUP(A20,'All Meals'!$A$12:$V$61,7),0.25))","v":""},{"$f":"IF(B20=0, \"\",VLOOKUP(A20,'All Meals'!$A$12:$V$61,10))","v":""},"",{"$f":"IF(B20=0, \"\",VLOOKUP(A20,'All Meals'!$A$12:$V$61,13))","v":""},{"$f":"IF(B20=0, \"\",VLOOKUP(A20,'All Meals'!$A$12:$V$61,16))","v":""},"",{"$f":"IF(B20=0, \"\",VLOOKUP(A20,'All Meals'!$A$12:$V$61,19))","v":""},{"$f":"IF(B20=0, \"\",VLOOKUP(A20,'All Meals'!$A$12:$V$61,20))","v":""},"",null,"Enter the decimal you wish to convert to a fraction in the box:",null,null,null,null,null,null,null,{"$f":"IF(OR(COUNTIF(AC10:AC19,18)>0, COUNTIF(AI10:AI19, 13)>0, COUNTIF(AO10:AO19, 12)>0, COUNTIF(AU10:AU19, 11)>0,COUNTIF(BA10:BA19,34)>0, COUNTIF(BA10:BA19,35)>0, COUNTIF(BA10:BA19,36)>0,COUNTIF(BA10:BA19,37)>0, COUNTIF(BA10:BA19,38)>0, COUNTIF(BA10:BA19,39)>0), \"You entered an unspecified or extra other vegetable above, please enter the name of the vegetable in the appropriate subgroup below\", \"\")","v":""}]
[1,0,15,null,{"$f":"IF(B21=0,\"\",FLOOR(VLOOKUP(A21,'All Meals'!$A$12:$V$61,4),0.25))","v":""},"",{"$f":"IF(B21=0,\"\",FLOOR(VLOOKUP(A21,'All Meals'!$A$12:$V$61,5),0.25))","v":""},"",{"$f":"IF(B21=0,\"\",FLOOR(VLOOKUP(A21,'All Meals'!$A$12:$V$61,6),0.25))","v":""},{"$f":"IF(B21=0,\"\",FLOOR(VLOOKUP(A21,'All Meals'!$A$12:$V$61,7),0.25))","v":""},{"$f":"IF(B21=0, \"\",VLOOKUP(A21,'All Meals'!$A$12:$V$61,10))","v":""},"",{"$f":"IF(B21=0, \"\",VLOOKUP(A21,'All Meals'!$A$12:$V$61,13))","v":""},{"$f":"IF(B21=0, \"\",VLOOKUP(A21,'All Meals'!$A$12:$V$61,16))","v":""},"",{"$f":"IF(B21=0, \"\",VLOOKUP(A21,'All Meals'!$A$12:$V$61,19))","v":""},{"$f":"IF(B21=0, \"\",VLOOKUP(A21,'All Meals'!$A$12:$V$61,20))","v":""},"",null,null,null,null,null,null,null,null,null,"Unspecified Dark Green Vegetables",null,null,null,null,null,"Unspecified Red/Orange Vegetables",null,null,null,null,null,"Unspecified Beans/Peas",null,null,null,null,null,"Unspecified Starchy Vegetables",null,null,null,null,null,"Unspecified Other Vegetables"]
[1,0,16,null,{"$f":"IF(B22=0,\"\",FLOOR(VLOOKUP(A22,'All Meals'!$A$12:$V$61,4),0.25))","v":""},"",{"$f":"IF(B22=0,\"\",FLOOR(VLOOKUP(A22,'All Meals'!$A$12:$V$61,5),0.25))","v":""},"",{"$f":"IF(B22=0,\"\",FLOOR(VLOOKUP(A22,'All Meals'!$A$12:$V$61,6),0.25))","v":""},{"$f":"IF(B22=0,\"\",FLOOR(VLOOKUP(A22,'All Meals'!$A$12:$V$61,7),0.25))","v":""},{"$f":"IF(B22=0, \"\",VLOOKUP(A22,'All Meals'!$A$12:$V$61,10))","v":""},"",{"$f":"IF(B22=0, \"\",VLOOKUP(A22,'All Meals'!$A$12:$V$61,13))","v":""},{"$f":"IF(B22=0, \"\",VLOOKUP(A22,'All Meals'!$A$12:$V$61,16))","v":""},"",{"$f":"IF(B22=0, \"\",VLOOKUP(A22,'All Meals'!$A$12:$V$61,19))","v":""},{"$f":"IF(B22=0, \"\",VLOOKUP(A22,'All Meals'!$A$12:$V$61,20))","v":""},"",null,"The decimal entered above has been converted to the following fraction:",null,null,null,null,{"$f":"FLOOR(Y20,0.125)","v":0}]
[1,0,17,null,{"$f":"IF(B23=0,\"\",FLOOR(VLOOKUP(A23,'All Meals'!$A$12:$V$61,4),0.25))","v":""},"",{"$f":"IF(B23=0,\"\",FLOOR(VLOOKUP(A23,'All Meals'!$A$12:$V$61,5),0.25))","v":""},"",{"$f":"IF(B23=0,\"\",FLOOR(VLOOKUP(A23,'All Meals'!$A$12:$V$61,6),0.25))","v":""},{"$f":"IF(B23=0,\"\",FLOOR(VLOOKUP(A23,'All Meals'!$A$12:$V$61,7),0.25))","v":""},{"$f":"IF(B23=0, \"\",VLOOKUP(A23,'All Meals'!$A$12:$V$61,10))","v":""},"",{"$f":"IF(B23=0, \"\",VLOOKUP(A23,'All Meals'!$A$12:$V$61,13))","v":""},{"$f":"IF(B23=0, \"\",VLOOKUP(A23,'All Meals'!$A$12:$V$61,16))","v":""},"",{"$f":"IF(B23=0, \"\",VLOOKUP(A23,'All Meals'!$A$12:$V$61,19))","v":""},{"$f":"IF(B23=0, \"\",VLOOKUP(A23,'All Meals'!$A$12:$V$61,20))","v":""},""]
[1,0,18,null,{"$f":"IF(B24=0,\"\",FLOOR(VLOOKUP(A24,'All Meals'!$A$12:$V$61,4),0.25))","v":""},"",{"$f":"IF(B24=0,\"\",FLOOR(VLOOKUP(A24,'All Meals'!$A$12:$V$61,5),0.25))","v":""},"",{"$f":"IF(B24=0,\"\",FLOOR(VLOOKUP(A24,'All Meals'!$A$12:$V$61,6),0.25))","v":""},{"$f":"IF(B24=0,\"\",FLOOR(VLOOKUP(A24,'All Meals'!$A$12:$V$61,7),0.25))","v":""},{"$f":"IF(B24=0, \"\",VLOOKUP(A24,'All Meals'!$A$12:$V$61,10))","v":""},"",{"$f":"IF(B24=0, \"\",VLOOKUP(A24,'All Meals'!$A$12:$V$61,13))","v":""},{"$f":"IF(B24=0, \"\",VLOOKUP(A24,'All Meals'!$A$12:$V$61,16))","v":""},"",{"$f":"IF(B24=0, \"\",VLOOKUP(A24,'All Meals'!$A$12:$V$61,19))","v":""},{"$f":"IF(B24=0, \"\",VLOOKUP(A24,'All Meals'!$A$12:$V$61,20))","v":""},""]
[1,0,19,null,{"$f":"IF(B25=0,\"\",FLOOR(VLOOKUP(A25,'All Meals'!$A$12:$V$61,4),0.25))","v":""},"",{"$f":"IF(B25=0,\"\",FLOOR(VLOOKUP(A25,'All Meals'!$A$12:$V$61,5),0.25))","v":""},"",{"$f":"IF(B25=0,\"\",FLOOR(VLOOKUP(A25,'All Meals'!$A$12:$V$61,6),0.25))","v":""},{"$f":"IF(B25=0,\"\",FLOOR(VLOOKUP(A25,'All Meals'!$A$12:$V$61,7),0.25))","v":""},{"$f":"IF(B25=0, \"\",VLOOKUP(A25,'All Meals'!$A$12:$V$61,10))","v":""},"",{"$f":"IF(B25=0, \"\",VLOOKUP(A25,'All Meals'!$A$12:$V$61,13))","v":""},{"$f":"IF(B25=0, \"\",VLOOKUP(A25,'All Meals'!$A$12:$V$61,16))","v":""},"",{"$f":"IF(B25=0, \"\",VLOOKUP(A25,'All Meals'!$A$12:$V$61,19))","v":""},{"$f":"IF(B25=0, \"\",VLOOKUP(A25,'All Meals'!$A$12:$V$61,20))","v":""},""]
[1,0,20,null,{"$f":"IF(B26=0,\"\",FLOOR(VLOOKUP(A26,'All Meals'!$A$12:$V$61,4),0.25))","v":""},"",{"$f":"IF(B26=0,\"\",FLOOR(VLOOKUP(A26,'All Meals'!$A$12:$V$61,5),0.25))","v":""},"",{"$f":"IF(B26=0,\"\",FLOOR(VLOOKUP(A26,'All Meals'!$A$12:$V$61,6),0.25))","v":""},{"$f":"IF(B26=0,\"\",FLOOR(VLOOKUP(A26,'All Meals'!$A$12:$V$61,7),0.25))","v":""},{"$f":"IF(B26=0, \"\",VLOOKUP(A26,'All Meals'!$A$12:$V$61,10))","v":""},"",{"$f":"IF(B26=0, \"\",VLOOKUP(A26,'All Meals'!$A$12:$V$61,13))","v":""},{"$f":"IF(B26=0, \"\",VLOOKUP(A26,'All Meals'!$A$12:$V$61,16))","v":""},"",{"$f":"IF(B26=0, \"\",VLOOKUP(A26,'All Meals'!$A$12:$V$61,19))","v":""},{"$f":"IF(B26=0, \"\",VLOOKUP(A26,'All Meals'!$A$12:$V$61,20))","v":""},""]

{"sheet":"Day5","index":10,"n_rows":26,"n_cols":57,"rows_kept":26,"cut":false,"hidden":false,"merged":[[25,27,25,30],[25,33,25,36],[25,39,25,42],[25,45,25,48],[25,51,25,54],[23,27,23,30],[23,33,23,36],[23,39,23,42],[23,45,23,48],[23,51,23,54],[24,27,24,30],[24,33,24,36],[24,39,24,42],[24,45,24,48],[24,51,24,54],[21,51,21,54],[22,27,22,30],[22,33,22,36],[22,39,22,42],[22,45,22,48],[22,51,22,54],[21,19,22,21],[21,24,22,25],[21,27,21,30],[21,33,21,36],[21,39,21,42],[21,45,21,48],[18,19,18,25],[19,19,20,21],[19,24,20,25],[19,27,19,54],[20,27,20,30],[20,33,20,36],[20,39,20,42],[20,45,20,48],[20,51,20,54],[8,51,8,54],[10,19,11,25],[12,19,17,21],[12,24,12,25],[13,24,13,25],[14,24,14,25],[15,24,15,25],[16,24,16,25],[17,24,17,25],[7,18,7,21],[8,18,8,21],[8,27,8,30],[8,33,8,36],[8,39,8,42],[8,45,8,48],[6,43,7,43],[6,44,7,44],[6,45,7,45],[6,46,7,46],[6,49,7,49],[6,50,7,50],[6,51,7,51],[6,52,7,52],[6,53,7,53],[6,54,7,54],[6,47,7,47],[6,48,7,48],[6,37,7,37],[6,38,7,38],[6,39,7,39],[6,40,7,40],[6,41,7,41],[6,42,7,42],[6,31,7,31],[6,32,7,32],[6,33,7,33],[6,34,7,34],[6,35,7,35],[6,36,7,36],[4,51,5,51],[4,54,5,54],[4,55,5,55],[4,56,5,56],[5,18,5,21],[6,18,6,21],[6,27,7,27],[6,28,7,28],[6,29,7,29],[6,30,7,30],[4,33,5,33],[4,36,5,36],[4,39,5,39],[4,42,5,42],[4,45,5,45],[4,48,5,48],[4,16,5,16],[4,17,5,17],[4,18,4,21],[4,25,6,25],[4,27,5,27],[4,30,5,30],[4,10,5,10],[4,11,5,11],[4,12,5,12],[4,13,5,13],[4,14,5,14],[4,15,5,15],[4,4,5,4],[4,5,5,5],[4,6,5,6],[4,7,5,7],[4,8,5,8],[4,9,5,9],[2,2,2,25],[2,27,2,39],[3,2,5,3],[3,4,3,5],[3,6,3,9],[3,10,3,12],[3,13,3,15],[3,16,3,17],[3,18,3,25],[3,27,3,54],[0,2,0,17],[0,19,0,25],[0,27,0,54],[1,3,1,17],[1,19,1,21],[1,24,1,25],[1,27,1,48],[1,51,1,55]]}
[null,null,"Day5 Daily Lunch Requirement Check\nGrades K-8",null,null,null,null,null,null,null,null,null,null,null,null,null,null,null,null,"Scroll to the right to enter vegetable subgroup information",null,null,null,null,null,null,null,"Day5 Vegetable Subgroup Data Entry\nGrades K-8"]
[null,null,null,"The daily worksheet will perform daily requirement checks for the reimbursable meals offered each day. Requirements met are flagged \"Yes\" and the cell turns green. Requirements NOT met are flagged \"No\" and the cell turns red. \nNOTE: The top row is frozen to display the column headers as the daily meals are entered.\nGrains, whole grain rich, and meat/meat alternate oz equivalents are rounded down to the nearest quarter ounce.\nOnce you are finished selecting the meals offered each day, make sure to scroll to the right to enter milk type and vegetable subgroup information.",null,null,null,null,null,null,null,null,null,null,null,null,null,null,null,"Go to Instructions",null,null,null,null,"Go to Weekly Report",null,null,"Creditable Amount of Each Vegetable Subgroup Offered on Day5\nIn the first drop down box, select the largest amount of each vegetable subgroup offered to a student, then in the drop down boxes below, select the name and amount of each vegetable offered in the subgroup. \nIf you want to clear an entry, select the first blank in the drop down box.\nFor additional information on completing the data entry for the vegetable subgroup section, please refer to the Instructions tab. ",null,null,null,null,null,null,null,null,null,null,null,null,null,null,null,null,null,null,null,null,null,null,null,"Click here for help categorizing vegetables\n(Scroll to page 5)"]
[null,null,"Day5",null,null,null,null,null,null,null,null,null,null,null,null,null,null,null,null,null,null,null,null,null,null,null,null,"Check this box if you offered the weekly vegetable bar on Day5 with NO CHANGES:",null,null,null,null,null,null,null,null,null,null,null,null,null,null,null,false]
[null,null,"1.  Meal Name\nSelect the reimbursable lunches offered for the day\nNote: You may not delete lines, if you want to clear a meal select the first blank in the drop down list",null,"2.  Meat/Meat Alternate (M/MA)",null,"3. Grains",null,null,null,"4. Fruit",null,null,"5. Vegetables",null,null,"6. Milk",null,"Milk Type\nCheck the type of milk below if it is offered to students on Day5. \nAll types of milk included.",null,null,null,null,null,null,null,null,"If you offered any vegetables in addition to the weekly vegetable bar, select the largest amount of the vegetable offered to a student and select the name of each vegetable under the appropriate subgroup.\nNOTE:  If you offered a vegetable bar on Day5 that differs from the weekly offerings, all offerings and quantities for each vegetable subgroup must be selected in the section below.",null,null,null,null,null,null,null,null,null,null,null,null,null,null,null,null,null,null,null,null,null,null,null,null,null,null,null,"o_i","O_num"]
[null,null,null,null,"M/MA\noz equivalents","Daily M/MA Requirement Check\n1 oz equivalents","a. Grains\n oz equivalents\n","Daily Grain Requirement Check\n1 oz equivalents","b. Whole Grain Rich\n oz equivalents","c. Grain Based Dessert\n oz equivalents\n ","a. Fruit\ncups","Daily Fruit Requirement Check\n1/2 cup","b. Fruit Juice \ncups","a. Vegetables\n cups","Daily Vegetable Requirement Check\n3/4 cup","b. Vegetable Juice \ncups","Milk\ncups","Daily Milk Requirement Check\n1 cup","Skim/fat-free, unflavored",null,null,null,null,false,null,{"$f":"IF(AND(X5=FALSE,X6=FALSE,X7=FALSE),\"\",IF(AND(X5=TRUE,X6=TRUE),\"Yes\",IF(AND(X5=TRUE,X7=TRUE),\"Yes\",IF(AND(X6=TRUE,X7=TRUE),\"Yes\",\"No\"))))","v":""},null,"DARK GREEN vegetables offered on Day5",null,null,"Quantity (cups)",null,null,"Red/Orange vegetables offered on Day5",null,null,"Quantity (cups)",null,null,"Beans/Peas (legumes) offered on Day5",null,null,"Quantity (cups)",null,null,"Starchy vegetables offered on Day5",null,null,"Quantity (cups)",null,null,"Other vegetables offered on Day5",null,null,"Quantity (cups)",1,{"$f":"INDEX(Cups,BD5)","v":0}]
[null,null,null,null,null,null,null,null,null,null,null,null,null,null,null,null,null,null,"Skim/fat-free, flavored",null,null,null,null,false,null,null,null,null,"G_T",null,null,"G_I","G_num",null,"R_T",null,null,"R_i","r_num",null,"B_t",null,null,"B_i","B_num",null,"S_T",null,null,"s_i","s_num",null,"O_T"]
[2,{"$f":"INDEX(meals,A7)","v":0},1,null,{"$f":"IF(B7=0,\"\",FLOOR(VLOOKUP(A7,'All Meals'!$A$12:$V$61,4),0.25))","v":""},{"$f":"IF(B7=0,\"\",IF(E7=\"\",\"No\",IF(E7>=1,\"Yes\",\"No\")))","v":""},{"$f":"IF(B7=0,\"\",FLOOR(VLOOKUP(A7,'All Meals'!$A$12:$V$61,5),0.25))","v":""},{"$f":"IF(B7=0,\"\",IF(G7=\"\",\"No\",IF(G7>=1,\"Yes\",\"No\")))","v":""},{"$f":"IF(B7=0,\"\",FLOOR(VLOOKUP(A7,'All Meals'!$A$12:$V$61,6),0.25))","v":""},{"$f":"IF(B7=0,\"\",FLOOR(VLOOKUP(A7,'All Meals'!$A$12:$V$61,7),0.25))","v":""},{"$f":"IF(B7=0, \"\",VLOOKUP(A7,'All Meals'!$A$12:$V$61,10))","v":""},{"$f":"IF(B7=0,\"\",IF(K7=\"\",\"No\",IF(K7>=0.5,\"Yes\",\"No\")))","v":""},{"$f":"IF(B7=0, \"\",VLOOKUP(A7,'All Meals'!$A$12:$V$61,13))","v":""},{"$f":"IF(B7=0, \"\",VLOOKUP(A7,'All Meals'!$A$12:$V$61,16))","v":""},{"$f":"IF(B7=0,\"\",IF(N7=\"\",\"No\",IF(N7>=0.75,\"Yes\",\"No\")))","v":""},{"$f":"IF(B7=0, \"\",VLOOKUP(A7,'All Meals'!$A$12:$V$61,19))","v":""},{"$f":"IF(B7=0, \"\",VLOOKUP(A7,'All Meals'!$A$12:$V$61,20))","v":""},{"$f":"IF(B7=0,\"\",IF(Q7=\"\",\"No\",IF(Q7>=1,\"Yes\",\"No\")))","v":""},"Low-fat (1% or less), unflavored",null,null,null,null,false,null,null,null,"Largest amount of dark green vegetables to select on Day5",null,null,null,1,{"$f":"INDEX(Cups,AF7)","v":0},"Largest amount of red/orange vegetables to select on Day5",null,null,null,1,{"$f":"INDEX(Cups,AL7)","v":0},"Largest amount of beans/peas to select on Day5",null,null,null,1,{"$f":"INDEX(Cups,AR7)","v":0},"Largest amount of starchy vegetables to select on Day5",null,null,null,1,{"$f":"INDEX(Cups,AX7)","v":0},"Largest amount of other vegetables to select on Day5"]
[1,{"$f":"INDEX(meals,A8)","v":0},2,null,{"$f":"IF(B8=0,\"\",FLOOR(VLOOKUP(A8,'All Meals'!$A$12:$V$61,4),0.25))","v":""},{"$f":"IF(B8=0,\"\",IF(E8=\"\",\"No\",IF(E8>=1,\"Yes\",\"No\")))","v":""},{"$f":"IF(B8=0,\"\",FLOOR(VLOOKUP(A8,'All Meals'!$A$12:$V$61,5),0.25))","v":""},{"$f":"IF(B8=0,\"\",IF(G8=\"\",\"No\",IF(G8>=1,\"Yes\",\"No\")))","v":""},{"$f":"IF(B8=0,\"\",FLOOR(VLOOKUP(A8,'All Meals'!$A$12:$V$61,6),0.25))","v":""},{"$f":"IF(B8=0,\"\",FLOOR(VLOOKUP(A8,'All Meals'!$A$12:$V$61,7),0.25))","v":""},{"$f":"IF(B8=0, \"\",VLOOKUP(A8,'All Meals'!$A$12:$V$61,10))","v":""},{"$f":"IF(B8=0,\"\",IF(K8=\"\",\"No\",IF(K8>=0.5,\"Yes\",\"No\")))","v":""},{"$f":"IF(B8=0, \"\",VLOOKUP(A8,'All Meals'!$A$12:$V$61,13))","v":""},{"$f":"IF(B8=0, \"\",VLOOKUP(A8,'All Meals'!$A$12:$V$61,16))","v":""},{"$f":"IF(B8=0,\"\",IF(N8=\"\",\"No\",IF(N8>=1,\"Yes\",\"No\")))","v":""},{"$f":"IF(B8=0, \"\",VLOOKUP(A8,'All Meals'!$A$12:$V$61,19))","v":""},{"$f":"IF(B8=0, \"\",VLOOKUP(A8,'All Meals'!$A$12:$V$61,20))","v":""},"","Low-fat (1% or less), flavored",null,null,null,null,false,null,{"$f":"IF(X8=TRUE,\"No\",\"\")","v":""}]
[1,{"$f":"INDEX(meals,A9)","v":0},3,null,{"$f":"IF(B9=0,\"\",FLOOR(VLOOKUP(A9,'All Meals'!$A$12:$V$61,4),0.25))","v":""},"",{"$f":"IF(B9=0,\"\",FLOOR(VLOOKUP(A9,'All Meals'!$A$12:$V$61,5),0.25))","v":""},"",{"$f":"IF(B9=0,\"\",FLOOR(VLOOKUP(A9,'All Meals'!$A$12:$V$61,6),0.25))","v":""},{"$f":"IF(B9=0,\"\",FLOOR(VLOOKUP(A9,'All Meals'!$A$12:$V$61,7),0.25))","v":""},{"$f":"IF(B9=0, \"\",VLOOKUP(A9,'All Meals'!$A$12:$V$61,10))","v":""},"",{"$f":"IF(B9=0, \"\",VLOOKUP(A9,'All Meals'!$A$12:$V$61,13))","v":""},{"$f":"IF(B9=0, \"\",VLOOKUP(A9,'All Meals'!$A$12:$V$61,16))","v":""},"",{"$f":"IF(B9=0, \"\",VLOOKUP(A9,'All Meals'!$A$12:$V$61,19))","v":""},{"$f":"IF(B9=0, \"\",VLOOKUP(A9,'All Meals'!$A$12:$V$61,20))","v":""},"","Reduced fat (2% fat) or whole, unflavored and flavored",null,null,null,null,false,null,{"$f":"IF(X9=TRUE,\"No\",\"\")","v":""},null,{"$f":"IF(OR(COUNTIF(AC10:AC19, 12)>0, COUNTIF(AC10:AC19,2)>0, COUNTIF(AC10:AC19,4)>0, COUNTIF(AC10:AC19,10)>0, COUNTIF(AC10:AC19,15)>0, COUNTIF(AC10:AC19,17)>0,), \"Remember to enter CREDITABLE amounts of leafy greens!\", \"\")","v":""},null,null,null,null,null,{"$f":"IF(COUNTIF(AI10:AI19,10)>0,\"Remember to enter the CREDITABLE amount of tomato paste!\",\"\")","v":""},null,null,null,null,null,{"$f":"IF(SUM(AO10:AO19)>10, \"If crediting as a vegetable do not also credit as a meat/meat alternate\", \"\")","v":""}]
[1,{"$f":"INDEX(meals,A10)","v":0},4,null,{"$f":"IF(B10=0,\"\",FLOOR(VLOOKUP(A10,'All Meals'!$A$12:$V$61,4),0.25))","v":""},"",{"$f":"IF(B10=0,\"\",FLOOR(VLOOKUP(A10,'All Meals'!$A$12:$V$61,5),0.25))","v":""},"",{"$f":"IF(B10=0,\"\",FLOOR(VLOOKUP(A10,'All Meals'!$A$12:$V$61,6),0.25))","v":""},{"$f":"IF(B10=0,\"\",FLOOR(VLOOKUP(A10,'All Meals'!$A$12:$V$61,7),0.25))","v":""},{"$f":"IF(B10=0, \"\",VLOOKUP(A10,'All Meals'!$A$12:$V$61,10))","v":""},"",{"$f":"IF(B10=0, \"\",VLOOKUP(A10,'All Meals'!$A$12:$V$61,13))","v":""},{"$f":"IF(B10=0, \"\",VLOOKUP(A10,'All Meals'!$A$12:$V$61,16))","v":""},"",{"$f":"IF(B10=0, \"\",VLOOKUP(A10,'All Meals'!$A$12:$V$61,19))","v":""},{"$f":"IF(B10=0, \"\",VLOOKUP(A10,'All Meals'!$A$12:$V$61,20))","v":""},"",null,null,null,null,null,null,null,null,null,null,1,{"$f":"INDEX(GREEN,AC10)","v":0},null,1,{"$f":"IF(AD10=0,\"\",INDEX(Cups,AF10))","v":""},null,1,{"$f":"INDEX(RED,AI10)","v":0},null,1,{"$f":"IF(AJ10=0, \"\", INDEX(Cups,AL10))","v":""},null,1,{"$f":"INDEX(BEANS,AO10)","v":0},null,1,{"$f":"IF(AP10=0,\"\",INDEX(Cups,AR10))","v":""},null,1,{"$f":"INDEX(STARCHY,AU10)","v":0},null,1,{"$f":"IF(AV10=0,\"\",INDEX(Cups,AX10))","v":""},null,1,{"$f":"INDEX(OTHER,BA10)","v":0},null,1,{"$f":"IF(BB10=0,\"\",INDEX(Cups,BD10))","v":""}]
[1,0,5,null,{"$f":"IF(B11=0,\"\",FLOOR(VLOOKUP(A11,'All Meals'!$A$12:$V$61,4),0.25))","v":""},"",{"$f":"IF(B11=0,\"\",FLOOR(VLOOKUP(A11,'All Meals'!$A$12:$V$61,5),0.25))","v":""},"",{"$f":"IF(B11=0,\"\",FLOOR(VLOOKUP(A11,'All Meals'!$A$12:$V$61,6),0.25))","v":""},{"$f":"IF(B11=0,\"\",FLOOR(VLOOKUP(A11,'All Meals'!$A$12:$V$61,7),0.25))","v":""},{"$f":"IF(B11=0, \"\",VLOOKUP(A11,'All Meals'!$A$12:$V$61,10))","v":""},"",{"$f":"IF(B11=0, \"\",VLOOKUP(A11,'All Meals'!$A$12:$V$61,13))","v":""},{"$f":"IF(B11=0, \"\",VLOOKUP(A11,'All Meals'!$A$12:$V$61,16))","v":""},"",{"$f":"IF(B11=0, \"\",VLOOKUP(A11,'All Meals'!$A$12:$V$61,19))","v":""},{"$f":"IF(B11=0, \"\",VLOOKUP(A11,'All Meals'!$A$12:$V$61,20))","v":""},"",null,"OPTIONAL Tools to Assist in Fraction and Decimal Calculations",null,null,null,null,null,null,null,null,1,0,null,1,"",null,1,0,null,1,"",null,1,0,null,1,"",null,1,0,null,1,{"$f":"IF(AV11=0,\"\",INDEX(Cups,AX11))","v":""},null,1,0,null,1,""]
[1,0,6,null,{"$f":"IF(B12=0,\"\",FLOOR(VLOOKUP(A12,'All Meals'!$A$12:$V$61,4),0.25))","v":""},"",{"$f":"IF(B12=0,\"\",FLOOR(VLOOKUP(A12,'All Meals'!$A$12:$V$61,5),0.25))","v":""},"",{"$f":"IF(B12=0,\"\",FLOOR(VLOOKUP(A12,'All Meals'!$A$12:$V$61,6),0.25))","v":""},{"$f":"IF(B12=0,\"\",FLOOR(VLOOKUP(A12,'All Meals'!$A$12:$V$61,7),0.25))","v":""},{"$f":"IF(B12=0, \"\",VLOOKUP(A12,'All Meals'!$A$12:$V$61,10))","v":""},"",{"$f":"IF(B12=0, \"\",VLOOKUP(A12,'All Meals'!$A$12:$V$61,13))","v":""},{"$f":"IF(B12=0, \"\",VLOOKUP(A12,'All Meals'!$A$12:$V$61,16))","v":""},"",{"$f":"IF(B12=0, \"\",VLOOKUP(A12,'All Meals'!$A$12:$V$61,19))","v":""},{"$f":"IF(B12=0, \"\",VLOOKUP(A12,'All Meals'!$A$12:$V$61,20))","v":""},"",null,null,null,null,null,null,null,null,null,null,1,0,null,1,"",null,1,0,null,1,"",null,1,0,null,1,"",null,1,0,null,1,"",null,1,0,null,1,""]
[1,0,7,null,{"$f":"IF(B13=0,\"\",FLOOR(VLOOKUP(A13,'All Meals'!$A$12:$V$61,4),0.25))","v":""},"",{"$f":"IF(B13=0,\"\",FLOOR(VLOOKUP(A13,'All Meals'!$A$12:$V$61,5),0.25))","v":""},"",{"$f":"IF(B13=0,\"\",FLOOR(VLOOKUP(A13,'All Meals'!$A$12:$V$61,6),0.25))","v":""},{"$f":"IF(B13=0,\"\",FLOOR(VLOOKUP(A13,'All Meals'!$A$12:$V$61,7),0.25))","v":""},{"$f":"IF(B13=0, \"\",VLOOKUP(A13,'All Meals'!$A$12:$V$61,10))","v":""},"",{"$f":"IF(B13=0, \"\",VLOOKUP(A13,'All Meals'!$A$12:$V$61,13))","v":""},{"$f":"IF(B13=0, \"\",VLOOKUP(A13,'All Meals'!$A$12:$V$61,16))","v":""},"",{"$f":"IF(B13=0, \"\",VLOOKUP(A13,'All Meals'!$A$12:$V$61,19))","v":""},{"$f":"IF(B13=0, \"\",VLOOKUP(A13,'All Meals'!$A$12:$V$61,20))","v":""},"",null,"Fraction Calculator: \nUse this calculator to add the number of cups.",null,null,1,{"$f":"INDEX(Cups,W13)","v":0},null,null,null,null,1,0,null,1,"",null,1,0,null,1,"",null,1,0,null,1,"",null,1,0,null,1,"",null,1,0,null,1,""]
[1,0,8,null,{"$f":"IF(B14=0,\"\",FLOOR(VLOOKUP(A14,'All Meals'!$A$12:$V$61,4),0.25))","v":""},"",{"$f":"IF(B14=0,\"\",FLOOR(VLOOKUP(A14,'All Meals'!$A$12:$V$61,5),0.25))","v":""},"",{"$f":"IF(B14=0,\"\",FLOOR(VLOOKUP(A14,'All Meals'!$A$12:$V$61,6),0.25))","v":""},{"$f":"IF(B14=0,\"\",FLOOR(VLOOKUP(A14,'All Meals'!$A$12:$V$61,7),0.25))","v":""},{"$f":"IF(B14=0, \"\",VLOOKUP(A14,'All Meals'!$A$12:$V$61,10))","v":""},"",{"$f":"IF(B14=0, \"\",VLOOKUP(A14,'All Meals'!$A$12:$V$61,13))","v":""},{"$f":"IF(B14=0, \"\",VLOOKUP(A14,'All Meals'!$A$12:$V$61,16))","v":""},"",{"$f":"IF(B14=0, \"\",VLOOKUP(A14,'All Meals'!$A$12:$V$61,19))","v":""},{"$f":"IF(B14=0, \"\",VLOOKUP(A14,'All Meals'!$A$12:$V$61,20))","v":""},"",null,null,null,null,1,{"$f":"INDEX(Cups,W14)","v":0},null,null,null,null,1,0,null,1,"",null,1,0,null,1,"",null,1,0,null,1,"",null,1,0,null,1,"",null,1,0,null,1,""]
[1,0,9,null,{"$f":"IF(B15=0,\"\",FLOOR(VLOOKUP(A15,'All Meals'!$A$12:$V$61,4),0.25))","v":""},"",{"$f":"IF(B15=0,\"\",FLOOR(VLOOKUP(A15,'All Meals'!$A$12:$V$61,5),0.25))","v":""},"",{"$f":"IF(B15=0,\"\",FLOOR(VLOOKUP(A15,'All Meals'!$A$12:$V$61,6),0.25))","v":""},{"$f":"IF(B15=0,\"\",FLOOR(VLOOKUP(A15,'All Meals'!$A$12:$V$61,7),0.25))","v":""},{"$f":"IF(B15=0, \"\",VLOOKUP(A15,'All Meals'!$A$12:$V$61,10))","v":""},"",{"$f":"IF(B15=0, \"\",VLOOKUP(A15,'All Meals'!$A$12:$V$61,13))","v":""},{"$f":"IF(B15=0, \"\",VLOOKUP(A15,'All Meals'!$A$12:$V$61,16))","v":""},"",{"$f":"IF(B15=0, \"\",VLOOKUP(A15,'All Meals'!$A$12:$V$61,19))","v":""},{"$f":"IF(B15=0, \"\",VLOOKUP(A15,'All Meals'!$A$12:$V$61,20))","v":""},"",null,null,null,null,1,{"$f":"INDEX(Cups,W15)","v":0},null,null,null,null,1,0,null,1,"",null,1,0,null,1,"",null,1,0,null,1,"",null,1,0,null,1,"",null,1,0,null,1,""]
[1,0,10,null,{"$f":"IF(B16=0,\"\",FLOOR(VLOOKUP(A16,'All Meals'!$A$12:$V$61,4),0.25))","v":""},"",{"$f":"IF(B16=0,\"\",FLOOR(VLOOKUP(A16,'All Meals'!$A$12:$V$61,5),0.25))","v":""},"",{"$f":"IF(B16=0,\"\",FLOOR(VLOOKUP(A16,'All Meals'!$A$12:$V$61,6),0.25))","v":""},{"$f":"IF(B16=0,\"\",FLOOR(VLOOKUP(A16,'All Meals'!$A$12:$V$61,7),0.25))","v":""},{"$f":"IF(B16=0, \"\",VLOOKUP(A16,'All Meals'!$A$12:$V$61,10))","v":""},"",{"$f":"IF(B16=0, \"\",VLOOKUP(A16,'All Meals'!$A$12:$V$61,13))","v":""},{"$f":"IF(B16=0, \"\",VLOOKUP(A16,'All Meals'!$A$12:$V$61,16))","v":""},"",{"$f":"IF(B16=0, \"\",VLOOKUP(A16,'All Meals'!$A$12:$V$61,19))","v":""},{"$f":"IF(B16=0, \"\",VLOOKUP(A16,'All Meals'!$A$12:$V$61,20))","v":""},"",null,null,null,null,1,{"$f":"INDEX(Cups,W16)","v":0},null,null,null,null,1,0,null,1,"",null,1,0,null,1,"",null,1,0,null,1,"",null,1,0,null,1,"",null,1,0,null,1,""]
[1,0,11,null,{"$f":"IF(B17=0,\"\",FLOOR(VLOOKUP(A17,'All Meals'!$A$12:$V$61,4),0.25))","v":""},"",{"$f":"IF(B17=0,\"\",FLOOR(VLOOKUP(A17,'All Meals'!$A$12:$V$61,5),0.25))","v":""},"",{"$f":"IF(B17=0,\"\",FLOOR(VLOOKUP(A17,'All Meals'!$A$12:$V$61,6),0.25))","v":""},{"$f":"IF(B17=0,\"\",FLOOR(VLOOKUP(A17,'All Meals'!$A$12:$V$61,7),0.25))","v":""},{"$f":"IF(B17=0, \"\",VLOOKUP(A17,'All Meals'!$A$12:$V$61,10))","v":""},"",{"$f":"IF(B17=0, \"\",VLOOKUP(A17,'All Meals'!$A$12:$V$61,13))","v":""},{"$f":"IF(B17=0, \"\",VLOOKUP(A17,'All Meals'!$A$12:$V$61,16))","v":""},"",{"$f":"IF(B17=0, \"\",VLOOKUP(A17,'All Meals'!$A$12:$V$61,19))","v":""},{"$f":"IF(B17=0, \"\",VLOOKUP(A17,'All Meals'!$A$12:$V$61,20))","v":""},"",null,null,null,null,1,{"$f":"INDEX(Cups,W17)","v":0},null,null,null,null,1,0,null,1,"",null,1,0,null,1,"",null,1,0,null,1,"",null,1,0,null,1,"",null,1,0,null,1,""]
[1,0,12,null,{"$f":"IF(B18=0,\"\",FLOOR(VLOOKUP(A18,'All Meals'!$A$12:$V$61,4),0.25))","v":""},"",{"$f":"IF(B18=0,\"\",FLOOR(VLOOKUP(A18,'All Meals'!$A$12:$V$61,5),0.25))","v":""},"",{"$f":"IF(B18=0,\"\",FLOOR(VLOOKUP(A18,'All Meals'!$A$12:$V$61,6),0.25))","v":""},{"$f":"IF(B18=0,\"\",FLOOR(VLOOKUP(A18,'All Meals'!$A$12:$V$61,7),0.25))","v":""},{"$f":"IF(B18=0, \"\",VLOOKUP(A18,'All Meals'!$A$12:$V$61,10))","v":""},"",{"$f":"IF(B18=0, \"\",VLOOKUP(A18,'All Meals'!$A$12:$V$61,13))","v":""},{"$f":"IF(B18=0, \"\",VLOOKUP(A18,'All Meals'!$A$12:$V$61,16))","v":""},{"$f":"IF(B18=0,\"\",IF(N18=\"\",\"No\",IF(N18>=0.75,\"Yes\",\"No\")))","v":""},{"$f":"IF(B18=0, \"\",VLOOKUP(A18,'All Meals'!$A$12:$V$61,19))","v":""},{"$f":"IF(B18=0, \"\",VLOOKUP(A18,'All Meals'!$A$12:$V$61,20))","v":""},"",null,null,null,null,null,null,{"$f":"SUM(X13:X17)","v":0},null,null,null,1,0,null,1,"",null,1,0,null,1,"",null,1,0,null,1,"",null,1,0,null,1,"",null,1,0,null,1,""]
[1,0,13,null,{"$f":"IF(B19=0,\"\",FLOOR(VLOOKUP(A19,'All Meals'!$A$12:$V$61,4),0.25))","v":""},"",{"$f":"IF(B19=0,\"\",FLOOR(VLOOKUP(A19,'All Meals'!$A$12:$V$61,5),0.25))","v":""},"",{"$f":"IF(B19=0,\"\",FLOOR(VLOOKUP(A19,'All Meals'!$A$12:$V$61,6),0.25))","v":""},{"$f":"IF(B19=0,\"\",FLOOR(VLOOKUP(A19,'All Meals'!$A$12:$V$61,7),0.25))","v":""},{"$f":"IF(B19=0, \"\",VLOOKUP(A19,'All Meals'!$A$12:$V$61,10))","v":""},"",{"$f":"IF(B19=0, \"\",VLOOKUP(A19,'All Meals'!$A$12:$V$61,13))","v":""},{"$f":"IF(B19=0, \"\",VLOOKUP(A19,'All Meals'!$A$12:$V$61,16))","v":""},{"$f":"IF(B19=0,\"\",IF(N19=\"\",\"No\",IF(N19>=0.75,\"Yes\",\"No\")))","v":""},{"$f":"IF(B19=0, \"\",VLOOKUP(A19,'All Meals'!$A$12:$V$61,19))","v":""},{"$f":"IF(B19=0, \"\",VLOOKUP(A19,'All Meals'!$A$12:$V$61,20))","v":""},"",null,"Decimal/Fraction Converter\n(Rounded down to the nearest 1/8)",null,null,null,null,null,null,null,null,1,0,null,1,"",null,1,0,null,1,"",null,1,0,null,1,"",null,1,0,null,1,"",null,1,0,null,1,""]
[1,0,14,null,{"$f":"IF(B20=0,\"\",FLOOR(VLOOKUP(A20,'All Meals'!$A$12:$V$61,4),0.25))","v":""},"",{"$f":"IF(B20=0,\"\",FLOOR(VLOOKUP(A20,'All Meals'!$A$12:$V$61,5),0.25))","v":""},"",{"$f":"IF(B20=0,\"\",FLOOR(VLOOKUP(A20,'All Meals'!$A$12:$V$61,6),0.25))","v":""},{"$f":"IF(B20=0,\"\",FLOOR(VLOOKUP(A20,'All Meals'!$A$12:$V$61,7),0.25))","v":""},{"$f":"IF(B20=0, \"\",VLOOKUP(A20,'All Meals'!$A$12:$V$61,10))","v":""},"",{"$f":"IF(B20=0, \"\",VLOOKUP(A20,'All Meals'!$A$12:$V$61,13))","v":""},{"$f":"IF(B20=0, \"\",VLOOKUP(A20,'All Meals'!$A$12:$V$61,16))","v":""},"",{"$f":"IF(B20=0, \"\",VLOOKUP(A20,'All Meals'!$A$12:$V$61,19))","v":""},{"$f":"IF(B20=0, \"\",VLOOKUP(A20,'All Meals'!$A$12:$V$61,20))","v":""},"",null,"Enter the decimal you wish to convert to a fraction in the box:",null,null,null,null,null,null,null,{"$f":"IF(OR(COUNTIF(AC10:AC19,18)>0, COUNTIF(AI10:AI19, 13)>0, COUNTIF(AO10:AO19, 12)>0, COUNTIF(AU10:AU19, 11)>0,COUNTIF(BA10:BA19,34)>0, COUNTIF(BA10:BA19,35)>0, COUNTIF(BA10:BA19,36)>0,COUNTIF(BA10:BA19,37)>0, COUNTIF(BA10:BA19,38)>0, COUNTIF(BA10:BA19,39)>0), \"You entered an unspecified or extra other vegetable above, please enter the name of the vegetable in the appropriate subgroup below\", \"\")","v":""}]
[1,0,15,null,{"$f":"IF(B21=0,\"\",FLOOR(VLOOKUP(A21,'All Meals'!$A$12:$V$61,4),0.25))","v":""},"",{"$f":"IF(B21=0,\"\",FLOOR(VLOOKUP(A21,'All Meals'!$A$12:$V$61,5),0.25))","v":""},"",{"$f":"IF(B21=0,\"\",FLOOR(VLOOKUP(A21,'All Meals'!$A$12:$V$61,6),0.25))","v":""},{"$f":"IF(B21=0,\"\",FLOOR(VLOOKUP(A21,'All Meals'!$A$12:$V$61,7),0.25))","v":""},{"$f":"IF(B21=0, \"\",VLOOKUP(A21,'All Meals'!$A$12:$V$61,10))","v":""},"",{"$f":"IF(B21=0, \"\",VLOOKUP(A21,'All Meals'!$A$12:$V$61,13))","v":""},{"$f":"IF(B21=0, \"\",VLOOKUP(A21,'All Meals'!$A$12:$V$61,16))","v":""},"",{"$f":"IF(B21=0, \"\",VLOOKUP(A21,'All Meals'!$A$12:$V$61,19))","v":""},{"$f":"IF(B21=0, \"\",VLOOKUP(A21,'All Meals'!$A$12:$V$61,20))","v":""},"",null,null,null,null,null,null,null,null,null,"Unspecified Dark Green Vegetables",null,null,null,null,null,"Unspecified Red/Orange Vegetables",null,null,null,null,null,"Unspecified Beans/Peas",null,null,null,null,null,"Unspecified Starchy Vegetables",null,null,null,null,null,"Unspecified Other Vegetables"]
[1,0,16,null,{"$f":"IF(B22=0,\"\",FLOOR(VLOOKUP(A22,'All Meals'!$A$12:$V$61,4),0.25))","v":""},"",{"$f":"IF(B22=0,\"\",FLOOR(VLOOKUP(A22,'All Meals'!$A$12:$V$61,5),0.25))","v":""},"",{"$f":"IF(B22=0,\"\",FLOOR(VLOOKUP(A22,'All Meals'!$A$12:$V$61,6),0.25))","v":""},{"$f":"IF(B22=0,\"\",FLOOR(VLOOKUP(A22,'All Meals'!$A$12:$V$61,7),0.25))","v":""},{"$f":"IF(B22=0, \"\",VLOOKUP(A22,'All Meals'!$A$12:$V$61,10))","v":""},"",{"$f":"IF(B22=0, \"\",VLOOKUP(A22,'All Meals'!$A$12:$V$61,13))","v":""},{"$f":"IF(B22=0, \"\",VLOOKUP(A22,'All Meals'!$A$12:$V$61,16))","v":""},"",{"$f":"IF(B22=0, \"\",VLOOKUP(A22,'All Meals'!$A$12:$V$61,19))","v":""},{"$f":"IF(B22=0, \"\",VLOOKUP(A22,'All Meals'!$A$12:$V$61,20))","v":""},"",null,"The decimal entered above has been converted to the following fraction:",null,null,null,null,{"$f":"FLOOR(Y20,0.125)","v":0}]
[1,0,17,null,{"$f":"IF(B23=0,\"\",FLOOR(VLOOKUP(A23,'All Meals'!$A$12:$V$61,4),0.25))","v":""},"",{"$f":"IF(B23=0,\"\",FLOOR(VLOOKUP(A23,'All Meals'!$A$12:$V$61,5),0.25))","v":""},"",{"$f":"IF(B23=0,\"\",FLOOR(VLOOKUP(A23,'All Meals'!$A$12:$V$61,6),0.25))","v":""},{"$f":"IF(B23=0,\"\",FLOOR(VLOOKUP(A23,'All Meals'!$A$12:$V$61,7),0.25))","v":""},{"$f":"IF(B23=0, \"\",VLOOKUP(A23,'All Meals'!$A$12:$V$61,10))","v":""},"",{"$f":"IF(B23=0, \"\",VLOOKUP(A23,'All Meals'!$A$12:$V$61,13))","v":""},{"$f":"IF(B23=0, \"\",VLOOKUP(A23,'All Meals'!$A$12:$V$61,16))","v":""},"",{"$f":"IF(B23=0, \"\",VLOOKUP(A23,'All Meals'!$A$12:$V$61,19))","v":""},{"$f":"IF(B23=0, \"\",VLOOKUP(A23,'All Meals'!$A$12:$V$61,20))","v":""},""]
[1,0,18,null,{"$f":"IF(B24=0,\"\",FLOOR(VLOOKUP(A24,'All Meals'!$A$12:$V$61,4),0.25))","v":""},"",{"$f":"IF(B24=0,\"\",FLOOR(VLOOKUP(A24,'All Meals'!$A$12:$V$61,5),0.25))","v":""},"",{"$f":"IF(B24=0,\"\",FLOOR(VLOOKUP(A24,'All Meals'!$A$12:$V$61,6),0.25))","v":""},{"$f":"IF(B24=0,\"\",FLOOR(VLOOKUP(A24,'All Meals'!$A$12:$V$61,7),0.25))","v":""},{"$f":"IF(B24=0, \"\",VLOOKUP(A24,'All Meals'!$A$12:$V$61,10))","v":""},"",{"$f":"IF(B24=0, \"\",VLOOKUP(A24,'All Meals'!$A$12:$V$61,13))","v":""},{"$f":"IF(B24=0, \"\",VLOOKUP(A24,'All Meals'!$A$12:$V$61,16))","v":""},"",{"$f":"IF(B24=0, \"\",VLOOKUP(A24,'All Meals'!$A$12:$V$61,19))","v":""},{"$f":"IF(B24=0, \"\",VLOOKUP(A24,'All Meals'!$A$12:$V$61,20))","v":""},""]
[1,0,19,null,{"$f":"IF(B25=0,\"\",FLOOR(VLOOKUP(A25,'All Meals'!$A$12:$V$61,4),0.25))","v":""},"",{"$f":"IF(B25=0,\"\",FLOOR(VLOOKUP(A25,'All Meals'!$A$12:$V$61,5),0.25))","v":""},"",{"$f":"IF(B25=0,\"\",FLOOR(VLOOKUP(A25,'All Meals'!$A$12:$V$61,6),0.25))","v":""},{"$f":"IF(B25=0,\"\",FLOOR(VLOOKUP(A25,'All Meals'!$A$12:$V$61,7),0.25))","v":""},{"$f":"IF(B25=0, \"\",VLOOKUP(A25,'All Meals'!$A$12:$V$61,10))","v":""},"",{"$f":"IF(B25=0, \"\",VLOOKUP(A25,'All Meals'!$A$12:$V$61,13))","v":""},{"$f":"IF(B25=0, \"\",VLOOKUP(A25,'All Meals'!$A$12:$V$61,16))","v":""},"",{"$f":"IF(B25=0, \"\",VLOOKUP(A25,'All Meals'!$A$12:$V$61,19))","v":""},{"$f":"IF(B25=0, \"\",VLOOKUP(A25,'All Meals'!$A$12:$V$61,20))","v":""},""]
[1,0,20,null,{"$f":"IF(B26=0,\"\",FLOOR(VLOOKUP(A26,'All Meals'!$A$12:$V$61,4),0.25))","v":""},"",{"$f":"IF(B26=0,\"\",FLOOR(VLOOKUP(A26,'All Meals'!$A$12:$V$61,5),0.25))","v":""},"",{"$f":"IF(B26=0,\"\",FLOOR(VLOOKUP(A26,'All Meals'!$A$12:$V$61,6),0.25))","v":""},{"$f":"IF(B26=0,\"\",FLOOR(VLOOKUP(A26,'All Meals'!$A$12:$V$61,7),0.25))","v":""},{"$f":"IF(B26=0, \"\",VLOOKUP(A26,'All Meals'!$A$12:$V$61,10))","v":""},"",{"$f":"IF(B26=0, \"\",VLOOKUP(A26,'All Meals'!$A$12:$V$61,13))","v":""},{"$f":"IF(B26=0, \"\",VLOOKUP(A26,'All Meals'!$A$12:$V$61,16))","v":""},"",{"$f":"IF(B26=0, \"\",VLOOKUP(A26,'All Meals'!$A$12:$V$61,19))","v":""},{"$f":"IF(B26=0, \"\",VLOOKUP(A26,'All Meals'!$A$12:$V$61,20))","v":""},""]

{"sheet":"Day6","index":11,"n_rows":26,"n_cols":57,"rows_kept":26,"cut":false,"hidden":false,"merged":[[25,27,25,30],[25,33,25,36],[25,39,25,42],[25,45,25,48],[25,51,25,54],[23,27,23,30],[23,33,23,36],[23,39,23,42],[23,45,23,48],[23,51,23,54],[24,27,24,30],[24,33,24,36],[24,39,24,42],[24,45,24,48],[24,51,24,54],[21,51,21,54],[22,27,22,30],[22,33,22,36],[22,39,22,42],[22,45,22,48],[22,51,22,54],[21,19,22,21],[21,24,22,25],[21,27,21,30],[21,33,21,36],[21,39,21,42],[21,45,21,48],[18,19,18,25],[19,19,20,21],[19,24,20,25],[19,27,19,54],[20,27,20,30],[20,33,20,36],[20,39,20,42],[20,45,20,48],[20,51,20,54],[8,51,8,54],[10,19,11,25],[12,19,17,21],[12,24,12,25],[13,24,13,25],[14,24,14,25],[15,24,15,25],[16,24,16,25],[17,24,17,25],[7,18,7,21],[8,18,8,21],[8,27,8,30],[8,33,8,36],[8,39,8,42],[8,45,8,48],[6,43,7,43],[6,44,7,44],[6,45,7,45],[6,46,7,46],[6,49,7,49],[6,50,7,50],[6,51,7,51],[6,52,7,52],[6,53,7,53],[6,54,7,54],[6,47,7,47],[6,48,7,48],[6,37,7,37],[6,38,7,38],[6,39,7,39],[6,40,7,40],[6,41,7,41],[6,42,7,42],[6,31,7,31],[6,32,7,32],[6,33,7,33],[6,34,7,34],[6,35,7,35],[6,36,7,36],[4,51,5,51],[4,54,5,54],[4,55,5,55],[4,56,5,56],[5,18,5,21],[6,18,6,21],[6,27,7,27],[6,28,7,28],[6,29,7,29],[6,30,7,30],[4,33,5,33],[4,36,5,36],[4,39,5,39],[4,42,5,42],[4,45,5,45],[4,48,5,48],[4,16,5,16],[4,17,5,17],[4,18,4,21],[4,25,6,25],[4,27,5,27],[4,30,5,30],[4,10,5,10],[4,11,5,11],[4,12,5,12],[4,13,5,13],[4,14,5,14],[4,15,5,15],[4,4,5,4],[4,5,5,5],[4,6,5,6],[4,7,5,7],[4,8,5,8],[4,9,5,9],[2,2,2,25],[2,27,2,39],[3,2,5,3],[3,4,3,5],[3,6,3,9],[3,10,3,12],[3,13,3,15],[3,16,3,17],[3,18,3,25],[3,27,3,54],[0,2,0,17],[0,19,0,25],[0,27,0,54],[1,3,1,17],[1,19,1,21],[1,24,1,25],[1,27,1,48],[1,51,1,55]]}
[null,null,"Day6 Daily Lunch Requirement Check\nGrades K-8",null,null,null,null,null,null,null,null,null,null,null,null,null,null,null,null,"Scroll to the right to enter vegetable subgroup information",null,null,null,null,null,null,null,"Day6 Vegetable Subgroup Data Entry\nGrades K-8"]
[null,null,null,"The daily worksheet will perform daily requirement checks for the reimbursable meals offered each day. Requirements met are flagged \"Yes\" and the cell turns green. Requirements NOT met are flagged \"No\" and the cell turns red. \nNOTE: The top row is frozen to display the column headers as the daily meals are entered.\nGrains, whole grain rich, and meat/meat alternate oz equivalents are rounded down to the nearest quarter ounce.\nOnce you are finished selecting the meals offered each day, make sure to scroll to the right to enter milk type and vegetable subgroup information.",null,null,null,null,null,null,null,null,null,null,null,null,null,null,null,"Go to Instructions",null,null,null,null,"Go to Weekly Report",null,null,"Creditable Amount of Each Vegetable Subgroup Offered on Day6\nIn the first drop down box, select the largest amount of each vegetable subgroup offered to a student, then in the drop down boxes below, select the name and amount of each vegetable offered in the subgroup. \nIf you want to clear an entry, select the first blank in the drop down box.\nFor additional information on completing the data entry for the vegetable subgroup section, please refer to the Instructions tab. ",null,null,null,null,null,null,null,null,null,null,null,null,null,null,null,null,null,null,null,null,null,null,null,"Click here for help categorizing vegetables\n(Scroll to page 5)"]
[null,null,"Day6",null,null,null,null,null,null,null,null,null,null,null,null,null,null,null,null,null,null,null,null,null,null,null,null,"Check this box if you offered the weekly vegetable bar on Day6 with NO CHANGES:",null,null,null,null,null,null,null,null,null,null,null,null,null,null,null,false]
[null,null,"1.  Meal Name\nSelect the reimbursable lunches offered for the day\nNote: You may not delete lines, if you want to clear a meal select the first blank in the drop down list",null,"2.  Meat/Meat Alternate (M/MA)",null,"3. Grains",null,null,null,"4. Fruit",null,null,"5. Vegetables",null,null,"6. Milk",null,"Milk Type\nCheck the type of milk below if it is offered to students on Day6. \nAll types of milk included.",null,null,null,null,null,null,null,null,"If you offered any vegetables in addition to the weekly vegetable bar, select the largest amount of the vegetable offered to a student and select the name of each vegetable under the appropriate subgroup.\nNOTE:  If you offered a vegetable bar on Day6 that differs from the weekly offerings, all offerings and quantities for each vegetable subgroup must be selected in the section below.",null,null,null,null,null,null,null,null,null,null,null,null,null,null,null,null,null,null,null,null,null,null,null,null,null,null,null,"o_i","O_num"]
[null,null,null,null,"M/MA\noz equivalents","Daily M/MA Requirement Check\n1 oz equivalents","a. Grains\n oz equivalents\n","Daily Grain Requirement Check\n1 oz equivalents","b. Whole Grain Rich\n oz equivalents","c. Grain Based Dessert\n oz equivalents\n ","a. Fruit\ncups","Daily Fruit Requirement Check\n1/2 cup","b. Fruit Juice \ncups","a. Vegetables\n cups","Daily Vegetable Requirement Check\n3/4 cup","b. Vegetable Juice \ncups","Milk\ncups","Daily Milk Requirement Check\n1 cup","Skim/fat-free, unflavored",null,null,null,null,false,null,{"$f":"IF(AND(X5=FALSE,X6=FALSE,X7=FALSE),\"\",IF(AND(X5=TRUE,X6=TRUE),\"Yes\",IF(AND(X5=TRUE,X7=TRUE),\"Yes\",IF(AND(X6=TRUE,X7=TRUE),\"Yes\",\"No\"))))","v":""},null,"DARK GREEN vegetables offered on Day6",null,null,"Quantity (cups)",null,null,"Red/Orange vegetables offered on Day6",null,null,"Quantity (cups)",null,null,"Beans/Peas (legumes) offered on Day6",null,null,"Quantity (cups)",null,null,"Starchy vegetables offered on Day6",null,null,"Quantity (cups)",null,null,"Other vegetables offered on Day6",null,null,"Quantity (cups)",1,{"$f":"INDEX(Cups,BD5)","v":0}]
[null,null,null,null,null,null,null,null,null,null,null,null,null,null,null,null,null,null,"Skim/fat-free, flavored",null,null,null,null,false,null,null,null,null,"G_T",null,null,"G_I","G_num",null,"R_T",null,null,"R_i","r_num",null,"B_t",null,null,"B_i","B_num",null,"S_T",null,null,"s_i","s_num",null,"O_T"]
[2,{"$f":"INDEX(meals,A7)","v":0},1,null,{"$f":"IF(B7=0,\"\",FLOOR(VLOOKUP(A7,'All Meals'!$A$12:$V$61,4),0.25))","v":""},{"$f":"IF(B7=0,\"\",IF(E7=\"\",\"No\",IF(E7>=1,\"Yes\",\"No\")))","v":""},{"$f":"IF(B7=0,\"\",FLOOR(VLOOKUP(A7,'All Meals'!$A$12:$V$61,5),0.25))","v":""},{"$f":"IF(B7=0,\"\",IF(G7=\"\",\"No\",IF(G7>=1,\"Yes\",\"No\")))","v":""},{"$f":"IF(B7=0,\"\",FLOOR(VLOOKUP(A7,'All Meals'!$A$12:$V$61,6),0.25))","v":""},{"$f":"IF(B7=0,\"\",FLOOR(VLOOKUP(A7,'All Meals'!$A$12:$V$61,7),0.25))","v":""},{"$f":"IF(B7=0, \"\",VLOOKUP(A7,'All Meals'!$A$12:$V$61,10))","v":""},{"$f":"IF(B7=0,\"\",IF(K7=\"\",\"No\",IF(K7>=0.5,\"Yes\",\"No\")))","v":""},{"$f":"IF(B7=0, \"\",VLOOKUP(A7,'All Meals'!$A$12:$V$61,13))","v":""},{"$f":"IF(B7=0, \"\",VLOOKUP(A7,'All Meals'!$A$12:$V$61,16))","v":""},{"$f":"IF(B7=0,\"\",IF(N7=\"\",\"No\",IF(N7>=0.75,\"Yes\",\"No\")))","v":""},{"$f":"IF(B7=0, \"\",VLOOKUP(A7,'All Meals'!$A$12:$V$61,19))","v":""},{"$f":"IF(B7=0, \"\",VLOOKUP(A7,'All Meals'!$A$12:$V$61,20))","v":""},{"$f":"IF(B7=0,\"\",IF(Q7=\"\",\"No\",IF(Q7>=1,\"Yes\",\"No\")))","v":""},"Low-fat (1% or less), unflavored",null,null,null,null,false,null,null,null,"Largest amount of dark green vegetables to select on Day6",null,null,null,1,{"$f":"INDEX(Cups,AF7)","v":0},"Largest amount of red/orange vegetables to select on Day6",null,null,null,1,{"$f":"INDEX(Cups,AL7)","v":0},"Largest amount of beans/peas to select on Day6",null,null,null,1,{"$f":"INDEX(Cups,AR7)","v":0},"Largest amount of starchy vegetables to select on Day6",null,null,null,1,{"$f":"INDEX(Cups,AX7)","v":0},"Largest amount of other vegetables to select on Day6"]
[1,{"$f":"INDEX(meals,A8)","v":0},2,null,{"$f":"IF(B8=0,\"\",FLOOR(VLOOKUP(A8,'All Meals'!$A$12:$V$61,4),0.25))","v":""},{"$f":"IF(B8=0,\"\",IF(E8=\"\",\"No\",IF(E8>=1,\"Yes\",\"No\")))","v":""},{"$f":"IF(B8=0,\"\",FLOOR(VLOOKUP(A8,'All Meals'!$A$12:$V$61,5),0.25))","v":""},{"$f":"IF(B8=0,\"\",IF(G8=\"\",\"No\",IF(G8>=1,\"Yes\",\"No\")))","v":""},{"$f":"IF(B8=0,\"\",FLOOR(VLOOKUP(A8,'All Meals'!$A$12:$V$61,6),0.25))","v":""},{"$f":"IF(B8=0,\"\",FLOOR(VLOOKUP(A8,'All Meals'!$A$12:$V$61,7),0.25))","v":""},{"$f":"IF(B8=0, \"\",VLOOKUP(A8,'All Meals'!$A$12:$V$61,10))","v":""},{"$f":"IF(B8=0,\"\",IF(K8=\"\",\"No\",IF(K8>=0.5,\"Yes\",\"No\")))","v":""},{"$f":"IF(B8=0, \"\",VLOOKUP(A8,'All Meals'!$A$12:$V$61,13))","v":""},{"$f":"IF(B8=0, \"\",VLOOKUP(A8,'All Meals'!$A$12:$V$61,16))","v":""},{"$f":"IF(B8=0,\"\",IF(N8=\"\",\"No\",IF(N8>=1,\"Yes\",\"No\")))","v":""},{"$f":"IF(B8=0, \"\",VLOOKUP(A8,'All Meals'!$A$12:$V$61,19))","v":""},{"$f":"IF(B8=0, \"\",VLOOKUP(A8,'All Meals'!$A$12:$V$61,20))","v":""},"","Low-fat (1% or less), flavored",null,null,null,null,false,null,{"$f":"IF(X8=TRUE,\"No\",\"\")","v":""}]
[1,{"$f":"INDEX(meals,A9)","v":0},3,null,{"$f":"IF(B9=0,\"\",FLOOR(VLOOKUP(A9,'All Meals'!$A$12:$V$61,4),0.25))","v":""},"",{"$f":"IF(B9=0,\"\",FLOOR(VLOOKUP(A9,'All Meals'!$A$12:$V$61,5),0.25))","v":""},"",{"$f":"IF(B9=0,\"\",FLOOR(VLOOKUP(A9,'All Meals'!$A$12:$V$61,6),0.25))","v":""},{"$f":"IF(B9=0,\"\",FLOOR(VLOOKUP(A9,'All Meals'!$A$12:$V$61,7),0.25))","v":""},{"$f":"IF(B9=0, \"\",VLOOKUP(A9,'All Meals'!$A$12:$V$61,10))","v":""},"",{"$f":"IF(B9=0, \"\",VLOOKUP(A9,'All Meals'!$A$12:$V$61,13))","v":""},{"$f":"IF(B9=0, \"\",VLOOKUP(A9,'All Meals'!$A$12:$V$61,16))","v":""},"",{"$f":"IF(B9=0, \"\",VLOOKUP(A9,'All Meals'!$A$12:$V$61,19))","v":""},{"$f":"IF(B9=0, \"\",VLOOKUP(A9,'All Meals'!$A$12:$V$61,20))","v":""},"","Reduced fat (2% fat) or whole, unflavored and flavored",null,null,null,null,false,null,{"$f":"IF(X9=TRUE,\"No\",\"\")","v":""},null,{"$f":"IF(OR(COUNTIF(AC10:AC19, 12)>0, COUNTIF(AC10:AC19,2)>0, COUNTIF(AC10:AC19,4)>0, COUNTIF(AC10:AC19,10)>0, COUNTIF(AC10:AC19,15)>0, COUNTIF(AC10:AC19,17)>0,), \"Remember to enter CREDITABLE amounts of leafy greens!\", \"\")","v":""},null,null,null,null,null,{"$f":"IF(COUNTIF(AI10:AI19,10)>0,\"Remember to enter the CREDITABLE amount of tomato paste!\",\"\")","v":""},null,null,null,null,null,{"$f":"IF(SUM(AO10:AO19)>10, \"If crediting as a vegetable do not also credit as a meat/meat alternate\", \"\")","v":""}]
[1,{"$f":"INDEX(meals,A10)","v":0},4,null,{"$f":"IF(B10=0,\"\",FLOOR(VLOOKUP(A10,'All Meals'!$A$12:$V$61,4),0.25))","v":""},"",{"$f":"IF(B10=0,\"\",FLOOR(VLOOKUP(A10,'All Meals'!$A$12:$V$61,5),0.25))","v":""},"",{"$f":"IF(B10=0,\"\",FLOOR(VLOOKUP(A10,'All Meals'!$A$12:$V$61,6),0.25))","v":""},{"$f":"IF(B10=0,\"\",FLOOR(VLOOKUP(A10,'All Meals'!$A$12:$V$61,7),0.25))","v":""},{"$f":"IF(B10=0, \"\",VLOOKUP(A10,'All Meals'!$A$12:$V$61,10))","v":""},"",{"$f":"IF(B10=0, \"\",VLOOKUP(A10,'All Meals'!$A$12:$V$61,13))","v":""},{"$f":"IF(B10=0, \"\",VLOOKUP(A10,'All Meals'!$A$12:$V$61,16))","v":""},"",{"$f":"IF(B10=0, \"\",VLOOKUP(A10,'All Meals'!$A$12:$V$61,19))","v":""},{"$f":"IF(B10=0, \"\",VLOOKUP(A10,'All Meals'!$A$12:$V$61,20))","v":""},"",null,null,null,null,null,null,null,null,null,null,1,{"$f":"INDEX(GREEN,AC10)","v":0},null,1,{"$f":"IF(AD10=0,\"\",INDEX(Cups,AF10))","v":""},null,1,{"$f":"INDEX(RED,AI10)","v":0},null,1,{"$f":"IF(AJ10=0, \"\", INDEX(Cups,AL10))","v":""},null,1,{"$f":"INDEX(BEANS,AO10)","v":0},null,1,{"$f":"IF(AP10=0,\"\",INDEX(Cups,AR10))","v":""},null,1,{"$f":"INDEX(STARCHY,AU10)","v":0},null,1,{"$f":"IF(AV10=0,\"\",INDEX(Cups,AX10))","v":""},null,1,{"$f":"INDEX(OTHER,BA10)","v":0},null,1,{"$f":"IF(BB10=0,\"\",INDEX(Cups,BD10))","v":""}]
[1,0,5,null,{"$f":"IF(B11=0,\"\",FLOOR(VLOOKUP(A11,'All Meals'!$A$12:$V$61,4),0.25))","v":""},"",{"$f":"IF(B11=0,\"\",FLOOR(VLOOKUP(A11,'All Meals'!$A$12:$V$61,5),0.25))","v":""},"",{"$f":"IF(B11=0,\"\",FLOOR(VLOOKUP(A11,'All Meals'!$A$12:$V$61,6),0.25))","v":""},{"$f":"IF(B11=0,\"\",FLOOR(VLOOKUP(A11,'All Meals'!$A$12:$V$61,7),0.25))","v":""},{"$f":"IF(B11=0, \"\",VLOOKUP(A11,'All Meals'!$A$12:$V$61,10))","v":""},"",{"$f":"IF(B11=0, \"\",VLOOKUP(A11,'All Meals'!$A$12:$V$61,13))","v":""},{"$f":"IF(B11=0, \"\",VLOOKUP(A11,'All Meals'!$A$12:$V$61,16))","v":""},"",{"$f":"IF(B11=0, \"\",VLOOKUP(A11,'All Meals'!$A$12:$V$61,19))","v":""},{"$f":"IF(B11=0, \"\",VLOOKUP(A11,'All Meals'!$A$12:$V$61,20))","v":""},"",null,"OPTIONAL Tools to Assist in Fraction and Decimal Calculations",null,null,null,null,null,null,null,null,1,0,null,1,"",null,1,0,null,1,"",null,1,0,null,1,"",null,1,0,null,1,{"$f":"IF(AV11=0,\"\",INDEX(Cups,AX11))","v":""},null,1,0,null,1,""]
[1,0,6,null,{"$f":"IF(B12=0,\"\",FLOOR(VLOOKUP(A12,'All Meals'!$A$12:$V$61,4),0.25))","v":""},"",{"$f":"IF(B12=0,\"\",FLOOR(VLOOKUP(A12,'All Meals'!$A$12:$V$61,5),0.25))","v":""},"",{"$f":"IF(B12=0,\"\",FLOOR(VLOOKUP(A12,'All Meals'!$A$12:$V$61,6),0.25))","v":""},{"$f":"IF(B12=0,\"\",FLOOR(VLOOKUP(A12,'All Meals'!$A$12:$V$61,7),0.25))","v":""},{"$f":"IF(B12=0, \"\",VLOOKUP(A12,'All Meals'!$A$12:$V$61,10))","v":""},"",{"$f":"IF(B12=0, \"\",VLOOKUP(A12,'All Meals'!$A$12:$V$61,13))","v":""},{"$f":"IF(B12=0, \"\",VLOOKUP(A12,'All Meals'!$A$12:$V$61,16))","v":""},"",{"$f":"IF(B12=0, \"\",VLOOKUP(A12,'All Meals'!$A$12:$V$61,19))","v":""},{"$f":"IF(B12=0, \"\",VLOOKUP(A12,'All Meals'!$A$12:$V$61,20))","v":""},"",null,null,null,null,null,null,null,null,null,null,1,0,null,1,"",null,1,0,null,1,"",null,1,0,null,1,"",null,1,0,null,1,"",null,1,0,null,1,""]
[1,0,7,null,{"$f":"IF(B13=0,\"\",FLOOR(VLOOKUP(A13,'All Meals'!$A$12:$V$61,4),0.25))","v":""},"",{"$f":"IF(B13=0,\"\",FLOOR(VLOOKUP(A13,'All Meals'!$A$12:$V$61,5),0.25))","v":""},"",{"$f":"IF(B13=0,\"\",FLOOR(VLOOKUP(A13,'All Meals'!$A$12:$V$61,6),0.25))","v":""},{"$f":"IF(B13=0,\"\",FLOOR(VLOOKUP(A13,'All Meals'!$A$12:$V$61,7),0.25))","v":""},{"$f":"IF(B13=0, \"\",VLOOKUP(A13,'All Meals'!$A$12:$V$61,10))","v":""},"",{"$f":"IF(B13=0, \"\",VLOOKUP(A13,'All Meals'!$A$12:$V$61,13))","v":""},{"$f":"IF(B13=0, \"\",VLOOKUP(A13,'All Meals'!$A$12:$V$61,16))","v":""},"",{"$f":"IF(B13=0, \"\",VLOOKUP(A13,'All Meals'!$A$12:$V$61,19))","v":""},{"$f":"IF(B13=0, \"\",VLOOKUP(A13,'All Meals'!$A$12:$V$61,20))","v":""},"",null,"Fraction Calculator: \nUse this calculator to add the number of cups.",null,null,1,{"$f":"INDEX(Cups,W13)","v":0},null,null,null,null,1,0,null,1,"",null,1,0,null,1,"",null,1,0,null,1,"",null,1,0,null,1,"",null,1,0,null,1,""]
[1,0,8,null,{"$f":"IF(B14=0,\"\",FLOOR(VLOOKUP(A14,'All Meals'!$A$12:$V$61,4),0.25))","v":""},"",{"$f":"IF(B14=0,\"\",FLOOR(VLOOKUP(A14,'All Meals'!$A$12:$V$61,5),0.25))","v":""},"",{"$f":"IF(B14=0,\"\",FLOOR(VLOOKUP(A14,'All Meals'!$A$12:$V$61,6),0.25))","v":""},{"$f":"IF(B14=0,\"\",FLOOR(VLOOKUP(A14,'All Meals'!$A$12:$V$61,7),0.25))","v":""},{"$f":"IF(B14=0, \"\",VLOOKUP(A14,'All Meals'!$A$12:$V$61,10))","v":""},"",{"$f":"IF(B14=0, \"\",VLOOKUP(A14,'All Meals'!$A$12:$V$61,13))","v":""},{"$f":"IF(B14=0, \"\",VLOOKUP(A14,'All Meals'!$A$12:$V$61,16))","v":""},"",{"$f":"IF(B14=0, \"\",VLOOKUP(A14,'All Meals'!$A$12:$V$61,19))","v":""},{"$f":"IF(B14=0, \"\",VLOOKUP(A14,'All Meals'!$A$12:$V$61,20))","v":""},"",null,null,null,null,1,{"$f":"INDEX(Cups,W14)","v":0},null,null,null,null,1,0,null,1,"",null,1,0,null,1,"",null,1,0,null,1,"",null,1,0,null,1,"",null,1,0,null,1,""]
[1,0,9,null,{"$f":"IF(B15=0,\"\",FLOOR(VLOOKUP(A15,'All Meals'!$A$12:$V$61,4),0.25))","v":""},"",{"$f":"IF(B15=0,\"\",FLOOR(VLOOKUP(A15,'All Meals'!$A$12:$V$61,5),0.25))","v":""},"",{"$f":"IF(B15=0,\"\",FLOOR(VLOOKUP(A15,'All Meals'!$A$12:$V$61,6),0.25))","v":""},{"$f":"IF(B15=0,\"\",FLOOR(VLOOKUP(A15,'All Meals'!$A$12:$V$61,7),0.25))","v":""},{"$f":"IF(B15=0, \"\",VLOOKUP(A15,'All Meals'!$A$12:$V$61,10))","v":""},"",{"$f":"IF(B15=0, \"\",VLOOKUP(A15,'All Meals'!$A$12:$V$61,13))","v":""},{"$f":"IF(B15=0, \"\",VLOOKUP(A15,'All Meals'!$A$12:$V$61,16))","v":""},"",{"$f":"IF(B15=0, \"\",VLOOKUP(A15,'All Meals'!$A$12:$V$61,19))","v":""},{"$f":"IF(B15=0, \"\",VLOOKUP(A15,'All Meals'!$A$12:$V$61,20))","v":""},"",null,null,null,null,1,{"$f":"INDEX(Cups,W15)","v":0},null,null,null,null,1,0,null,1,"",null,1,0,null,1,"",null,1,0,null,1,"",null,1,0,null,1,"",null,1,0,null,1,""]
[1,0,10,null,{"$f":"IF(B16=0,\"\",FLOOR(VLOOKUP(A16,'All Meals'!$A$12:$V$61,4),0.25))","v":""},"",{"$f":"IF(B16=0,\"\",FLOOR(VLOOKUP(A16,'All Meals'!$A$12:$V$61,5),0.25))","v":""},"",{"$f":"IF(B16=0,\"\",FLOOR(VLOOKUP(A16,'All Meals'!$A$12:$V$61,6),0.25))","v":""},{"$f":"IF(B16=0,\"\",FLOOR(VLOOKUP(A16,'All Meals'!$A$12:$V$61,7),0.25))","v":""},{"$f":"IF(B16=0, \"\",VLOOKUP(A16,'All Meals'!$A$12:$V$61,10))","v":""},"",{"$f":"IF(B16=0, \"\",VLOOKUP(A16,'All Meals'!$A$12:$V$61,13))","v":""},{"$f":"IF(B16=0, \"\",VLOOKUP(A16,'All Meals'!$A$12:$V$61,16))","v":""},"",{"$f":"IF(B16=0, \"\",VLOOKUP(A16,'All Meals'!$A$12:$V$61,19))","v":""},{"$f":"IF(B16=0, \"\",VLOOKUP(A16,'All Meals'!$A$12:$V$61,20))","v":""},"",null,null,null,null,1,{"$f":"INDEX(Cups,W16)","v":0},null,null,null,null,1,0,null,1,"",null,1,0,null,1,"",null,1,0,null,1,"",null,1,0,null,1,"",null,1,0,null,1,""]
[1,0,11,null,{"$f":"IF(B17=0,\"\",FLOOR(VLOOKUP(A17,'All Meals'!$A$12:$V$61,4),0.25))","v":""},"",{"$f":"IF(B17=0,\"\",FLOOR(VLOOKUP(A17,'All Meals'!$A$12:$V$61,5),0.25))","v":""},"",{"$f":"IF(B17=0,\"\",FLOOR(VLOOKUP(A17,'All Meals'!$A$12:$V$61,6),0.25))","v":""},{"$f":"IF(B17=0,\"\",FLOOR(VLOOKUP(A17,'All Meals'!$A$12:$V$61,7),0.25))","v":""},{"$f":"IF(B17=0, \"\",VLOOKUP(A17,'All Meals'!$A$12:$V$61,10))","v":""},"",{"$f":"IF(B17=0, \"\",VLOOKUP(A17,'All Meals'!$A$12:$V$61,13))","v":""},{"$f":"IF(B17=0, \"\",VLOOKUP(A17,'All Meals'!$A$12:$V$61,16))","v":""},"",{"$f":"IF(B17=0, \"\",VLOOKUP(A17,'All Meals'!$A$12:$V$61,19))","v":""},{"$f":"IF(B17=0, \"\",VLOOKUP(A17,'All Meals'!$A$12:$V$61,20))","v":""},"",null,null,null,null,1,{"$f":"INDEX(Cups,W17)","v":0},null,null,null,null,1,0,null,1,"",null,1,0,null,1,"",null,1,0,null,1,"",null,1,0,null,1,"",null,1,0,null,1,""]
[1,0,12,null,{"$f":"IF(B18=0,\"\",FLOOR(VLOOKUP(A18,'All Meals'!$A$12:$V$61,4),0.25))","v":""},"",{"$f":"IF(B18=0,\"\",FLOOR(VLOOKUP(A18,'All Meals'!$A$12:$V$61,5),0.25))","v":""},"",{"$f":"IF(B18=0,\"\",FLOOR(VLOOKUP(A18,'All Meals'!$A$12:$V$61,6),0.25))","v":""},{"$f":"IF(B18=0,\"\",FLOOR(VLOOKUP(A18,'All Meals'!$A$12:$V$61,7),0.25))","v":""},{"$f":"IF(B18=0, \"\",VLOOKUP(A18,'All Meals'!$A$12:$V$61,10))","v":""},"",{"$f":"IF(B18=0, \"\",VLOOKUP(A18,'All Meals'!$A$12:$V$61,13))","v":""},{"$f":"IF(B18=0, \"\",VLOOKUP(A18,'All Meals'!$A$12:$V$61,16))","v":""},{"$f":"IF(B18=0,\"\",IF(N18=\"\",\"No\",IF(N18>=0.75,\"Yes\",\"No\")))","v":""},{"$f":"IF(B18=0, \"\",VLOOKUP(A18,'All Meals'!$A$12:$V$61,19))","v":""},{"$f":"IF(B18=0, \"\",VLOOKUP(A18,'All Meals'!$A$12:$V$61,20))","v":""},"",null,null,null,null,null,null,{"$f":"SUM(X13:X17)","v":0},null,null,null,1,0,null,1,"",null,1,0,null,1,"",null,1,0,null,1,"",null,1,0,null,1,"",null,1,0,null,1,""]
[1,0,13,null,{"$f":"IF(B19=0,\"\",FLOOR(VLOOKUP(A19,'All Meals'!$A$12:$V$61,4),0.25))","v":""},"",{"$f":"IF(B19=0,\"\",FLOOR(VLOOKUP(A19,'All Meals'!$A$12:$V$61,5),0.25))","v":""},"",{"$f":"IF(B19=0,\"\",FLOOR(VLOOKUP(A19,'All Meals'!$A$12:$V$61,6),0.25))","v":""},{"$f":"IF(B19=0,\"\",FLOOR(VLOOKUP(A19,'All Meals'!$A$12:$V$61,7),0.25))","v":""},{"$f":"IF(B19=0, \"\",VLOOKUP(A19,'All Meals'!$A$12:$V$61,10))","v":""},"",{"$f":"IF(B19=0, \"\",VLOOKUP(A19,'All Meals'!$A$12:$V$61,13))","v":""},{"$f":"IF(B19=0, \"\",VLOOKUP(A19,'All Meals'!$A$12:$V$61,16))","v":""},{"$f":"IF(B19=0,\"\",IF(N19=\"\",\"No\",IF(N19>=0.75,\"Yes\",\"No\")))","v":""},{"$f":"IF(B19=0, \"\",VLOOKUP(A19,'All Meals'!$A$12:$V$61,19))","v":""},{"$f":"IF(B19=0, \"\",VLOOKUP(A19,'All Meals'!$A$12:$V$61,20))","v":""},"",null,"Decimal/Fraction Converter\n(Rounded down to the nearest 1/8)",null,null,null,null,null,null,null,null,1,0,null,1,"",null,1,0,null,1,"",null,1,0,null,1,"",null,1,0,null,1,"",null,1,0,null,1,""]
[1,0,14,null,{"$f":"IF(B20=0,\"\",FLOOR(VLOOKUP(A20,'All Meals'!$A$12:$V$61,4),0.25))","v":""},"",{"$f":"IF(B20=0,\"\",FLOOR(VLOOKUP(A20,'All Meals'!$A$12:$V$61,5),0.25))","v":""},"",{"$f":"IF(B20=0,\"\",FLOOR(VLOOKUP(A20,'All Meals'!$A$12:$V$61,6),0.25))","v":""},{"$f":"IF(B20=0,\"\",FLOOR(VLOOKUP(A20,'All Meals'!$A$12:$V$61,7),0.25))","v":""},{"$f":"IF(B20=0, \"\",VLOOKUP(A20,'All Meals'!$A$12:$V$61,10))","v":""},"",{"$f":"IF(B20=0, \"\",VLOOKUP(A20,'All Meals'!$A$12:$V$61,13))","v":""},{"$f":"IF(B20=0, \"\",VLOOKUP(A20,'All Meals'!$A$12:$V$61,16))","v":""},"",{"$f":"IF(B20=0, \"\",VLOOKUP(A20,'All Meals'!$A$12:$V$61,19))","v":""},{"$f":"IF(B20=0, \"\",VLOOKUP(A20,'All Meals'!$A$12:$V$61,20))","v":""},"",null,"Enter the decimal you wish to convert to a fraction in the box:",null,null,null,null,null,null,null,{"$f":"IF(OR(COUNTIF(AC10:AC19,18)>0, COUNTIF(AI10:AI19, 13)>0, COUNTIF(AO10:AO19, 12)>0, COUNTIF(AU10:AU19, 11)>0,COUNTIF(BA10:BA19,34)>0, COUNTIF(BA10:BA19,35)>0, COUNTIF(BA10:BA19,36)>0,COUNTIF(BA10:BA19,37)>0, COUNTIF(BA10:BA19,38)>0, COUNTIF(BA10:BA19,39)>0), \"You entered an unspecified or extra other vegetable above, please enter the name of the vegetable in the appropriate subgroup below\", \"\")","v":""}]
[1,0,15,null,{"$f":"IF(B21=0,\"\",FLOOR(VLOOKUP(A21,'All Meals'!$A$12:$V$61,4),0.25))","v":""},"",{"$f":"IF(B21=0,\"\",FLOOR(VLOOKUP(A21,'All Meals'!$A$12:$V$61,5),0.25))","v":""},"",{"$f":"IF(B21=0,\"\",FLOOR(VLOOKUP(A21,'All Meals'!$A$12:$V$61,6),0.25))","v":""},{"$f":"IF(B21=0,\"\",FLOOR(VLOOKUP(A21,'All Meals'!$A$12:$V$61,7),0.25))","v":""},{"$f":"IF(B21=0, \"\",VLOOKUP(A21,'All Meals'!$A$12:$V$61,10))","v":""},"",{"$f":"IF(B21=0, \"\",VLOOKUP(A21,'All Meals'!$A$12:$V$61,13))","v":""},{"$f":"IF(B21=0, \"\",VLOOKUP(A21,'All Meals'!$A$12:$V$61,16))","v":""},"",{"$f":"IF(B21=0, \"\",VLOOKUP(A21,'All Meals'!$A$12:$V$61,19))","v":""},{"$f":"IF(B21=0, \"\",VLOOKUP(A21,'All Meals'!$A$12:$V$61,20))","v":""},"",null,null,null,null,null,null,null,null,null,"Unspecified Dark Green Vegetables",null,null,null,null,null,"Unspecified Red/Orange Vegetables",null,null,null,null,null,"Unspecified Beans/Peas",null,null,null,null,null,"Unspecified Starchy Vegetables",null,null,null,null,null,"Unspecified Other Vegetables"]
[1,0,16,null,{"$f":"IF(B22=0,\"\",FLOOR(VLOOKUP(A22,'All Meals'!$A$12:$V$61,4),0.25))","v":""},"",{"$f":"IF(B22=0,\"\",FLOOR(VLOOKUP(A22,'All Meals'!$A$12:$V$61,5),0.25))","v":""},"",{"$f":"IF(B22=0,\"\",FLOOR(VLOOKUP(A22,'All Meals'!$A$12:$V$61,6),0.25))","v":""},{"$f":"IF(B22=0,\"\",FLOOR(VLOOKUP(A22,'All Meals'!$A$12:$V$61,7),0.25))","v":""},{"$f":"IF(B22=0, \"\",VLOOKUP(A22,'All Meals'!$A$12:$V$61,10))","v":""},"",{"$f":"IF(B22=0, \"\",VLOOKUP(A22,'All Meals'!$A$12:$V$61,13))","v":""},{"$f":"IF(B22=0, \"\",VLOOKUP(A22,'All Meals'!$A$12:$V$61,16))","v":""},"",{"$f":"IF(B22=0, \"\",VLOOKUP(A22,'All Meals'!$A$12:$V$61,19))","v":""},{"$f":"IF(B22=0, \"\",VLOOKUP(A22,'All Meals'!$A$12:$V$61,20))","v":""},"",null,"The decimal entered above has been converted to the following fraction:",null,null,null,null,{"$f":"FLOOR(Y20,0.125)","v":0}]
[1,0,17,null,{"$f":"IF(B23=0,\"\",FLOOR(VLOOKUP(A23,'All Meals'!$A$12:$V$61,4),0.25))","v":""},"",{"$f":"IF(B23=0,\"\",FLOOR(VLOOKUP(A23,'All Meals'!$A$12:$V$61,5),0.25))","v":""},"",{"$f":"IF(B23=0,\"\",FLOOR(VLOOKUP(A23,'All Meals'!$A$12:$V$61,6),0.25))","v":""},{"$f":"IF(B23=0,\"\",FLOOR(VLOOKUP(A23,'All Meals'!$A$12:$V$61,7),0.25))","v":""},{"$f":"IF(B23=0, \"\",VLOOKUP(A23,'All Meals'!$A$12:$V$61,10))","v":""},"",{"$f":"IF(B23=0, \"\",VLOOKUP(A23,'All Meals'!$A$12:$V$61,13))","v":""},{"$f":"IF(B23=0, \"\",VLOOKUP(A23,'All Meals'!$A$12:$V$61,16))","v":""},"",{"$f":"IF(B23=0, \"\",VLOOKUP(A23,'All Meals'!$A$12:$V$61,19))","v":""},{"$f":"IF(B23=0, \"\",VLOOKUP(A23,'All Meals'!$A$12:$V$61,20))","v":""},""]
[1,0,18,null,{"$f":"IF(B24=0,\"\",FLOOR(VLOOKUP(A24,'All Meals'!$A$12:$V$61,4),0.25))","v":""},"",{"$f":"IF(B24=0,\"\",FLOOR(VLOOKUP(A24,'All Meals'!$A$12:$V$61,5),0.25))","v":""},"",{"$f":"IF(B24=0,\"\",FLOOR(VLOOKUP(A24,'All Meals'!$A$12:$V$61,6),0.25))","v":""},{"$f":"IF(B24=0,\"\",FLOOR(VLOOKUP(A24,'All Meals'!$A$12:$V$61,7),0.25))","v":""},{"$f":"IF(B24=0, \"\",VLOOKUP(A24,'All Meals'!$A$12:$V$61,10))","v":""},"",{"$f":"IF(B24=0, \"\",VLOOKUP(A24,'All Meals'!$A$12:$V$61,13))","v":""},{"$f":"IF(B24=0, \"\",VLOOKUP(A24,'All Meals'!$A$12:$V$61,16))","v":""},"",{"$f":"IF(B24=0, \"\",VLOOKUP(A24,'All Meals'!$A$12:$V$61,19))","v":""},{"$f":"IF(B24=0, \"\",VLOOKUP(A24,'All Meals'!$A$12:$V$61,20))","v":""},""]
[1,0,19,null,{"$f":"IF(B25=0,\"\",FLOOR(VLOOKUP(A25,'All Meals'!$A$12:$V$61,4),0.25))","v":""},"",{"$f":"IF(B25=0,\"\",FLOOR(VLOOKUP(A25,'All Meals'!$A$12:$V$61,5),0.25))","v":""},"",{"$f":"IF(B25=0,\"\",FLOOR(VLOOKUP(A25,'All Meals'!$A$12:$V$61,6),0.25))","v":""},{"$f":"IF(B25=0,\"\",FLOOR(VLOOKUP(A25,'All Meals'!$A$12:$V$61,7),0.25))","v":""},{"$f":"IF(B25=0, \"\",VLOOKUP(A25,'All Meals'!$A$12:$V$61,10))","v":""},"",{"$f":"IF(B25=0, \"\",VLOOKUP(A25,'All Meals'!$A$12:$V$61,13))","v":""},{"$f":"IF(B25=0, \"\",VLOOKUP(A25,'All Meals'!$A$12:$V$61,16))","v":""},"",{"$f":"IF(B25=0, \"\",VLOOKUP(A25,'All Meals'!$A$12:$V$61,19))","v":""},{"$f":"IF(B25=0, \"\",VLOOKUP(A25,'All Meals'!$A$12:$V$61,20))","v":""},""]
[1,0,20,null,{"$f":"IF(B26=0,\"\",FLOOR(VLOOKUP(A26,'All Meals'!$A$12:$V$61,4),0.25))","v":""},"",{"$f":"IF(B26=0,\"\",FLOOR(VLOOKUP(A26,'All Meals'!$A$12:$V$61,5),0.25))","v":""},"",{"$f":"IF(B26=0,\"\",FLOOR(VLOOKUP(A26,'All Meals'!$A$12:$V$61,6),0.25))","v":""},{"$f":"IF(B26=0,\"\",FLOOR(VLOOKUP(A26,'All Meals'!$A$12:$V$61,7),0.25))","v":""},{"$f":"IF(B26=0, \"\",VLOOKUP(A26,'All Meals'!$A$12:$V$61,10))","v":""},"",{"$f":"IF(B26=0, \"\",VLOOKUP(A26,'All Meals'!$A$12:$V$61,13))","v":""},{"$f":"IF(B26=0, \"\",VLOOKUP(A26,'All Meals'!$A$12:$V$61,16))","v":""},"",{"$f":"IF(B26=0, \"\",VLOOKUP(A26,'All Meals'!$A$12:$V$61,19))","v":""},{"$f":"IF(B26=0, \"\",VLOOKUP(A26,'All Meals'!$A$12:$V$61,20))","v":""},""]

{"sheet":"Day7","index":12,"n_rows":26,"n_cols":57,"rows_kept":26,"cut":false,"hidden":false,"merged":[[25,27,25,30],[25,33,25,36],[25,39,25,42],[25,45,25,48],[25,51,25,54],[23,27,23,30],[23,33,23,36],[23,39,23,42],[23,45,23,48],[23,51,23,54],[24,27,24,30],[24,33,24,36],[24,39,24,42],[24,45,24,48],[24,51,24,54],[21,51,21,54],[22,27,22,30],[22,33,22,36],[22,39,22,42],[22,45,22,48],[22,51,22,54],[21,19,22,21],[21,24,22,25],[21,27,21,30],[21,33,21,36],[21,39,21,42],[21,45,21,48],[18,19,18,25],[19,19,20,21],[19,24,20,25],[19,27,19,54],[20,27,20,30],[20,33,20,36],[20,39,20,42],[20,45,20,48],[20,51,20,54],[8,51,8,54],[10,19,11,25],[12,19,17,21],[12,24,12,25],[13,24,13,25],[14,24,14,25],[15,24,15,25],[16,24,16,25],[17,24,17,25],[7,18,7,21],[8,18,8,21],[8,27,8,30],[8,33,8,36],[8,39,8,42],[8,45,8,48],[6,43,7,43],[6,44,7,44],[6,45,7,45],[6,46,7,46],[6,49,7,49],[6,50,7,50],[6,51,7,51],[6,52,7,52],[6,53,7,53],[6,54,7,54],[6,47,7,47],[6,48,7,48],[6,37,7,37],[6,38,7,38],[6,39,7,39],[6,40,7,40],[6,41,7,41],[6,42,7,42],[6,31,7,31],[6,32,7,32],[6,33,7,33],[6,34,7,34],[6,35,7,35],[6,36,7,36],[4,51,5,51],[4,54,5,54],[4,55,5,55],[4,56,5,56],[5,18,5,21],[6,18,6,21],[6,27,7,27],[6,28,7,28],[6,29,7,29],[6,30,7,30],[4,33,5,33],[4,36,5,36],[4,39,5,39],[4,42,5,42],[4,45,5,45],[4,48,5,48],[4,16,5,16],[4,17,5,17],[4,18,4,21],[4,25,6,25],[4,27,5,27],[4,30,5,30],[4,10,5,10],[4,11,5,11],[4,12,5,12],[4,13,5,13],[4,14,5,14],[4,15,5,15],[4,4,5,4],[4,5,5,5],[4,6,5,6],[4,7,5,7],[4,8,5,8],[4,9,5,9],[2,2,2,25],[2,27,2,39],[3,2,5,3],[3,4,3,5],[3,6,3,9],[3,10,3,12],[3,13,3,15],[3,16,3,17],[3,18,3,25],[3,27,3,54],[0,2,0,17],[0,19,0,25],[0,27,0,54],[1,3,1,17],[1,19,1,21],[1,24,1,25],[1,27,1,48],[1,51,1,55]]}
["Day7",null,"Day7 Daily Lunch Requirement Check\nGrades K-8",null,null,null,null,null,null,null,null,null,null,null,null,null,null,null,null,"Scroll to the right to enter vegetable subgroup information",null,null,null,null,null,null,null,"Day7 Vegetable Subgroup Data Entry\nGrades K-8"]
[null,null,null,"The daily worksheet will perform daily requirement checks for the reimbursable meals offered each day. Requirements met are flagged \"Yes\" and the cell turns green. Requirements NOT met are flagged \"No\" and the cell turns red. \nNOTE: The top row is frozen to display the column headers as the daily meals are entered.\nGrains, whole grain rich, and meat/meat alternate oz equivalents are rounded down to the nearest quarter ounce.\nOnce you are finished selecting the meals offered each day, make sure to scroll to the right to enter milk type and vegetable subgroup information.",null,null,null,null,null,null,null,null,null,null,null,null,null,null,null,"Go to Instructions",null,null,null,null,"Go to Weekly Report",null,null,"Creditable Amount of Each Vegetable Subgroup Offered on Day7\nIn the first drop down box, select the largest amount of each vegetable subgroup offered to a student, then in the drop down boxes below, select the name and amount of each vegetable offered in the subgroup. \nIf you want to clear an entry, select the first blank in the drop down box.\nFor additional information on completing the data entry for the vegetable subgroup section, please refer to the Instructions tab. ",null,null,null,null,null,null,null,null,null,null,null,null,null,null,null,null,null,null,null,null,null,null,null,"Click here for help categorizing vegetables\n(Scroll to page 5)"]
[null,null,"Day7",null,null,null,null,null,null,null,null,null,null,null,null,null,null,null,null,null,null,null,null,null,null,null,null,"Check this box if you offered the weekly vegetable bar on Day6 with NO CHANGES:",null,null,null,null,null,null,null,null,null,null,null,null,null,null,null,false]
[null,null,"1.  Meal Name\nSelect the reimbursable lunches offered for the day\nNote: You may not delete lines, if you want to clear a meal select the first blank in the drop down list",null,"2.  Meat/Meat Alternate (M/MA)",null,"3. Grains",null,null,null,"4. Fruit",null,null,"5. Vegetables",null,null,"6. Milk",null,"Milk Type\nCheck the type of milk below if it is offered to students on Day7. \nAll types of milk included.",null,null,null,null,null,null,null,null,"If you offered any vegetables in addition to the weekly vegetable bar, select the largest amount of the vegetable offered to a student and select the name of each vegetable under the appropriate subgroup.\nNOTE:  If you offered a vegetable bar on Day7 that differs from the weekly offerings, all offerings and quantities for each vegetable subgroup must be selected in the section below.",null,null,null,null,null,null,null,null,null,null,null,null,null,null,null,null,null,null,null,null,null,null,null,null,null,null,null,"o_i","O_num"]
[null,null,null,null,"M/MA\noz equivalents","Daily M/MA Requirement Check\n1 oz equivalents","a. Grains\n oz equivalents\n","Daily Grain Requirement Check\n1 oz equivalents","b. Whole Grain Rich\n oz equivalents","c. Grain Based Dessert\n oz equivalents\n ","a. Fruit\ncups","Daily Fruit Requirement Check\n1/2 cup","b. Fruit Juice \ncups","a. Vegetables\n cups","Daily Vegetable Requirement Check\n3/4 cup","b. Vegetable Juice \ncups","Milk\ncups","Daily Milk Requirement Check\n1 cup","Skim/fat-free, unflavored",null,null,null,null,false,null,{"$f":"IF(AND(X5=FALSE,X6=FALSE,X7=FALSE),\"\",IF(AND(X5=TRUE,X6=TRUE),\"Yes\",IF(AND(X5=TRUE,X7=TRUE),\"Yes\",IF(AND(X6=TRUE,X7=TRUE),\"Yes\",\"No\"))))","v":""},null,"DARK GREEN vegetables offered on Day6",null,null,"Quantity (cups)",null,null,"Red/Orange vegetables offered on Day6",null,null,"Quantity (cups)",null,null,"Beans/Peas (legumes) offered on Day6",null,null,"Quantity (cups)",null,null,"Starchy vegetables offered on Day6",null,null,"Quantity (cups)",null,null,"Other vegetables offered on Day6",null,null,"Quantity (cups)",1,{"$f":"INDEX(Cups,BD5)","v":0}]
[null,null,null,null,null,null,null,null,null,null,null,null,null,null,null,null,null,null,"Skim/fat-free, flavored",null,null,null,null,false,null,null,null,null,"G_T",null,null,"G_I","G_num",null,"R_T",null,null,"R_i","r_num",null,"B_t",null,null,"B_i","B_num",null,"S_T",null,null,"s_i","s_num",null,"O_T"]
[2,{"$f":"INDEX(meals,A7)","v":0},1,null,{"$f":"IF(B7=0,\"\",FLOOR(VLOOKUP(A7,'All Meals'!$A$12:$V$61,4),0.25))","v":""},{"$f":"IF(B7=0,\"\",IF(E7=\"\",\"No\",IF(E7>=1,\"Yes\",\"No\")))","v":""},{"$f":"IF(B7=0,\"\",FLOOR(VLOOKUP(A7,'All Meals'!$A$12:$V$61,5),0.25))","v":""},{"$f":"IF(B7=0,\"\",IF(G7=\"\",\"No\",IF(G7>=1,\"Yes\",\"No\")))","v":""},{"$f":"IF(B7=0,\"\",FLOOR(VLOOKUP(A7,'All Meals'!$A$12:$V$61,6),0.25))","v":""},{"$f":"IF(B7=0,\"\",FLOOR(VLOOKUP(A7,'All Meals'!$A$12:$V$61,7),0.25))","v":""},{"$f":"IF(B7=0, \"\",VLOOKUP(A7,'All Meals'!$A$12:$V$61,10))","v":""},{"$f":"IF(B7=0,\"\",IF(K7=\"\",\"No\",IF(K7>=0.5,\"Yes\",\"No\")))","v":""},{"$f":"IF(B7=0, \"\",VLOOKUP(A7,'All Meals'!$A$12:$V$61,13))","v":""},{"$f":"IF(B7=0, \"\",VLOOKUP(A7,'All Meals'!$A$12:$V$61,16))","v":""},{"$f":"IF(B7=0,\"\",IF(N7=\"\",\"No\",IF(N7>=0.75,\"Yes\",\"No\")))","v":""},{"$f":"IF(B7=0, \"\",VLOOKUP(A7,'All Meals'!$A$12:$V$61,19))","v":""},{"$f":"IF(B7=0, \"\",VLOOKUP(A7,'All Meals'!$A$12:$V$61,20))","v":""},{"$f":"IF(B7=0,\"\",IF(Q7=\"\",\"No\",IF(Q7>=1,\"Yes\",\"No\")))","v":""},"Low-fat (1% or less), unflavored",null,null,null,null,false,null,null,null,"Largest amount of dark green vegetables to select on Day6",null,null,null,1,{"$f":"INDEX(Cups,AF7)","v":0},"Largest amount of red/orange vegetables to select on Day6",null,null,null,1,{"$f":"INDEX(Cups,AL7)","v":0},"Largest amount of beans/peas to select on Day6",null,null,null,1,{"$f":"INDEX(Cups,AR7)","v":0},"Largest amount of starchy vegetables to select on Day6",null,null,null,1,{"$f":"INDEX(Cups,AX7)","v":0},"Largest amount of other vegetables to select on Day6"]
[1,{"$f":"INDEX(meals,A8)","v":0},2,null,{"$f":"IF(B8=0,\"\",FLOOR(VLOOKUP(A8,'All Meals'!$A$12:$V$61,4),0.25))","v":""},{"$f":"IF(B8=0,\"\",IF(E8=\"\",\"No\",IF(E8>=1,\"Yes\",\"No\")))","v":""},{"$f":"IF(B8=0,\"\",FLOOR(VLOOKUP(A8,'All Meals'!$A$12:$V$61,5),0.25))","v":""},{"$f":"IF(B8=0,\"\",IF(G8=\"\",\"No\",IF(G8>=1,\"Yes\",\"No\")))","v":""},{"$f":"IF(B8=0,\"\",FLOOR(VLOOKUP(A8,'All Meals'!$A$12:$V$61,6),0.25))","v":""},{"$f":"IF(B8=0,\"\",FLOOR(VLOOKUP(A8,'All Meals'!$A$12:$V$61,7),0.25))","v":""},{"$f":"IF(B8=0, \"\",VLOOKUP(A8,'All Meals'!$A$12:$V$61,10))","v":""},{"$f":"IF(B8=0,\"\",IF(K8=\"\",\"No\",IF(K8>=0.5,\"Yes\",\"No\")))","v":""},{"$f":"IF(B8=0, \"\",VLOOKUP(A8,'All Meals'!$A$12:$V$61,13))","v":""},{"$f":"IF(B8=0, \"\",VLOOKUP(A8,'All Meals'!$A$12:$V$61,16))","v":""},{"$f":"IF(B8=0,\"\",IF(N8=\"\",\"No\",IF(N8>=1,\"Yes\",\"No\")))","v":""},{"$f":"IF(B8=0, \"\",VLOOKUP(A8,'All Meals'!$A$12:$V$61,19))","v":""},{"$f":"IF(B8=0, \"\",VLOOKUP(A8,'All Meals'!$A$12:$V$61,20))","v":""},"","Low-fat (1% or less), flavored",null,null,null,null,false,null,{"$f":"IF(X8=TRUE,\"No\",\"\")","v":""}]
[1,{"$f":"INDEX(meals,A9)","v":0},3,null,{"$f":"IF(B9=0,\"\",FLOOR(VLOOKUP(A9,'All Meals'!$A$12:$V$61,4),0.25))","v":""},"",{"$f":"IF(B9=0,\"\",FLOOR(VLOOKUP(A9,'All Meals'!$A$12:$V$61,5),0.25))","v":""},"",{"$f":"IF(B9=0,\"\",FLOOR(VLOOKUP(A9,'All Meals'!$A$12:$V$61,6),0.25))","v":""},{"$f":"IF(B9=0,\"\",FLOOR(VLOOKUP(A9,'All Meals'!$A$12:$V$61,7),0.25))","v":""},{"$f":"IF(B9=0, \"\",VLOOKUP(A9,'All Meals'!$A$12:$V$61,10))","v":""},"",{"$f":"IF(B9=0, \"\",VLOOKUP(A9,'All Meals'!$A$12:$V$61,13))","v":""},{"$f":"IF(B9=0, \"\",VLOOKUP(A9,'All Meals'!$A$12:$V$61,16))","v":""},"",{"$f":"IF(B9=0, \"\",VLOOKUP(A9,'All Meals'!$A$12:$V$61,19))","v":""},{"$f":"IF(B9=0, \"\",VLOOKUP(A9,'All Meals'!$A$12:$V$61,20))","v":""},"","Reduced fat (2% fat) or whole, unflavored and flavored",null,null,null,null,false,null,{"$f":"IF(X9=TRUE,\"No\",\"\")","v":""},null,{"$f":"IF(OR(COUNTIF(AC10:AC19, 12)>0, COUNTIF(AC10:AC19,2)>0, COUNTIF(AC10:AC19,4)>0, COUNTIF(AC10:AC19,10)>0, COUNTIF(AC10:AC19,15)>0, COUNTIF(AC10:AC19,17)>0,), \"Remember to enter CREDITABLE amounts of leafy greens!\", \"\")","v":""},null,null,null,null,null,{"$f":"IF(COUNTIF(AI10:AI19,10)>0,\"Remember to enter the CREDITABLE amount of tomato paste!\",\"\")","v":""},null,null,null,null,null,{"$f":"IF(SUM(AO10:AO19)>10, \"If crediting as a vegetable do not also credit as a meat/meat alternate\", \"\")","v":""}]
[1,{"$f":"INDEX(meals,A10)","v":0},4,null,{"$f":"IF(B10=0,\"\",FLOOR(VLOOKUP(A10,'All Meals'!$A$12:$V$61,4),0.25))","v":""},"",{"$f":"IF(B10=0,\"\",FLOOR(VLOOKUP(A10,'All Meals'!$A$12:$V$61,5),0.25))","v":""},"",{"$f":"IF(B10=0,\"\",FLOOR(VLOOKUP(A10,'All Meals'!$A$12:$V$61,6),0.25))","v":""},{"$f":"IF(B10=0,\"\",FLOOR(VLOOKUP(A10,'All Meals'!$A$12:$V$61,7),0.25))","v":""},{"$f":"IF(B10=0, \"\",VLOOKUP(A10,'All Meals'!$A$12:$V$61,10))","v":""},"",{"$f":"IF(B10=0, \"\",VLOOKUP(A10,'All Meals'!$A$12:$V$61,13))","v":""},{"$f":"IF(B10=0, \"\",VLOOKUP(A10,'All Meals'!$A$12:$V$61,16))","v":""},"",{"$f":"IF(B10=0, \"\",VLOOKUP(A10,'All Meals'!$A$12:$V$61,19))","v":""},{"$f":"IF(B10=0, \"\",VLOOKUP(A10,'All Meals'!$A$12:$V$61,20))","v":""},"",null,null,null,null,null,null,null,null,null,null,1,{"$f":"INDEX(GREEN,AC10)","v":0},null,1,{"$f":"IF(AD10=0,\"\",INDEX(Cups,AF10))","v":""},null,1,{"$f":"INDEX(RED,AI10)","v":0},null,1,{"$f":"IF(AJ10=0, \"\", INDEX(Cups,AL10))","v":""},null,1,{"$f":"INDEX(BEANS,AO10)","v":0},null,1,{"$f":"IF(AP10=0,\"\",INDEX(Cups,AR10))","v":""},null,1,{"$f":"INDEX(STARCHY,AU10)","v":0},null,1,{"$f":"IF(AV10=0,\"\",INDEX(Cups,AX10))","v":""},null,1,{"$f":"INDEX(OTHER,BA10)","v":0},null,1,{"$f":"IF(BB10=0,\"\",INDEX(Cups,BD10))","v":""}]
[1,0,5,null,{"$f":"IF(B11=0,\"\",FLOOR(VLOOKUP(A11,'All Meals'!$A$12:$V$61,4),0.25))","v":""},"",{"$f":"IF(B11=0,\"\",FLOOR(VLOOKUP(A11,'All Meals'!$A$12:$V$61,5),0.25))","v":""},"",{"$f":"IF(B11=0,\"\",FLOOR(VLOOKUP(A11,'All Meals'!$A$12:$V$61,6),0.25))","v":""},{"$f":"IF(B11=0,\"\",FLOOR(VLOOKUP(A11,'All Meals'!$A$12:$V$61,7),0.25))","v":""},{"$f":"IF(B11=0, \"\",VLOOKUP(A11,'All Meals'!$A$12:$V$61,10))","v":""},"",{"$f":"IF(B11=0, \"\",VLOOKUP(A11,'All Meals'!$A$12:$V$61,13))","v":""},{"$f":"IF(B11=0, \"\",VLOOKUP(A11,'All Meals'!$A$12:$V$61,16))","v":""},"",{"$f":"IF(B11=0, \"\",VLOOKUP(A11,'All Meals'!$A$12:$V$61,19))","v":""},{"$f":"IF(B11=0, \"\",VLOOKUP(A11,'All Meals'!$A$12:$V$61,20))","v":""},"",null,"OPTIONAL Tools to Assist in Fraction and Decimal Calculations",null,null,null,null,null,null,null,null,1,0,null,1,"",null,1,0,null,1,"",null,1,0,null,1,"",null,1,0,null,1,{"$f":"IF(AV11=0,\"\",INDEX(Cups,AX11))","v":""},null,1,0,null,1,""]
[1,0,6,null,{"$f":"IF(B12=0,\"\",FLOOR(VLOOKUP(A12,'All Meals'!$A$12:$V$61,4),0.25))","v":""},"",{"$f":"IF(B12=0,\"\",FLOOR(VLOOKUP(A12,'All Meals'!$A$12:$V$61,5),0.25))","v":""},"",{"$f":"IF(B12=0,\"\",FLOOR(VLOOKUP(A12,'All Meals'!$A$12:$V$61,6),0.25))","v":""},{"$f":"IF(B12=0,\"\",FLOOR(VLOOKUP(A12,'All Meals'!$A$12:$V$61,7),0.25))","v":""},{"$f":"IF(B12=0, \"\",VLOOKUP(A12,'All Meals'!$A$12:$V$61,10))","v":""},"",{"$f":"IF(B12=0, \"\",VLOOKUP(A12,'All Meals'!$A$12:$V$61,13))","v":""},{"$f":"IF(B12=0, \"\",VLOOKUP(A12,'All Meals'!$A$12:$V$61,16))","v":""},"",{"$f":"IF(B12=0, \"\",VLOOKUP(A12,'All Meals'!$A$12:$V$61,19))","v":""},{"$f":"IF(B12=0, \"\",VLOOKUP(A12,'All Meals'!$A$12:$V$61,20))","v":""},"",null,null,null,null,null,null,null,null,null,null,1,0,null,1,"",null,1,0,null,1,"",null,1,0,null,1,"",null,1,0,null,1,"",null,1,0,null,1,""]
[1,0,7,null,{"$f":"IF(B13=0,\"\",FLOOR(VLOOKUP(A13,'All Meals'!$A$12:$V$61,4),0.25))","v":""},"",{"$f":"IF(B13=0,\"\",FLOOR(VLOOKUP(A13,'All Meals'!$A$12:$V$61,5),0.25))","v":""},"",{"$f":"IF(B13=0,\"\",FLOOR(VLOOKUP(A13,'All Meals'!$A$12:$V$61,6),0.25))","v":""},{"$f":"IF(B13=0,\"\",FLOOR(VLOOKUP(A13,'All Meals'!$A$12:$V$61,7),0.25))","v":""},{"$f":"IF(B13=0, \"\",VLOOKUP(A13,'All Meals'!$A$12:$V$61,10))","v":""},"",{"$f":"IF(B13=0, \"\",VLOOKUP(A13,'All Meals'!$A$12:$V$61,13))","v":""},{"$f":"IF(B13=0, \"\",VLOOKUP(A13,'All Meals'!$A$12:$V$61,16))","v":""},"",{"$f":"IF(B13=0, \"\",VLOOKUP(A13,'All Meals'!$A$12:$V$61,19))","v":""},{"$f":"IF(B13=0, \"\",VLOOKUP(A13,'All Meals'!$A$12:$V$61,20))","v":""},"",null,"Fraction Calculator: \nUse this calculator to add the number of cups.",null,null,1,{"$f":"INDEX(Cups,W13)","v":0},null,null,null,null,1,0,null,1,"",null,1,0,null,1,"",null,1,0,null,1,"",null,1,0,null,1,"",null,1,0,null,1,""]
[1,0,8,null,{"$f":"IF(B14=0,\"\",FLOOR(VLOOKUP(A14,'All Meals'!$A$12:$V$61,4),0.25))","v":""},"",{"$f":"IF(B14=0,\"\",FLOOR(VLOOKUP(A14,'All Meals'!$A$12:$V$61,5),0.25))","v":""},"",{"$f":"IF(B14=0,\"\",FLOOR(VLOOKUP(A14,'All Meals'!$A$12:$V$61,6),0.25))","v":""},{"$f":"IF(B14=0,\"\",FLOOR(VLOOKUP(A14,'All Meals'!$A$12:$V$61,7),0.25))","v":""},{"$f":"IF(B14=0, \"\",VLOOKUP(A14,'All Meals'!$A$12:$V$61,10))","v":""},"",{"$f":"IF(B14=0, \"\",VLOOKUP(A14,'All Meals'!$A$12:$V$61,13))","v":""},{"$f":"IF(B14=0, \"\",VLOOKUP(A14,'All Meals'!$A$12:$V$61,16))","v":""},"",{"$f":"IF(B14=0, \"\",VLOOKUP(A14,'All Meals'!$A$12:$V$61,19))","v":""},{"$f":"IF(B14=0, \"\",VLOOKUP(A14,'All Meals'!$A$12:$V$61,20))","v":""},"",null,null,null,null,1,{"$f":"INDEX(Cups,W14)","v":0},null,null,null,null,1,0,null,1,"",null,1,0,null,1,"",null,1,0,null,1,"",null,1,0,null,1,"",null,1,0,null,1,""]
[1,0,9,null,{"$f":"IF(B15=0,\"\",FLOOR(VLOOKUP(A15,'All Meals'!$A$12:$V$61,4),0.25))","v":""},"",{"$f":"IF(B15=0,\"\",FLOOR(VLOOKUP(A15,'All Meals'!$A$12:$V$61,5),0.25))","v":""},"",{"$f":"IF(B15=0,\"\",FLOOR(VLOOKUP(A15,'All Meals'!$A$12:$V$61,6),0.25))","v":""},{"$f":"IF(B15=0,\"\",FLOOR(VLOOKUP(A15,'All Meals'!$A$12:$V$61,7),0.25))","v":""},{"$f":"IF(B15=0, \"\",VLOOKUP(A15,'All Meals'!$A$12:$V$61,10))","v":""},"",{"$f":"IF(B15=0, \"\",VLOOKUP(A15,'All Meals'!$A$12:$V$61,13))","v":""},{"$f":"IF(B15=0, \"\",VLOOKUP(A15,'All Meals'!$A$12:$V$61,16))","v":""},"",{"$f":"IF(B15=0, \"\",VLOOKUP(A15,'All Meals'!$A$12:$V$61,19))","v":""},{"$f":"IF(B15=0, \"\",VLOOKUP(A15,'All Meals'!$A$12:$V$61,20))","v":""},"",null,null,null,null,1,{"$f":"INDEX(Cups,W15)","v":0},null,null,null,null,1,0,null,1,"",null,1,0,null,1,"",null,1,0,null,1,"",null,1,0,null,1,"",null,1,0,null,1,""]
[1,0,10,null,{"$f":"IF(B16=0,\"\",FLOOR(VLOOKUP(A16,'All Meals'!$A$12:$V$61,4),0.25))","v":""},"",{"$f":"IF(B16=0,\"\",FLOOR(VLOOKUP(A16,'All Meals'!$A$12:$V$61,5),0.25))","v":""},"",{"$f":"IF(B16=0,\"\",FLOOR(VLOOKUP(A16,'All Meals'!$A$12:$V$61,6),0.25))","v":""},{"$f":"IF(B16=0,\"\",FLOOR(VLOOKUP(A16,'All Meals'!$A$12:$V$61,7),0.25))","v":""},{"$f":"IF(B16=0, \"\",VLOOKUP(A16,'All Meals'!$A$12:$V$61,10))","v":""},"",{"$f":"IF(B16=0, \"\",VLOOKUP(A16,'All Meals'!$A$12:$V$61,13))","v":""},{"$f":"IF(B16=0, \"\",VLOOKUP(A16,'All Meals'!$A$12:$V$61,16))","v":""},"",{"$f":"IF(B16=0, \"\",VLOOKUP(A16,'All Meals'!$A$12:$V$61,19))","v":""},{"$f":"IF(B16=0, \"\",VLOOKUP(A16,'All Meals'!$A$12:$V$61,20))","v":""},"",null,null,null,null,1,{"$f":"INDEX(Cups,W16)","v":0},null,null,null,null,1,0,null,1,"",null,1,0,null,1,"",null,1,0,null,1,"",null,1,0,null,1,"",null,1,0,null,1,""]
[1,0,11,null,{"$f":"IF(B17=0,\"\",FLOOR(VLOOKUP(A17,'All Meals'!$A$12:$V$61,4),0.25))","v":""},"",{"$f":"IF(B17=0,\"\",FLOOR(VLOOKUP(A17,'All Meals'!$A$12:$V$61,5),0.25))","v":""},"",{"$f":"IF(B17=0,\"\",FLOOR(VLOOKUP(A17,'All Meals'!$A$12:$V$61,6),0.25))","v":""},{"$f":"IF(B17=0,\"\",FLOOR(VLOOKUP(A17,'All Meals'!$A$12:$V$61,7),0.25))","v":""},{"$f":"IF(B17=0, \"\",VLOOKUP(A17,'All Meals'!$A$12:$V$61,10))","v":""},"",{"$f":"IF(B17=0, \"\",VLOOKUP(A17,'All Meals'!$A$12:$V$61,13))","v":""},{"$f":"IF(B17=0, \"\",VLOOKUP(A17,'All Meals'!$A$12:$V$61,16))","v":""},"",{"$f":"IF(B17=0, \"\",VLOOKUP(A17,'All Meals'!$A$12:$V$61,19))","v":""},{"$f":"IF(B17=0, \"\",VLOOKUP(A17,'All Meals'!$A$12:$V$61,20))","v":""},"",null,null,null,null,1,{"$f":"INDEX(Cups,W17)","v":0},null,null,null,null,1,0,null,1,"",null,1,0,null,1,"",null,1,0,null,1,"",null,1,0,null,1,"",null,1,0,null,1,""]
[1,0,12,null,{"$f":"IF(B18=0,\"\",FLOOR(VLOOKUP(A18,'All Meals'!$A$12:$V$61,4),0.25))","v":""},"",{"$f":"IF(B18=0,\"\",FLOOR(VLOOKUP(A18,'All Meals'!$A$12:$V$61,5),0.25))","v":""},"",{"$f":"IF(B18=0,\"\",FLOOR(VLOOKUP(A18,'All Meals'!$A$12:$V$61,6),0.25))","v":""},{"$f":"IF(B18=0,\"\",FLOOR(VLOOKUP(A18,'All Meals'!$A$12:$V$61,7),0.25))","v":""},{"$f":"IF(B18=0, \"\",VLOOKUP(A18,'All Meals'!$A$12:$V$61,10))","v":""},"",{"$f":"IF(B18=0, \"\",VLOOKUP(A18,'All Meals'!$A$12:$V$61,13))","v":""},{"$f":"IF(B18=0, \"\",VLOOKUP(A18,'All Meals'!$A$12:$V$61,16))","v":""},{"$f":"IF(B18=0,\"\",IF(N18=\"\",\"No\",IF(N18>=0.75,\"Yes\",\"No\")))","v":""},{"$f":"IF(B18=0, \"\",VLOOKUP(A18,'All Meals'!$A$12:$V$61,19))","v":""},{"$f":"IF(B18=0, \"\",VLOOKUP(A18,'All Meals'!$A$12:$V$61,20))","v":""},"",null,null,null,null,null,null,{"$f":"SUM(X13:X17)","v":0},null,null,null,1,0,null,1,"",null,1,0,null,1,"",null,1,0,null,1,"",null,1,0,null,1,"",null,1,0,null,1,""]
[1,0,13,null,{"$f":"IF(B19=0,\"\",FLOOR(VLOOKUP(A19,'All Meals'!$A$12:$V$61,4),0.25))","v":""},"",{"$f":"IF(B19=0,\"\",FLOOR(VLOOKUP(A19,'All Meals'!$A$12:$V$61,5),0.25))","v":""},"",{"$f":"IF(B19=0,\"\",FLOOR(VLOOKUP(A19,'All Meals'!$A$12:$V$61,6),0.25))","v":""},{"$f":"IF(B19=0,\"\",FLOOR(VLOOKUP(A19,'All Meals'!$A$12:$V$61,7),0.25))","v":""},{"$f":"IF(B19=0, \"\",VLOOKUP(A19,'All Meals'!$A$12:$V$61,10))","v":""},"",{"$f":"IF(B19=0, \"\",VLOOKUP(A19,'All Meals'!$A$12:$V$61,13))","v":""},{"$f":"IF(B19=0, \"\",VLOOKUP(A19,'All Meals'!$A$12:$V$61,16))","v":""},{"$f":"IF(B19=0,\"\",IF(N19=\"\",\"No\",IF(N19>=0.75,\"Yes\",\"No\")))","v":""},{"$f":"IF(B19=0, \"\",VLOOKUP(A19,'All Meals'!$A$12:$V$61,19))","v":""},{"$f":"IF(B19=0, \"\",VLOOKUP(A19,'All Meals'!$A$12:$V$61,20))","v":""},"",null,"Decimal/Fraction Converter\n(Rounded down to the nearest 1/8)",null,null,null,null,null,null,null,null,1,0,null,1,"",null,1,0,null,1,"",null,1,0,null,1,"",null,1,0,null,1,"",null,1,0,null,1,""]
[1,0,14,null,{"$f":"IF(B20=0,\"\",FLOOR(VLOOKUP(A20,'All Meals'!$A$12:$V$61,4),0.25))","v":""},"",{"$f":"IF(B20=0,\"\",FLOOR(VLOOKUP(A20,'All Meals'!$A$12:$V$61,5),0.25))","v":""},"",{"$f":"IF(B20=0,\"\",FLOOR(VLOOKUP(A20,'All Meals'!$A$12:$V$61,6),0.25))","v":""},{"$f":"IF(B20=0,\"\",FLOOR(VLOOKUP(A20,'All Meals'!$A$12:$V$61,7),0.25))","v":""},{"$f":"IF(B20=0, \"\",VLOOKUP(A20,'All Meals'!$A$12:$V$61,10))","v":""},"",{"$f":"IF(B20=0, \"\",VLOOKUP(A20,'All Meals'!$A$12:$V$61,13))","v":""},{"$f":"IF(B20=0, \"\",VLOOKUP(A20,'All Meals'!$A$12:$V$61,16))","v":""},"",{"$f":"IF(B20=0, \"\",VLOOKUP(A20,'All Meals'!$A$12:$V$61,19))","v":""},{"$f":"IF(B20=0, \"\",VLOOKUP(A20,'All Meals'!$A$12:$V$61,20))","v":""},"",null,"Enter the decimal you wish to convert to a fraction in the box:",null,null,null,null,null,null,null,{"$f":"IF(OR(COUNTIF(AC10:AC19,18)>0, COUNTIF(AI10:AI19, 13)>0, COUNTIF(AO10:AO19, 12)>0, COUNTIF(AU10:AU19, 11)>0,COUNTIF(BA10:BA19,34)>0, COUNTIF(BA10:BA19,35)>0, COUNTIF(BA10:BA19,36)>0,COUNTIF(BA10:BA19,37)>0, COUNTIF(BA10:BA19,38)>0, COUNTIF(BA10:BA19,39)>0), \"You entered an unspecified or extra other vegetable above, please enter the name of the vegetable in the appropriate subgroup below\", \"\")","v":""}]
[1,0,15,null,{"$f":"IF(B21=0,\"\",FLOOR(VLOOKUP(A21,'All Meals'!$A$12:$V$61,4),0.25))","v":""},"",{"$f":"IF(B21=0,\"\",FLOOR(VLOOKUP(A21,'All Meals'!$A$12:$V$61,5),0.25))","v":""},"",{"$f":"IF(B21=0,\"\",FLOOR(VLOOKUP(A21,'All Meals'!$A$12:$V$61,6),0.25))","v":""},{"$f":"IF(B21=0,\"\",FLOOR(VLOOKUP(A21,'All Meals'!$A$12:$V$61,7),0.25))","v":""},{"$f":"IF(B21=0, \"\",VLOOKUP(A21,'All Meals'!$A$12:$V$61,10))","v":""},"",{"$f":"IF(B21=0, \"\",VLOOKUP(A21,'All Meals'!$A$12:$V$61,13))","v":""},{"$f":"IF(B21=0, \"\",VLOOKUP(A21,'All Meals'!$A$12:$V$61,16))","v":""},"",{"$f":"IF(B21=0, \"\",VLOOKUP(A21,'All Meals'!$A$12:$V$61,19))","v":""},{"$f":"IF(B21=0, \"\",VLOOKUP(A21,'All Meals'!$A$12:$V$61,20))","v":""},"",null,null,null,null,null,null,null,null,null,"Unspecified Dark Green Vegetables",null,null,null,null,null,"Unspecified Red/Orange Vegetables",null,null,null,null,null,"Unspecified Beans/Peas",null,null,null,null,null,"Unspecified Starchy Vegetables",null,null,null,null,null,"Unspecified Other Vegetables"]
[1,0,16,null,{"$f":"IF(B22=0,\"\",FLOOR(VLOOKUP(A22,'All Meals'!$A$12:$V$61,4),0.25))","v":""},"",{"$f":"IF(B22=0,\"\",FLOOR(VLOOKUP(A22,'All Meals'!$A$12:$V$61,5),0.25))","v":""},"",{"$f":"IF(B22=0,\"\",FLOOR(VLOOKUP(A22,'All Meals'!$A$12:$V$61,6),0.25))","v":""},{"$f":"IF(B22=0,\"\",FLOOR(VLOOKUP(A22,'All Meals'!$A$12:$V$61,7),0.25))","v":""},{"$f":"IF(B22=0, \"\",VLOOKUP(A22,'All Meals'!$A$12:$V$61,10))","v":""},"",{"$f":"IF(B22=0, \"\",VLOOKUP(A22,'All Meals'!$A$12:$V$61,13))","v":""},{"$f":"IF(B22=0, \"\",VLOOKUP(A22,'All Meals'!$A$12:$V$61,16))","v":""},"",{"$f":"IF(B22=0, \"\",VLOOKUP(A22,'All Meals'!$A$12:$V$61,19))","v":""},{"$f":"IF(B22=0, \"\",VLOOKUP(A22,'All Meals'!$A$12:$V$61,20))","v":""},"",null,"The decimal entered above has been converted to the following fraction:",null,null,null,null,{"$f":"FLOOR(Y20,0.125)","v":0}]
[1,0,17,null,{"$f":"IF(B23=0,\"\",FLOOR(VLOOKUP(A23,'All Meals'!$A$12:$V$61,4),0.25))","v":""},"",{"$f":"IF(B23=0,\"\",FLOOR(VLOOKUP(A23,'All Meals'!$A$12:$V$61,5),0.25))","v":""},"",{"$f":"IF(B23=0,\"\",FLOOR(VLOOKUP(A23,'All Meals'!$A$12:$V$61,6),0.25))","v":""},{"$f":"IF(B23=0,\"\",FLOOR(VLOOKUP(A23,'All Meals'!$A$12:$V$61,7),0.25))","v":""},{"$f":"IF(B23=0, \"\",VLOOKUP(A23,'All Meals'!$A$12:$V$61,10))","v":""},"",{"$f":"IF(B23=0, \"\",VLOOKUP(A23,'All Meals'!$A$12:$V$61,13))","v":""},{"$f":"IF(B23=0, \"\",VLOOKUP(A23,'All Meals'!$A$12:$V$61,16))","v":""},"",{"$f":"IF(B23=0, \"\",VLOOKUP(A23,'All Meals'!$A$12:$V$61,19))","v":""},{"$f":"IF(B23=0, \"\",VLOOKUP(A23,'All Meals'!$A$12:$V$61,20))","v":""},""]
[1,0,18,null,{"$f":"IF(B24=0,\"\",FLOOR(VLOOKUP(A24,'All Meals'!$A$12:$V$61,4),0.25))","v":""},"",{"$f":"IF(B24=0,\"\",FLOOR(VLOOKUP(A24,'All Meals'!$A$12:$V$61,5),0.25))","v":""},"",{"$f":"IF(B24=0,\"\",FLOOR(VLOOKUP(A24,'All Meals'!$A$12:$V$61,6),0.25))","v":""},{"$f":"IF(B24=0,\"\",FLOOR(VLOOKUP(A24,'All Meals'!$A$12:$V$61,7),0.25))","v":""},{"$f":"IF(B24=0, \"\",VLOOKUP(A24,'All Meals'!$A$12:$V$61,10))","v":""},"",{"$f":"IF(B24=0, \"\",VLOOKUP(A24,'All Meals'!$A$12:$V$61,13))","v":""},{"$f":"IF(B24=0, \"\",VLOOKUP(A24,'All Meals'!$A$12:$V$61,16))","v":""},"",{"$f":"IF(B24=0, \"\",VLOOKUP(A24,'All Meals'!$A$12:$V$61,19))","v":""},{"$f":"IF(B24=0, \"\",VLOOKUP(A24,'All Meals'!$A$12:$V$61,20))","v":""},""]
[1,0,19,null,{"$f":"IF(B25=0,\"\",FLOOR(VLOOKUP(A25,'All Meals'!$A$12:$V$61,4),0.25))","v":""},"",{"$f":"IF(B25=0,\"\",FLOOR(VLOOKUP(A25,'All Meals'!$A$12:$V$61,5),0.25))","v":""},"",{"$f":"IF(B25=0,\"\",FLOOR(VLOOKUP(A25,'All Meals'!$A$12:$V$61,6),0.25))","v":""},{"$f":"IF(B25=0,\"\",FLOOR(VLOOKUP(A25,'All Meals'!$A$12:$V$61,7),0.25))","v":""},{"$f":"IF(B25=0, \"\",VLOOKUP(A25,'All Meals'!$A$12:$V$61,10))","v":""},"",{"$f":"IF(B25=0, \"\",VLOOKUP(A25,'All Meals'!$A$12:$V$61,13))","v":""},{"$f":"IF(B25=0, \"\",VLOOKUP(A25,'All Meals'!$A$12:$V$61,16))","v":""},"",{"$f":"IF(B25=0, \"\",VLOOKUP(A25,'All Meals'!$A$12:$V$61,19))","v":""},{"$f":"IF(B25=0, \"\",VLOOKUP(A25,'All Meals'!$A$12:$V$61,20))","v":""},""]
[1,0,20,null,{"$f":"IF(B26=0,\"\",FLOOR(VLOOKUP(A26,'All Meals'!$A$12:$V$61,4),0.25))","v":""},"",{"$f":"IF(B26=0,\"\",FLOOR(VLOOKUP(A26,'All Meals'!$A$12:$V$61,5),0.25))","v":""},"",{"$f":"IF(B26=0,\"\",FLOOR(VLOOKUP(A26,'All Meals'!$A$12:$V$61,6),0.25))","v":""},{"$f":"IF(B26=0,\"\",FLOOR(VLOOKUP(A26,'All Meals'!$A$12:$V$61,7),0.25))","v":""},{"$f":"IF(B26=0, \"\",VLOOKUP(A26,'All Meals'!$A$12:$V$61,10))","v":""},"",{"$f":"IF(B26=0, \"\",VLOOKUP(A26,'All Meals'!$A$12:$V$61,13))","v":""},{"$f":"IF(B26=0, \"\",VLOOKUP(A26,'All Meals'!$A$12:$V$61,16))","v":""},"",{"$f":"IF(B26=0, \"\",VLOOKUP(A26,'All Meals'!$A$12:$V$61,19))","v":""},{"$f":"IF(B26=0, \"\",VLOOKUP(A26,'All Meals'!$A$12:$V$61,20))","v":""},""]

{"sheet":"Weekly Report","index":13,"n_rows":35,"n_cols":31,"rows_kept":35,"cut":false,"hidden":false,"merged":[[3,15,3,16],[4,15,4,16],[27,4,27,7],[9,17,9,18],[9,19,9,20],[8,15,8,16],[3,13,4,14],[25,0,25,4],[8,21,8,22],[8,17,8,18],[3,17,3,18],[4,17,4,18],[8,19,8,20],[4,19,4,20],[0,0,1,10],[1,15,1,18],[12,13,12,22],[9,15,9,16],[8,13,9,14],[13,13,20,22],[9,21,9,22],[3,21,3,22],[3,19,3,20],[4,21,4,22]]}
["Weekly Report\nLunch, Grades K-8",null,null,null,null,null,null,null,null,null,null,null,null,null,null,null,null,null,null,null,null,null,null,null,null,null,null,null,null,null,"Day2 Vegetable Subgroup Data Entry\nGrades 6-8"]
[null,null,null,null,null,null,null,null,null,null,null,null,null,null,null,"Cells shaded this color means the daily minimum for the component is NOT met"]
[]
["Go to instructions","Day1","Day2","Day3","Day4","Day5","Day6","Day7","Weekly Total","Weekly Requirement (cups)","Weekly Requirement Check",null,null,"Weekly Fruit Juice Limit Check\n(no more than half of total fruit)\n",null,"Total Weekly Fruit",null,"Total Weekly Fruit Juice",null,"Percent of total weekly fruit that is juice",null,"Weekly requirement check"]
["Minimum Fruit (cups)",{"$f":"MIN('Day1'!K7:K26)","v":0},{"$f":"MIN('Day2'!K7:K26)","v":0},{"$f":"MIN('Day3'!K7:K26)","v":0},{"$f":"MIN('Day4'!K7:K26)","v":0},{"$f":"MIN('Day5'!K7:K26)","v":0},{"$f":"MIN('Day6'!K7:K26)","v":0},{"$f":"MIN('Day7'!K7:K26)","v":0},{"$f":"SUM(B5:H5)","v":0},3.5,{"$f":"IF(I5>=J5, \"Yes\", \"No\")","v":"No"},null,null,null,null,{"$f":"W6","v":0},null,{"$f":"W7","v":0},null,{"$f":"IF(ISERROR(R5/P5),0, R5/P5)","v":0},null,{"$f":"IF(T5<=0.5, \"Yes\", \"No\")","v":"Yes"}]
[null,null,null,null,null,null,null,null,null,null,null,null,null,null,"Fruit",{"$f":"MAX('Day1'!K7:K26)","v":0},{"$f":"MAX('Day2'!K7:K26)","v":0},{"$f":"MAX('Day3'!K7:K26)","v":0},{"$f":"MAX('Day4'!K7:K26)","v":0},{"$f":"MAX('Day5'!K7:K26)","v":0},{"$f":"MAX('Day6'!K7:K26)","v":0},{"$f":"MAX('Day7'!K7:K26)","v":0},{"$f":"SUM(P6:V6)","v":0}]
[null,null,null,null,null,null,null,null,null,null,null,null,null,null,"Juice",{"$f":"MAX('Day1'!M7:M26)","v":0},{"$f":"MAX('Day2'!M7:M26)","v":0},{"$f":"MAX('Day3'!M7:M26)","v":0},{"$f":"MAX('Day4'!M7:M26)","v":0},{"$f":"MAX('Day5'!M7:M26)","v":0},{"$f":"MAX('Day6'!M7:M26)","v":0},{"$f":"MAX('Day7'!M7:M26)","v":0},{"$f":"SUM(P7:V7)","v":0}]
[]
[null,"Day1","Day2","Day3","Day4","Day5","Day6","Day7","Weekly Total","Weekly Requirement (cups)","Weekly Requirement Check",null,null,"Weekly Vegetable Juice Limit Check\n(no more than half of total vegetables)\n",null,"Total Weekly Vegetables",null,"Total Weekly Vegetable Juice",null,"Percent of total weekly vegetables that is juice",null,"Weekly requirement check"]
["Minimum Vegetables",{"$f":"MIN('Day1'!N7:N26)","v":0},{"$f":"MIN('Day2'!N7:N26)","v":0},{"$f":"MIN('Day3'!N7:N26)","v":0},{"$f":"MIN('Day4'!N7:N26)","v":0},{"$f":"MIN('Day5'!N7:N26)","v":0},{"$f":"MIN('Day6'!N7:N26)","v":0},{"$f":"MIN('Day7'!N7:N26)","v":0},{"$f":"SUM(B10:H10)","v":0},5.25,{"$f":"IF(I10>=J10, \"Yes\", \"No\")","v":"No"},null,null,null,null,{"$f":"W11","v":0},null,{"$f":"W12","v":0},null,{"$f":"IF(ISERROR(R10/P10),0, R10/P10)","v":0},null,{"$f":"IF(T10<=0.5, \"Yes\", \"No\")","v":"Yes"}]
[null,null,null,null,null,null,null,null,{"$f":"SUM(B11:H11)","v":0},null,null,null,null,null,null,{"$f":"MAX('Day1'!N7:N26)","v":0},{"$f":"MAX('Day2'!N7:N26)","v":0},{"$f":"MAX('Day3'!N7:N26)","v":0},{"$f":"MAX('Day4'!N7:N26)","v":0},{"$f":"MAX('Day5'!N7:N26)","v":0},{"$f":"MAX('Day6'!N7:N26)","v":0},{"$f":"MAX('Day7'!N7:N26)","v":0},{"$f":"SUM(P11:V11)","v":0}]
[null,null,null,null,null,null,null,null,0,null,null,null,null,null,null,{"$f":"MAX('Day1'!P7:P26)","v":0},{"$f":"MAX('Day2'!P7:P26)","v":0},{"$f":"MAX('Day3'!P7:P26)","v":0},{"$f":"MAX('Day4'!P7:P26)","v":0},{"$f":"MAX('Day5'!P7:P26)","v":0},{"$f":"MAX('Day6'!P7:P26)","v":0},{"$f":"MAX('Day7'!P7:P26)","v":0},{"$f":"SUM(P12:V12)","v":0}]
["Cups of DARK GREEN ",{"$f":"IF('Day1'!AR3=TRUE,SUM('Optional VegBar'!G16,'Day1'!AG7),'Day1'!AG7)","v":0},{"$f":"IF('Day2'!AR3=TRUE,SUM('Optional VegBar'!G16,'Day2'!AG7),'Day2'!AG7)","v":0},{"$f":"IF('Day3'!AR3=TRUE,SUM('Optional VegBar'!G16,'Day3'!AG7),'Day3'!AG7)","v":0},{"$f":"IF('Day4'!AR3=TRUE,SUM('Optional VegBar'!G16,'Day4'!AG7),'Day4'!AG7)","v":0},{"$f":"IF('Day5'!AR3=TRUE,SUM('Optional VegBar'!G16,'Day5'!AG7),'Day5'!AG7)","v":0},{"$f":"IF('Day6'!AR3=TRUE,SUM('Optional VegBar'!G16,'Day6'!AG7),'Day6'!AG7)","v":0},{"$f":"IF('Day7'!AR3=TRUE,SUM('Optional VegBar'!G16,'Day7'!AG7),'Day7'!AG7)","v":0},0,0.5,{"$f":"IF(I13>=J13, \"Yes\", \"No\")","v":"No"},null,null,"Comments Section"]
["Cups of RED/ORANGE",{"$f":"IF('Day1'!AR3=TRUE, SUM('Optional VegBar'!M16,'Day1'!AM7),'Day1'!AM7)","v":0},{"$f":"IF('Day2'!AR3=TRUE, SUM('Optional VegBar'!M16,'Day2'!AM7),'Day2'!AM7)","v":0},{"$f":"IF('Day3'!AR3=TRUE, SUM('Optional VegBar'!M16,'Day3'!AM7),'Day3'!AM7)","v":0},{"$f":"IF('Day4'!AR3=TRUE, SUM('Optional VegBar'!M16,'Day4'!AM7),'Day4'!AM7)","v":0},{"$f":"IF('Day5'!AR3=TRUE, SUM('Optional VegBar'!M16,'Day5'!AM7),'Day5'!AM7)","v":0},{"$f":"IF('Day6'!AR3=TRUE, SUM('Optional VegBar'!M16,'Day6'!AM7),'Day6'!AM7)","v":0},{"$f":"IF('Day7'!AR3=TRUE, SUM('Optional VegBar'!M16,'Day7'!AM7),'Day7'!AM7)","v":0},0,0.75,{"$f":"IF(I14>=J14, \"Yes\", \"No\")","v":"No"}]
[" Cups of BEANS/PEAS(Legumes)",{"$f":"IF('Day1'!AR3=TRUE, SUM('Optional VegBar'!S16,'Day1'!AS7),'Day1'!AS7)","v":0},{"$f":"IF('Day2'!AR3=TRUE, SUM('Optional VegBar'!S16,'Day2'!AS7),'Day2'!AS7)","v":0},{"$f":"IF('Day3'!AR3=TRUE, SUM('Optional VegBar'!S16,'Day3'!AS7),'Day3'!AS7)","v":0},{"$f":"IF('Day4'!AR3=TRUE, SUM('Optional VegBar'!S16,'Day4'!AS7),'Day4'!AS7)","v":0},{"$f":"IF('Day5'!AR3=TRUE, SUM('Optional VegBar'!S16,'Day5'!AS7),'Day5'!AS7)","v":0},{"$f":"IF('Day6'!AR3=TRUE, SUM('Optional VegBar'!S16,'Day6'!AS7),'Day6'!AS7)","v":0},{"$f":"IF('Day7'!AR3=TRUE, SUM('Optional VegBar'!S16,'Day7'!AS7),'Day7'!AS7)","v":0},0,0.5,{"$f":"IF(I15>=J15, \"Yes\", \"No\")","v":"No"}]
["Cups of STARCHY vegetables",{"$f":"IF('Day1'!AR3=TRUE, SUM('Optional VegBar'!Y16,'Day1'!AY7),'Day1'!AY7)","v":0},{"$f":"IF('Day2'!AR3=TRUE, SUM('Optional VegBar'!Y16,'Day2'!AY7),'Day2'!AY7)","v":0},{"$f":"IF('Day3'!AR3=TRUE, SUM('Optional VegBar'!Y16,'Day3'!AY7),'Day3'!AY7)","v":0},{"$f":"IF('Day4'!AR3=TRUE, SUM('Optional VegBar'!Y16,'Day4'!AY7),'Day4'!AY7)","v":0},{"$f":"IF('Day5'!AR3=TRUE, SUM('Optional VegBar'!Y16,'Day5'!AY7),'Day5'!AY7)","v":0},{"$f":"IF('Day6'!AR3=TRUE, SUM('Optional VegBar'!Y16,'Day6'!AY7),'Day6'!AY7)","v":0},{"$f":"IF('Day7'!AR3=TRUE, SUM('Optional VegBar'!Y16,'Day7'!AY7),'Day7'!AY7)","v":0},0,0.5,{"$f":"IF(I16>=J16, \"Yes\", \"No\")","v":"No"}]
["Cups of OTHER\n (any other type of vegetable)",{"$f":"IF('Day1'!AR3=TRUE,SUM('Optional VegBar'!AE16,'Day1'!BE5),'Day1'!BE5)","v":0},{"$f":"IF('Day2'!AR3=TRUE,SUM('Optional VegBar'!AE16,'Day2'!BE5),'Day2'!BE5)","v":0},{"$f":"IF('Day3'!AR3=TRUE,SUM('Optional VegBar'!AE16,'Day3'!BE5),'Day3'!BE5)","v":0},{"$f":"IF('Day4'!AR3=TRUE,SUM('Optional VegBar'!AE16,'Day4'!BE5),'Day4'!BE5)","v":0},{"$f":"IF('Day5'!AR3=TRUE,SUM('Optional VegBar'!AE16,'Day5'!BE5),'Day5'!BE5)","v":0},{"$f":"IF('Day6'!AR3=TRUE,SUM('Optional VegBar'!AE16,'Day6'!BE5),'Day6'!BE5)","v":0},{"$f":"IF('Day7'!AR3=TRUE,SUM('Optional VegBar'!AE16,'Day7'!BE5),'Day7'!BE5)","v":0},0,0.5,{"$f":"IF(I17>=J17, \"Yes\", \"No\")","v":"No"}]
[]
[null,"Day1","Day2","Day3","Day4","Day5","Day6","Day7","Weekly Total","Weekly Requirement\n (oz equivalents)","Weekly Requirement Check"]
["Minimum Meat/Meat Alternate",{"$f":"MIN('Day1'!E7:E26)","v":0},{"$f":"MIN('Day2'!E7:E26)","v":0},{"$f":"MIN('Day3'!E7:E26)","v":0},{"$f":"MIN('Day4'!E7:E26)","v":0},{"$f":"MIN('Day5'!E7:E26)","v":0},{"$f":"MIN('Day6'!E7:E26)","v":0},{"$f":"MIN('Day7'!E7:E26)","v":0},{"$f":"SUM(B20:H20)","v":0},12.5,{"$f":"IF(I20>=J20, \"Yes\", \"No\")","v":"No"}]
["Maximum  Meat/Meat Alternate",{"$f":"MAX('Day1'!E7:E26)","v":0},{"$f":"MAX('Day2'!E7:E26)","v":0},{"$f":"MAX('Day3'!E7:E26)","v":0},{"$f":"MAX('Day4'!E7:E26)","v":0},{"$f":"MAX('Day5'!E7:E26)","v":0},{"$f":"MAX('Day6'!E7:E26)","v":0},{"$f":"MAX('Day7'!E7:E26)","v":0},{"$f":"SUM(B21:H21)","v":0},14,{"$f":"IF(I21=0,\"No\",IF(AND(I21<=J21,I21>=J20),\"Yes\",\"No\"))","v":"No"}]
[]
[null,"Day1","Day2","Day3","Day4","Day5","Day6","Day7","Weekly Total","Weekly Requirement\n (oz equivalents)","Weekly Requirement Check"]
["Minimum Grain",{"$f":"MIN('Day1'!G7:G26)","v":0},{"$f":"MIN('Day2'!G7:G26)","v":0},{"$f":"MIN('Day3'!G7:G26)","v":0},{"$f":"MIN('Day4'!G7:G26)","v":0},{"$f":"MIN('Day5'!G7:G26)","v":0},{"$f":"MIN('Day6'!G7:G26)","v":0},{"$f":"MIN('Day7'!G7:G26)","v":0},{"$f":"SUM(B24:H24)","v":0},11,{"$f":"IF(I24>=J24, \"Yes\", \"No\")","v":"No"}]
["Maximum Grain",{"$f":"MAX('Day1'!G7:G26)","v":0},{"$f":"MAX('Day2'!G7:G26)","v":0},{"$f":"MAX('Day3'!G7:G26)","v":0},{"$f":"MAX('Day4'!G7:G26)","v":0},{"$f":"MAX('Day5'!G7:G26)","v":0},{"$f":"MAX('Day6'!G7:G26)","v":0},{"$f":"MAX('Day7'!G7:G26)","v":0},{"$f":"SUM(B25:H25)","v":0},12.5,{"$f":"IF(I25=0,\"No\",IF(AND(I25<=J25,I25>=J24),\"Yes\",\"No\"))","v":"No"}]
["Grain Based Dessert Total for all weekly meals",null,null,null,null,null,null,null,{"$f":"SUM(B27:H27)","v":0},"No more 2 oz equivalents",{"$f":"IF(I26<=2, \"Yes\", \"No\")","v":"Yes"}]
[null,{"$f":"MAX('Day1'!J7:J26)","v":0},{"$f":"MAX('Day2'!J7:J26)","v":0},{"$f":"MAX('Day3'!J7:J26)","v":0},{"$f":"MAX('Day4'!J7:J26)","v":0},{"$f":"MAX('Day5'!J7:J26)","v":0},{"$f":"MAX('Day6'!J7:J26)","v":0},{"$f":"MAX('Day7'!J7:J26)","v":0}]
["Whole Grain Rich Weekly Amount","Weekly Grains Total:",{"$f":"SUM('Day1:Day7'!G7:G26)","v":0},"Weekly Whole Grain Rich Total:",{"$f":"SUM('Day1:Day7'!I7:I26)","v":0},null,null,null,{"$f":"IF(ISERROR(E28/C28),0, E28/C28)","v":0},"100% whole grain rich",{"$f":"IF(I28=1,\"Yes\",IF(I28<0.5,\"No\",\"Check for Waiver\"))","v":"No"},3]
[]
[]
[null,"Day1","Day2","Day3","Day4","Day5","Day6","Day7","Weekly Total","Weekly Requirement (cups)","Weekly Requirement Check"]
["Minimum Fluid Milk",{"$f":"MIN('Day1'!Q7:Q26)","v":0},{"$f":"MIN('Day2'!Q7:Q26)","v":0},{"$f":"MIN('Day3'!Q7:Q26)","v":0},{"$f":"MIN('Day4'!Q7:Q26)","v":0},{"$f":"MIN('Day5'!Q7:Q26)","v":0},{"$f":"MIN('Day6'!Q7:Q26)","v":0},{"$f":"MIN('Day7'!Q7:Q26)","v":0},{"$f":"SUM(B32:H32)","v":0},7,{"$f":"IF(I32>=J32, \"Yes\", \"No\")","v":"No"}]
["Variety: Skim/fat-free unflavored, Skim/fat-free flavored, Low-fat (less than 1%), unflavored",{"$f":"'Day1'!Z5","v":""},{"$f":"'Day2'!Z5","v":""},{"$f":"'Day3'!Z5","v":""},{"$f":"'Day4'!Z5","v":""},{"$f":"'Day5'!Z5","v":""},{"$f":"'Day6'!Z5","v":""},{"$f":"'Day7'!Z5","v":""}]
["Low-fat (1% or less), flavored",{"$f":"'Day1'!Z8","v":""},{"$f":"'Day2'!Z8","v":""},{"$f":"'Day3'!Z8","v":""},{"$f":"'Day4'!Z8","v":""},{"$f":"'Day5'!Z8","v":""},{"$f":"'Day6'!Z8","v":""},{"$f":"'Day7'!Z8","v":""}]
["Reduced fat (2% fat) or whole, unflavored and flavored",{"$f":"'Day1'!Z9","v":""},{"$f":"'Day2'!Z9","v":""},{"$f":"'Day3'!Z9","v":""},{"$f":"'Day4'!Z9","v":""},{"$f":"'Day5'!Z9","v":""},{"$f":"'Day6'!Z9","v":""},{"$f":"'Day7'!Z9","v":""}]

{"sheet":"Weekly Menu","index":14,"n_rows":40,"n_cols":10,"rows_kept":40,"cut":false,"hidden":true,"merged":[[14,2,14,3],[15,2,15,3],[21,2,21,3],[27,2,27,3],[33,2,33,3],[39,2,39,3],[3,0,3,1],[14,0,14,1],[2,0,2,1],[15,0,15,1],[21,0,21,1],[27,0,27,1],[33,0,33,1],[39,0,39,1],[2,2,2,3],[33,4,33,5],[27,6,27,7],[39,6,39,7],[2,4,2,5],[3,4,3,5],[14,4,14,5],[15,4,15,5],[21,4,21,5],[27,4,27,5],[39,4,39,5],[0,0,0,9],[2,8,2,9],[3,8,3,9],[14,8,14,9],[15,8,15,9],[21,8,21,9],[2,6,2,7],[33,8,33,9],[33,6,33,7],[39,8,39,9],[27,8,27,9],[3,6,3,7],[1,0,1,9],[3,2,3,3],[14,6,14,7],[15,6,15,7],[21,6,21,7]]}
["Weekly Reimbursable Meals and Vegetable Subgroups for lunch: Grades 9-12"]
["Go to instructions"]
["Monday",null,"Tuesday",null,"Wednesday",null,"Thursday",null,"Friday"]
["Reimbursable Meals",null,"Reimbursable Meals",null,"Reimbursable Meals",null,"Reimbursable Meals",null,"Reimbursable Meals"]
["aa=IF(Monday!A7aa=1,\"\",Monday!B7)","aa=IF(Monday!A17aa=1, \"\", Monday!B17)","aa=IF(Tuesday!A7aa=1,\"\",Tuesday!B7)","aa=IF(Tuesday!A17aa=1, \"\", Tuesday!B17)","aa=IF(Wednesday!A7aa=1,\"\",Wednesday!B7)","aa=IF(Wednesday!A17aa=1, \"\", Wednesday!B17)","aa=IF(Thursday!A7aa=1,\"\",Thursday!B7)","aa=IF(Thursday!A17aa=1, \"\", Thursday!B17)","aa=IF(Friday!A7aa=1,\"\",Friday!B7)","aa=IF(Friday!A17aa=1, \"\", Friday!B17)"]
["aa=IF(Monday!A8aa=1,\"\",Monday!B8)","aa=IF(Monday!A18aa=1, \"\", Monday!B18)","aa=IF(Tuesday!A8aa=1,\"\",Tuesday!B8)","aa=IF(Tuesday!A18aa=1, \"\", Tuesday!B18)","aa=IF(Wednesday!A8aa=1,\"\",Wednesday!B8)","aa=IF(Wednesday!A18aa=1, \"\", Wednesday!B18)","aa=IF(Thursday!A8aa=1,\"\",Thursday!B8)","aa=IF(Thursday!A18aa=1, \"\", Thursday!B18)","aa=IF(Friday!A8aa=1,\"\",Friday!B8)","aa=IF(Friday!A18aa=1, \"\", Friday!B18)"]
["aa=IF(Monday!A9aa=1,\"\",Monday!B9)","aa=IF(Monday!A19aa=1, \"\", Monday!B19)","aa=IF(Tuesday!A9aa=1,\"\",Tuesday!B9)","aa=IF(Tuesday!A19aa=1, \"\", Tuesday!B19)","aa=IF(Wednesday!A9aa=1,\"\",Wednesday!B9)","aa=IF(Wednesday!A19aa=1, \"\", Wednesday!B19)","aa=IF(Thursday!A9aa=1,\"\",Thursday!B9)","aa=IF(Thursday!A19aa=1, \"\", Thursday!B19)","aa=IF(Friday!A9aa=1,\"\",Friday!B9)","aa=IF(Friday!A19aa=1, \"\", Friday!B19)"]
["aa=IF(Monday!A10aa=1,\"\",Monday!B10)","aa=IF(Monday!A20aa=1, \"\", Monday!B20)","aa=IF(Tuesday!A10aa=1,\"\",Tuesday!B10)","aa=IF(Tuesday!A20aa=1, \"\", Tuesday!B20)","aa=IF(Wednesday!A10aa=1,\"\",Wednesday!B10)","aa=IF(Wednesday!A20aa=1, \"\", Wednesday!B20)","aa=IF(Thursday!A10aa=1,\"\",Thursday!B10)","aa=IF(Thursday!A20aa=1, \"\", Thursday!B20)","aa=IF(Friday!A10aa=1,\"\",Friday!B10)","aa=IF(Friday!A20aa=1, \"\", Friday!B20)"]
["aa=IF(Monday!A11aa=1,\"\",Monday!B11)","aa=IF(Monday!A21aa=1, \"\", Monday!B21)","aa=IF(Tuesday!A11aa=1,\"\",Tuesday!B11)","aa=IF(Tuesday!A21aa=1, \"\", Tuesday!B21)","aa=IF(Wednesday!A11aa=1,\"\",Wednesday!B11)","aa=IF(Wednesday!A21aa=1, \"\", Wednesday!B21)","aa=IF(Thursday!A11aa=1,\"\",Thursday!B11)","aa=IF(Thursday!A21aa=1, \"\", Thursday!B21)","aa=IF(Friday!A11aa=1,\"\",Friday!B11)","aa=IF(Friday!A21aa=1, \"\", Friday!B21)"]
["aa=IF(Monday!A12aa=1,\"\",Monday!B12)","aa=IF(Monday!A22aa=1, \"\", Monday!B22)","aa=IF(Tuesday!A12aa=1,\"\",Tuesday!B12)","aa=IF(Tuesday!A22aa=1, \"\", Tuesday!B22)","aa=IF(Wednesday!A12aa=1,\"\",Wednesday!B12)","aa=IF(Wednesday!A22aa=1, \"\", Wednesday!B22)","aa=IF(Thursday!A12aa=1,\"\",Thursday!B12)","aa=IF(Thursday!A22aa=1, \"\", Thursday!B22)","aa=IF(Friday!A12aa=1,\"\",Friday!B12)","aa=IF(Friday!A22aa=1, \"\", Friday!B22)"]
["aa=IF(Monday!A13aa=1,\"\",Monday!B13)","aa=IF(Monday!A23aa=1, \"\", Monday!B23)","aa=IF(Tuesday!A13aa=1,\"\",Tuesday!B13)","aa=IF(Tuesday!A23aa=1, \"\", Tuesday!B23)","aa=IF(Wednesday!A13aa=1,\"\",Wednesday!B13)","aa=IF(Wednesday!A23aa=1, \"\", Wednesday!B23)","aa=IF(Thursday!A13aa=1,\"\",Thursday!B13)","aa=IF(Thursday!A23aa=1, \"\", Thursday!B23)","aa=IF(Friday!A13aa=1,\"\",Friday!B13)","aa=IF(Friday!A23aa=1, \"\", Friday!B23)"]
["aa=IF(Monday!A14aa=1,\"\",Monday!B14)","aa=IF(Monday!A24aa=1, \"\", Monday!B24)","aa=IF(Tuesday!A14aa=1,\"\",Tuesday!B14)","aa=IF(Tuesday!A24aa=1, \"\", Tuesday!B24)","aa=IF(Wednesday!A14aa=1,\"\",Wednesday!B14)","aa=IF(Wednesday!A24aa=1, \"\", Wednesday!B24)","aa=IF(Thursday!A14aa=1,\"\",Thursday!B14)","aa=IF(Thursday!A24aa=1, \"\", Thursday!B24)","aa=IF(Friday!A14aa=1,\"\",Friday!B14)","aa=IF(Friday!A24aa=1, \"\", Friday!B24)"]
["aa=IF(Monday!A15aa=1,\"\",Monday!B15)","aa=IF(Monday!A25aa=1, \"\", Monday!B25)","aa=IF(Tuesday!A15aa=1,\"\",Tuesday!B15)","aa=IF(Tuesday!A25aa=1, \"\", Tuesday!B25)","aa=IF(Wednesday!A15aa=1,\"\",Wednesday!B15)","aa=IF(Wednesday!A25aa=1, \"\", Wednesday!B25)","aa=IF(Thursday!A15aa=1,\"\",Thursday!B15)","aa=IF(Thursday!A25aa=1, \"\", Thursday!B25)","aa=IF(Friday!A15aa=1,\"\",Friday!B15)","aa=IF(Friday!A25aa=1, \"\", Friday!B25)"]
["aa=IF(Monday!A16aa=1,\"\",Monday!B16)","aa=IF(Monday!A26aa=1, \"\", Monday!B26)","aa=IF(Tuesday!A16aa=1,\"\",Tuesday!B16)","aa=IF(Tuesday!A26aa=1, \"\", Tuesday!B26)","aa=IF(Wednesday!A16aa=1,\"\",Wednesday!B16)","aa=IF(Wednesday!A26aa=1, \"\", Wednesday!B26)","aa=IF(Thursday!A16aa=1,\"\",Thursday!B16)","aa=IF(Thursday!A26aa=1, \"\", Thursday!B26)","aa=IF(Friday!A16aa=1,\"\",Friday!B16)","aa=IF(Friday!A26aa=1, \"\", Friday!B26)"]
["Vegetable Subgroups",null,"Vegetable Subgroups",null,"Vegetable Subgroups",null,"Vegetable Subgroups",null,"Vegetable Subgroups"]
["Dark Green",null,"Dark Green",null,"Dark Green",null,"Dark Green",null,"Dark Green"]
[]
[]
[]
[]
[]
["Red/orange",null,"Red/orange",null,"Red/orange",null,"Red/orange",null,"Red/orange"]
[]
[]
[]
[]
[]
["Beans/peas",null,"Beans/peas",null,"Beans/peas",null,"Beans/peas",null,"Beans/peas"]
[]
[]
[]
[]
[]
["Starchy",null,"Starchy",null,"Starchy",null,"Starchy",null,"Starchy"]
[]
[]
[]
[]
[]
["Other",null,"Other",null,"Other",null,"Other",null,"Other"]

{"sheet":"Monday (2)","index":15,"n_rows":26,"n_cols":52,"rows_kept":26,"cut":false,"hidden":true,"merged":[[4,25,6,25],[5,18,5,21],[6,18,6,21],[7,18,7,21],[4,1,5,1],[4,2,5,2],[4,3,5,3],[4,4,5,4],[4,9,5,9],[8,18,8,21],[4,17,5,17],[4,18,4,21],[4,16,5,16],[4,15,5,15],[4,10,5,10],[4,11,5,11],[4,12,5,12],[4,13,5,13],[4,14,5,14],[0,1,0,17],[1,1,1,18],[1,27,1,49],[2,1,2,17],[2,27,3,27],[2,29,3,29],[2,32,3,32],[2,34,3,34],[2,37,3,37],[2,39,3,39],[2,42,3,42],[2,44,3,44],[2,47,3,47],[2,49,3,49],[3,2,3,9],[3,10,3,11],[3,12,3,13],[3,14,3,15],[3,16,3,17],[3,18,3,25]]}
[null,"Daily Lunch Requirement Check\nGrades 9-12"]
[null,"The daily worksheet will perform daily requirement checks for the reimbursable meals offered each day. Requirements met are flagged \"Yes\" and the cell turns green. Requirements NOT met are flagged \"No\" and the cell turns red. ",null,null,null,null,null,null,null,null,null,null,null,null,null,null,null,null,null,null,null,null,null,null,null,null,null,"Vegetable Subgroup Tracker\nSelect the vegetables offered on Monday from each of the vegetable subgroup and the quantity offered.  Be sure to inlcude vegetables offered as part of an entrée in creditable amounts."]
[null,"Monday",null,null,null,null,null,null,null,null,null,null,null,null,null,null,null,null,null,null,null,null,null,null,null,null,null,"DARK GREEN vegetables offered on Monday",null,"Quantity (cups)",null,null,"Red/Orange  vegetables Offered on Monday",null,"Quantity (cups)",null,null,"Beans/Peas (legumes) offered on Monday",null,"Quantity (cups)",null,null,"Starchy vegetables offered on Monday",null,"Quantity (cups)",null,null,"Other vegetables offered on Monday",null,"Quantity (cups)"]
[null,"Select the reimbursable lunches offered on Monday","Fruit",null,null,null,null,null,null,null,"Vegetables",null,"Grains",null,"Meat/Meat Alternate (M/MA)",null,"Milk",null,"Milk Type\nCheck the type of milk below if it is offered to students on Monday",null,null,null,null,null,null,null,null,null,"G_T",null,"G_I","G_num",null,"R_T",null,"R_i","r_num",null,"B_t",null,"B_i","B_num",null,"S_T",null,"s_i","s_num",null,"O_T",null,"o_i","O_num"]
[null,"Reimbursable Meal","Fruit (cups)","Daily Fruit Requirement Check\n 1 cup","Check if less than half of fruit is juice",null,null,null,null,"Daily Juice Limit","Vegetables (cups)","Daily Vegetable Requirement Check\n1 cup","Grains\n (oz equivalent)","Daily Grain Requirement Check\n2 oz equivalents","M/MA\n (oz equivalent)","Daily M/MA Requirement Check\n2 oz equivalents","Milk (cups)","Daily Vegetable Milk Check\n1 cup","Skim/Nonfat milk, unflavored\nAll Types",null,null,null,null,false,null,{"$f":"IF(AND(X5=TRUE,X6=TRUE),\"Yes\",IF(AND(X5=TRUE,X7=TRUE),\"Yes\",IF(AND(X6=TRUE,X7=TRUE),\"Yes\",\"No\")))","v":"No"},null,null,1,null,1,{"$f":"IF(AE5=1,\"\",INDEX(Cups,AE5))","v":""},null,1,null,1,{"$f":"IF(AJ5=1, \"\", INDEX(Cups,AJ5))","v":""},null,1,null,1,{"$f":"IF(AO5=1,\"\",INDEX(Cups,AO5))","v":""},null,1,null,1,{"$f":"IF(AT5=1,\"\",INDEX(Cups,AT5))","v":""},null,1,null,1,{"$f":"IF(AY5=1,\"\",INDEX(Cups,AY5))","v":""}]
[null,null,null,null,null,null,"F-c",null,null,null,null,null,null,null,null,null,null,null,"Skim/Nonfat milk, flavored\nAll Types",null,null,null,null,false,null,null,null,null,1,null,1,"",null,1,null,1,"",null,1,null,1,"",null,1,null,1,"",null,1,null,1,""]
[1,null,{"$f":"IF(A7=1, \"\",VLOOKUP(A7,'All Meals'!$A$11:$V$61,5))","v":""},{"$f":"IF(C7=\"\",\"No\",IF(C7>=1,\"Yes\",\"No\"))","v":"No"},null,null,false,null,null,{"$f":"IF(G7=TRUE, \"Yes\", \"No\")","v":"No"},{"$f":"IF(A7=1, \"\",VLOOKUP(A7,'All Meals'!$A$11:$V$61,8))","v":""},{"$f":"IF(K7=\"\",\"No\",IF(K7>=1,\"Yes\",\"No\"))","v":"No"},{"$f":"IF(A7=1, \"\",VLOOKUP(A7,'All Meals'!$A$11:$V$61,9))","v":""},{"$f":"IF(M7=\"\",\"No\",IF(M7>=2,\"Yes\",\"No\"))","v":"No"},{"$f":"IF(A7=1, \"\",VLOOKUP(A7,'All Meals'!$A$11:$V$61,14))","v":""},{"$f":"IF(O7=\"\",\"No\",IF(O7>=2,\"Yes\",\"No\"))","v":"No"},{"$f":"IF(A7=1, \"\",VLOOKUP(A7,'All Meals'!$A$11:$V$61,17))","v":""},{"$f":"IF(Q7=\"\", \"No\", IF(Q7>=1, \"Yes\", \"No\"))","v":"No"},"1% Milk, unflavored\nAll  Types",null,null,null,null,false,null,null,null,null,1,null,1,"",null,1,null,1,"",null,1,null,1,"",null,1,null,1,"",null,1,null,1,""]
[1,null,{"$f":"IF(A8=1, \"\",VLOOKUP(A8,'All Meals'!$A$11:$V$61,5))","v":""},{"$f":"IF(C8=\"\",\"No\",IF(C8>=1,\"Yes\",\"No\"))","v":"No"},null,null,false,null,null,"No",{"$f":"IF(A8=1, \"\",VLOOKUP(A8,'All Meals'!$A$11:$V$61,8))","v":""},{"$f":"IF(K8=\"\",\"No\",IF(K8>=1,\"Yes\",\"No\"))","v":"No"},{"$f":"IF(A8=1, \"\",VLOOKUP(A8,'All Meals'!$A$11:$V$61,9))","v":""},{"$f":"IF(M8=\"\",\"No\",IF(M8>=2,\"Yes\",\"No\"))","v":"No"},{"$f":"IF(A8=1, \"\",VLOOKUP(A8,'All Meals'!$A$11:$V$61,14))","v":""},{"$f":"IF(O8=\"\",\"No\",IF(O8>=2,\"Yes\",\"No\"))","v":"No"},{"$f":"IF(A8=1, \"\",VLOOKUP(A8,'All Meals'!$A$11:$V$61,17))","v":""},{"$f":"IF(Q8=\"\", \"No\", IF(Q8>=1, \"Yes\", \"No\"))","v":"No"},"1% Milk, flavored\nAll Types",null,null,null,null,false,null,{"$f":"IF(X8=TRUE, \"No\", \"Yes\")","v":"Yes"},null,null,1,null,1,"",null,1,null,1,"",null,1,null,1,"",null,1,null,1,"",null,1,null,1,""]
[1,null,{"$f":"IF(A9=1, \"\",VLOOKUP(A9,'All Meals'!$A$11:$V$61,5))","v":""},"No",null,null,false,null,null,"No",{"$f":"IF(A9=1, \"\",VLOOKUP(A9,'All Meals'!$A$11:$V$61,8))","v":""},"No",{"$f":"IF(A9=1, \"\",VLOOKUP(A9,'All Meals'!$A$11:$V$61,9))","v":""},"No",{"$f":"IF(A9=1, \"\",VLOOKUP(A9,'All Meals'!$A$11:$V$61,14))","v":""},"No",{"$f":"IF(A9=1, \"\",VLOOKUP(A9,'All Meals'!$A$11:$V$61,17))","v":""},"No","2% Milk or Whole Milk, flavored or unflavored\nAll Types",null,null,null,null,false,null,{"$f":"IF(X9=TRUE, \"No\", \"Yes\")","v":"Yes"},null,null,1,null,1,"",null,1,null,1,"",null,1,null,1,"",null,1,null,1,"",null,1,null,1,""]
[1,null,{"$f":"IF(A10=1, \"\",VLOOKUP(A10,'All Meals'!$A$11:$V$61,5))","v":""},"No",null,null,false,null,null,"No",{"$f":"IF(A10=1, \"\",VLOOKUP(A10,'All Meals'!$A$11:$V$61,8))","v":""},"No",{"$f":"IF(A10=1, \"\",VLOOKUP(A10,'All Meals'!$A$11:$V$61,9))","v":""},"No",{"$f":"IF(A10=1, \"\",VLOOKUP(A10,'All Meals'!$A$11:$V$61,14))","v":""},"No",{"$f":"IF(A10=1, \"\",VLOOKUP(A10,'All Meals'!$A$11:$V$61,17))","v":""},"No",null,null,null,null,null,null,null,null,null,null,1,null,1,"",null,1,null,1,"",null,1,null,1,"",null,1,null,1,"",null,1,null,1,""]
[1,null,{"$f":"IF(A11=1, \"\",VLOOKUP(A11,'All Meals'!$A$11:$V$61,5))","v":""},"No",null,null,false,null,null,"No",{"$f":"IF(A11=1, \"\",VLOOKUP(A11,'All Meals'!$A$11:$V$61,8))","v":""},"No",{"$f":"IF(A11=1, \"\",VLOOKUP(A11,'All Meals'!$A$11:$V$61,9))","v":""},"No",{"$f":"IF(A11=1, \"\",VLOOKUP(A11,'All Meals'!$A$11:$V$61,14))","v":""},"No",{"$f":"IF(A11=1, \"\",VLOOKUP(A11,'All Meals'!$A$11:$V$61,17))","v":""},"No",null,null,null,null,null,null,null,null,null,null,1,null,1,"",null,1,null,1,"",null,1,null,1,"",null,1,null,1,"",null,1,null,1,""]
[1,null,{"$f":"IF(A12=1, \"\",VLOOKUP(A12,'All Meals'!$A$11:$V$61,5))","v":""},"No",null,null,false,null,null,"No",{"$f":"IF(A12=1, \"\",VLOOKUP(A12,'All Meals'!$A$11:$V$61,8))","v":""},"No",{"$f":"IF(A12=1, \"\",VLOOKUP(A12,'All Meals'!$A$11:$V$61,9))","v":""},"No",{"$f":"IF(A12=1, \"\",VLOOKUP(A12,'All Meals'!$A$11:$V$61,14))","v":""},"No",{"$f":"IF(A12=1, \"\",VLOOKUP(A12,'All Meals'!$A$11:$V$61,17))","v":""},"No",null,null,null,null,null,null,null,null,null,null,1,null,1,"",null,1,null,1,"",null,1,null,1,"",null,1,null,1,"",null,1,null,1,""]
[1,null,{"$f":"IF(A13=1, \"\",VLOOKUP(A13,'All Meals'!$A$11:$V$61,5))","v":""},"No",null,null,false,null,null,"No",{"$f":"IF(A13=1, \"\",VLOOKUP(A13,'All Meals'!$A$11:$V$61,8))","v":""},"No",{"$f":"IF(A13=1, \"\",VLOOKUP(A13,'All Meals'!$A$11:$V$61,9))","v":""},"No",{"$f":"IF(A13=1, \"\",VLOOKUP(A13,'All Meals'!$A$11:$V$61,14))","v":""},"No",{"$f":"IF(A13=1, \"\",VLOOKUP(A13,'All Meals'!$A$11:$V$61,17))","v":""},"No",null,null,null,null,null,null,null,null,null,null,1,null,1,"",null,1,null,1,"",null,1,null,1,"",null,1,null,1,"",null,1,null,1,""]
[1,null,{"$f":"IF(A14=1, \"\",VLOOKUP(A14,'All Meals'!$A$11:$V$61,5))","v":""},"No",null,null,false,null,null,"No",{"$f":"IF(A14=1, \"\",VLOOKUP(A14,'All Meals'!$A$11:$V$61,8))","v":""},"No",{"$f":"IF(A14=1, \"\",VLOOKUP(A14,'All Meals'!$A$11:$V$61,9))","v":""},"No",{"$f":"IF(A14=1, \"\",VLOOKUP(A14,'All Meals'!$A$11:$V$61,14))","v":""},"No",{"$f":"IF(A14=1, \"\",VLOOKUP(A14,'All Meals'!$A$11:$V$61,17))","v":""},"No",null,null,null,null,null,null,null,null,null,null,1,null,1,"",null,1,null,1,"",null,1,null,1,"",null,1,null,1,"",null,1,null,1,""]
[1,null,{"$f":"IF(A15=1, \"\",VLOOKUP(A15,'All Meals'!$A$11:$V$61,5))","v":""},"No",null,null,false,null,null,"No",{"$f":"IF(A15=1, \"\",VLOOKUP(A15,'All Meals'!$A$11:$V$61,8))","v":""},"No",{"$f":"IF(A15=1, \"\",VLOOKUP(A15,'All Meals'!$A$11:$V$61,9))","v":""},"No",{"$f":"IF(A15=1, \"\",VLOOKUP(A15,'All Meals'!$A$11:$V$61,14))","v":""},"No",{"$f":"IF(A15=1, \"\",VLOOKUP(A15,'All Meals'!$A$11:$V$61,17))","v":""},"No"]
[1,null,{"$f":"IF(A16=1, \"\",VLOOKUP(A16,'All Meals'!$A$11:$V$61,5))","v":""},"No",null,null,false,null,null,"No",{"$f":"IF(A16=1, \"\",VLOOKUP(A16,'All Meals'!$A$11:$V$61,8))","v":""},"No",{"$f":"IF(A16=1, \"\",VLOOKUP(A16,'All Meals'!$A$11:$V$61,9))","v":""},"No",{"$f":"IF(A16=1, \"\",VLOOKUP(A16,'All Meals'!$A$11:$V$61,14))","v":""},"No",{"$f":"IF(A16=1, \"\",VLOOKUP(A16,'All Meals'!$A$11:$V$61,17))","v":""},"No"]
[1,null,{"$f":"IF(A17=1, \"\",VLOOKUP(A17,'All Meals'!$A$11:$V$61,5))","v":""},"No",null,null,false,null,null,"No",{"$f":"IF(A17=1, \"\",VLOOKUP(A17,'All Meals'!$A$11:$V$61,8))","v":""},"No",{"$f":"IF(A17=1, \"\",VLOOKUP(A17,'All Meals'!$A$11:$V$61,9))","v":""},"No",{"$f":"IF(A17=1, \"\",VLOOKUP(A17,'All Meals'!$A$11:$V$61,14))","v":""},"No",{"$f":"IF(A17=1, \"\",VLOOKUP(A17,'All Meals'!$A$11:$V$61,17))","v":""},"No"]
[1,null,{"$f":"IF(A18=1, \"\",VLOOKUP(A18,'All Meals'!$A$11:$V$61,5))","v":""},"No",null,null,false,null,null,"No",{"$f":"IF(A18=1, \"\",VLOOKUP(A18,'All Meals'!$A$11:$V$61,8))","v":""},"No",{"$f":"IF(A18=1, \"\",VLOOKUP(A18,'All Meals'!$A$11:$V$61,9))","v":""},"No",{"$f":"IF(A18=1, \"\",VLOOKUP(A18,'All Meals'!$A$11:$V$61,14))","v":""},"No",{"$f":"IF(A18=1, \"\",VLOOKUP(A18,'All Meals'!$A$11:$V$61,17))","v":""},"No"]
[1,null,{"$f":"IF(A19=1, \"\",VLOOKUP(A19,'All Meals'!$A$11:$V$61,5))","v":""},"No",null,null,false,null,null,"No",{"$f":"IF(A19=1, \"\",VLOOKUP(A19,'All Meals'!$A$11:$V$61,8))","v":""},"No",{"$f":"IF(A19=1, \"\",VLOOKUP(A19,'All Meals'!$A$11:$V$61,9))","v":""},"No",{"$f":"IF(A19=1, \"\",VLOOKUP(A19,'All Meals'!$A$11:$V$61,14))","v":""},"No",{"$f":"IF(A19=1, \"\",VLOOKUP(A19,'All Meals'!$A$11:$V$61,17))","v":""},"No"]
[1,null,{"$f":"IF(A20=1, \"\",VLOOKUP(A20,'All Meals'!$A$11:$V$61,5))","v":""},"No",null,null,false,null,null,"No",{"$f":"IF(A20=1, \"\",VLOOKUP(A20,'All Meals'!$A$11:$V$61,8))","v":""},"No",{"$f":"IF(A20=1, \"\",VLOOKUP(A20,'All Meals'!$A$11:$V$61,9))","v":""},"No",{"$f":"IF(A20=1, \"\",VLOOKUP(A20,'All Meals'!$A$11:$V$61,14))","v":""},"No",{"$f":"IF(A20=1, \"\",VLOOKUP(A20,'All Meals'!$A$11:$V$61,17))","v":""},"No"]
[1,null,{"$f":"IF(A21=1, \"\",VLOOKUP(A21,'All Meals'!$A$11:$V$61,5))","v":""},"No",null,null,false,null,null,"No",{"$f":"IF(A21=1, \"\",VLOOKUP(A21,'All Meals'!$A$11:$V$61,8))","v":""},"No",{"$f":"IF(A21=1, \"\",VLOOKUP(A21,'All Meals'!$A$11:$V$61,9))","v":""},"No",{"$f":"IF(A21=1, \"\",VLOOKUP(A21,'All Meals'!$A$11:$V$61,14))","v":""},"No",{"$f":"IF(A21=1, \"\",VLOOKUP(A21,'All Meals'!$A$11:$V$61,17))","v":""},"No"]
[1,null,{"$f":"IF(A22=1, \"\",VLOOKUP(A22,'All Meals'!$A$11:$V$61,5))","v":""},"No",null,null,false,null,null,"No",{"$f":"IF(A22=1, \"\",VLOOKUP(A22,'All Meals'!$A$11:$V$61,8))","v":""},"No",{"$f":"IF(A22=1, \"\",VLOOKUP(A22,'All Meals'!$A$11:$V$61,9))","v":""},"No",{"$f":"IF(A22=1, \"\",VLOOKUP(A22,'All Meals'!$A$11:$V$61,14))","v":""},"No",{"$f":"IF(A22=1, \"\",VLOOKUP(A22,'All Meals'!$A$11:$V$61,17))","v":""},"No"]
[1,null,{"$f":"IF(A23=1, \"\",VLOOKUP(A23,'All Meals'!$A$11:$V$61,5))","v":""},"No",null,null,false,null,null,"No",{"$f":"IF(A23=1, \"\",VLOOKUP(A23,'All Meals'!$A$11:$V$61,8))","v":""},"No",{"$f":"IF(A23=1, \"\",VLOOKUP(A23,'All Meals'!$A$11:$V$61,9))","v":""},"No",{"$f":"IF(A23=1, \"\",VLOOKUP(A23,'All Meals'!$A$11:$V$61,14))","v":""},"No",{"$f":"IF(A23=1, \"\",VLOOKUP(A23,'All Meals'!$A$11:$V$61,17))","v":""},"No"]
[1,null,{"$f":"IF(A24=1, \"\",VLOOKUP(A24,'All Meals'!$A$11:$V$61,5))","v":""},"No",null,null,false,null,null,"No",{"$f":"IF(A24=1, \"\",VLOOKUP(A24,'All Meals'!$A$11:$V$61,8))","v":""},"No",{"$f":"IF(A24=1, \"\",VLOOKUP(A24,'All Meals'!$A$11:$V$61,9))","v":""},"No",{"$f":"IF(A24=1, \"\",VLOOKUP(A24,'All Meals'!$A$11:$V$61,14))","v":""},"No",{"$f":"IF(A24=1, \"\",VLOOKUP(A24,'All Meals'!$A$11:$V$61,17))","v":""},"No"]
[1,null,{"$f":"IF(A25=1, \"\",VLOOKUP(A25,'All Meals'!$A$11:$V$61,5))","v":""},"No",null,null,false,null,null,"No",{"$f":"IF(A25=1, \"\",VLOOKUP(A25,'All Meals'!$A$11:$V$61,8))","v":""},"No",{"$f":"IF(A25=1, \"\",VLOOKUP(A25,'All Meals'!$A$11:$V$61,9))","v":""},"No",{"$f":"IF(A25=1, \"\",VLOOKUP(A25,'All Meals'!$A$11:$V$61,14))","v":""},"No",{"$f":"IF(A25=1, \"\",VLOOKUP(A25,'All Meals'!$A$11:$V$61,17))","v":""},"No"]
[1,null,{"$f":"IF(A26=1, \"\",VLOOKUP(A26,'All Meals'!$A$11:$V$61,5))","v":""},"No",null,null,false,null,null,"No",{"$f":"IF(A26=1, \"\",VLOOKUP(A26,'All Meals'!$A$11:$V$61,8))","v":""},"No",{"$f":"IF(A26=1, \"\",VLOOKUP(A26,'All Meals'!$A$11:$V$61,9))","v":""},"No",{"$f":"IF(A26=1, \"\",VLOOKUP(A26,'All Meals'!$A$11:$V$61,14))","v":""},"No",{"$f":"IF(A26=1, \"\",VLOOKUP(A26,'All Meals'!$A$11:$V$61,17))","v":""},"No"]

{"sheet":"Nutrient Instructions","index":16,"n_rows":126,"n_cols":256,"rows_kept":126,"cut":false,"hidden":false,"merged":[]}
[]
["Simplified Nutrient Assessment Instructions"]
["REMEMBER TO PERIODICALLY SAVE THE WORKSHEET AS IT IS BEING COMPLETED!!!!",null,"REMEMBER TO PERIODICALLY SAVE THE WORKSHEET AS IT IS BEING COMPLETED!!!!","REMEMBER TO PERIODICALLY SAVE THE WORKSHEET AS IT IS BEING COMPLETED!!!!","REMEMBER TO PERIODICALLY SAVE THE WORKSHEET AS IT IS BEING COMPLETED!!!!","REMEMBER TO PERIODICALLY SAVE THE WORKSHEET AS IT IS BEING COMPLETED!!!!","REMEMBER TO PERIODICALLY SAVE THE WORKSHEET AS IT IS BEING COMPLETED!!!!","REMEMBER TO PERIODICALLY SAVE THE WORKSHEET AS IT IS BEING COMPLETED!!!!","REMEMBER TO PERIODICALLY SAVE THE WORKSHEET AS IT IS BEING COMPLETED!!!!","REMEMBER TO PERIODICALLY SAVE THE WORKSHEET AS IT IS BEING COMPLETED!!!!","REMEMBER TO PERIODICALLY SAVE THE WORKSHEET AS IT IS BEING COMPLETED!!!!","REMEMBER TO PERIODICALLY SAVE THE WORKSHEET AS IT IS BEING COMPLETED!!!!","REMEMBER TO PERIODICALLY SAVE THE WORKSHEET AS IT IS BEING COMPLETED!!!!","REMEMBER TO PERIODICALLY SAVE THE WORKSHEET AS IT IS BEING COMPLETED!!!!","REMEMBER TO PERIODICALLY SAVE THE WORKSHEET AS IT IS BEING COMPLETED!!!!","REMEMBER TO PERIODICALLY SAVE THE WORKSHEET AS IT IS BEING COMPLETED!!!!","REMEMBER TO PERIODICALLY SAVE THE WORKSHEET AS IT IS BEING COMPLETED!!!!","REMEMBER TO PERIODICALLY SAVE THE WORKSHEET AS IT IS BEING COMPLETED!!!!","REMEMBER TO PERIODICALLY SAVE THE WORKSHEET AS IT IS BEING COMPLETED!!!!","REMEMBER TO PERIODICALLY SAVE THE WORKSHEET AS IT IS BEING COMPLETED!!!!","REMEMBER TO PERIODICALLY SAVE THE WORKSHEET AS IT IS BEING COMPLETED!!!!","REMEMBER TO PERIODICALLY SAVE THE WORKSHEET AS IT IS BEING COMPLETED!!!!","REMEMBER TO PERIODICALLY SAVE THE WORKSHEET AS IT IS BEING COMPLETED!!!!","REMEMBER TO PERIODICALLY SAVE THE WORKSHEET AS IT IS BEING COMPLETED!!!!","REMEMBER TO PERIODICALLY SAVE THE WORKSHEET AS IT IS BEING COMPLETED!!!!","REMEMBER TO PERIODICALLY SAVE THE WORKSHEET AS IT IS BEING COMPLETED!!!!","REMEMBER TO PERIODICALLY SAVE THE WORKSHEET AS IT IS BEING COMPLETED!!!!","REMEMBER TO PERIODICALLY SAVE THE WORKSHEET AS IT IS BEING COMPLETED!!!!","REMEMBER TO PERIODICALLY SAVE THE WORKSHEET AS IT IS BEING COMPLETED!!!!","REMEMBER TO PERIODICALLY SAVE THE WORKSHEET AS IT IS BEING COMPLETED!!!!","REMEMBER TO PERIODICALLY SAVE THE WORKSHEET AS IT IS BEING COMPLETED!!!!","REMEMBER TO PERIODICALLY SAVE THE WORKSHEET AS IT IS BEING COMPLETED!!!!","REMEMBER TO PERIODICALLY SAVE THE WORKSHEET AS IT IS BEING COMPLETED!!!!","REMEMBER TO PERIODICALLY SAVE THE WORKSHEET AS IT IS BEING COMPLETED!!!!","REMEMBER TO PERIODICALLY SAVE THE WORKSHEET AS IT IS BEING COMPLETED!!!!","REMEMBER TO PERIODICALLY SAVE THE WORKSHEET AS IT IS BEING COMPLETED!!!!","REMEMBER TO PERIODICALLY SAVE THE WORKSHEET AS IT IS BEING COMPLETED!!!!","REMEMBER TO PERIODICALLY SAVE THE WORKSHEET AS IT IS BEING COMPLETED!!!!","REMEMBER TO PERIODICALLY SAVE THE WORKSHEET AS IT IS BEING COMPLETED!!!!","REMEMBER TO PERIODICALLY SAVE THE WORKSHEET AS IT IS BEING COMPLETED!!!!","REMEMBER TO PERIODICALLY SAVE THE WORKSHEET AS IT IS BEING COMPLETED!!!!","REMEMBER TO PERIODICALLY SAVE THE WORKSHEET AS IT IS BEING COMPLETED!!!!","REMEMBER TO PERIODICALLY SAVE THE WORKSHEET AS IT IS BEING COMPLETED!!!!","REMEMBER TO PERIODICALLY SAVE THE WORKSHEET AS IT IS BEING COMPLETED!!!!","REMEMBER TO PERIODICALLY SAVE THE WORKSHEET AS IT IS BEING COMPLETED!!!!","REMEMBER TO PERIODICALLY SAVE THE WORKSHEET AS IT IS BEING COMPLETED!!!!","REMEMBER TO PERIODICALLY SAVE THE WORKSHEET AS IT IS BEING COMPLETED!!!!","REMEMBER TO PERIODICALLY SAVE THE WORKSHEET AS IT IS BEING COMPLETED!!!!","REMEMBER TO PERIODICALLY SAVE THE WORKSHEET AS IT IS BEING COMPLETED!!!!","REMEMBER TO PERIODICALLY SAVE THE WORKSHEET AS IT IS BEING COMPLETED!!!!","REMEMBER TO PERIODICALLY SAVE THE WORKSHEET AS IT IS BEING COMPLETED!!!!","REMEMBER TO PERIODICALLY SAVE THE WORKSHEET AS IT IS BEING COMPLETED!!!!","REMEMBER TO PERIODICALLY SAVE THE WORKSHEET AS IT IS BEING COMPLETED!!!!","REMEMBER TO PERIODICALLY SAVE THE WORKSHEET AS IT IS BEING COMPLETED!!!!","REMEMBER TO PERIODICALLY SAVE THE WORKSHEET AS IT IS BEING COMPLETED!!!!","REMEMBER TO PERIODICALLY SAVE THE WORKSHEET AS IT IS BEING COMPLETED!!!!","REMEMBER TO PERIODICALLY SAVE THE WORKSHEET AS IT IS BEING COMPLETED!!!!","REMEMBER TO PERIODICALLY SAVE THE WORKSHEET AS IT IS BEING COMPLETED!!!!","REMEMBER TO PERIODICALLY SAVE THE WORKSHEET AS IT IS BEING COMPLETED!!!!","REMEMBER TO PERIODICALLY SAVE THE WORKSHEET AS IT IS BEING COMPLETED!!!!","REMEMBER TO PERIODICALLY SAVE THE WORKSHEET AS IT IS BEING COMPLETED!!!!","REMEMBER TO PERIODICALLY SAVE THE WORKSHEET AS IT IS BEING COMPLETED!!!!","REMEMBER TO PERIODICALLY SAVE THE WORKSHEET AS IT IS BEING COMPLETED!!!!","REMEMBER TO PERIODICALLY SAVE THE WORKSHEET AS IT IS BEING COMPLETED!!!!","REMEMBER TO PERIODICALLY SAVE THE WORKSHEET AS IT IS BEING COMPLETED!!!!","REMEMBER TO PERIODICALLY SAVE THE WORKSHEET AS IT IS BEING COMPLETED!!!!","REMEMBER TO PERIODICALLY SAVE THE WORKSHEET AS IT IS BEING COMPLETED!!!!","REMEMBER TO PERIODICALLY SAVE THE WORKSHEET AS IT IS BEING COMPLETED!!!!","REMEMBER TO PERIODICALLY SAVE THE WORKSHEET AS IT IS BEING COMPLETED!!!!","REMEMBER TO PERIODICALLY SAVE THE WORKSHEET AS IT IS BEING COMPLETED!!!!","REMEMBER TO PERIODICALLY SAVE THE WORKSHEET AS IT IS BEING COMPLETED!!!!","REMEMBER TO PERIODICALLY SAVE THE WORKSHEET AS IT IS BEING COMPLETED!!!!","REMEMBER TO PERIODICALLY SAVE THE WORKSHEET AS IT IS BEING COMPLETED!!!!","REMEMBER TO PERIODICALLY SAVE THE WORKSHEET AS IT IS BEING COMPLETED!!!!","REMEMBER TO PERIODICALLY SAVE THE WORKSHEET AS IT IS BEING COMPLETED!!!!","REMEMBER TO PERIODICALLY SAVE THE WORKSHEET AS IT IS BEING COMPLETED!!!!","REMEMBER TO PERIODICALLY SAVE THE WORKSHEET AS IT IS BEING COMPLETED!!!!","REMEMBER TO PERIODICALLY SAVE THE WORKSHEET AS IT IS BEING COMPLETED!!!!","REMEMBER TO PERIODICALLY SAVE THE WORKSHEET AS IT IS BEING COMPLETED!!!!","REMEMBER TO PERIODICALLY SAVE THE WORKSHEET AS IT IS BEING COMPLETED!!!!","REMEMBER TO PERIODICALLY SAVE THE WORKSHEET AS IT IS BEING COMPLETED!!!!","REMEMBER TO PERIODICALLY SAVE THE WORKSHEET AS IT IS BEING COMPLETED!!!!","REMEMBER TO PERIODICALLY SAVE THE WORKSHEET AS IT IS BEING COMPLETED!!!!","REMEMBER TO PERIODICALLY SAVE THE WORKSHEET AS IT IS BEING COMPLETED!!!!","REMEMBER TO PERIODICALLY SAVE THE WORKSHEET AS IT IS BEING COMPLETED!!!!","REMEMBER TO PERIODICALLY SAVE THE WORKSHEET AS IT IS BEING COMPLETED!!!!","REMEMBER TO PERIODICALLY SAVE THE WORKSHEET AS IT IS BEING COMPLETED!!!!","REMEMBER TO PERIODICALLY SAVE THE WORKSHEET AS IT IS BEING COMPLETED!!!!","REMEMBER TO PERIODICALLY SAVE THE WORKSHEET AS IT IS BEING COMPLETED!!!!","REMEMBER TO PERIODICALLY SAVE THE WORKSHEET AS IT IS BEING COMPLETED!!!!","REMEMBER TO PERIODICALLY SAVE THE WORKSHEET AS IT IS BEING COMPLETED!!!!","REMEMBER TO PERIODICALLY SAVE THE WORKSHEET AS IT IS BEING COMPLETED!!!!","REMEMBER TO PERIODICALLY SAVE THE WORKSHEET AS IT IS BEING COMPLETED!!!!","REMEMBER TO PERIODICALLY SAVE THE WORKSHEET AS IT IS BEING COMPLETED!!!!","REMEMBER TO PERIODICALLY SAVE THE WORKSHEET AS IT IS BEING COMPLETED!!!!","REMEMBER TO PERIODICALLY SAVE THE WORKSHEET AS IT IS BEING COMPLETED!!!!","REMEMBER TO PERIODICALLY SAVE THE WORKSHEET AS IT IS BEING COMPLETED!!!!","REMEMBER TO PERIODICALLY SAVE THE WORKSHEET AS IT IS BEING COMPLETED!!!!","REMEMBER TO PERIODICALLY SAVE THE WORKSHEET AS IT IS BEING COMPLETED!!!!","REMEMBER TO PERIODICALLY SAVE THE WORKSHEET AS IT IS BEING COMPLETED!!!!","REMEMBER TO PERIODICALLY SAVE THE WORKSHEET AS IT IS BEING COMPLETED!!!!","REMEMBER TO PERIODICALLY SAVE THE WORKSHEET AS IT IS BEING COMPLETED!!!!","REMEMBER TO PERIODICALLY SAVE THE WORKSHEET AS IT IS BEING COMPLETED!!!!","REMEMBER TO PERIODICALLY SAVE THE WORKSHEET AS IT IS BEING COMPLETED!!!!","REMEMBER TO PERIODICALLY SAVE THE WORKSHEET AS IT IS BEING COMPLETED!!!!","REMEMBER TO PERIODICALLY SAVE THE WORKSHEET AS IT IS BEING COMPLETED!!!!","REMEMBER TO PERIODICALLY SAVE THE WORKSHEET AS IT IS BEING COMPLETED!!!!","REMEMBER TO PERIODICALLY SAVE THE WORKSHEET AS IT IS BEING COMPLETED!!!!","REMEMBER TO PERIODICALLY SAVE THE WORKSHEET AS IT IS BEING COMPLETED!!!!","REMEMBER TO PERIODICALLY SAVE THE WORKSHEET AS IT IS BEING COMPLETED!!!!","REMEMBER TO PERIODICALLY SAVE THE WORKSHEET AS IT IS BEING COMPLETED!!!!","REMEMBER TO PERIODICALLY SAVE THE WORKSHEET AS IT IS BEING COMPLETED!!!!","REMEMBER TO PERIODICALLY SAVE THE WORKSHEET AS IT IS BEING COMPLETED!!!!","REMEMBER TO PERIODICALLY SAVE THE WORKSHEET AS IT IS BEING COMPLETED!!!!","REMEMBER TO PERIODICALLY SAVE THE WORKSHEET AS IT IS BEING COMPLETED!!!!","REMEMBER TO PERIODICALLY SAVE THE WORKSHEET AS IT IS BEING COMPLETED!!!!","REMEMBER TO PERIODICALLY SAVE THE WORKSHEET AS IT IS BEING COMPLETED!!!!","REMEMBER TO PERIODICALLY SAVE THE WORKSHEET AS IT IS BEING COMPLETED!!!!","REMEMBER TO PERIODICALLY SAVE THE WORKSHEET AS IT IS BEING COMPLETED!!!!","REMEMBER TO PERIODICALLY SAVE THE WORKSHEET AS IT IS BEING COMPLETED!!!!","REMEMBER TO PERIODICALLY SAVE THE WORKSHEET AS IT IS BEING COMPLETED!!!!","REMEMBER TO PERIODICALLY SAVE THE WORKSHEET AS IT IS BEING COMPLETED!!!!","REMEMBER TO PERIODICALLY SAVE THE WORKSHEET AS IT IS BEING COMPLETED!!!!","REMEMBER TO PERIODICALLY SAVE THE WORKSHEET AS IT IS BEING COMPLETED!!!!","REMEMBER TO PERIODICALLY SAVE THE WORKSHEET AS IT IS BEING COMPLETED!!!!","REMEMBER TO PERIODICALLY SAVE THE WORKSHEET AS IT IS BEING COMPLETED!!!!","REMEMBER TO PERIODICALLY SAVE THE WORKSHEET AS IT IS BEING COMPLETED!!!!","REMEMBER TO PERIODICALLY SAVE THE WORKSHEET AS IT IS BEING COMPLETED!!!!","REMEMBER TO PERIODICALLY SAVE THE WORKSHEET AS IT IS BEING COMPLETED!!!!","REMEMBER TO PERIODICALLY SAVE THE WORKSHEET AS IT IS BEING COMPLETED!!!!","REMEMBER TO PERIODICALLY SAVE THE WORKSHEET AS IT IS BEING COMPLETED!!!!","REMEMBER TO PERIODICALLY SAVE THE WORKSHEET AS IT IS BEING COMPLETED!!!!","REMEMBER TO PERIODICALLY SAVE THE WORKSHEET AS IT IS BEING COMPLETED!!!!","REMEMBER TO PERIODICALLY SAVE THE WORKSHEET AS IT IS BEING COMPLETED!!!!","REMEMBER TO PERIODICALLY SAVE THE WORKSHEET AS IT IS BEING COMPLETED!!!!","REMEMBER TO PERIODICALLY SAVE THE WORKSHEET AS IT IS BEING COMPLETED!!!!","REMEMBER TO PERIODICALLY SAVE THE WORKSHEET AS IT IS BEING COMPLETED!!!!","REMEMBER TO PERIODICALLY SAVE THE WORKSHEET AS IT IS BEING COMPLETED!!!!","REMEMBER TO PERIODICALLY SAVE THE WORKSHEET AS IT IS BEING COMPLETED!!!!","REMEMBER TO PERIODICALLY SAVE THE WORKSHEET AS IT IS BEING COMPLETED!!!!","REMEMBER TO PERIODICALLY SAVE THE WORKSHEET AS IT IS BEING COMPLETED!!!!","REMEMBER TO PERIODICALLY SAVE THE WORKSHEET AS IT IS BEING COMPLETED!!!!","REMEMBER TO PERIODICALLY SAVE THE WORKSHEET AS IT IS BEING COMPLETED!!!!","REMEMBER TO PERIODICALLY SAVE THE WORKSHEET AS IT IS BEING COMPLETED!!!!","REMEMBER TO PERIODICALLY SAVE THE WORKSHEET AS IT IS BEING COMPLETED!!!!","REMEMBER TO PERIODICALLY SAVE THE WORKSHEET AS IT IS BEING COMPLETED!!!!","REMEMBER TO PERIODICALLY SAVE THE WORKSHEET AS IT IS BEING COMPLETED!!!!","REMEMBER TO PERIODICALLY SAVE THE WORKSHEET AS IT IS BEING COMPLETED!!!!","REMEMBER TO PERIODICALLY SAVE THE WORKSHEET AS IT IS BEING COMPLETED!!!!","REMEMBER TO PERIODICALLY SAVE THE WORKSHEET AS IT IS BEING COMPLETED!!!!","REMEMBER TO PERIODICALLY SAVE THE WORKSHEET AS IT IS BEING COMPLETED!!!!","REMEMBER TO PERIODICALLY SAVE THE WORKSHEET AS IT IS BEING COMPLETED!!!!","REMEMBER TO PERIODICALLY SAVE THE WORKSHEET AS IT IS BEING COMPLETED!!!!","REMEMBER TO PERIODICALLY SAVE THE WORKSHEET AS IT IS BEING COMPLETED!!!!","REMEMBER TO PERIODICALLY SAVE THE WORKSHEET AS IT IS BEING COMPLETED!!!!","REMEMBER TO PERIODICALLY SAVE THE WORKSHEET AS IT IS BEING COMPLETED!!!!","REMEMBER TO PERIODICALLY SAVE THE WORKSHEET AS IT IS BEING COMPLETED!!!!","REMEMBER TO PERIODICALLY SAVE THE WORKSHEET AS IT IS BEING COMPLETED!!!!","REMEMBER TO PERIODICALLY SAVE THE WORKSHEET AS IT IS BEING COMPLETED!!!!","REMEMBER TO PERIODICALLY SAVE THE WORKSHEET AS IT IS BEING COMPLETED!!!!","REMEMBER TO PERIODICALLY SAVE THE WORKSHEET AS IT IS BEING COMPLETED!!!!","REMEMBER TO PERIODICALLY SAVE THE WORKSHEET AS IT IS BEING COMPLETED!!!!","REMEMBER TO PERIODICALLY SAVE THE WORKSHEET AS IT IS BEING COMPLETED!!!!","REMEMBER TO PERIODICALLY SAVE THE WORKSHEET AS IT IS BEING COMPLETED!!!!","REMEMBER TO PERIODICALLY SAVE THE WORKSHEET AS IT IS BEING COMPLETED!!!!","REMEMBER TO PERIODICALLY SAVE THE WORKSHEET AS IT IS BEING COMPLETED!!!!","REMEMBER TO PERIODICALLY SAVE THE WORKSHEET AS IT IS BEING COMPLETED!!!!","REMEMBER TO PERIODICALLY SAVE THE WORKSHEET AS IT IS BEING COMPLETED!!!!","REMEMBER TO PERIODICALLY SAVE THE WORKSHEET AS IT IS BEING COMPLETED!!!!","REMEMBER TO PERIODICALLY SAVE THE WORKSHEET AS IT IS BEING COMPLETED!!!!","REMEMBER TO PERIODICALLY SAVE THE WORKSHEET AS IT IS BEING COMPLETED!!!!","REMEMBER TO PERIODICALLY SAVE THE WORKSHEET AS IT IS BEING COMPLETED!!!!","REMEMBER TO PERIODICALLY SAVE THE WORKSHEET AS IT IS BEING COMPLETED!!!!","REMEMBER TO PERIODICALLY SAVE THE WORKSHEET AS IT IS BEING COMPLETED!!!!","REMEMBER TO PERIODICALLY SAVE THE WORKSHEET AS IT IS BEING COMPLETED!!!!","REMEMBER TO PERIODICALLY SAVE THE WORKSHEET AS IT IS BEING COMPLETED!!!!","REMEMBER TO PERIODICALLY SAVE THE WORKSHEET AS IT IS BEING COMPLETED!!!!","REMEMBER TO PERIODICALLY SAVE THE WORKSHEET AS IT IS BEING COMPLETED!!!!","REMEMBER TO PERIODICALLY SAVE THE WORKSHEET AS IT IS BEING COMPLETED!!!!","REMEMBER TO PERIODICALLY SAVE THE WORKSHEET AS IT IS BEING COMPLETED!!!!","REMEMBER TO PERIODICALLY SAVE THE WORKSHEET AS IT IS BEING COMPLETED!!!!","REMEMBER TO PERIODICALLY SAVE THE WORKSHEET AS IT IS BEING COMPLETED!!!!","REMEMBER TO PERIODICALLY SAVE THE WORKSHEET AS IT IS BEING COMPLETED!!!!","REMEMBER TO PERIODICALLY SAVE THE WORKSHEET AS IT IS BEING COMPLETED!!!!","REMEMBER TO PERIODICALLY SAVE THE WORKSHEET AS IT IS BEING COMPLETED!!!!","REMEMBER TO PERIODICALLY SAVE THE WORKSHEET AS IT IS BEING COMPLETED!!!!","REMEMBER TO PERIODICALLY SAVE THE WORKSHEET AS IT IS BEING COMPLETED!!!!","REMEMBER TO PERIODICALLY SAVE THE WORKSHEET AS IT IS BEING COMPLETED!!!!","REMEMBER TO PERIODICALLY SAVE THE WORKSHEET AS IT IS BEING COMPLETED!!!!","REMEMBER TO PERIODICALLY SAVE THE WORKSHEET AS IT IS BEING COMPLETED!!!!","REMEMBER TO PERIODICALLY SAVE THE WORKSHEET AS IT IS BEING COMPLETED!!!!","REMEMBER TO PERIODICALLY SAVE THE WORKSHEET AS IT IS BEING COMPLETED!!!!","REMEMBER TO PERIODICALLY SAVE THE WORKSHEET AS IT IS BEING COMPLETED!!!!","REMEMBER TO PERIODICALLY SAVE THE WORKSHEET AS IT IS BEING COMPLETED!!!!","REMEMBER TO PERIODICALLY SAVE THE WORKSHEET AS IT IS BEING COMPLETED!!!!","REMEMBER TO PERIODICALLY SAVE THE WORKSHEET AS IT IS BEING COMPLETED!!!!","REMEMBER TO PERIODICALLY SAVE THE WORKSHEET AS IT IS BEING COMPLETED!!!!","REMEMBER TO PERIODICALLY SAVE THE WORKSHEET AS IT IS BEING COMPLETED!!!!","REMEMBER TO PERIODICALLY SAVE THE WORKSHEET AS IT IS BEING COMPLETED!!!!","REMEMBER TO PERIODICALLY SAVE THE WORKSHEET AS IT IS BEING COMPLETED!!!!","REMEMBER TO PERIODICALLY SAVE THE WORKSHEET AS IT IS BEING COMPLETED!!!!","REMEMBER TO PERIODICALLY SAVE THE WORKSHEET AS IT IS BEING COMPLETED!!!!","REMEMBER TO PERIODICALLY SAVE THE WORKSHEET AS IT IS BEING COMPLETED!!!!","REMEMBER TO PERIODICALLY SAVE THE WORKSHEET AS IT IS BEING COMPLETED!!!!","REMEMBER TO PERIODICALLY SAVE THE WORKSHEET AS IT IS BEING COMPLETED!!!!","REMEMBER TO PERIODICALLY SAVE THE WORKSHEET AS IT IS BEING COMPLETED!!!!","REMEMBER TO PERIODICALLY SAVE THE WORKSHEET AS IT IS BEING COMPLETED!!!!","REMEMBER TO PERIODICALLY SAVE THE WORKSHEET AS IT IS BEING COMPLETED!!!!","REMEMBER TO PERIODICALLY SAVE THE WORKSHEET AS IT IS BEING COMPLETED!!!!","REMEMBER TO PERIODICALLY SAVE THE WORKSHEET AS IT IS BEING COMPLETED!!!!","REMEMBER TO PERIODICALLY SAVE THE WORKSHEET AS IT IS BEING COMPLETED!!!!","REMEMBER TO PERIODICALLY SAVE THE WORKSHEET AS IT IS BEING COMPLETED!!!!","REMEMBER TO PERIODICALLY SAVE THE WORKSHEET AS IT IS BEING COMPLETED!!!!","REMEMBER TO PERIODICALLY SAVE THE WORKSHEET AS IT IS BEING COMPLETED!!!!","REMEMBER TO PERIODICALLY SAVE THE WORKSHEET AS IT IS BEING COMPLETED!!!!","REMEMBER TO PERIODICALLY SAVE THE WORKSHEET AS IT IS BEING COMPLETED!!!!","REMEMBER TO PERIODICALLY SAVE THE WORKSHEET AS IT IS BEING COMPLETED!!!!","REMEMBER TO PERIODICALLY SAVE THE WORKSHEET AS IT IS BEING COMPLETED!!!!","REMEMBER TO PERIODICALLY SAVE THE WORKSHEET AS IT IS BEING COMPLETED!!!!","REMEMBER TO PERIODICALLY SAVE THE WORKSHEET AS IT IS BEING COMPLETED!!!!","REMEMBER TO PERIODICALLY SAVE THE WORKSHEET AS IT IS BEING COMPLETED!!!!","REMEMBER TO PERIODICALLY SAVE THE WORKSHEET AS IT IS BEING COMPLETED!!!!","REMEMBER TO PERIODICALLY SAVE THE WORKSHEET AS IT IS BEING COMPLETED!!!!","REMEMBER TO PERIODICALLY SAVE THE WORKSHEET AS IT IS BEING COMPLETED!!!!","REMEMBER TO PERIODICALLY SAVE THE WORKSHEET AS IT IS BEING COMPLETED!!!!","REMEMBER TO PERIODICALLY SAVE THE WORKSHEET AS IT IS BEING COMPLETED!!!!","REMEMBER TO PERIODICALLY SAVE THE WORKSHEET AS IT IS BEING COMPLETED!!!!","REMEMBER TO PERIODICALLY SAVE THE WORKSHEET AS IT IS BEING COMPLETED!!!!","REMEMBER TO PERIODICALLY SAVE THE WORKSHEET AS IT IS BEING COMPLETED!!!!","REMEMBER TO PERIODICALLY SAVE THE WORKSHEET AS IT IS BEING COMPLETED!!!!","REMEMBER TO PERIODICALLY SAVE THE WORKSHEET AS IT IS BEING COMPLETED!!!!","REMEMBER TO PERIODICALLY SAVE THE WORKSHEET AS IT IS BEING COMPLETED!!!!","REMEMBER TO PERIODICALLY SAVE THE WORKSHEET AS IT IS BEING COMPLETED!!!!","REMEMBER TO PERIODICALLY SAVE THE WORKSHEET AS IT IS BEING COMPLETED!!!!","REMEMBER TO PERIODICALLY SAVE THE WORKSHEET AS IT IS BEING COMPLETED!!!!","REMEMBER TO PERIODICALLY SAVE THE WORKSHEET AS IT IS BEING COMPLETED!!!!","REMEMBER TO PERIODICALLY SAVE THE WORKSHEET AS IT IS BEING COMPLETED!!!!","REMEMBER TO PERIODICALLY SAVE THE WORKSHEET AS IT IS BEING COMPLETED!!!!","REMEMBER TO PERIODICALLY SAVE THE WORKSHEET AS IT IS BEING COMPLETED!!!!","REMEMBER TO PERIODICALLY SAVE THE WORKSHEET AS IT IS BEING COMPLETED!!!!","REMEMBER TO PERIODICALLY SAVE THE WORKSHEET AS IT IS BEING COMPLETED!!!!","REMEMBER TO PERIODICALLY SAVE THE WORKSHEET AS IT IS BEING COMPLETED!!!!","REMEMBER TO PERIODICALLY SAVE THE WORKSHEET AS IT IS BEING COMPLETED!!!!","REMEMBER TO PERIODICALLY SAVE THE WORKSHEET AS IT IS BEING COMPLETED!!!!","REMEMBER TO PERIODICALLY SAVE THE WORKSHEET AS IT IS BEING COMPLETED!!!!","REMEMBER TO PERIODICALLY SAVE THE WORKSHEET AS IT IS BEING COMPLETED!!!!","REMEMBER TO PERIODICALLY SAVE THE WORKSHEET AS IT IS BEING COMPLETED!!!!","REMEMBER TO PERIODICALLY SAVE THE WORKSHEET AS IT IS BEING COMPLETED!!!!","REMEMBER TO PERIODICALLY SAVE THE WORKSHEET AS IT IS BEING COMPLETED!!!!","REMEMBER TO PERIODICALLY SAVE THE WORKSHEET AS IT IS BEING COMPLETED!!!!","REMEMBER TO PERIODICALLY SAVE THE WORKSHEET AS IT IS BEING COMPLETED!!!!","REMEMBER TO PERIODICALLY SAVE THE WORKSHEET AS IT IS BEING COMPLETED!!!!","REMEMBER TO PERIODICALLY SAVE THE WORKSHEET AS IT IS BEING COMPLETED!!!!","REMEMBER TO PERIODICALLY SAVE THE WORKSHEET AS IT IS BEING COMPLETED!!!!","REMEMBER TO PERIODICALLY SAVE THE WORKSHEET AS IT IS BEING COMPLETED!!!!","REMEMBER TO PERIODICALLY SAVE THE WORKSHEET AS IT IS BEING COMPLETED!!!!"]
["Key Information"]
["SFAs must provide calorie and saturated fat information for all meal items, side items with grains and/or meat/meat alternates, and desserts. The Simplified Nutrient Assessment does NOT have this capability. Information can be collected from nutrition labels, product specifications, or other sources (including nutrient analysis software or an online system such as the CNPP SuperTracker)."]
["SFAs do not need specific calorie or saturated fat information for milk, fruits, or vegetables. Estimates for these components have been preprogrammed."]
["SFAs that have nutrient analysis software may still choose the FNS simplified assessment option if desired."]
[]
["Below is a list of calorie and fat sources typically added to foods, for reference:"]
[]
["Common fats added to vegetables or fruit"]
["Butter"]
["Margarine"]
["Vegetable oil (soybean, canola, olive, nut based)"]
["Salad dressing"]
["Mayonnaise"]
["Cream/whipped cream/sour cream"]
["Shortening"]
["Bacon crumbles"]
[]
["Common sources of added sugars to vegetables or fruit"]
["Brown or white sugar"]
["Honey"]
["Maple and/or fruit syrup"]
[]
[]
["Begin on the left side of the sheet with the “Fruit, Milk, and Vegetable Subgroup Simplified Nutrient Assessment.”"]
[]
["Fruit, Milk, and Vegetable Subgroup Simplified Nutrient Assessment"]
["This section contains a set of questions to determine how fruits, vegetables, and milk are typically offered.  SFAs will answer a series of questions pertaining to the frequency of adding fats and sugars in the preparation and offering of fruit, milk, and vegetable subgroups for the week of menus submitted for the certification process.  "]
["Fruit "]
["This box has already calculated the menu’s average serving size and total weekly servings from earlier data entered."]
["Select the two buttons that best apply to fruit offerings within the 5-day menu entered for the menu worksheet- the percentage of offerings containing added fat and/or added sugar. Include fats and sugars used during preparation of the food as well as any additional fats and/or sugars accompanying the component."]
["The default option is “Fruit not offered.”"]
["Only ONE selection can be made for added sugar, and ONE selection for added fat. Refer to the above list of commonly added ingredients to fruits for assistance. Select the best choice."]
["Estimates are based on average/typical use of fat and sugar in fruit offerings. Fruits served as part of a grain-based dessert, or with significant (more than 2 teaspoons/cup) added fat and/or sugar may be listed in column O1 (“Dessert, Side or Condiment”) to report, along with total planned servings within the week, exact calorie and saturated fat values."]
["Indicate the following for fruit for both fat and sugar."]
["If FRUIT is offered less than 30% of the time with added fat/sugar."]
["If FRUIT is offered 30% to 70% of the time with added fat/sugar."]
["If FRUIT is offered more than 70% of the time with added fat/sugar."]
["Fruit Example:"]
["5 cups of fruit offered over the week "]
["(2 cups canned in light syrup, 3 cups fresh/plain fruit)"]
["Result: Fruit offered with added sugar 40% of the time (2 divided by 5; select “30% to 70% of the total fruit offerings) "]
["Result: Fruit offered with added fat 0% of the time (0 divided by 5; select “less than 30% of the total fruit offerings”)"]
[]
["Milk "]
[]
["This box has already calculated the menu’s average serving size and total weekly servings from earlier data entered."]
["Select the button describing which two milk offerings are most frequently served  this week. Only ONE selection can be made- refer to historical usage, inventory records, etc. and select the best choice. Default option is “Milk not offered.”"]
[]
["Estimates based on average usage of standard commercial products. Milk offerings with a unique nutrient profile (e.g. reduced sugar flavored milk) may be listed in column O1 (“Dessert, Side or Condiment”) to report, along with total planned servings within the week, exact calorie and saturated fat values."]
["The default option is “Milk not offered.”"]
["Milk Example: "]
["5 cups of milk offered over the week"]
["Nonfat unflavored and low fat unflavored milk daily, chocolate nonfat milk offered Fridays only."]
["Using inventory, offered 450 nonfat unflavored, 450 low fat unflavored, 100 chocolate nonfat"]
["Result: SFA would select the “nonfat unflavored & low-fat (1%) unflavored” option."]
[]
["Vegetable Subgroups "]
["Each of the vegetable subgroups also has a selection chart. The first is Dark Green Vegetables."]
[]
["This box has already calculated the largest amount of dark green vegetables a child is able to select across the 5-day week from earlier data entered."]
["-Select the button that best describes added fat in offered dark green vegetables. The default option is “Dark green vegetables not offered.” Only ONE selection can be made- refer to the above list of common added ingredients to vegetables and select the best choice."]
["If VEGETABLE SUBGROUP are offered less than 30% of the time with added fat."]
["If VEGETABLE SUBGROUP are offered 30% to 70% of the time with added fat."]
["If VEGETABLE SUBGROUP are offered more than 70% of the time with added fat."]
["-Proceed with all remaining subgroups, following the same steps described above."]
["Note that there is a separate set of questions for fat and sugar for the Red/Orange vegetable subgroup."]
["Vegetable Subgroup Example:"]
["1 ½ cups of red/orange vegetables offered"]
["(½ cup carrots w/brown sugar/butter, ½ cup tomatoes, ½ cup sweet potato w/marshmallows) "]
["Result: Red/orange vegetables offered with added sugar 67% of the time (1 cup divided by 1 ½ cups; select “30% to 70% of the total red/orange offerings” for sugar) "]
["Result: Red/orange vegetables offered with added fat 33% of the time (½ cup divided by 1 ½ cups; select “30% to 70% of the total red/orange offerings” for fat"]
[]
["Main Dish Simplified Nutrient Data Entry"]
["The middle section is entitled “Main Dish Simplified Nutrient Data Entry.”"]
[]
["All meals offered over the week have been pre-populated (column M1). "]
["In column M2, enter the Main Dish, the part of the meal associated with the information entered in columns M3-M5 (calories, saturated fat, number of planned weekly servings)."]
["For each meal, the user must enter calories, saturated fat and the number of main dishes prepared over the course of the entire week (columns M3 through M5). If a meal is served more than once per week, add the number of servings for all days offered together."]
[" Only include the calories and saturated fat for the main dish and any components included as part of the main dish. "]
["Use standard rounding procedures to two decimals points"]
["Some double counting may occur with main dishes containing large amounts of fruits or vegetables (e.g. chef salad). If possible to report calorie and saturated fat information for main dish and exclude vegetables/fruits it contains, this is acceptable. Otherwise, report calorie and saturated fat information in entire main dish."]
["Include calorie and saturated fat information for condiments in Main Dish section (columns M3-M5), OR in the Desserts, Sides, and Condiments section (columns O2-O4). "]
["In last column, enter number of servings of each main dish offered over the course of the week. Rely on production records and historical data if this is a new menu."]
["At the top of this section is a link to Optional Serving Size and Fraction Calculators, tools intended to help users with serving size calculations by volume or weight, adding fractions, and converting decimals to fractions."]
["Main Dish Example:  "]
["Submarine sandwich served w/Italian dressing "]
["Reported in Main Dish: 300 sandwiches, each including 1 tablespoon dressing in analysis "]
["Reported in Desserts/Sides/Condiments: 300 servings of 1 packet (tablespoon) of dressing"]
[]
["Other Items Nutrient Assessment"]
["The section to the far right is entitled “Other items: Sides, Desserts, Condiments Nutrient Data Entry.”"]
[]
["Click the following link: \"Click here to go to the calories and saturated fat table for commonly used condiments\" to go to a chart listing calories and saturated fat for commonly used condiments, such as margarine and salad dressings."]
[]
[" Enter the name of the food item (O1), calories per serving (O2), and saturated fat grams per serving (O3). Use standard rounding procedures to two decimals points."]
[]
["These items have NOT been pre-populated. User must enter names of any desserts or sides containing grains or meat/meat alternates (rice pilaf, yogurt cup, whole grain cookie, “snack” items such as cheese sticks, etc). Information can be collected from nutrition labels, product specifications, or other sources."]
[]
["Enter the number of servings of each item offered over the course of the week (O4)."]
[]
["For condiments, amounts may be entered based on a per serving basis or in bulk quantities based on weekly usage data. Total calories and saturated fat over the week is equivalent in either method of reporting. (The denominator for determining averages is the total number of MEALS served over the week [total of all numbers recorded in column O4])."]
["Condiments Example: "]
["Item offered: salad dressing "]
["Per Serving Reporting: 256 planned servings of 1 Tablespoon amounts (73 calories, 1.2 grams saturated fat per serving) "]
["Bulk Quantity Reporting: 1 planned serving of 1 gallon offered over the week (18,688 calories, 307.2 grams saturated fat)"]
[]
["Sodium Portion of Simplified Nutrient Assessment"]
[]
["Beginning in SY 2014-15, SFAs must also meet Target 1 for average daily sodium requirements. In the next section of the assessment, below the vegetable subgroup questions, select “Yes” or “No” for each of the first 4 questions. For Question #5, regarding USDA Foods, select the option that best represents the percentage of USDA food vegetables offered during the week."]
[]
["These questions will provide estimates of sodium content to the total weekly vegetable offering- therefore, there is no need to respond to a separate sodium question for each of the vegetable subgroups."]
[]
[]
["Simplified Nutrient Assessment (results)"]
["Scroll to the bottom/middle of the screen (past the bottom of the Main Dish and Dessert/Side/Condiment chart)."]
[]
["This section, “Daily Amounts Based on the Average for a 5day week,” calculates daily average calories and percentage of calories from saturated fat. The values based on the entered menu are in grey boxes. The required range for the menu type is shown in the yellow boxes."]
[]
["If the menu meets requirements, the Assessment box turns Green. If the menu is within 25 calories of the required calorie range, or within half a percentage point of the saturated fat limit, the Assessment box turns Yellow. This provides SFAs an opportunity to work with their State as to why the menu is not within the range without an immediate rejection."]
[]
[" If calories or saturated fat are beyond the cautionary range, the Assessment box turns Red."]
[]
["Simplified Nutrient Assessment is now complete save this file and submit to the State Agency for review."]

{"sheet":"Simplified Nutrient Assessment","index":17,"n_rows":87,"n_cols":47,"rows_kept":87,"cut":false,"hidden":false,"merged":[[81,0,81,5],[82,0,82,5],[83,0,83,10],[86,0,86,9],[72,15,73,23],[73,0,73,9],[74,0,74,9],[74,15,103,23],[75,0,75,5],[76,0,76,5],[77,0,77,5],[78,0,78,5],[79,0,79,5],[80,0,80,9],[63,15,64,15],[63,16,63,17],[63,18,64,22],[63,23,64,23],[64,16,64,17],[65,6,65,9],[59,23,60,23],[60,5,60,9],[60,16,60,17],[61,5,61,9],[61,15,62,15],[61,16,61,17],[61,18,62,22],[61,23,62,23],[62,5,62,9],[62,16,62,17],[58,0,58,9],[58,16,58,17],[58,18,58,21],[59,5,59,9],[59,15,60,15],[59,16,59,17],[59,18,60,22],[53,5,53,9],[54,5,54,9],[56,0,56,9],[56,10,56,11],[57,0,57,6],[57,15,57,23],[48,0,48,9],[48,10,48,11],[49,0,49,6],[50,0,50,9],[51,5,51,9],[52,5,52,9],[41,0,41,6],[42,0,42,9],[43,5,43,9],[44,5,44,9],[45,5,45,9],[46,5,46,9],[38,33,38,38],[38,39,38,41],[38,42,38,43],[39,33,39,44],[40,0,40,9],[40,10,40,11],[36,33,36,38],[36,39,36,41],[36,42,36,43],[37,33,37,38],[37,39,37,41],[37,42,37,43],[34,0,34,5],[34,6,34,9],[34,33,34,38],[34,39,34,41],[34,42,34,43],[35,33,35,38],[35,39,35,41],[35,42,35,43],[32,0,32,9],[32,10,32,11],[32,33,32,38],[32,39,32,41],[32,42,32,43],[33,0,33,6],[33,33,33,38],[33,39,33,41],[33,42,33,43],[30,5,30,9],[30,33,30,38],[30,39,30,41],[30,42,30,43],[31,33,31,38],[31,39,31,41],[31,42,31,43],[28,5,28,9],[28,33,28,38],[28,39,28,41],[28,42,28,43],[29,5,29,9],[29,33,29,38],[29,39,29,41],[29,42,29,43],[26,0,26,9],[26,33,26,38],[26,39,26,41],[26,42,26,43],[27,5,27,9],[27,33,27,38],[27,39,27,41],[27,42,27,43],[20,5,20,9],[21,32,21,47],[22,0,23,9],[23,10,23,11],[24,0,24,9],[25,0,25,6],[25,33,25,46],[16,32,17,35],[16,38,17,39],[17,5,17,9],[17,41,18,43],[17,46,18,47],[18,5,18,9],[18,32,19,35],[18,38,19,39],[19,5,19,9],[13,32,13,39],[13,41,14,47],[14,0,14,9],[14,32,14,35],[14,38,14,39],[15,32,15,35],[15,38,15,39],[15,41,16,43],[15,46,16,47],[16,0,16,9],[9,38,10,39],[9,46,9,47],[10,46,10,47],[11,32,12,35],[11,38,12,39],[11,46,11,47],[12,46,12,47],[7,32,7,35],[7,38,7,39],[7,41,12,43],[7,46,7,47],[8,0,8,5],[8,6,8,9],[8,32,8,35],[8,38,8,39],[8,46,8,47],[9,32,10,35],[3,0,5,9],[3,13,3,18],[3,23,3,27],[5,32,5,39],[5,41,6,47],[6,0,6,9],[6,32,6,39],[0,0,0,27],[1,0,1,12],[1,13,1,16],[1,23,1,24],[1,25,1,28],[2,0,2,9],[2,13,2,18],[2,23,2,27]]}
["Simplified Nutrient Assessment for Lunch, Grades K-8"]
["Go to Instructions",null,null,null,null,null,null,null,null,null,null,null,null,"Click here to go to Optional Serving Size and Fraction Calculators",null,null,null,null,null,null,null,null,null,"Click here to go to the calories, saturated fat, and sodium table for commonly used condiments",null,"Go to Results"]
["Fruit, Milk, and Vegetable Subgroup Nutrient Assessment",null,null,null,null,null,null,null,null,null,null,null,null,"Main Dish Simplified Nutrient Data Entry",null,null,null,null,null,null,null,null,null,"Other items: Sides, Desserts, Condiments Nutrient Data Entry"]
["Select the option best representing how each component is offered throughout the week. Only select one option per component. \nInclude fat and sugars used during preparation of the food as well as any additional fats and/or sugars offered with the component.",null,null,null,null,null,null,null,null,null,null,null,null,"Enter the calories and saturated fat for one serving of the main dish and the number of servings planned during the week. Only include the calories and saturated fat for the main dish and any components included as part of the main dish.  The number of planned serving should include all sites serving the menu type.\nUse standard rounding procedures to two decimal points",null,null,null,null,null,null,null,null,null,"Enter the calories and saturated fat for each side, dessert, and condiment offered. Also enter the number of servings planned during the week. Do not include fruit or vegetable based sides.\nUse standard rounding procedures to two decimal points"]
[null,null,null,null,null,null,null,null,null,null,null,null,null,"M1","M2","M3","M4","M5","M6",null,null,null,null,"O1","Q2","O3","O4","O5"]
[null,null,null,null,null,null,null,null,null,null,"Cal_serv","fat_serv",null,"Meal Name\nThis column is pre-populated with the meal names entered\n on the \"All Meals\" tab","Main Dish\nThe part of the meal associated with the information entered in columns M3-M5","Calories/serving (kcal)","Saturated Fat/serving (g)","Sodium/ serving(mg)","Number of planned servings for the week","cal","fat","sodium",null,"Dessert, Side, or Condiment","Calories/serving (kcal)","Saturated Fat/serving (g)","Sodium/ serving(mg)","Number of planned servings for the week","cal","fat","sodium",null,"OPTIONAL Tools to Assist in Serving Calculations",null,null,null,null,null,null,null,null,"OPTIONAL Tools to Assist in Fraction and Decimal Calculations"]
["Fruit (cups)",null,null,null,null,null,null,null,null,null,{"$f":"I14*$F$8","v":0},{"$f":"D14*$F$8","v":0},null,{"$f":"'All Meals'!C11","v":"Example: Chicken nuggets w/ roll and honey sauce"},"Chicken Nuggets",250,4,150,100,null,null,null,null,"Example: Small cookie",50,1,5,100,null,null,null,null,"Calories and Saturated Fat Serving Size Calculator (cups)"]
["Average serving size:",null,null,null,null,{"$f":"IF(ISERROR(AVERAGE('All Meals'!J12:J62)),0,AVERAGE('All Meals'!J12:J62))","v":0},"Total Weekly servings:",null,null,{"$f":"'Weekly Report'!I5","v":0},null,null,null,{"$f":"IF('All Meals'!C13=\"\",\"\",'All Meals'!C13)","v":""},null,null,null,null,null,{"$f":"P8*S8","v":0},{"$f":"Q8*S8","v":0},{"$f":"R8*S8","v":0},null,null,null,null,null,null,{"$f":"Y8*AB8","v":0},{"$f":"Z8*AB8","v":0},{"$f":"AA8*AB8","v":0},null,"Enter the number of cups offered:",null,null,null,1,{"$f":"INDEX(SIZES,AK8)","v":0},null,null,null,"Fraction Calculator: \nUse this calculator to add the number of cups.",null,null,1,{"$f":"INDEX(SIZES,AS8)","v":0}]
["Fruit is offered throughout the week with added fat:",null,null,null,null,null,"Fruit is offered throughout the week with added sugar:",null,null,null,null,null,null,{"$f":"IF('All Meals'!C14=\"\",\"\",'All Meals'!C14)","v":""},null,null,null,null,null,0,0,0,null,null,null,null,null,null,0,0,0,null,"Enter the number of cups in a serving:",null,null,null,1,{"$f":"INDEX(SIZES,AK9)","v":0},null,null,null,null,null,null,1,{"$f":"INDEX(SIZES,AS9)","v":0}]
[null,2,132.59333333333333,0.3433066666666667,7.4,"Less than 30% of the total fruit offerings",null,4,3.6749999999999998,"Less than 30% of the total fruit offerings","avg_wk_cal","avg_wk_fat",null,{"$f":"IF('All Meals'!C15=\"\",\"\",'All Meals'!C15)","v":""},null,null,null,null,null,0,0,0,null,null,null,null,null,null,0,0,0,null,"Enter the number of calories or sat fat grams/serving (cups):",null,null,null,null,null,null,null,null,null,null,null,1,{"$f":"INDEX(SIZES,AS10)","v":0}]
[null,null,154.99333333333334,1.0608066666666669,17.399999999999999,"30% to 70% of the total fruit offerings",null,null,12.25,"30% to 70% of the total fruit offerings",{"$f":"K7","v":0},{"$f":"L7","v":0},null,{"$f":"IF('All Meals'!C16=\"\",\"\",'All Meals'!C16)","v":""},null,null,null,null,null,0,0,0,null,null,null,null,null,null,0,0,0,null,null,null,null,null,null,null,null,null,null,null,null,null,1,{"$f":"INDEX(SIZES,AS11)","v":0}]
[null,null,177.39333333333335,1.7783066666666669,27.4,"More than 70% of the total fruit offerings",null,null,20.824999999999999,"More than 70% of the total fruit offerings",null,null,null,{"$f":"IF('All Meals'!C17=\"\",\"\",'All Meals'!C17)","v":""},null,null,null,null,null,0,0,0,null,null,null,null,null,null,0,0,0,null,"Number of calories or saturated fat/serving (cups) offered:",null,null,null,null,null,{"$f":"ROUND(IF(ISERROR((AM10*AL8)/AL9),0,(AM10*AL8)/AL9),2)","v":0},null,null,null,null,null,1,{"$f":"INDEX(SIZES,AS12)","v":0}]
[null,null,0,0,0,"Fruit not offered",null,null,0,"Fruit not offered","avg_sodium",{"$f":"E14*F8","v":0},null,{"$f":"IF('All Meals'!C18=\"\",\"\",'All Meals'!C18)","v":""},null,null,null,null,null,0,0,0,null,null,null,null,null,null,0,0,0,null,null,null,null,null,null,null,null,null,null,null,null,null,null,null,{"$f":"SUM(AT8:AT12)","v":0}]
[null,null,{"$f":"IF($B$10=1,$C$10,IF($B$10=2,C11,IF($B$10=3,C12,IF($B$10=4,C13,0))))","v":154.99333333333334},{"$f":"IF($B$10=1,D10,IF($B$10=2,D11,IF($B$10=3,D12,IF($B$10=4,D13,0))))","v":1.0608066666666669},{"$f":"IF($B$10=1,E10,IF($B$10=2,E11,IF($B$10=3,E12,IF($B$10=4,E13,0))))","v":17.399999999999999},null,null,{"$f":"IF($H$10=1,$I$10,IF($H$10=2,I11,IF($H$10=3,I12,IF($H$10=4,I13,0))))","v":0},{"$f":"SUM(C14,H14)","v":154.99333333333334},null,null,null,null,{"$f":"IF('All Meals'!C19=\"\",\"\",'All Meals'!C19)","v":""},null,null,null,null,null,0,0,0,null,null,null,null,null,null,0,0,0,null,"Calories and Saturated Fat Serving Size Calculator (weight)",null,null,null,null,null,null,null,null,"Decimal/Fraction Converter\n(Rounded down to the nearest 1/8)"]
["Milk (cups)",null,null,null,null,null,null,null,null,null,"Cal_serv","fat_serv",null,{"$f":"IF('All Meals'!C20=\"\",\"\",'All Meals'!C20)","v":""},null,null,null,null,null,0,0,0,null,null,null,null,null,null,0,0,0,null,"Enter food item weight offered:"]
["Average serving size:",null,null,null,null,{"$f":"IF(ISERROR(AVERAGE('All Meals'!T12:T62)),0, AVERAGE('All Meals'!T12:T62))","v":0},"Total weekly servings:",null,null,{"$f":"'Weekly Report'!I32","v":0},{"$f":"C22*$F$16","v":0},{"$f":"D22*$F$16","v":0},null,{"$f":"IF('All Meals'!C21=\"\",\"\",'All Meals'!C21)","v":""},null,null,null,null,null,0,0,0,null,null,null,null,null,null,0,0,0,null,"Enter food item weight in a serving:",null,null,null,null,null,null,null,null,"Enter the decimal you wish to convert to a fraction in the box:"]
["What two types of milk are offered most during the week?",null,null,null,null,null,null,null,null,null,null,null,null,{"$f":"IF('All Meals'!C22=\"\",\"\",'All Meals'!C22)","v":""},null,null,null,null,null,0,0,0,null,null,null,null,null,null,0,0,0,null,"Enter the number of calories or sat fat grams/serving:"]
[null,4,114.65,0.35949999999999999,136,"Nonfat unflavored & nonfat flavored",null,null,null,null,null,null,null,{"$f":"IF('All Meals'!C23=\"\",\"\",'All Meals'!C23)","v":""},null,null,null,null,null,0,0,0,null,null,null,null,null,null,0,0,0,null,null,null,null,null,null,null,null,null,null,"The decimal entered above has been converted to the following fraction:",null,null,null,null,{"$f":"FLOOR(AU16,0.125)","v":0}]
[null,null,92.5,0.84099999999999997,105,"Nonfat unflavored & low-fat (1%) unflavored",null,null,null,null,"avg_wk_cal","avg_wk_fat",null,{"$f":"IF('All Meals'!C24=\"\",\"\",'All Meals'!C24)","v":""},null,null,null,null,null,0,0,0,null,null,null,null,null,null,0,0,0,null,"Number of calories or saturated fat\n (weight offered):",null,null,null,null,null,{"$f":"ROUND(IF(ISERROR((AM17*AM15)/AM16),0,(AM17*AM15)/AM16),2)","v":0}]
[null,null,124.15,1.0634999999999999,138,"Low-fat (1%) unflavored & nonfat flavored",null,null,null,null,{"$f":"K16","v":0},{"$f":"L16","v":0},null,{"$f":"IF('All Meals'!C25=\"\",\"\",'All Meals'!C25)","v":""},null,null,null,null,null,0,0,0,null,null,null,null,null,null,0,0,0]
[null,null,0,0,0,"Milk not offered",null,null,null,null,"avg_sodium",{"$f":"E22*F16","v":0},null,{"$f":"IF('All Meals'!C26=\"\",\"\",'All Meals'!C26)","v":""},null,null,null,null,null,0,0,0,null,null,null,null,null,null,0,0,0]
[null,null,{"$f":"IF($B$18=1,C18,IF($B$18=2,C19,IF($B$18=3,C20,IF($B$18=4,C21,0))))","v":0},{"$f":"IF($B$18=1,D18,IF($B$18=2,D19,IF($B$18=3,D20,IF($B$18=4,D21,0))))","v":0},{"$f":"IF($B$18=1,E18,IF($B$18=2,E19,IF($B$18=3,E20,IF($B$18=4,E21,0))))","v":0},null,null,null,null,null,null,null,null,{"$f":"IF('All Meals'!C27=\"\",\"\",'All Meals'!C27)","v":""},null,null,null,null,null,0,0,0,null,null,null,null,null,null,0,0,0,null,"Go Back to Assessment"]
["Vegetable Subgroups\nSelect the option that best represents how each subgroup is offered throughout the week. Include fats and sugars added during preparation as well as any additional fats and/or sugars offered with the vegetables.",null,null,null,null,null,null,null,null,null,null,null,null,{"$f":"IF('All Meals'!C28=\"\",\"\",'All Meals'!C28)","v":""},null,null,null,null,null,0,0,0,null,null,null,null,null,null,0,0,0]
[null,null,null,null,null,null,null,null,null,null,"Sodium calc",null,null,{"$f":"IF('All Meals'!C29=\"\",\"\",'All Meals'!C29)","v":""},null,null,null,null,null,0,0,0,null,null,null,null,null,null,0,0,0]
["Dark Green Vegetables (cups)",null,null,null,null,null,null,null,null,null,"sod_wk","avg_sod",null,{"$f":"IF('All Meals'!C30=\"\",\"\",'All Meals'!C30)","v":""},null,null,null,null,null,0,0,0,null,null,null,null,null,null,0,0,0]
["Estimated share of dark green vegetables to select:",null,null,null,null,null,null,null,null,{"$f":"IF(ISERROR(('Weekly Report'!I13/SUM('Weekly Report'!I13:I17))*'Weekly Report'!I10),0,('Weekly Report'!I13)/SUM('Weekly Report'!I13:I17))*'Weekly Report'!I10","v":0},{"$f":"J26*E32","v":0},{"$f":"K26/7","v":0},null,{"$f":"IF('All Meals'!C31=\"\",\"\",'All Meals'!C31)","v":""},null,null,null,null,null,0,0,0,null,null,null,null,null,null,0,0,0,null,null,"Calories, Saturated Fat, and Sodium for Commonly Used Condiments"]
["Dark Green vegetables are offered throughout the week with added fat:",null,null,null,null,null,null,null,null,null,"Cal_wk","fat_wk",null,{"$f":"IF('All Meals'!C32=\"\",\"\",'All Meals'!C32)","v":""},null,null,null,null,null,0,0,0,null,null,null,null,null,null,0,0,0,null,null,"Source of Fat",null,null,null,null,null,"Calories (kcal)",null,null,"Saturated Fat (gm)",null,null,null,"Sodium (Na)"]
[null,4,40.6,0.3091666666666667,43.96,"Less than 30% of the total dark green offerings",null,null,null,null,{"$f":"C32*J26","v":0},{"$f":"J26*D32","v":0},null,{"$f":"IF('All Meals'!C33=\"\",\"\",'All Meals'!C33)","v":""},null,null,null,null,null,0,0,0,null,null,null,null,null,null,0,0,0,null,null,"Butter (2tsp)",null,null,null,null,null,68,null,null,4.87,null,null,null,61]
[null,null,63,1.0266666666666668,null,"30% to 70% of the total dark green offerings",null,null,null,null,"avg_wk_cal","avg_wk_fat",null,{"$f":"IF('All Meals'!C34=\"\",\"\",'All Meals'!C34)","v":""},null,null,null,null,null,0,0,0,null,null,null,null,null,null,0,0,0,null,null,"Margarine (2tsp)",68,1.58,"Margarine (stick)",68,1.58,94,1.58,"Margarine (stick)",1.6,null,null,null,70]
[null,null,85.4,1.7441666666666669,null,"More than 70% of the total dark green offerings",null,null,null,null,{"$f":"K28/7","v":0},{"$f":"L28/7","v":0},null,{"$f":"IF('All Meals'!C35=\"\",\"\",'All Meals'!C35)","v":""},null,null,null,null,null,0,0,0,null,null,null,null,null,null,0,0,0,null,null,"Heavy cream (2 Tbsp)",52,3.46,"Heavy cream (2 Tbsp)",52,3.46,52,3.46,"Heavy cream (2 Tbsp)",3.46,null,null,null,6]
[null,null,0,0,null,"Dark green vegetables not offered",null,null,null,null,null,null,null,{"$f":"IF('All Meals'!C36=\"\",\"\",'All Meals'!C36)","v":""},null,null,null,null,null,0,0,0,null,null,null,null,null,null,0,0,0,null,null,"Ranch dressing, regular (1 Tbsp)",73,1.2,"Ranch dressing, regular (1 Tbsp)",73,1.2,73,1.2,"Ranch dressing, regular (1 Tbsp)",1.2,null,null,null,135]
[null,null,{"$f":"IF($B$28=1,C28,IF($B$28=2,C29,IF($B$28=3,C30,IF($B$28=4,C31,0))))","v":0},{"$f":"IF($B$28=1,D28,IF($B$28=2,D29,IF($B$28=3,D30,IF($B$28=4,D31,0))))","v":0},{"$f":"IF($B$28=1,E28,IF($B$28=2,E28,IF($B$28=3,E28,IF($B$28=4,0,0))))","v":0},null,null,null,null,null,null,null,null,{"$f":"IF('All Meals'!C37=\"\",\"\",'All Meals'!C37)","v":""},null,null,null,null,null,0,0,0,null,null,null,null,null,null,0,0,0,null,null,"Ranch dressing, reduced fat (1 Tbsp)",29,0.19,"Ranch dressing, reduced fat (1 Tbsp)",29,0.19,29,0.19,"Ranch dressing, reduced fat (1 Tbsp)",0.19,null,null,null,168]
["Red/orange Vegetables (cups)",null,null,null,null,null,null,null,null,null,"Sod_calc",null,null,{"$f":"IF('All Meals'!C38=\"\",\"\",'All Meals'!C38)","v":""},null,null,null,null,null,0,0,0,null,null,null,null,null,null,0,0,0,null,null,"Italian dressing, regular (1 Tbsp)",43,0.66,"Italian dressing, regular (1 Tbsp)",43,0.66,43,0.66,"Italian dressing, regular (1 Tbsp)",0.66,null,null,null,146]
["Estimated share of red/orange vegetables to select:",null,null,null,null,null,null,null,null,{"$f":"IF(ISERROR(('Weekly Report'!I14)/SUM('Weekly Report'!I13:I17)*'Weekly Report'!I10),0,(('Weekly Report'!I14)/SUM('Weekly Report'!I13:I17)*'Weekly Report'!I10))","v":0},{"$f":"IF(SUM(E40:F40)>0,E36,0)","v":0},{"$f":"K34/7","v":0},null,{"$f":"IF('All Meals'!C39=\"\",\"\",'All Meals'!C39)","v":""},null,null,null,null,null,0,0,0,null,null,null,null,null,null,0,0,0,null,null,"Italian dressing, reduced fat (1 Tbsp)",11,7.0000000000000007E-2,"Italian dressing, reduced fat (1 Tbsp)",11,7.0000000000000007E-2,11,7.0000000000000007E-2,"Italian dressing, reduced fat (1 Tbsp)",7.0000000000000007E-2,null,null,null,134]
["Red/orange Vegetables are offered throughout the week with added fat:",null,null,null,null,null,"Red/orange Vegetables are offered throughout the week with added sugar:",null,null,null,"Cal_wk","fat_wk",null,{"$f":"IF('All Meals'!C40=\"\",\"\",'All Meals'!C40)","v":""},null,null,null,null,null,0,0,0,null,null,null,null,null,null,0,0,0,null,null,"Mayonnaise (1 Tbsp)",57,0.72,"Mayonnaise (1 Tbsp)",57,0.72,57,0.72,"Mayonnaise (1 Tbsp)",0.72,null,null,null,88]
[null,4,109.43333333333332,0.35566666666666674,128.97,"Less than 30% of the total red/orange offerings",null,4,3.6749999999999998,"Less than 30% of the total red/orange offerings",{"$f":"J34*I40","v":0},{"$f":"J34*D40","v":0},null,{"$f":"IF('All Meals'!C41=\"\",\"\",'All Meals'!C41)","v":""},null,null,null,null,null,0,0,0,null,null,null,null,null,null,0,0,0,null,null,"Ketchup (9gm packet)",9,0,"Ketchup (9gm packet)",9,0,9,0,"Ketchup (9gm packet)",0,null,null,null,82]
[null,null,131.83333333333331,1.0731666666666668,null,"30% to 70% of the total red/orange offerings",null,null,12.25,"30% to 70% of the total red/orange offerings","avg_wk_cal","avg_wk_fat",null,{"$f":"IF('All Meals'!C42=\"\",\"\",'All Meals'!C42)","v":""},null,null,null,null,null,0,0,0,null,null,null,null,null,null,0,0,0,null,null,"Honey (1 Tbsp)",38,0,"Honey (1 Tbsp)",38,0,38,0,"Honey (1 Tbsp)",0,null,null,null,1]
[null,null,154.23333333333332,1.7906666666666669,null,"More than 70% of the total red/orange offerings",null,null,20.824999999999999,"More than 70% of the total red/orange offerings",{"$f":"K36/7","v":0},{"$f":"L36/7","v":0},null,{"$f":"IF('All Meals'!C43=\"\",\"\",'All Meals'!C43)","v":""},null,null,null,null,null,0,0,0,null,null,null,null,null,null,0,0,0,null,null,"Maple syrup (2 Tbsp)",106,0.01,"Maple syrup (2 Tbsp)",106,0.01,106,0.01,"Maple syrup (2 Tbsp)",0.01,null,null,null,24]
[null,null,0,0,null,"Red/orange vegetables not offered",null,null,0,"Red/orange vegetables not offered",null,null,null,{"$f":"IF('All Meals'!C44=\"\",\"\",'All Meals'!C44)","v":""},null,null,null,null,null,0,0,0,null,null,null,null,null,null,0,0,0,null,null,"Mustard (5gm packet)",3,0.01,"Mustard (5gm packet)",3,0.01,3,0.01,"Mustard (5gm packet)",0.01,null,null,null,57]
[null,null,{"$f":"IF($B$36=1,C36,IF($B$36=2,C37,IF($B$36=3,C38,IF($B$36=4,C39,0))))","v":0},{"$f":"IF($B$36=1,D36,IF($B$36=2,D37,IF($B$36=3,D38,IF($B$36=4,D39,0))))","v":0},{"$f":"IF($B$36=1,E36,IF($B$36=2,E36,IF($B$36=3,E36,IF($B$36=4,0,0))))","v":0},{"$f":"IF($H$36=1,E36,IF($H$36=2,E36,IF($H$36=3,E36,IF($H$36=4,0,0))))","v":0},null,{"$f":"IF($H$36=1,I36,IF($H$36=2,I37,IF($H$36=3,I38,IF($H$36=4,I39,0))))","v":0},{"$f":"SUM(C40,H40)","v":0},null,null,null,null,{"$f":"IF('All Meals'!C45=\"\",\"\",'All Meals'!C45)","v":""},null,null,null,null,null,0,0,0,null,null,null,null,null,null,0,0,0,null,null,"Go Back to Assessment"]
["Beans/peas (legumes) (cups)",null,null,null,null,null,null,null,null,null,"Sodium calc",null,null,{"$f":"IF('All Meals'!C46=\"\",\"\",'All Meals'!C46)","v":""},null,null,null,null,null,0,0,0,null,null,null,null,null,null,0,0,0]
["Estimated share of beans/peas to select:",null,null,null,null,null,null,null,null,{"$f":"IF(ISERROR(('Weekly Report'!I15)/SUM('Weekly Report'!I13:I17)*'Weekly Report'!I10),0,'Weekly Report'!I15/SUM('Weekly Report'!I13:I17)*'Weekly Report'!I10)","v":0},{"$f":"J42*E48","v":0},{"$f":"K42/7","v":0},null,{"$f":"IF('All Meals'!C47=\"\",\"\",'All Meals'!C47)","v":""},null,null,null,null,null,0,0,0,null,null,null,null,null,null,0,0,0]
["Beans/Peas are offered throughout the week with added fat:",null,null,null,null,null,null,null,null,null,"Cal_wk","fat_wk",null,{"$f":"IF('All Meals'!C48=\"\",\"\",'All Meals'!C48)","v":""},null,null,null,null,null,0,0,0,null,null,null,null,null,null,0,0,0]
[null,4,246,0.5475000000000001,501.79,"Less than 30% of the total beans/peas (legumes) offerings",null,null,null,null,{"$f":"C48*J42","v":0},{"$f":"J42*D48","v":0},null,{"$f":"IF('All Meals'!C49=\"\",\"\",'All Meals'!C49)","v":""},null,null,null,null,null,0,0,0,null,null,null,null,null,null,0,0,0]
[null,null,268.39999999999998,1.2650000000000001,null,"30% to 70% of the total beans/peas (legumes) offerings",null,null,null,null,"avg_wk_cal","avg_wk_fat",null,{"$f":"IF('All Meals'!C50=\"\",\"\",'All Meals'!C50)","v":""},null,null,null,null,null,0,0,0,null,null,null,null,null,null,0,0,0]
[null,null,290.8,1.9825000000000002,null,"More than 70% of the total beans/peas (legumes) offerings",null,null,null,null,{"$f":"K44/7","v":0},{"$f":"L44/7","v":0},null,{"$f":"IF('All Meals'!C51=\"\",\"\",'All Meals'!C51)","v":""},null,null,null,null,null,0,0,0,null,null,null,null,null,null,0,0,0]
[null,null,0,0,null,"Beans/peas not offered",null,null,null,null,null,null,null,{"$f":"IF('All Meals'!C52=\"\",\"\",'All Meals'!C52)","v":""},null,null,null,null,null,0,0,0,null,null,null,null,null,null,0,0,0]
[null,null,{"$f":"IF($B$44=1,C44,IF($B$44=2,C45,IF($B$44=3,C46,IF($B$44=4,C47,0))))","v":0},{"$f":"IF($B$44=1,D44,IF($B$44=2,D45,IF($B$44=3,D46,IF($B$44=4,D47,0))))","v":0},{"$f":"IF($B$44=1,E44,IF($B$44=2,E44,IF($B$44=3,E44,IF($B$44=4,0,0))))","v":0},null,null,null,null,null,null,null,null,{"$f":"IF('All Meals'!C53=\"\",\"\",'All Meals'!C53)","v":""},null,null,null,null,null,0,0,0,null,null,null,null,null,null,0,0,0]
["Starchy Vegetables (cups)",null,null,null,null,null,null,null,null,null,"Sodium calc",null,null,{"$f":"IF('All Meals'!C54=\"\",\"\",'All Meals'!C54)","v":""},null,null,null,null,null,0,0,0,null,null,null,null,null,null,0,0,0]
["Estimated share of Starchy vegetables to select:",null,null,null,null,null,null,null,null,{"$f":"IF(ISERROR(('Weekly Report'!I16)/SUM('Weekly Report'!I13:I17)*'Weekly Report'!I10),0,('Weekly Report'!I16)/SUM('Weekly Report'!I13:I17)*'Weekly Report'!I10)","v":0},{"$f":"J50*E56","v":0},{"$f":"K50/7","v":0},null,{"$f":"IF('All Meals'!C55=\"\",\"\",'All Meals'!C55)","v":""},null,null,null,null,null,0,0,0,null,null,null,null,null,null,0,0,0]
["Starchy vegetables are offered throughout the week with added fat:",null,null,null,null,null,null,null,null,null,"Cal_wk","fat_wk",null,{"$f":"IF('All Meals'!C56=\"\",\"\",'All Meals'!C56)","v":""},null,null,null,null,null,0,0,0,null,null,null,null,null,null,0,0,0]
[null,4,161.02857142857141,0.50550000000000006,269.75,"Less than 30% of the total starchy offerings",null,null,null,null,{"$f":"C56*J50","v":0},{"$f":"J50*D56","v":0},null,{"$f":"IF('All Meals'!C57=\"\",\"\",'All Meals'!C57)","v":""},null,null,null,null,null,0,0,0,null,null,null,null,null,null,0,0,0]
[null,null,183.42857142857142,1.2230000000000001,null,"30% to 70% of the total starchy offerings",null,null,null,null,"avg_wk_cal","avg_wk_fat",null,{"$f":"IF('All Meals'!C58=\"\",\"\",'All Meals'!C58)","v":""},null,null,null,null,null,0,0,0,null,null,null,null,null,null,0,0,0]
[null,null,205.82857142857142,1.9405000000000001,null,"More than 70% of the total starchy offerings",null,null,null,null,{"$f":"K52/7","v":0},{"$f":"L52/7","v":0},null,{"$f":"IF('All Meals'!C59=\"\",\"\",'All Meals'!C59)","v":""},null,null,null,null,null,0,0,0,null,null,null,null,null,null,0,0,0]
[null,null,0,0,null,"Starchy vegetables not offered",null,null,null,null,null,null,null,{"$f":"IF('All Meals'!C60=\"\",\"\",'All Meals'!C60)","v":""},null,null,null,null,null,0,0,0,null,null,null,null,null,null,0,0,0]
[null,null,{"$f":"IF($B$52=1,C52,IF($B$52=2,C53,IF($B$52=3,C54,IF($B$52=4,C55,0))))","v":0},{"$f":"IF($B$52=1,D52,IF($B$52=2,D53,IF($B$52=3,D54,IF($B$52=4,D55,0))))","v":0},{"$f":"IF($B$52=1,E52,IF($B$52=2,E52,IF($B$52=3,E52,IF($B$52=4,0,0))))","v":0},null,null,null,null,null,null,null,null,{"$f":"IF('All Meals'!C61=\"\",\"\",'All Meals'!C61)","v":""},null,null,null,null,null,0,0,0,null,null,null,null,null,null,0,0,0]
["Other Vegetables (cups)",null,null,null,null,null,null,null,null,null,"Sodium calc"]
["Estimated share of Other vegetables to select:",null,null,null,null,null,null,null,null,{"$f":"IF(ISERROR(('Weekly Report'!I17)/SUM('Weekly Report'!I13:I17)*'Weekly Report'!I10),0,('Weekly Report'!I17)/SUM('Weekly Report'!I13:I17)*'Weekly Report'!I10)","v":0},{"$f":"J58*E64","v":0},{"$f":"K58/7","v":0},null,null,null,"Daily Amounts Based on the Average for a 5-day week"]
["Other vegetables are offered throughout the week with added fat:",null,null,null,null,null,null,null,null,null,"Cal_wk","fat_wk",null,null,null,"Nutrient","Measure",null,"Required Range",null,null,null,null,"Assessment"]
[null,4,38.18181818181818,6.5545454545454546E-2,85.11,"Less than 30% of the total other offerings",null,null,null,null,null,null,null,null,null,"Calories","Daily Average",null,"600-675 kcals",null,null,null,null,{"$f":"IF(AND(Q61>=Q66,Q61<=R66),\"Estimated calories are within the required range\", IF(AND(Q61<Q66,Q61>=S66), \"Estimated calories are below the calorie minimum but within 25 calories, follow up with State agency\", IF(AND(Q61>R66,Q61<=T66), \"Estimated calories are above the calorie maximum but within 25 calories, follow up with State agency\", \"Estimated calories are NOT within the required range\")))","v":"Estimated calories are NOT within the required range"}]
[null,null,65.181818181818187,1.9397954545454545,null,"30% to 70% of the total other offerings",null,null,null,null,{"$f":"C64*J58","v":0},{"$f":"J58*D64","v":0},null,null,null,null,{"$f":"ROUND(SUM(K67,P72,Y72),2)","v":0}]
[null,null,119.18181818181819,5.6882954545454547,null,"More than 70% of the total other offerings",null,null,null,null,null,null,null,null,null,"Saturated Fat","Percent of Calories",null,"Less than 10% of total calories",null,null,null,null,{"$f":"IF(Q63<0.1,\"Estimated percent of saturated fat meets the requirement\",IF(AND(Q63>=0.1,Q63<=0.105),\"Estimated percent of saturated fat is above the requirement by less than a half percent, follow up with State agency\",\"Estimated percent of saturated fat does NOT meet the requirement\"))","v":"Estimated percent of saturated fat meets the requirement"}]
[null,null,0,0,null,"Other vegetables not offered",null,null,null,null,"avg_wk_cal","avg_wk_fat",null,null,null,null,{"$f":"ROUND(IF(ISERROR(SUM(L67,Q72,Z72)*9/Q61),0,SUM(L67,Q72,Z72)*9/Q61),2)","v":0}]
[null,null,{"$f":"IF($B$60=1,C60,IF($B$60=2,C61,IF($B$60=3,C62,IF($B$60=4,C63,0))))","v":0},{"$f":"IF($B$60=1,D60,IF($B$60=2,D61,IF($B$60=3,D62,IF($B$60=4,D63,0))))","v":0},{"$f":"IF($B$60=1,E60,IF($B$60=2,E60,IF($B$60=3,E60,IF($B$60=4,0,0))))","v":0},null,null,null,null,null,{"$f":"K61/7","v":0},{"$f":"L61/7","v":0},null,null,null,"Sodium","Daily Average",null,"Less than or equal to 1,230 mg",null,null,null,null,{"$f":"IF(Q65<=V66,\"Estimated sodium level MEETS the requirement\", IF(AND(Q65>V66,Q65<=(V66+40)),\"Estimated sodium level is above the requirement BUT within 40mg, follow up with State agency\",\"Estimated sodium level does NOT meet the requirement\"))","v":"Estimated sodium level MEETS the requirement"}]
[null,null,null,null,null,null,null,null,null,null,null,null,null,null,null,null,{"$f":"ROUND(SUM(K70,S72,AB72),2)","v":0}]
[null,null,null,null,null,null,"Total_avg_daily for F,M,V",null,null,null,null,null,null,null,null,null,600,650,575,675,null,1230]
[null,null,null,null,null,null,null,null,null,null,{"$f":"SUM(K11,K20,K30,K38,K46,K54,K64)","v":0},{"$f":"SUM(L11,L20,L30,L38,L46,L54,L64)","v":0},null,null,null,null,null,null,{"$f":"SUM(S8:S56)","v":0},null,null,null,null,null,{"$f":"SUM(Y8:Y56)","v":0},{"$f":"SUM(Z8:Z56)","v":0},null,{"$f":"SUM(AB8:AB56)","v":0}]
[null,null,null,null,null,null,null,null,null,null,null,null,null,null,null,"Cal","sat fat",null,"Num_servings",null,null,null,null,null,"cal","sat fat",null,"Num_servings"]
[null,null,null,null,null,null,null,null,null,"sodium base veg",{"$f":"SUM(L13,L21,L26,L34,L42,L50,L58)","v":0},null,null,null,null,"Total cal","Total fat",null,null,null,null,null,null,null,"Total cal","Total fat"]
[null,null,null,null,null,null,null,null,null,"sodium veg total",{"$f":"K69+L84","v":0},null,null,null,null,{"$f":"SUM(T8:T56)","v":0},{"$f":"SUM(U8:U56)","v":0},null,null,null,null,null,null,null,{"$f":"SUM(AC8:AC56)","v":0},{"$f":"SUM(AD8:AD56)","v":0}]
[null,null,null,null,null,null,null,null,null,"Total weekly veg cups",{"$f":"'Weekly Report'!I10","v":0},null,null,null,null,"avg_day_cal","avg_day_fat","sodium total","avg_day_sod",null,null,null,null,null,"avg_day_cal","avg_day_fat","total sod","avg_day_sod"]
[null,null,null,null,null,null,null,null,null,"total starchy cups",{"$f":"'Weekly Report'!I16","v":0},null,null,null,null,{"$f":"IF(ISERROR(P70/$S$67),0, (P70/$S$67))","v":0},{"$f":"IF(ISERROR(Q70/$S$67),0,(Q70/$S$67))","v":0},{"$f":"SUM(V8:V56)","v":0},{"$f":"IF(ISERROR(R72/$S$67),0,(R72/$S$67))","v":0},null,null,null,null,null,{"$f":"IF(ISERROR(Y70/$S$67),0,(Y70/$S$67))","v":0},{"$f":"IF(ISERROR(Z70/$S$67),0, (Z70/$S$67))","v":0},{"$f":"SUM(AE8:AE56)","v":0},{"$f":"IF(ISERROR(AA72/$S$67),0, (AA72/$S$67))","v":0}]
[null,null,null,null,null,null,null,null,null,null,null,null,null,null,null,"Comments Section"]
["Vegetable Sodium Assessment Questions"]
["Select \"Yes\" or \"No\" for each question regarding sodium usage in vegetables throughout the week. "]
["Question",null,null,null,null,null,"Yes",null,null,"No","additionalmg_track"]
["1. Do you serve fresh vegetables two or more days per week?",null,null,null,null,null,null,null,null,null,false,{"$f":"IF(K77=TRUE,K71*140,0)","v":0}]
["2. Do you offer fried potatoes less than two days per week?\n(Select \"No\" if offered MORE than two days)",null,null,null,null,null,null,null,null,null,false,{"$f":"IF(K78=TRUE,K72*110,0)","v":0}]
["3. Do you often or always offer low- or reduced-sodium broths/soups?",null,null,null,null,null,null,null,null,null,false,{"$f":"IF(K79=TRUE,K71*30,0)","v":0}]
["4. Do you often or always offer low or no-sodium varieties of canned vegetables?",null,null,null,null,null,null,null,null,null,false,{"$f":"IF(K80=TRUE,K71*30,0)","v":0}]
["Select the option that best represent the percentage of USDA food vegetables offered during the week"]
["Question",null,null,null,null,null,"Less than 50% of the vegetables are from USDA foods",null,null,"50% or more of the vegetables offered during the week are USDA foods"]
["5. What percentage of vegetables offered each week are USDA foods items?",null,null,null,null,null,null,null,null,null,false,{"$f":"IF(K83=TRUE,K71*30,0)","v":0}]
["Total sodium add-on value based on practices",null,null,null,null,null,null,null,null,null,null,{"$f":"SUM(L77:L83)/7","v":0}]
[]
[]
["Once all questions have been answered for fruits, milk, and vegetables, scroll to the top and begin the \"Main Dish Simplified Nutrient Data Entry\" section and the \"Other items\" data entry section."]